Workbook

Sheet sm_b
B1: YIL | C1: İŞYERİ İMALAT | D1: STATU | E1: KANUN | F1: ENGELLİ DURUMU | G1: EGİTİM DURUMU | H1: 50000 | I1: NET ÜCRET | K1: İŞE GİRİŞ TARİHİ | L1: FESİH TARİHİ | M1: AYLIK BRÜT ÜCRET | N1: KGVM
B2: 2025 | C2: DEĞİL | D2: NORMAL | E2: 05510 | F2: HAYIR | G2: Diğer | K2: 36526 | L2: =TODAY() -> 46254 | M2: =_xlfn.XLOOKUP(TRUE, C5:C16<>"", C5:C16, "", 0, -1) -> 74042.98063 | N2: =_xlfn.XLOOKUP(TRUE, G5:G16<>"", G5:G16, "", 0, -1) -> 723202.7038
K3: =DATE(B2, 1, 1) -> 45658 | L3: =DATE(B2, 12, 31) -> 46022
B4: AY | C4: BRÜT ÜCRET | D4: SGK MATRAH | E4: SGK İŞÇİ | F4: VERGİ MATRAHI | G4: KÜMÜLATİF GV MATRAH | H4: HESAPLANAN GELİR VERGİSİ | I4: AÜ GV İSTİSNA | J4: KESİLECEK GELİR VERGİSİ | K4: GV MUAFİYET | L4: HESAPLANAN DAMGA VERGİSİ | M4: AÜ DV İSTİSNA | N4: KESİLECEK DAMGA VERGİSİ | O4: DV MUAFİYET | P4: NET ÜCRET | Q4: SGK İŞVEREN | R4: SGK TEŞVİK | S4: İŞVEREN TOPLAM MALİYET | T4: SGK | U4: VERGİ
A5: =IF(G2="Y. Lisans",0.9, IF(G2="Doktora",0.95,0.8)) -> 0.8 | B5: OCAK | C5: 65024.85209 | D5: =IF(bordro_hesaplama_tablosu[[#This Row],[BRÜT ÜCRET]]>=SGK_TAVAN_1,SGK_TAVAN_1,bordro_hesaplama_tablosu[[#This Row],[BRÜT ÜCRET]]) -> 65024.85209 | E5: =bordro_hesaplama_tablosu[[#This Row],[SGK MATRAH]]*IF(STATU="NORMAL",PRIM_KEST_ORAN_ISCI_1,sgdp_isci) -> 9753.727813 | F5: =bordro_hesaplama_tablosu[[#This Row],[BRÜT ÜCRET]]-bordro_hesaplama_tablosu[[#This Row],[SGK İŞÇİ]]-IFERROR(VLOOKUP(ENGELLI_DURUMU,secili_params_ucret_turleri_1[[Ücret Türü]:[Aylık]],2,),0) -> 55271.12427 | G5: =bordro_hesaplama_tablosu[[#This Row],[VERGİ MATRAHI]] -> 55271.12427 | H5: =MAX((bordro_hesaplama_tablosu[[#This Row],[KÜMÜLATİF GV MATRAH]]-vergi_dilimi_4_1)*0.05,0)+MAX((bordro_hesaplama_tablosu[[#This Row],[KÜMÜLATİF GV MATRAH]]-vergi_dilimi_3_1)*0.08,0)+MAX((bordro_hesaplama_tablosu[[#This Row],[KÜMÜLATİF GV MATRAH]]-vergi_dilimi_2_1)*0.07,0)+MAX((bordro_hesaplama_tablosu[[#This Row],[KÜMÜLATİF GV MATRAH]]-vergi_dilimi_1_1)*0.05,0)+bordro_hesaplama_tablosu[[#This Row],[KÜMÜLATİF GV MATRAH]]*0.15-(MAX((vergi_dilimi_0-vergi_dilimi_4_1)*0.05,0)+(MAX((vergi_dilimi_0-vergi_dilimi_3_1)*0.08,0)+MAX((vergi_dilimi_0-vergi_dilimi_2_1)*0.07,0)+MAX((vergi_dilimi_0-vergi_dilimi_1_1)*0.05,0)+vergi_dilimi_0*0.15)) -> 8290.668641 | I5: =MIN(VLOOKUP(bordro_hesaplama_tablosu[[#This Row],[AY]],asgari_ucrt_istisna[],6,),bordro_hesaplama_tablosu[[#This Row],[HESAPLANAN GELİR VERGİSİ]]) -> 3315.70125 | J5: =MAX(bordro_hesaplama_tablosu[[#This Row],[HESAPLANAN GELİR VERGİSİ]]-bordro_hesaplama_tablosu[[#This Row],[AÜ GV İSTİSNA]],0) -> 4974.967391 | K5: =(STATU<>"EMEKLİ") * bordro_hesaplama_tablosu[[#This Row],[KESİLECEK GELİR VERGİSİ]] * ((KANUN="04691") + (KANUN="05746") * $A$5) -> 0 | L5: =(bordro_hesaplama_tablosu[[#This Row],[BRÜT ÜCRET]]*damga_vergisi_orani) -> 493.5386273 | M5: =MIN(VLOOKUP(bordro_hesaplama_tablosu[[#This Row],[AY]],asgari_ucrt_istisna[],7,),bordro_hesaplama_tablosu[[#This Row],[HESAPLANAN DAMGA VERGİSİ]]) -> 197.381745 | N5: =bordro_hesaplama_tablosu[[#This Row],[HESAPLANAN DAMGA VERGİSİ]]-bordro_hesaplama_tablosu[[#This Row],[AÜ DV İSTİSNA]] -> 296.1568823 | O5: =AND(STATU<>"EMEKLİ", OR(KANUN="04691", KANUN="05746")) * bordro_hesaplama_tablosu[[#This Row],[KESİLECEK DAMGA VERGİSİ]] -> 0 | P5: =bordro_hesaplama_tablosu[[#This Row],[BRÜT ÜCRET]]-bordro_hesaplama_tablosu[[#This Row],[SGK İŞÇİ]]-bordro_hesaplama_tablosu[[#This Row],[KESİLECEK GELİR VERGİSİ]]-bordro_hesaplama_tablosu[[#This Row],[KESİLECEK DAMGA VERGİSİ]] -> 50000 | Q5: =bordro_hesaplama_tablosu[[#This Row],[SGK MATRAH]]*IF(STATU="NORMAL",PRIM_KEST_ORAN_ISVEREN_1,sgdp_isveren_1) -> 14793.15385 | R5: =IFERROR( _xlfn.LET( _xlpm._f_kontrol, AND(KANUN <> "00000", STATU <> "EMEKLİ"), _xlpm._is_imalat, AND(_xlpm._f_kontrol, IMALAT = "İMALAT"), _xlpm._is_degil, AND(_xlpm._f_kontrol, IMALAT = "DEĞİL"), _xlpm._hazine, IF(_xlpm._is_imalat, hazine_indirimi_imalat_1, IF(_xlpm._is_degil, hazine_indirimi_1, 0)), _xlpm._matrah, bordro_hesaplama_tablosu[[#This Row],[SGK MATRAH]], _xlpm._asgari_30, GUNLUK_BRUT_ASGARI_1 * 30, _xlpm._net_isveren_oran, PRIM_KEST_ORAN_ISVEREN_1 - ISSIZLIK_ISVEREN_1, _xlpm._oran_imalat_fark, IF(_xlpm._is_imalat, _xlpm._net_isveren_oran - hazine_indirimi_imalat_1, _xlpm._net_isveren_oran - hazine_indirimi_1), IF( _xlpm._f_kontrol, _xlfn.IFS( KANUN = "05510", _xlpm._matrah * _xlpm._hazine, OR(KANUN = "05746", KANUN = "04691"), _xlpm._matrah * (_xlpm._net_isveren_oran + _xlpm._hazine) / 2, KANUN = "06111", _xlpm._matrah * (_xlpm._net_isveren_oran), KANUN = "03294", IF(_xlpm._matrah / 30 > GUNLUK_BRUT_ASGARI_1, (_xlpm._asgari_30 * _xlpm._oran_imalat_fark) + (_xlpm._matrah * _xlpm._hazine), (_xlpm._matrah * _xlpm._oran_imalat_fark) + (_xlpm._matrah * _xlpm._hazine)), KANUN = "16322", (_xlpm._asgari_30 * (_xlpm._net_isveren_oran - _xlpm._hazine)) + (_xlpm._matrah * _xlpm._hazine), KANUN = "26322", (_xlpm._asgari_30 * (PRIM_KEST_ORAN_ISVEREN_1 + PRIM_KEST_ORAN_ISCI_1 - ISSIZLIK_ISVEREN_1 - ISSIZLIK_ISCI_1 - _xlpm._hazine)) + (_xlpm._matrah * _xlpm._hazine), KANUN = "14857", (_xlpm._asgari_30 * _xlpm._oran_imalat_fark) + (_xlpm._matrah * _xlpm._hazine), TRUE, 0 ), 0 ) ), 0 ) -> 2600.994083 | S5: =bordro_hesaplama_tablosu[[#This Row],[BRÜT ÜCRET]]+bordro_hesaplama_tablosu[[#This Row],[SGK İŞVEREN]]-bordro_hesaplama_tablosu[[#This Row],[SGK TEŞVİK]]-bordro_hesaplama_tablosu[[#This Row],[GV MUAFİYET]]-bordro_hesaplama_tablosu[[#This Row],[DV MUAFİYET]] -> 77217.01185 | T5: =bordro_hesaplama_tablosu[[#This Row],[SGK İŞÇİ]]+bordro_hesaplama_tablosu[[#This Row],[SGK İŞVEREN]]-bordro_hesaplama_tablosu[[#This Row],[SGK TEŞVİK]] -> 21945.88758 | U5: =(bordro_hesaplama_tablosu[[#This Row],[KESİLECEK GELİR VERGİSİ]]-bordro_hesaplama_tablosu[[#This Row],[GV MUAFİYET]])+(bordro_hesaplama_tablosu[[#This Row],[KESİLECEK DAMGA VERGİSİ]]-bordro_hesaplama_tablosu[[#This Row],[DV MUAFİYET]]) -> 5271.124273
B6: ŞUBAT | C6: 65024.85209 | D6: =IF(bordro_hesaplama_tablosu[[#This Row],[BRÜT ÜCRET]]>=SGK_TAVAN_1,SGK_TAVAN_1,bordro_hesaplama_tablosu[[#This Row],[BRÜT ÜCRET]]) -> 65024.85209 | E6: =bordro_hesaplama_tablosu[[#This Row],[SGK MATRAH]]*IF(STATU="NORMAL",PRIM_KEST_ORAN_ISCI_1,sgdp_isci) -> 9753.727813 | F6: =bordro_hesaplama_tablosu[[#This Row],[BRÜT ÜCRET]]-bordro_hesaplama_tablosu[[#This Row],[SGK İŞÇİ]]-IFERROR(VLOOKUP(ENGELLI_DURUMU,secili_params_ucret_turleri_1[[Ücret Türü]:[Aylık]],2,),0) -> 55271.12427 | G6: =bordro_hesaplama_tablosu[[#This Row],[VERGİ MATRAHI]]+G5 -> 110542.2485 | H6: =MAX((G6-vergi_dilimi_4_1)*0.05,0)+MAX((G6-vergi_dilimi_3_1)*0.08,0)+MAX((G6-vergi_dilimi_2_1)*0.07,0)+MAX((G6-vergi_dilimi_1_1)*0.05,0)+G6*0.15-(MAX((G5-vergi_dilimi_4_1)*0.05,0)+(MAX((G5-vergi_dilimi_3_1)*0.08,0)+MAX((G5-vergi_dilimi_2_1)*0.07,0)+MAX((G5-vergi_dilimi_1_1)*0.05,0)+G5*0.15)) -> 8290.668641 | I6: =MIN(VLOOKUP(bordro_hesaplama_tablosu[[#This Row],[AY]],asgari_ucrt_istisna[],6,),bordro_hesaplama_tablosu[[#This Row],[HESAPLANAN GELİR VERGİSİ]]) -> 3315.70125 | J6: =MAX(bordro_hesaplama_tablosu[[#This Row],[HESAPLANAN GELİR VERGİSİ]]-bordro_hesaplama_tablosu[[#This Row],[AÜ GV İSTİSNA]],0) -> 4974.967391 | K6: =(STATU<>"EMEKLİ") * bordro_hesaplama_tablosu[[#This Row],[KESİLECEK GELİR VERGİSİ]] * ((KANUN="04691") + (KANUN="05746") * $A$5) -> 0 | L6: =(bordro_hesaplama_tablosu[[#This Row],[BRÜT ÜCRET]]*damga_vergisi_orani) -> 493.5386273 | M6: =MIN(VLOOKUP(bordro_hesaplama_tablosu[[#This Row],[AY]],asgari_ucrt_istisna[],7,),bordro_hesaplama_tablosu[[#This Row],[HESAPLANAN DAMGA VERGİSİ]]) -> 197.381745 | N6: =bordro_hesaplama_tablosu[[#This Row],[HESAPLANAN DAMGA VERGİSİ]]-bordro_hesaplama_tablosu[[#This Row],[AÜ DV İSTİSNA]] -> 296.1568823 | O6: =AND(STATU<>"EMEKLİ", OR(KANUN="04691", KANUN="05746")) * bordro_hesaplama_tablosu[[#This Row],[KESİLECEK DAMGA VERGİSİ]] -> 0 | P6: =bordro_hesaplama_tablosu[[#This Row],[BRÜT ÜCRET]]-bordro_hesaplama_tablosu[[#This Row],[SGK İŞÇİ]]-bordro_hesaplama_tablosu[[#This Row],[KESİLECEK GELİR VERGİSİ]]-bordro_hesaplama_tablosu[[#This Row],[KESİLECEK DAMGA VERGİSİ]] -> 50000 | Q6: =bordro_hesaplama_tablosu[[#This Row],[SGK MATRAH]]*IF(STATU="NORMAL",PRIM_KEST_ORAN_ISVEREN_1,sgdp_isveren_1) -> 14793.15385 | R6: =IFERROR( _xlfn.LET( _xlpm._f_kontrol, AND(KANUN <> "00000", STATU <> "EMEKLİ"), _xlpm._is_imalat, AND(_xlpm._f_kontrol, IMALAT = "İMALAT"), _xlpm._is_degil, AND(_xlpm._f_kontrol, IMALAT = "DEĞİL"), _xlpm._hazine, IF(_xlpm._is_imalat, hazine_indirimi_imalat_1, IF(_xlpm._is_degil, hazine_indirimi_1, 0)), _xlpm._matrah, bordro_hesaplama_tablosu[[#This Row],[SGK MATRAH]], _xlpm._asgari_30, GUNLUK_BRUT_ASGARI_1 * 30, _xlpm._net_isveren_oran, PRIM_KEST_ORAN_ISVEREN_1 - ISSIZLIK_ISVEREN_1, _xlpm._oran_imalat_fark, IF(_xlpm._is_imalat, _xlpm._net_isveren_oran - hazine_indirimi_imalat_1, _xlpm._net_isveren_oran - hazine_indirimi_1), IF( _xlpm._f_kontrol, _xlfn.IFS( KANUN = "05510", _xlpm._matrah * _xlpm._hazine, OR(KANUN = "05746", KANUN = "04691"), _xlpm._matrah * (_xlpm._net_isveren_oran + _xlpm._hazine) / 2, KANUN = "06111", _xlpm._matrah * (_xlpm._net_isveren_oran), KANUN = "03294", IF(_xlpm._matrah / 30 > GUNLUK_BRUT_ASGARI_1, (_xlpm._asgari_30 * _xlpm._oran_imalat_fark) + (_xlpm._matrah * _xlpm._hazine), (_xlpm._matrah * _xlpm._oran_imalat_fark) + (_xlpm._matrah * _xlpm._hazine)), KANUN = "16322", (_xlpm._asgari_30 * (_xlpm._net_isveren_oran - _xlpm._hazine)) + (_xlpm._matrah * _xlpm._hazine), KANUN = "26322", (_xlpm._asgari_30 * (PRIM_KEST_ORAN_ISVEREN_1 + PRIM_KEST_ORAN_ISCI_1 - ISSIZLIK_ISVEREN_1 - ISSIZLIK_ISCI_1 - _xlpm._hazine)) + (_xlpm._matrah * _xlpm._hazine), KANUN = "14857", (_xlpm._asgari_30 * _xlpm._oran_imalat_fark) + (_xlpm._matrah * _xlpm._hazine), TRUE, 0 ), 0 ) ), 0 ) -> 2600.994083 | S6: =bordro_hesaplama_tablosu[[#This Row],[BRÜT ÜCRET]]+bordro_hesaplama_tablosu[[#This Row],[SGK İŞVEREN]]-bordro_hesaplama_tablosu[[#This Row],[SGK TEŞVİK]]-bordro_hesaplama_tablosu[[#This Row],[GV MUAFİYET]]-bordro_hesaplama_tablosu[[#This Row],[DV MUAFİYET]] -> 77217.01185 | T6: =bordro_hesaplama_tablosu[[#This Row],[SGK İŞÇİ]]+bordro_hesaplama_tablosu[[#This Row],[SGK İŞVEREN]]-bordro_hesaplama_tablosu[[#This Row],[SGK TEŞVİK]] -> 21945.88758 | U6: =(bordro_hesaplama_tablosu[[#This Row],[KESİLECEK GELİR VERGİSİ]]-bordro_hesaplama_tablosu[[#This Row],[GV MUAFİYET]])+(bordro_hesaplama_tablosu[[#This Row],[KESİLECEK DAMGA VERGİSİ]]-bordro_hesaplama_tablosu[[#This Row],[DV MUAFİYET]]) -> 5271.124273
B7: MART | C7: 65605.84975 | D7: =IF(bordro_hesaplama_tablosu[[#This Row],[BRÜT ÜCRET]]>=SGK_TAVAN_1,SGK_TAVAN_1,bordro_hesaplama_tablosu[[#This Row],[BRÜT ÜCRET]]) -> 65605.84975 | E7: =bordro_hesaplama_tablosu[[#This Row],[SGK MATRAH]]*IF(STATU="NORMAL",PRIM_KEST_ORAN_ISCI_1,sgdp_isci) -> 9840.877463 | F7: =bordro_hesaplama_tablosu[[#This Row],[BRÜT ÜCRET]]-bordro_hesaplama_tablosu[[#This Row],[SGK İŞÇİ]]-IFERROR(VLOOKUP(ENGELLI_DURUMU,secili_params_ucret_turleri_1[[Ücret Türü]:[Aylık]],2,),0) -> 55764.97229 | G7: =bordro_hesaplama_tablosu[[#This Row],[VERGİ MATRAHI]]+G6 -> 166307.2208 | H7: =MAX((G7-vergi_dilimi_4_1)*0.05,0)+MAX((G7-vergi_dilimi_3_1)*0.08,0)+MAX((G7-vergi_dilimi_2_1)*0.07,0)+MAX((G7-vergi_dilimi_1_1)*0.05,0)+G7*0.15-(MAX((G6-vergi_dilimi_4_1)*0.05,0)+(MAX((G6-vergi_dilimi_3_1)*0.08,0)+MAX((G6-vergi_dilimi_2_1)*0.07,0)+MAX((G6-vergi_dilimi_1_1)*0.05,0)+G6*0.15)) -> 8780.106885 | I7: =MIN(VLOOKUP(bordro_hesaplama_tablosu[[#This Row],[AY]],asgari_ucrt_istisna[],6,),bordro_hesaplama_tablosu[[#This Row],[HESAPLANAN GELİR VERGİSİ]]) -> 3315.70125 | J7: =MAX(bordro_hesaplama_tablosu[[#This Row],[HESAPLANAN GELİR VERGİSİ]]-bordro_hesaplama_tablosu[[#This Row],[AÜ GV İSTİSNA]],0) -> 5464.405635 | K7: =(STATU<>"EMEKLİ") * bordro_hesaplama_tablosu[[#This Row],[KESİLECEK GELİR VERGİSİ]] * ((KANUN="04691") + (KANUN="05746") * $A$5) -> 0 | L7: =(bordro_hesaplama_tablosu[[#This Row],[BRÜT ÜCRET]]*damga_vergisi_orani) -> 497.9483996 | M7: =MIN(VLOOKUP(bordro_hesaplama_tablosu[[#This Row],[AY]],asgari_ucrt_istisna[],7,),bordro_hesaplama_tablosu[[#This Row],[HESAPLANAN DAMGA VERGİSİ]]) -> 197.381745 | N7: =bordro_hesaplama_tablosu[[#This Row],[HESAPLANAN DAMGA VERGİSİ]]-bordro_hesaplama_tablosu[[#This Row],[AÜ DV İSTİSNA]] -> 300.5666546 | O7: =AND(STATU<>"EMEKLİ", OR(KANUN="04691", KANUN="05746")) * bordro_hesaplama_tablosu[[#This Row],[KESİLECEK DAMGA VERGİSİ]] -> 0 | P7: =bordro_hesaplama_tablosu[[#This Row],[BRÜT ÜCRET]]-bordro_hesaplama_tablosu[[#This Row],[SGK İŞÇİ]]-bordro_hesaplama_tablosu[[#This Row],[KESİLECEK GELİR VERGİSİ]]-bordro_hesaplama_tablosu[[#This Row],[KESİLECEK DAMGA VERGİSİ]] -> 50000 | Q7: =bordro_hesaplama_tablosu[[#This Row],[SGK MATRAH]]*IF(STATU="NORMAL",PRIM_KEST_ORAN_ISVEREN_1,sgdp_isveren_1) -> 14925.33082 | R7: =IFERROR( _xlfn.LET( _xlpm._f_kontrol, AND(KANUN <> "00000", STATU <> "EMEKLİ"), _xlpm._is_imalat, AND(_xlpm._f_kontrol, IMALAT = "İMALAT"), _xlpm._is_degil, AND(_xlpm._f_kontrol, IMALAT = "DEĞİL"), _xlpm._hazine, IF(_xlpm._is_imalat, hazine_indirimi_imalat_1, IF(_xlpm._is_degil, hazine_indirimi_1, 0)), _xlpm._matrah, bordro_hesaplama_tablosu[[#This Row],[SGK MATRAH]], _xlpm._asgari_30, GUNLUK_BRUT_ASGARI_1 * 30, _xlpm._net_isveren_oran, PRIM_KEST_ORAN_ISVEREN_1 - ISSIZLIK_ISVEREN_1, _xlpm._oran_imalat_fark, IF(_xlpm._is_imalat, _xlpm._net_isveren_oran - hazine_indirimi_imalat_1, _xlpm._net_isveren_oran - hazine_indirimi_1), IF( _xlpm._f_kontrol, _xlfn.IFS( KANUN = "05510", _xlpm._matrah * _xlpm._hazine, OR(KANUN = "05746", KANUN = "04691"), _xlpm._matrah * (_xlpm._net_isveren_oran + _xlpm._hazine) / 2, KANUN = "06111", _xlpm._matrah * (_xlpm._net_isveren_oran), KANUN = "03294", IF(_xlpm._matrah / 30 > GUNLUK_BRUT_ASGARI_1, (_xlpm._asgari_30 * _xlpm._oran_imalat_fark) + (_xlpm._matrah * _xlpm._hazine), (_xlpm._matrah * _xlpm._oran_imalat_fark) + (_xlpm._matrah * _xlpm._hazine)), KANUN = "16322", (_xlpm._asgari_30 * (_xlpm._net_isveren_oran - _xlpm._hazine)) + (_xlpm._matrah * _xlpm._hazine), KANUN = "26322", (_xlpm._asgari_30 * (PRIM_KEST_ORAN_ISVEREN_1 + PRIM_KEST_ORAN_ISCI_1 - ISSIZLIK_ISVEREN_1 - ISSIZLIK_ISCI_1 - _xlpm._hazine)) + (_xlpm._matrah * _xlpm._hazine), KANUN = "14857", (_xlpm._asgari_30 * _xlpm._oran_imalat_fark) + (_xlpm._matrah * _xlpm._hazine), TRUE, 0 ), 0 ) ), 0 ) -> 2624.23399 | S7: =bordro_hesaplama_tablosu[[#This Row],[BRÜT ÜCRET]]+bordro_hesaplama_tablosu[[#This Row],[SGK İŞVEREN]]-bordro_hesaplama_tablosu[[#This Row],[SGK TEŞVİK]]-bordro_hesaplama_tablosu[[#This Row],[GV MUAFİYET]]-bordro_hesaplama_tablosu[[#This Row],[DV MUAFİYET]] -> 77906.94658 | T7: =bordro_hesaplama_tablosu[[#This Row],[SGK İŞÇİ]]+bordro_hesaplama_tablosu[[#This Row],[SGK İŞVEREN]]-bordro_hesaplama_tablosu[[#This Row],[SGK TEŞVİK]] -> 22141.97429 | U7: =(bordro_hesaplama_tablosu[[#This Row],[KESİLECEK GELİR VERGİSİ]]-bordro_hesaplama_tablosu[[#This Row],[GV MUAFİYET]])+(bordro_hesaplama_tablosu[[#This Row],[KESİLECEK DAMGA VERGİSİ]]-bordro_hesaplama_tablosu[[#This Row],[DV MUAFİYET]]) -> 5764.97229
B8: NİSAN | C8: 69134.77938 | D8: =IF(bordro_hesaplama_tablosu[[#This Row],[BRÜT ÜCRET]]>=SGK_TAVAN_1,SGK_TAVAN_1,bordro_hesaplama_tablosu[[#This Row],[BRÜT ÜCRET]]) -> 69134.77938 | E8: =bordro_hesaplama_tablosu[[#This Row],[SGK MATRAH]]*IF(STATU="NORMAL",PRIM_KEST_ORAN_ISCI_1,sgdp_isci) -> 10370.21691 | F8: =bordro_hesaplama_tablosu[[#This Row],[BRÜT ÜCRET]]-bordro_hesaplama_tablosu[[#This Row],[SGK İŞÇİ]]-IFERROR(VLOOKUP(ENGELLI_DURUMU,secili_params_ucret_turleri_1[[Ücret Türü]:[Aylık]],2,),0) -> 58764.56248 | G8: =bordro_hesaplama_tablosu[[#This Row],[VERGİ MATRAHI]]+G7 -> 225071.7833 | H8: =MAX((G8-vergi_dilimi_4_1)*0.05,0)+MAX((G8-vergi_dilimi_3_1)*0.08,0)+MAX((G8-vergi_dilimi_2_1)*0.07,0)+MAX((G8-vergi_dilimi_1_1)*0.05,0)+G8*0.15-(MAX((G7-vergi_dilimi_4_1)*0.05,0)+(MAX((G7-vergi_dilimi_3_1)*0.08,0)+MAX((G7-vergi_dilimi_2_1)*0.07,0)+MAX((G7-vergi_dilimi_1_1)*0.05,0)+G7*0.15)) -> 11752.9125 | I8: =MIN(VLOOKUP(bordro_hesaplama_tablosu[[#This Row],[AY]],asgari_ucrt_istisna[],6,),bordro_hesaplama_tablosu[[#This Row],[HESAPLANAN GELİR VERGİSİ]]) -> 3315.70125 | J8: =MAX(bordro_hesaplama_tablosu[[#This Row],[HESAPLANAN GELİR VERGİSİ]]-bordro_hesaplama_tablosu[[#This Row],[AÜ GV İSTİSNA]],0) -> 8437.211245 | K8: =(STATU<>"EMEKLİ") * bordro_hesaplama_tablosu[[#This Row],[KESİLECEK GELİR VERGİSİ]] * ((KANUN="04691") + (KANUN="05746") * $A$5) -> 0 | L8: =(bordro_hesaplama_tablosu[[#This Row],[BRÜT ÜCRET]]*damga_vergisi_orani) -> 524.7329755 | M8: =MIN(VLOOKUP(bordro_hesaplama_tablosu[[#This Row],[AY]],asgari_ucrt_istisna[],7,),bordro_hesaplama_tablosu[[#This Row],[HESAPLANAN DAMGA VERGİSİ]]) -> 197.381745 | N8: =bordro_hesaplama_tablosu[[#This Row],[HESAPLANAN DAMGA VERGİSİ]]-bordro_hesaplama_tablosu[[#This Row],[AÜ DV İSTİSNA]] -> 327.3512305 | O8: =AND(STATU<>"EMEKLİ", OR(KANUN="04691", KANUN="05746")) * bordro_hesaplama_tablosu[[#This Row],[KESİLECEK DAMGA VERGİSİ]] -> 0 | P8: =bordro_hesaplama_tablosu[[#This Row],[BRÜT ÜCRET]]-bordro_hesaplama_tablosu[[#This Row],[SGK İŞÇİ]]-bordro_hesaplama_tablosu[[#This Row],[KESİLECEK GELİR VERGİSİ]]-bordro_hesaplama_tablosu[[#This Row],[KESİLECEK DAMGA VERGİSİ]] -> 50000 | Q8: =bordro_hesaplama_tablosu[[#This Row],[SGK MATRAH]]*IF(STATU="NORMAL",PRIM_KEST_ORAN_ISVEREN_1,sgdp_isveren_1) -> 15728.16231 | R8: =IFERROR( _xlfn.LET( _xlpm._f_kontrol, AND(KANUN <> "00000", STATU <> "EMEKLİ"), _xlpm._is_imalat, AND(_xlpm._f_kontrol, IMALAT = "İMALAT"), _xlpm._is_degil, AND(_xlpm._f_kontrol, IMALAT = "DEĞİL"), _xlpm._hazine, IF(_xlpm._is_imalat, hazine_indirimi_imalat_1, IF(_xlpm._is_degil, hazine_indirimi_1, 0)), _xlpm._matrah, bordro_hesaplama_tablosu[[#This Row],[SGK MATRAH]], _xlpm._asgari_30, GUNLUK_BRUT_ASGARI_1 * 30, _xlpm._net_isveren_oran, PRIM_KEST_ORAN_ISVEREN_1 - ISSIZLIK_ISVEREN_1, _xlpm._oran_imalat_fark, IF(_xlpm._is_imalat, _xlpm._net_isveren_oran - hazine_indirimi_imalat_1, _xlpm._net_isveren_oran - hazine_indirimi_1), IF( _xlpm._f_kontrol, _xlfn.IFS( KANUN = "05510", _xlpm._matrah * _xlpm._hazine, OR(KANUN = "05746", KANUN = "04691"), _xlpm._matrah * (_xlpm._net_isveren_oran + _xlpm._hazine) / 2, KANUN = "06111", _xlpm._matrah * (_xlpm._net_isveren_oran), KANUN = "03294", IF(_xlpm._matrah / 30 > GUNLUK_BRUT_ASGARI_1, (_xlpm._asgari_30 * _xlpm._oran_imalat_fark) + (_xlpm._matrah * _xlpm._hazine), (_xlpm._matrah * _xlpm._oran_imalat_fark) + (_xlpm._matrah * _xlpm._hazine)), KANUN = "16322", (_xlpm._asgari_30 * (_xlpm._net_isveren_oran - _xlpm._hazine)) + (_xlpm._matrah * _xlpm._hazine), KANUN = "26322", (_xlpm._asgari_30 * (PRIM_KEST_ORAN_ISVEREN_1 + PRIM_KEST_ORAN_ISCI_1 - ISSIZLIK_ISVEREN_1 - ISSIZLIK_ISCI_1 - _xlpm._hazine)) + (_xlpm._matrah * _xlpm._hazine), KANUN = "14857", (_xlpm._asgari_30 * _xlpm._oran_imalat_fark) + (_xlpm._matrah * _xlpm._hazine), TRUE, 0 ), 0 ) ), 0 ) -> 2765.391175 | S8: =bordro_hesaplama_tablosu[[#This Row],[BRÜT ÜCRET]]+bordro_hesaplama_tablosu[[#This Row],[SGK İŞVEREN]]-bordro_hesaplama_tablosu[[#This Row],[SGK TEŞVİK]]-bordro_hesaplama_tablosu[[#This Row],[GV MUAFİYET]]-bordro_hesaplama_tablosu[[#This Row],[DV MUAFİYET]] -> 82097.55052 | T8: =bordro_hesaplama_tablosu[[#This Row],[SGK İŞÇİ]]+bordro_hesaplama_tablosu[[#This Row],[SGK İŞVEREN]]-bordro_hesaplama_tablosu[[#This Row],[SGK TEŞVİK]] -> 23332.98804 | U8: =(bordro_hesaplama_tablosu[[#This Row],[KESİLECEK GELİR VERGİSİ]]-bordro_hesaplama_tablosu[[#This Row],[GV MUAFİYET]])+(bordro_hesaplama_tablosu[[#This Row],[KESİLECEK DAMGA VERGİSİ]]-bordro_hesaplama_tablosu[[#This Row],[DV MUAFİYET]]) -> 8764.562476
B9: MAYIS | C9: 69134.77938 | D9: =IF(bordro_hesaplama_tablosu[[#This Row],[BRÜT ÜCRET]]>=SGK_TAVAN_1,SGK_TAVAN_1,bordro_hesaplama_tablosu[[#This Row],[BRÜT ÜCRET]]) -> 69134.77938 | E9: =bordro_hesaplama_tablosu[[#This Row],[SGK MATRAH]]*IF(STATU="NORMAL",PRIM_KEST_ORAN_ISCI_1,sgdp_isci) -> 10370.21691 | F9: =bordro_hesaplama_tablosu[[#This Row],[BRÜT ÜCRET]]-bordro_hesaplama_tablosu[[#This Row],[SGK İŞÇİ]]-IFERROR(VLOOKUP(ENGELLI_DURUMU,secili_params_ucret_turleri_1[[Ücret Türü]:[Aylık]],2,),0) -> 58764.56248 | G9: =bordro_hesaplama_tablosu[[#This Row],[VERGİ MATRAHI]]+G8 -> 283836.3458 | H9: =MAX((G9-vergi_dilimi_4_1)*0.05,0)+MAX((G9-vergi_dilimi_3_1)*0.08,0)+MAX((G9-vergi_dilimi_2_1)*0.07,0)+MAX((G9-vergi_dilimi_1_1)*0.05,0)+G9*0.15-(MAX((G8-vergi_dilimi_4_1)*0.05,0)+(MAX((G8-vergi_dilimi_3_1)*0.08,0)+MAX((G8-vergi_dilimi_2_1)*0.07,0)+MAX((G8-vergi_dilimi_1_1)*0.05,0)+G8*0.15)) -> 11752.9125 | I9: =MIN(VLOOKUP(bordro_hesaplama_tablosu[[#This Row],[AY]],asgari_ucrt_istisna[],6,),bordro_hesaplama_tablosu[[#This Row],[HESAPLANAN GELİR VERGİSİ]]) -> 3315.70125 | J9: =MAX(bordro_hesaplama_tablosu[[#This Row],[HESAPLANAN GELİR VERGİSİ]]-bordro_hesaplama_tablosu[[#This Row],[AÜ GV İSTİSNA]],0) -> 8437.211245 | K9: =(STATU<>"EMEKLİ") * bordro_hesaplama_tablosu[[#This Row],[KESİLECEK GELİR VERGİSİ]] * ((KANUN="04691") + (KANUN="05746") * $A$5) -> 0 | L9: =(bordro_hesaplama_tablosu[[#This Row],[BRÜT ÜCRET]]*damga_vergisi_orani) -> 524.7329755 | M9: =MIN(VLOOKUP(bordro_hesaplama_tablosu[[#This Row],[AY]],asgari_ucrt_istisna[],7,),bordro_hesaplama_tablosu[[#This Row],[HESAPLANAN DAMGA VERGİSİ]]) -> 197.381745 | N9: =bordro_hesaplama_tablosu[[#This Row],[HESAPLANAN DAMGA VERGİSİ]]-bordro_hesaplama_tablosu[[#This Row],[AÜ DV İSTİSNA]] -> 327.3512305 | O9: =AND(STATU<>"EMEKLİ", OR(KANUN="04691", KANUN="05746")) * bordro_hesaplama_tablosu[[#This Row],[KESİLECEK DAMGA VERGİSİ]] -> 0 | P9: =bordro_hesaplama_tablosu[[#This Row],[BRÜT ÜCRET]]-bordro_hesaplama_tablosu[[#This Row],[SGK İŞÇİ]]-bordro_hesaplama_tablosu[[#This Row],[KESİLECEK GELİR VERGİSİ]]-bordro_hesaplama_tablosu[[#This Row],[KESİLECEK DAMGA VERGİSİ]] -> 50000 | Q9: =bordro_hesaplama_tablosu[[#This Row],[SGK MATRAH]]*IF(STATU="NORMAL",PRIM_KEST_ORAN_ISVEREN_1,sgdp_isveren_1) -> 15728.16231 | R9: =IFERROR( _xlfn.LET( _xlpm._f_kontrol, AND(KANUN <> "00000", STATU <> "EMEKLİ"), _xlpm._is_imalat, AND(_xlpm._f_kontrol, IMALAT = "İMALAT"), _xlpm._is_degil, AND(_xlpm._f_kontrol, IMALAT = "DEĞİL"), _xlpm._hazine, IF(_xlpm._is_imalat, hazine_indirimi_imalat_1, IF(_xlpm._is_degil, hazine_indirimi_1, 0)), _xlpm._matrah, bordro_hesaplama_tablosu[[#This Row],[SGK MATRAH]], _xlpm._asgari_30, GUNLUK_BRUT_ASGARI_1 * 30, _xlpm._net_isveren_oran, PRIM_KEST_ORAN_ISVEREN_1 - ISSIZLIK_ISVEREN_1, _xlpm._oran_imalat_fark, IF(_xlpm._is_imalat, _xlpm._net_isveren_oran - hazine_indirimi_imalat_1, _xlpm._net_isveren_oran - hazine_indirimi_1), IF( _xlpm._f_kontrol, _xlfn.IFS( KANUN = "05510", _xlpm._matrah * _xlpm._hazine, OR(KANUN = "05746", KANUN = "04691"), _xlpm._matrah * (_xlpm._net_isveren_oran + _xlpm._hazine) / 2, KANUN = "06111", _xlpm._matrah * (_xlpm._net_isveren_oran), KANUN = "03294", IF(_xlpm._matrah / 30 > GUNLUK_BRUT_ASGARI_1, (_xlpm._asgari_30 * _xlpm._oran_imalat_fark) + (_xlpm._matrah * _xlpm._hazine), (_xlpm._matrah * _xlpm._oran_imalat_fark) + (_xlpm._matrah * _xlpm._hazine)), KANUN = "16322", (_xlpm._asgari_30 * (_xlpm._net_isveren_oran - _xlpm._hazine)) + (_xlpm._matrah * _xlpm._hazine), KANUN = "26322", (_xlpm._asgari_30 * (PRIM_KEST_ORAN_ISVEREN_1 + PRIM_KEST_ORAN_ISCI_1 - ISSIZLIK_ISVEREN_1 - ISSIZLIK_ISCI_1 - _xlpm._hazine)) + (_xlpm._matrah * _xlpm._hazine), KANUN = "14857", (_xlpm._asgari_30 * _xlpm._oran_imalat_fark) + (_xlpm._matrah * _xlpm._hazine), TRUE, 0 ), 0 ) ), 0 ) -> 2765.391175 | S9: =bordro_hesaplama_tablosu[[#This Row],[BRÜT ÜCRET]]+bordro_hesaplama_tablosu[[#This Row],[SGK İŞVEREN]]-bordro_hesaplama_tablosu[[#This Row],[SGK TEŞVİK]]-bordro_hesaplama_tablosu[[#This Row],[GV MUAFİYET]]-bordro_hesaplama_tablosu[[#This Row],[DV MUAFİYET]] -> 82097.55052 | T9: =bordro_hesaplama_tablosu[[#This Row],[SGK İŞÇİ]]+bordro_hesaplama_tablosu[[#This Row],[SGK İŞVEREN]]-bordro_hesaplama_tablosu[[#This Row],[SGK TEŞVİK]] -> 23332.98804 | U9: =(bordro_hesaplama_tablosu[[#This Row],[KESİLECEK GELİR VERGİSİ]]-bordro_hesaplama_tablosu[[#This Row],[GV MUAFİYET]])+(bordro_hesaplama_tablosu[[#This Row],[KESİLECEK DAMGA VERGİSİ]]-bordro_hesaplama_tablosu[[#This Row],[DV MUAFİYET]]) -> 8764.562476
B10: HAZİRAN | C10: 70573.91984 | D10: =IF(bordro_hesaplama_tablosu[[#This Row],[BRÜT ÜCRET]]>=SGK_TAVAN_1,SGK_TAVAN_1,bordro_hesaplama_tablosu[[#This Row],[BRÜT ÜCRET]]) -> 70573.91984 | E10: =bordro_hesaplama_tablosu[[#This Row],[SGK MATRAH]]*IF(STATU="NORMAL",PRIM_KEST_ORAN_ISCI_1,sgdp_isci) -> 10586.08798 | F10: =bordro_hesaplama_tablosu[[#This Row],[BRÜT ÜCRET]]-bordro_hesaplama_tablosu[[#This Row],[SGK İŞÇİ]]-IFERROR(VLOOKUP(ENGELLI_DURUMU,secili_params_ucret_turleri_1[[Ücret Türü]:[Aylık]],2,),0) -> 59987.83187 | G10: =bordro_hesaplama_tablosu[[#This Row],[VERGİ MATRAHI]]+G9 -> 343824.1777 | H10: =MAX((G10-vergi_dilimi_4_1)*0.05,0)+MAX((G10-vergi_dilimi_3_1)*0.08,0)+MAX((G10-vergi_dilimi_2_1)*0.07,0)+MAX((G10-vergi_dilimi_1_1)*0.05,0)+G10*0.15-(MAX((G9-vergi_dilimi_4_1)*0.05,0)+(MAX((G9-vergi_dilimi_3_1)*0.08,0)+MAX((G9-vergi_dilimi_2_1)*0.07,0)+MAX((G9-vergi_dilimi_1_1)*0.05,0)+G9*0.15)) -> 12965.25881 | I10: =MIN(VLOOKUP(bordro_hesaplama_tablosu[[#This Row],[AY]],asgari_ucrt_istisna[],6,),bordro_hesaplama_tablosu[[#This Row],[HESAPLANAN GELİR VERGİSİ]]) -> 3315.70125 | J10: =MAX(bordro_hesaplama_tablosu[[#This Row],[HESAPLANAN GELİR VERGİSİ]]-bordro_hesaplama_tablosu[[#This Row],[AÜ GV İSTİSNA]],0) -> 9649.557559 | K10: =(STATU<>"EMEKLİ") * bordro_hesaplama_tablosu[[#This Row],[KESİLECEK GELİR VERGİSİ]] * ((KANUN="04691") + (KANUN="05746") * $A$5) -> 0 | L10: =(bordro_hesaplama_tablosu[[#This Row],[BRÜT ÜCRET]]*damga_vergisi_orani) -> 535.6560516 | M10: =MIN(VLOOKUP(bordro_hesaplama_tablosu[[#This Row],[AY]],asgari_ucrt_istisna[],7,),bordro_hesaplama_tablosu[[#This Row],[HESAPLANAN DAMGA VERGİSİ]]) -> 197.381745 | N10: =bordro_hesaplama_tablosu[[#This Row],[HESAPLANAN DAMGA VERGİSİ]]-bordro_hesaplama_tablosu[[#This Row],[AÜ DV İSTİSNA]] -> 338.2743066 | O10: =AND(STATU<>"EMEKLİ", OR(KANUN="04691", KANUN="05746")) * bordro_hesaplama_tablosu[[#This Row],[KESİLECEK DAMGA VERGİSİ]] -> 0 | P10: =bordro_hesaplama_tablosu[[#This Row],[BRÜT ÜCRET]]-bordro_hesaplama_tablosu[[#This Row],[SGK İŞÇİ]]-bordro_hesaplama_tablosu[[#This Row],[KESİLECEK GELİR VERGİSİ]]-bordro_hesaplama_tablosu[[#This Row],[KESİLECEK DAMGA VERGİSİ]] -> 50000 | Q10: =bordro_hesaplama_tablosu[[#This Row],[SGK MATRAH]]*IF(STATU="NORMAL",PRIM_KEST_ORAN_ISVEREN_1,sgdp_isveren_1) -> 16055.56676 | R10: =IFERROR( _xlfn.LET( _xlpm._f_kontrol, AND(KANUN <> "00000", STATU <> "EMEKLİ"), _xlpm._is_imalat, AND(_xlpm._f_kontrol, IMALAT = "İMALAT"), _xlpm._is_degil, AND(_xlpm._f_kontrol, IMALAT = "DEĞİL"), _xlpm._hazine, IF(_xlpm._is_imalat, hazine_indirimi_imalat_1, IF(_xlpm._is_degil, hazine_indirimi_1, 0)), _xlpm._matrah, bordro_hesaplama_tablosu[[#This Row],[SGK MATRAH]], _xlpm._asgari_30, GUNLUK_BRUT_ASGARI_1 * 30, _xlpm._net_isveren_oran, PRIM_KEST_ORAN_ISVEREN_1 - ISSIZLIK_ISVEREN_1, _xlpm._oran_imalat_fark, IF(_xlpm._is_imalat, _xlpm._net_isveren_oran - hazine_indirimi_imalat_1, _xlpm._net_isveren_oran - hazine_indirimi_1), IF( _xlpm._f_kontrol, _xlfn.IFS( KANUN = "05510", _xlpm._matrah * _xlpm._hazine, OR(KANUN = "05746", KANUN = "04691"), _xlpm._matrah * (_xlpm._net_isveren_oran + _xlpm._hazine) / 2, KANUN = "06111", _xlpm._matrah * (_xlpm._net_isveren_oran), KANUN = "03294", IF(_xlpm._matrah / 30 > GUNLUK_BRUT_ASGARI_1, (_xlpm._asgari_30 * _xlpm._oran_imalat_fark) + (_xlpm._matrah * _xlpm._hazine), (_xlpm._matrah * _xlpm._oran_imalat_fark) + (_xlpm._matrah * _xlpm._hazine)), KANUN = "16322", (_xlpm._asgari_30 * (_xlpm._net_isveren_oran - _xlpm._hazine)) + (_xlpm._matrah * _xlpm._hazine), KANUN = "26322", (_xlpm._asgari_30 * (PRIM_KEST_ORAN_ISVEREN_1 + PRIM_KEST_ORAN_ISCI_1 - ISSIZLIK_ISVEREN_1 - ISSIZLIK_ISCI_1 - _xlpm._hazine)) + (_xlpm._matrah * _xlpm._hazine), KANUN = "14857", (_xlpm._asgari_30 * _xlpm._oran_imalat_fark) + (_xlpm._matrah * _xlpm._hazine), TRUE, 0 ), 0 ) ), 0 ) -> 2822.956794 | S10: =bordro_hesaplama_tablosu[[#This Row],[BRÜT ÜCRET]]+bordro_hesaplama_tablosu[[#This Row],[SGK İŞVEREN]]-bordro_hesaplama_tablosu[[#This Row],[SGK TEŞVİK]]-bordro_hesaplama_tablosu[[#This Row],[GV MUAFİYET]]-bordro_hesaplama_tablosu[[#This Row],[DV MUAFİYET]] -> 83806.52981 | T10: =bordro_hesaplama_tablosu[[#This Row],[SGK İŞÇİ]]+bordro_hesaplama_tablosu[[#This Row],[SGK İŞVEREN]]-bordro_hesaplama_tablosu[[#This Row],[SGK TEŞVİK]] -> 23818.69795 | U10: =(bordro_hesaplama_tablosu[[#This Row],[KESİLECEK GELİR VERGİSİ]]-bordro_hesaplama_tablosu[[#This Row],[GV MUAFİYET]])+(bordro_hesaplama_tablosu[[#This Row],[KESİLECEK DAMGA VERGİSİ]]-bordro_hesaplama_tablosu[[#This Row],[DV MUAFİYET]]) -> 9987.831865
B11: TEMMUZ | C11: 75846.23681 | D11: =IF(bordro_hesaplama_tablosu[[#This Row],[BRÜT ÜCRET]]>=SGK_TAVAN_2,SGK_TAVAN_2,bordro_hesaplama_tablosu[[#This Row],[BRÜT ÜCRET]]) -> 75846.23681 | E11: =bordro_hesaplama_tablosu[[#This Row],[SGK MATRAH]]*IF(STATU="NORMAL",PRIM_KEST_ORAN_ISCI_2,sgdp_isci) -> 11376.93552 | F11: =bordro_hesaplama_tablosu[[#This Row],[BRÜT ÜCRET]]-bordro_hesaplama_tablosu[[#This Row],[SGK İŞÇİ]]-IFERROR(VLOOKUP(ENGELLI_DURUMU,secili_params_ucret_turleri_2[[Ücret Türü]:[Aylık]],2,),0) -> 64469.30129 | G11: =bordro_hesaplama_tablosu[[#This Row],[VERGİ MATRAHI]]+G10 -> 408293.4789 | H11: =MAX((G11-vergi_dilimi_4_2)*0.05,0)+MAX((G11-vergi_dilimi_3_2)*0.08,0)+MAX((G11-vergi_dilimi_2_2)*0.07,0)+MAX((G11-vergi_dilimi_1_2)*0.05,0)+G11*0.15-(MAX((G10-vergi_dilimi_4_2)*0.05,0)+(MAX((G10-vergi_dilimi_3_2)*0.08,0)+MAX((G10-vergi_dilimi_2_2)*0.07,0)+MAX((G10-vergi_dilimi_1_2)*0.05,0)+G10*0.15)) -> 17406.71135 | I11: =MIN(VLOOKUP(bordro_hesaplama_tablosu[[#This Row],[AY]],asgari_ucrt_istisna[],6,),bordro_hesaplama_tablosu[[#This Row],[HESAPLANAN GELİR VERGİSİ]]) -> 3315.70125 | J11: =MAX(bordro_hesaplama_tablosu[[#This Row],[HESAPLANAN GELİR VERGİSİ]]-bordro_hesaplama_tablosu[[#This Row],[AÜ GV İSTİSNA]],0) -> 14091.0101 | K11: =(STATU<>"EMEKLİ") * bordro_hesaplama_tablosu[[#This Row],[KESİLECEK GELİR VERGİSİ]] * ((KANUN="04691") + (KANUN="05746") * $A$5) -> 0 | L11: =(bordro_hesaplama_tablosu[[#This Row],[BRÜT ÜCRET]]*damga_vergisi_orani) -> 575.6729374 | M11: =MIN(VLOOKUP(bordro_hesaplama_tablosu[[#This Row],[AY]],asgari_ucrt_istisna[],7,),bordro_hesaplama_tablosu[[#This Row],[HESAPLANAN DAMGA VERGİSİ]]) -> 197.381745 | N11: =bordro_hesaplama_tablosu[[#This Row],[HESAPLANAN DAMGA VERGİSİ]]-bordro_hesaplama_tablosu[[#This Row],[AÜ DV İSTİSNA]] -> 378.2911924 | O11: =AND(STATU<>"EMEKLİ", OR(KANUN="04691", KANUN="05746")) * bordro_hesaplama_tablosu[[#This Row],[KESİLECEK DAMGA VERGİSİ]] -> 0 | P11: =bordro_hesaplama_tablosu[[#This Row],[BRÜT ÜCRET]]-bordro_hesaplama_tablosu[[#This Row],[SGK İŞÇİ]]-bordro_hesaplama_tablosu[[#This Row],[KESİLECEK GELİR VERGİSİ]]-bordro_hesaplama_tablosu[[#This Row],[KESİLECEK DAMGA VERGİSİ]] -> 50000 | Q11: =bordro_hesaplama_tablosu[[#This Row],[SGK MATRAH]]*IF(STATU="NORMAL",PRIM_KEST_ORAN_ISVEREN_2,sgdp_isveren_2) -> 17255.01887 | R11: =IFERROR( _xlfn.LET( _xlpm._f_kontrol, AND(KANUN <> "00000", STATU <> "EMEKLİ"), _xlpm._is_imalat, AND(_xlpm._f_kontrol, IMALAT = "İMALAT"), _xlpm._is_degil, AND(_xlpm._f_kontrol, IMALAT = "DEĞİL"), _xlpm._hazine, IF(_xlpm._is_imalat, hazine_indirimi_imalat_2, IF(_xlpm._is_degil, hazine_indirimi_2, 0)), _xlpm._matrah, bordro_hesaplama_tablosu[[#This Row],[SGK MATRAH]], _xlpm._asgari_30, GUNLUK_BRUT_ASGARI_2 * 30, _xlpm._net_isveren_oran, PRIM_KEST_ORAN_ISVEREN_2 - ISSIZLIK_ISVEREN_2, _xlpm._oran_imalat_fark, IF(_xlpm._is_imalat, _xlpm._net_isveren_oran - hazine_indirimi_imalat_2, _xlpm._net_isveren_oran - hazine_indirimi_2), IF( _xlpm._f_kontrol, _xlfn.IFS( KANUN = "05510", _xlpm._matrah * _xlpm._hazine, OR(KANUN = "05746", KANUN = "04691"), _xlpm._matrah * (_xlpm._net_isveren_oran + _xlpm._hazine) / 2, KANUN = "06111", _xlpm._matrah * (_xlpm._net_isveren_oran), KANUN = "03294", IF(_xlpm._matrah / 30 > GUNLUK_BRUT_ASGARI_2, (_xlpm._asgari_30 * _xlpm._oran_imalat_fark) + (_xlpm._matrah * _xlpm._hazine), (_xlpm._matrah * _xlpm._oran_imalat_fark) + (_xlpm._matrah * _xlpm._hazine)), KANUN = "16322", (_xlpm._asgari_30 * (_xlpm._net_isveren_oran - _xlpm._hazine)) + (_xlpm._matrah * _xlpm._hazine), KANUN = "26322", (_xlpm._asgari_30 * (PRIM_KEST_ORAN_ISVEREN_2 + PRIM_KEST_ORAN_ISCI_2 - ISSIZLIK_ISVEREN_2 - ISSIZLIK_ISCI_2 - _xlpm._hazine)) + (_xlpm._matrah * _xlpm._hazine), KANUN = "14857", (_xlpm._asgari_30 * _xlpm._oran_imalat_fark) + (_xlpm._matrah * _xlpm._hazine), TRUE, 0 ), 0 ) ), 0 ) -> 3033.849473 | S11: =bordro_hesaplama_tablosu[[#This Row],[BRÜT ÜCRET]]+bordro_hesaplama_tablosu[[#This Row],[SGK İŞVEREN]]-bordro_hesaplama_tablosu[[#This Row],[SGK TEŞVİK]]-bordro_hesaplama_tablosu[[#This Row],[GV MUAFİYET]]-bordro_hesaplama_tablosu[[#This Row],[DV MUAFİYET]] -> 90067.40622 | T11: =bordro_hesaplama_tablosu[[#This Row],[SGK İŞÇİ]]+bordro_hesaplama_tablosu[[#This Row],[SGK İŞVEREN]]-bordro_hesaplama_tablosu[[#This Row],[SGK TEŞVİK]] -> 25598.10492 | U11: =(bordro_hesaplama_tablosu[[#This Row],[KESİLECEK GELİR VERGİSİ]]-bordro_hesaplama_tablosu[[#This Row],[GV MUAFİYET]])+(bordro_hesaplama_tablosu[[#This Row],[KESİLECEK DAMGA VERGİSİ]]-bordro_hesaplama_tablosu[[#This Row],[DV MUAFİYET]]) -> 14469.30129
B12: AĞUSTOS | C12: 74309.51853 | D12: =IF(bordro_hesaplama_tablosu[[#This Row],[BRÜT ÜCRET]]>=SGK_TAVAN_2,SGK_TAVAN_2,bordro_hesaplama_tablosu[[#This Row],[BRÜT ÜCRET]]) -> 74309.51853 | E12: =bordro_hesaplama_tablosu[[#This Row],[SGK MATRAH]]*IF(STATU="NORMAL",PRIM_KEST_ORAN_ISCI_2,sgdp_isci) -> 11146.42778 | F12: =bordro_hesaplama_tablosu[[#This Row],[BRÜT ÜCRET]]-bordro_hesaplama_tablosu[[#This Row],[SGK İŞÇİ]]-IFERROR(VLOOKUP(ENGELLI_DURUMU,secili_params_ucret_turleri_1[[Ücret Türü]:[Aylık]],2,),0) -> 63163.09075 | G12: =bordro_hesaplama_tablosu[[#This Row],[VERGİ MATRAHI]]+G11 -> 471456.5697 | H12: 17054.0345 | I12: =MIN(VLOOKUP(bordro_hesaplama_tablosu[[#This Row],[AY]],asgari_ucrt_istisna[],6,),bordro_hesaplama_tablosu[[#This Row],[HESAPLANAN GELİR VERGİSİ]]) -> 4257.57125 | J12: =MAX(bordro_hesaplama_tablosu[[#This Row],[HESAPLANAN GELİR VERGİSİ]]-bordro_hesaplama_tablosu[[#This Row],[AÜ GV İSTİSNA]],0) -> 12796.46325 | K12: =(STATU<>"EMEKLİ") * bordro_hesaplama_tablosu[[#This Row],[KESİLECEK GELİR VERGİSİ]] * ((KANUN="04691") + (KANUN="05746") * $A$5) -> 0 | L12: =(bordro_hesaplama_tablosu[[#This Row],[BRÜT ÜCRET]]*damga_vergisi_orani) -> 564.0092457 | M12: =MIN(VLOOKUP(bordro_hesaplama_tablosu[[#This Row],[AY]],asgari_ucrt_istisna[],7,),bordro_hesaplama_tablosu[[#This Row],[HESAPLANAN DAMGA VERGİSİ]]) -> 197.381745 | N12: =bordro_hesaplama_tablosu[[#This Row],[HESAPLANAN DAMGA VERGİSİ]]-bordro_hesaplama_tablosu[[#This Row],[AÜ DV İSTİSNA]] -> 366.6275007 | O12: =AND(STATU<>"EMEKLİ", OR(KANUN="04691", KANUN="05746")) * bordro_hesaplama_tablosu[[#This Row],[KESİLECEK DAMGA VERGİSİ]] -> 0 | P12: =bordro_hesaplama_tablosu[[#This Row],[BRÜT ÜCRET]]-bordro_hesaplama_tablosu[[#This Row],[SGK İŞÇİ]]-bordro_hesaplama_tablosu[[#This Row],[KESİLECEK GELİR VERGİSİ]]-bordro_hesaplama_tablosu[[#This Row],[KESİLECEK DAMGA VERGİSİ]] -> 50000 | Q12: =bordro_hesaplama_tablosu[[#This Row],[SGK MATRAH]]*IF(STATU="NORMAL",PRIM_KEST_ORAN_ISVEREN_2,sgdp_isveren_2) -> 16905.41547 | R12: =IFERROR( _xlfn.LET( _xlpm._f_kontrol, AND(KANUN <> "00000", STATU <> "EMEKLİ"), _xlpm._is_imalat, AND(_xlpm._f_kontrol, IMALAT = "İMALAT"), _xlpm._is_degil, AND(_xlpm._f_kontrol, IMALAT = "DEĞİL"), _xlpm._hazine, IF(_xlpm._is_imalat, hazine_indirimi_imalat_2, IF(_xlpm._is_degil, hazine_indirimi_2, 0)), _xlpm._matrah, bordro_hesaplama_tablosu[[#This Row],[SGK MATRAH]], _xlpm._asgari_30, GUNLUK_BRUT_ASGARI_2 * 30, _xlpm._net_isveren_oran, PRIM_KEST_ORAN_ISVEREN_2 - ISSIZLIK_ISVEREN_2, _xlpm._oran_imalat_fark, IF(_xlpm._is_imalat, _xlpm._net_isveren_oran - hazine_indirimi_imalat_2, _xlpm._net_isveren_oran - hazine_indirimi_2), IF( _xlpm._f_kontrol, _xlfn.IFS( KANUN = "05510", _xlpm._matrah * _xlpm._hazine, OR(KANUN = "05746", KANUN = "04691"), _xlpm._matrah * (_xlpm._net_isveren_oran + _xlpm._hazine) / 2, KANUN = "06111", _xlpm._matrah * (_xlpm._net_isveren_oran), KANUN = "03294", IF(_xlpm._matrah / 30 > GUNLUK_BRUT_ASGARI_2, (_xlpm._asgari_30 * _xlpm._oran_imalat_fark) + (_xlpm._matrah * _xlpm._hazine), (_xlpm._matrah * _xlpm._oran_imalat_fark) + (_xlpm._matrah * _xlpm._hazine)), KANUN = "16322", (_xlpm._asgari_30 * (_xlpm._net_isveren_oran - _xlpm._hazine)) + (_xlpm._matrah * _xlpm._hazine), KANUN = "26322", (_xlpm._asgari_30 * (PRIM_KEST_ORAN_ISVEREN_2 + PRIM_KEST_ORAN_ISCI_2 - ISSIZLIK_ISVEREN_2 - ISSIZLIK_ISCI_2 - _xlpm._hazine)) + (_xlpm._matrah * _xlpm._hazine), KANUN = "14857", (_xlpm._asgari_30 * _xlpm._oran_imalat_fark) + (_xlpm._matrah * _xlpm._hazine), TRUE, 0 ), 0 ) ), 0 ) -> 2972.380741 | S12: =bordro_hesaplama_tablosu[[#This Row],[BRÜT ÜCRET]]+bordro_hesaplama_tablosu[[#This Row],[SGK İŞVEREN]]-bordro_hesaplama_tablosu[[#This Row],[SGK TEŞVİK]]-bordro_hesaplama_tablosu[[#This Row],[GV MUAFİYET]]-bordro_hesaplama_tablosu[[#This Row],[DV MUAFİYET]] -> 88242.55326 | T12: =bordro_hesaplama_tablosu[[#This Row],[SGK İŞÇİ]]+bordro_hesaplama_tablosu[[#This Row],[SGK İŞVEREN]]-bordro_hesaplama_tablosu[[#This Row],[SGK TEŞVİK]] -> 25079.46251 | U12: =(bordro_hesaplama_tablosu[[#This Row],[KESİLECEK GELİR VERGİSİ]]-bordro_hesaplama_tablosu[[#This Row],[GV MUAFİYET]])+(bordro_hesaplama_tablosu[[#This Row],[KESİLECEK DAMGA VERGİSİ]]-bordro_hesaplama_tablosu[[#This Row],[DV MUAFİYET]]) -> 13163.09075
B13: EYLÜL | C13: 74042.98063 | D13: =IF(bordro_hesaplama_tablosu[[#This Row],[BRÜT ÜCRET]]>=SGK_TAVAN_2,SGK_TAVAN_2,bordro_hesaplama_tablosu[[#This Row],[BRÜT ÜCRET]]) -> 74042.98063 | E13: =bordro_hesaplama_tablosu[[#This Row],[SGK MATRAH]]*IF(STATU="NORMAL",PRIM_KEST_ORAN_ISCI_2,sgdp_isci) -> 11106.44709 | F13: =bordro_hesaplama_tablosu[[#This Row],[BRÜT ÜCRET]]-bordro_hesaplama_tablosu[[#This Row],[SGK İŞÇİ]]-IFERROR(VLOOKUP(ENGELLI_DURUMU,secili_params_ucret_turleri_1[[Ücret Türü]:[Aylık]],2,),0) -> 62936.53353 | G13: =bordro_hesaplama_tablosu[[#This Row],[VERGİ MATRAHI]]+G12 -> 534393.1032 | H13: 16992.86405 | I13: =MIN(VLOOKUP(bordro_hesaplama_tablosu[[#This Row],[AY]],asgari_ucrt_istisna[],6,),bordro_hesaplama_tablosu[[#This Row],[HESAPLANAN GELİR VERGİSİ]]) -> 4420.935 | J13: =MAX(bordro_hesaplama_tablosu[[#This Row],[HESAPLANAN GELİR VERGİSİ]]-bordro_hesaplama_tablosu[[#This Row],[AÜ GV İSTİSNA]],0) -> 12571.92905 | K13: =(STATU<>"EMEKLİ") * bordro_hesaplama_tablosu[[#This Row],[KESİLECEK GELİR VERGİSİ]] * ((KANUN="04691") + (KANUN="05746") * $A$5) -> 0 | L13: =(bordro_hesaplama_tablosu[[#This Row],[BRÜT ÜCRET]]*damga_vergisi_orani) -> 561.9862229 | M13: =MIN(VLOOKUP(bordro_hesaplama_tablosu[[#This Row],[AY]],asgari_ucrt_istisna[],7,),bordro_hesaplama_tablosu[[#This Row],[HESAPLANAN DAMGA VERGİSİ]]) -> 197.381745 | N13: =bordro_hesaplama_tablosu[[#This Row],[HESAPLANAN DAMGA VERGİSİ]]-bordro_hesaplama_tablosu[[#This Row],[AÜ DV İSTİSNA]] -> 364.6044779 | O13: =AND(STATU<>"EMEKLİ", OR(KANUN="04691", KANUN="05746")) * bordro_hesaplama_tablosu[[#This Row],[KESİLECEK DAMGA VERGİSİ]] -> 0 | P13: =bordro_hesaplama_tablosu[[#This Row],[BRÜT ÜCRET]]-bordro_hesaplama_tablosu[[#This Row],[SGK İŞÇİ]]-bordro_hesaplama_tablosu[[#This Row],[KESİLECEK GELİR VERGİSİ]]-bordro_hesaplama_tablosu[[#This Row],[KESİLECEK DAMGA VERGİSİ]] -> 50000 | Q13: =bordro_hesaplama_tablosu[[#This Row],[SGK MATRAH]]*IF(STATU="NORMAL",PRIM_KEST_ORAN_ISVEREN_2,sgdp_isveren_2) -> 16844.77809 | R13: =IFERROR( _xlfn.LET( _xlpm._f_kontrol, AND(KANUN <> "00000", STATU <> "EMEKLİ"), _xlpm._is_imalat, AND(_xlpm._f_kontrol, IMALAT = "İMALAT"), _xlpm._is_degil, AND(_xlpm._f_kontrol, IMALAT = "DEĞİL"), _xlpm._hazine, IF(_xlpm._is_imalat, hazine_indirimi_imalat_2, IF(_xlpm._is_degil, hazine_indirimi_2, 0)), _xlpm._matrah, bordro_hesaplama_tablosu[[#This Row],[SGK MATRAH]], _xlpm._asgari_30, GUNLUK_BRUT_ASGARI_2 * 30, _xlpm._net_isveren_oran, PRIM_KEST_ORAN_ISVEREN_2 - ISSIZLIK_ISVEREN_2, _xlpm._oran_imalat_fark, IF(_xlpm._is_imalat, _xlpm._net_isveren_oran - hazine_indirimi_imalat_2, _xlpm._net_isveren_oran - hazine_indirimi_2), IF( _xlpm._f_kontrol, _xlfn.IFS( KANUN = "05510", _xlpm._matrah * _xlpm._hazine, OR(KANUN = "05746", KANUN = "04691"), _xlpm._matrah * (_xlpm._net_isveren_oran + _xlpm._hazine) / 2, KANUN = "06111", _xlpm._matrah * (_xlpm._net_isveren_oran), KANUN = "03294", IF(_xlpm._matrah / 30 > GUNLUK_BRUT_ASGARI_2, (_xlpm._asgari_30 * _xlpm._oran_imalat_fark) + (_xlpm._matrah * _xlpm._hazine), (_xlpm._matrah * _xlpm._oran_imalat_fark) + (_xlpm._matrah * _xlpm._hazine)), KANUN = "16322", (_xlpm._asgari_30 * (_xlpm._net_isveren_oran - _xlpm._hazine)) + (_xlpm._matrah * _xlpm._hazine), KANUN = "26322", (_xlpm._asgari_30 * (PRIM_KEST_ORAN_ISVEREN_2 + PRIM_KEST_ORAN_ISCI_2 - ISSIZLIK_ISVEREN_2 - ISSIZLIK_ISCI_2 - _xlpm._hazine)) + (_xlpm._matrah * _xlpm._hazine), KANUN = "14857", (_xlpm._asgari_30 * _xlpm._oran_imalat_fark) + (_xlpm._matrah * _xlpm._hazine), TRUE, 0 ), 0 ) ), 0 ) -> 2961.719225 | S13: =bordro_hesaplama_tablosu[[#This Row],[BRÜT ÜCRET]]+bordro_hesaplama_tablosu[[#This Row],[SGK İŞVEREN]]-bordro_hesaplama_tablosu[[#This Row],[SGK TEŞVİK]]-bordro_hesaplama_tablosu[[#This Row],[GV MUAFİYET]]-bordro_hesaplama_tablosu[[#This Row],[DV MUAFİYET]] -> 87926.03949 | T13: =bordro_hesaplama_tablosu[[#This Row],[SGK İŞÇİ]]+bordro_hesaplama_tablosu[[#This Row],[SGK İŞVEREN]]-bordro_hesaplama_tablosu[[#This Row],[SGK TEŞVİK]] -> 24989.50596 | U13: =(bordro_hesaplama_tablosu[[#This Row],[KESİLECEK GELİR VERGİSİ]]-bordro_hesaplama_tablosu[[#This Row],[GV MUAFİYET]])+(bordro_hesaplama_tablosu[[#This Row],[KESİLECEK DAMGA VERGİSİ]]-bordro_hesaplama_tablosu[[#This Row],[DV MUAFİYET]]) -> 12936.53353
B14: EKİM | C14: 74042.98063 | D14: =IF(bordro_hesaplama_tablosu[[#This Row],[BRÜT ÜCRET]]>=SGK_TAVAN_2,SGK_TAVAN_2,bordro_hesaplama_tablosu[[#This Row],[BRÜT ÜCRET]]) -> 74042.98063 | E14: =bordro_hesaplama_tablosu[[#This Row],[SGK MATRAH]]*IF(STATU="NORMAL",PRIM_KEST_ORAN_ISCI_2,sgdp_isci) -> 11106.44709 | F14: =bordro_hesaplama_tablosu[[#This Row],[BRÜT ÜCRET]]-bordro_hesaplama_tablosu[[#This Row],[SGK İŞÇİ]]-IFERROR(VLOOKUP(ENGELLI_DURUMU,secili_params_ucret_turleri_1[[Ücret Türü]:[Aylık]],2,),0) -> 62936.53353 | G14: =bordro_hesaplama_tablosu[[#This Row],[VERGİ MATRAHI]]+G13 -> 597329.6368 | H14: 16992.86405 | I14: =MIN(VLOOKUP(bordro_hesaplama_tablosu[[#This Row],[AY]],asgari_ucrt_istisna[],6,),bordro_hesaplama_tablosu[[#This Row],[HESAPLANAN GELİR VERGİSİ]]) -> 4420.935 | J14: =MAX(bordro_hesaplama_tablosu[[#This Row],[HESAPLANAN GELİR VERGİSİ]]-bordro_hesaplama_tablosu[[#This Row],[AÜ GV İSTİSNA]],0) -> 12571.92905 | K14: =(STATU<>"EMEKLİ") * bordro_hesaplama_tablosu[[#This Row],[KESİLECEK GELİR VERGİSİ]] * ((KANUN="04691") + (KANUN="05746") * $A$5) -> 0 | L14: =(bordro_hesaplama_tablosu[[#This Row],[BRÜT ÜCRET]]*damga_vergisi_orani) -> 561.9862229 | M14: =MIN(VLOOKUP(bordro_hesaplama_tablosu[[#This Row],[AY]],asgari_ucrt_istisna[],7,),bordro_hesaplama_tablosu[[#This Row],[HESAPLANAN DAMGA VERGİSİ]]) -> 197.381745 | N14: =bordro_hesaplama_tablosu[[#This Row],[HESAPLANAN DAMGA VERGİSİ]]-bordro_hesaplama_tablosu[[#This Row],[AÜ DV İSTİSNA]] -> 364.6044779 | O14: =AND(STATU<>"EMEKLİ", OR(KANUN="04691", KANUN="05746")) * bordro_hesaplama_tablosu[[#This Row],[KESİLECEK DAMGA VERGİSİ]] -> 0 | P14: =bordro_hesaplama_tablosu[[#This Row],[BRÜT ÜCRET]]-bordro_hesaplama_tablosu[[#This Row],[SGK İŞÇİ]]-bordro_hesaplama_tablosu[[#This Row],[KESİLECEK GELİR VERGİSİ]]-bordro_hesaplama_tablosu[[#This Row],[KESİLECEK DAMGA VERGİSİ]] -> 50000 | Q14: =bordro_hesaplama_tablosu[[#This Row],[SGK MATRAH]]*IF(STATU="NORMAL",PRIM_KEST_ORAN_ISVEREN_2,sgdp_isveren_2) -> 16844.77809 | R14: =IFERROR( _xlfn.LET( _xlpm._f_kontrol, AND(KANUN <> "00000", STATU <> "EMEKLİ"), _xlpm._is_imalat, AND(_xlpm._f_kontrol, IMALAT = "İMALAT"), _xlpm._is_degil, AND(_xlpm._f_kontrol, IMALAT = "DEĞİL"), _xlpm._hazine, IF(_xlpm._is_imalat, hazine_indirimi_imalat_2, IF(_xlpm._is_degil, hazine_indirimi_2, 0)), _xlpm._matrah, bordro_hesaplama_tablosu[[#This Row],[SGK MATRAH]], _xlpm._asgari_30, GUNLUK_BRUT_ASGARI_2 * 30, _xlpm._net_isveren_oran, PRIM_KEST_ORAN_ISVEREN_2 - ISSIZLIK_ISVEREN_2, _xlpm._oran_imalat_fark, IF(_xlpm._is_imalat, _xlpm._net_isveren_oran - hazine_indirimi_imalat_2, _xlpm._net_isveren_oran - hazine_indirimi_2), IF( _xlpm._f_kontrol, _xlfn.IFS( KANUN = "05510", _xlpm._matrah * _xlpm._hazine, OR(KANUN = "05746", KANUN = "04691"), _xlpm._matrah * (_xlpm._net_isveren_oran + _xlpm._hazine) / 2, KANUN = "06111", _xlpm._matrah * (_xlpm._net_isveren_oran), KANUN = "03294", IF(_xlpm._matrah / 30 > GUNLUK_BRUT_ASGARI_2, (_xlpm._asgari_30 * _xlpm._oran_imalat_fark) + (_xlpm._matrah * _xlpm._hazine), (_xlpm._matrah * _xlpm._oran_imalat_fark) + (_xlpm._matrah * _xlpm._hazine)), KANUN = "16322", (_xlpm._asgari_30 * (_xlpm._net_isveren_oran - _xlpm._hazine)) + (_xlpm._matrah * _xlpm._hazine), KANUN = "26322", (_xlpm._asgari_30 * (PRIM_KEST_ORAN_ISVEREN_2 + PRIM_KEST_ORAN_ISCI_2 - ISSIZLIK_ISVEREN_2 - ISSIZLIK_ISCI_2 - _xlpm._hazine)) + (_xlpm._matrah * _xlpm._hazine), KANUN = "14857", (_xlpm._asgari_30 * _xlpm._oran_imalat_fark) + (_xlpm._matrah * _xlpm._hazine), TRUE, 0 ), 0 ) ), 0 ) -> 2961.719225 | S14: =bordro_hesaplama_tablosu[[#This Row],[BRÜT ÜCRET]]+bordro_hesaplama_tablosu[[#This Row],[SGK İŞVEREN]]-bordro_hesaplama_tablosu[[#This Row],[SGK TEŞVİK]]-bordro_hesaplama_tablosu[[#This Row],[GV MUAFİYET]]-bordro_hesaplama_tablosu[[#This Row],[DV MUAFİYET]] -> 87926.03949 | T14: =bordro_hesaplama_tablosu[[#This Row],[SGK İŞÇİ]]+bordro_hesaplama_tablosu[[#This Row],[SGK İŞVEREN]]-bordro_hesaplama_tablosu[[#This Row],[SGK TEŞVİK]] -> 24989.50596 | U14: =(bordro_hesaplama_tablosu[[#This Row],[KESİLECEK GELİR VERGİSİ]]-bordro_hesaplama_tablosu[[#This Row],[GV MUAFİYET]])+(bordro_hesaplama_tablosu[[#This Row],[KESİLECEK DAMGA VERGİSİ]]-bordro_hesaplama_tablosu[[#This Row],[DV MUAFİYET]]) -> 12936.53353
B15: KASIM | C15: 74042.98063 | D15: =IF(bordro_hesaplama_tablosu[[#This Row],[BRÜT ÜCRET]]>=SGK_TAVAN_2,SGK_TAVAN_2,bordro_hesaplama_tablosu[[#This Row],[BRÜT ÜCRET]]) -> 74042.98063 | E15: =bordro_hesaplama_tablosu[[#This Row],[SGK MATRAH]]*IF(STATU="NORMAL",PRIM_KEST_ORAN_ISCI_2,sgdp_isci) -> 11106.44709 | F15: =bordro_hesaplama_tablosu[[#This Row],[BRÜT ÜCRET]]-bordro_hesaplama_tablosu[[#This Row],[SGK İŞÇİ]]-IFERROR(VLOOKUP(ENGELLI_DURUMU,secili_params_ucret_turleri_1[[Ücret Türü]:[Aylık]],2,),0) -> 62936.53353 | G15: =bordro_hesaplama_tablosu[[#This Row],[VERGİ MATRAHI]]+G14 -> 660266.1703 | H15: 16992.86405 | I15: =MIN(VLOOKUP(bordro_hesaplama_tablosu[[#This Row],[AY]],asgari_ucrt_istisna[],6,),bordro_hesaplama_tablosu[[#This Row],[HESAPLANAN GELİR VERGİSİ]]) -> 4420.935 | J15: =MAX(bordro_hesaplama_tablosu[[#This Row],[HESAPLANAN GELİR VERGİSİ]]-bordro_hesaplama_tablosu[[#This Row],[AÜ GV İSTİSNA]],0) -> 12571.92905 | K15: =(STATU<>"EMEKLİ") * bordro_hesaplama_tablosu[[#This Row],[KESİLECEK GELİR VERGİSİ]] * ((KANUN="04691") + (KANUN="05746") * $A$5) -> 0 | L15: =(bordro_hesaplama_tablosu[[#This Row],[BRÜT ÜCRET]]*damga_vergisi_orani) -> 561.9862229 | M15: =MIN(VLOOKUP(bordro_hesaplama_tablosu[[#This Row],[AY]],asgari_ucrt_istisna[],7,),bordro_hesaplama_tablosu[[#This Row],[HESAPLANAN DAMGA VERGİSİ]]) -> 197.381745 | N15: =bordro_hesaplama_tablosu[[#This Row],[HESAPLANAN DAMGA VERGİSİ]]-bordro_hesaplama_tablosu[[#This Row],[AÜ DV İSTİSNA]] -> 364.6044779 | O15: =AND(STATU<>"EMEKLİ", OR(KANUN="04691", KANUN="05746")) * bordro_hesaplama_tablosu[[#This Row],[KESİLECEK DAMGA VERGİSİ]] -> 0 | P15: =bordro_hesaplama_tablosu[[#This Row],[BRÜT ÜCRET]]-bordro_hesaplama_tablosu[[#This Row],[SGK İŞÇİ]]-bordro_hesaplama_tablosu[[#This Row],[KESİLECEK GELİR VERGİSİ]]-bordro_hesaplama_tablosu[[#This Row],[KESİLECEK DAMGA VERGİSİ]] -> 50000 | Q15: =bordro_hesaplama_tablosu[[#This Row],[SGK MATRAH]]*IF(STATU="NORMAL",PRIM_KEST_ORAN_ISVEREN_2,sgdp_isveren_2) -> 16844.77809 | R15: =IFERROR( _xlfn.LET( _xlpm._f_kontrol, AND(KANUN <> "00000", STATU <> "EMEKLİ"), _xlpm._is_imalat, AND(_xlpm._f_kontrol, IMALAT = "İMALAT"), _xlpm._is_degil, AND(_xlpm._f_kontrol, IMALAT = "DEĞİL"), _xlpm._hazine, IF(_xlpm._is_imalat, hazine_indirimi_imalat_2, IF(_xlpm._is_degil, hazine_indirimi_2, 0)), _xlpm._matrah, bordro_hesaplama_tablosu[[#This Row],[SGK MATRAH]], _xlpm._asgari_30, GUNLUK_BRUT_ASGARI_2 * 30, _xlpm._net_isveren_oran, PRIM_KEST_ORAN_ISVEREN_2 - ISSIZLIK_ISVEREN_2, _xlpm._oran_imalat_fark, IF(_xlpm._is_imalat, _xlpm._net_isveren_oran - hazine_indirimi_imalat_2, _xlpm._net_isveren_oran - hazine_indirimi_2), IF( _xlpm._f_kontrol, _xlfn.IFS( KANUN = "05510", _xlpm._matrah * _xlpm._hazine, OR(KANUN = "05746", KANUN = "04691"), _xlpm._matrah * (_xlpm._net_isveren_oran + _xlpm._hazine) / 2, KANUN = "06111", _xlpm._matrah * (_xlpm._net_isveren_oran), KANUN = "03294", IF(_xlpm._matrah / 30 > GUNLUK_BRUT_ASGARI_2, (_xlpm._asgari_30 * _xlpm._oran_imalat_fark) + (_xlpm._matrah * _xlpm._hazine), (_xlpm._matrah * _xlpm._oran_imalat_fark) + (_xlpm._matrah * _xlpm._hazine)), KANUN = "16322", (_xlpm._asgari_30 * (_xlpm._net_isveren_oran - _xlpm._hazine)) + (_xlpm._matrah * _xlpm._hazine), KANUN = "26322", (_xlpm._asgari_30 * (PRIM_KEST_ORAN_ISVEREN_2 + PRIM_KEST_ORAN_ISCI_2 - ISSIZLIK_ISVEREN_2 - ISSIZLIK_ISCI_2 - _xlpm._hazine)) + (_xlpm._matrah * _xlpm._hazine), KANUN = "14857", (_xlpm._asgari_30 * _xlpm._oran_imalat_fark) + (_xlpm._matrah * _xlpm._hazine), TRUE, 0 ), 0 ) ), 0 ) -> 2961.719225 | S15: =bordro_hesaplama_tablosu[[#This Row],[BRÜT ÜCRET]]+bordro_hesaplama_tablosu[[#This Row],[SGK İŞVEREN]]-bordro_hesaplama_tablosu[[#This Row],[SGK TEŞVİK]]-bordro_hesaplama_tablosu[[#This Row],[GV MUAFİYET]]-bordro_hesaplama_tablosu[[#This Row],[DV MUAFİYET]] -> 87926.03949 | T15: =bordro_hesaplama_tablosu[[#This Row],[SGK İŞÇİ]]+bordro_hesaplama_tablosu[[#This Row],[SGK İŞVEREN]]-bordro_hesaplama_tablosu[[#This Row],[SGK TEŞVİK]] -> 24989.50596 | U15: =(bordro_hesaplama_tablosu[[#This Row],[KESİLECEK GELİR VERGİSİ]]-bordro_hesaplama_tablosu[[#This Row],[GV MUAFİYET]])+(bordro_hesaplama_tablosu[[#This Row],[KESİLECEK DAMGA VERGİSİ]]-bordro_hesaplama_tablosu[[#This Row],[DV MUAFİYET]]) -> 12936.53353
B16: ARALIK | C16: 74042.98063 | D16: =IF(bordro_hesaplama_tablosu[[#This Row],[BRÜT ÜCRET]]>=SGK_TAVAN_2,SGK_TAVAN_2,bordro_hesaplama_tablosu[[#This Row],[BRÜT ÜCRET]]) -> 74042.98063 | E16: =bordro_hesaplama_tablosu[[#This Row],[SGK MATRAH]]*IF(STATU="NORMAL",PRIM_KEST_ORAN_ISCI_2,sgdp_isci) -> 11106.44709 | F16: =bordro_hesaplama_tablosu[[#This Row],[BRÜT ÜCRET]]-bordro_hesaplama_tablosu[[#This Row],[SGK İŞÇİ]]-IFERROR(VLOOKUP(ENGELLI_DURUMU,secili_params_ucret_turleri_1[[Ücret Türü]:[Aylık]],2,),0) -> 62936.53353 | G16: =bordro_hesaplama_tablosu[[#This Row],[VERGİ MATRAHI]]+G15 -> 723202.7038 | H16: 16992.86405 | I16: =MIN(VLOOKUP(bordro_hesaplama_tablosu[[#This Row],[AY]],asgari_ucrt_istisna[],6,),bordro_hesaplama_tablosu[[#This Row],[HESAPLANAN GELİR VERGİSİ]]) -> 4420.935 | J16: =MAX(bordro_hesaplama_tablosu[[#This Row],[HESAPLANAN GELİR VERGİSİ]]-bordro_hesaplama_tablosu[[#This Row],[AÜ GV İSTİSNA]],0) -> 12571.92905 | K16: =(STATU<>"EMEKLİ") * bordro_hesaplama_tablosu[[#This Row],[KESİLECEK GELİR VERGİSİ]] * ((KANUN="04691") + (KANUN="05746") * $A$5) -> 0 | L16: =(bordro_hesaplama_tablosu[[#This Row],[BRÜT ÜCRET]]*damga_vergisi_orani) -> 561.9862229 | M16: =MIN(VLOOKUP(bordro_hesaplama_tablosu[[#This Row],[AY]],asgari_ucrt_istisna[],7,),bordro_hesaplama_tablosu[[#This Row],[HESAPLANAN DAMGA VERGİSİ]]) -> 197.381745 | N16: =bordro_hesaplama_tablosu[[#This Row],[HESAPLANAN DAMGA VERGİSİ]]-bordro_hesaplama_tablosu[[#This Row],[AÜ DV İSTİSNA]] -> 364.6044779 | O16: =AND(STATU<>"EMEKLİ", OR(KANUN="04691", KANUN="05746")) * bordro_hesaplama_tablosu[[#This Row],[KESİLECEK DAMGA VERGİSİ]] -> 0 | P16: =bordro_hesaplama_tablosu[[#This Row],[BRÜT ÜCRET]]-bordro_hesaplama_tablosu[[#This Row],[SGK İŞÇİ]]-bordro_hesaplama_tablosu[[#This Row],[KESİLECEK GELİR VERGİSİ]]-bordro_hesaplama_tablosu[[#This Row],[KESİLECEK DAMGA VERGİSİ]] -> 50000 | Q16: =bordro_hesaplama_tablosu[[#This Row],[SGK MATRAH]]*IF(STATU="NORMAL",PRIM_KEST_ORAN_ISVEREN_2,sgdp_isveren_2) -> 16844.77809 | R16: =IFERROR( _xlfn.LET( _xlpm._f_kontrol, AND(KANUN <> "00000", STATU <> "EMEKLİ"), _xlpm._is_imalat, AND(_xlpm._f_kontrol, IMALAT = "İMALAT"), _xlpm._is_degil, AND(_xlpm._f_kontrol, IMALAT = "DEĞİL"), _xlpm._hazine, IF(_xlpm._is_imalat, hazine_indirimi_imalat_2, IF(_xlpm._is_degil, hazine_indirimi_2, 0)), _xlpm._matrah, bordro_hesaplama_tablosu[[#This Row],[SGK MATRAH]], _xlpm._asgari_30, GUNLUK_BRUT_ASGARI_2 * 30, _xlpm._net_isveren_oran, PRIM_KEST_ORAN_ISVEREN_2 - ISSIZLIK_ISVEREN_2, _xlpm._oran_imalat_fark, IF(_xlpm._is_imalat, _xlpm._net_isveren_oran - hazine_indirimi_imalat_2, _xlpm._net_isveren_oran - hazine_indirimi_2), IF( _xlpm._f_kontrol, _xlfn.IFS( KANUN = "05510", _xlpm._matrah * _xlpm._hazine, OR(KANUN = "05746", KANUN = "04691"), _xlpm._matrah * (_xlpm._net_isveren_oran + _xlpm._hazine) / 2, KANUN = "06111", _xlpm._matrah * (_xlpm._net_isveren_oran), KANUN = "03294", IF(_xlpm._matrah / 30 > GUNLUK_BRUT_ASGARI_2, (_xlpm._asgari_30 * _xlpm._oran_imalat_fark) + (_xlpm._matrah * _xlpm._hazine), (_xlpm._matrah * _xlpm._oran_imalat_fark) + (_xlpm._matrah * _xlpm._hazine)), KANUN = "16322", (_xlpm._asgari_30 * (_xlpm._net_isveren_oran - _xlpm._hazine)) + (_xlpm._matrah * _xlpm._hazine), KANUN = "26322", (_xlpm._asgari_30 * (PRIM_KEST_ORAN_ISVEREN_2 + PRIM_KEST_ORAN_ISCI_2 - ISSIZLIK_ISVEREN_2 - ISSIZLIK_ISCI_2 - _xlpm._hazine)) + (_xlpm._matrah * _xlpm._hazine), KANUN = "14857", (_xlpm._asgari_30 * _xlpm._oran_imalat_fark) + (_xlpm._matrah * _xlpm._hazine), TRUE, 0 ), 0 ) ), 0 ) -> 2961.719225 | S16: =bordro_hesaplama_tablosu[[#This Row],[BRÜT ÜCRET]]+bordro_hesaplama_tablosu[[#This Row],[SGK İŞVEREN]]-bordro_hesaplama_tablosu[[#This Row],[SGK TEŞVİK]]-bordro_hesaplama_tablosu[[#This Row],[GV MUAFİYET]]-bordro_hesaplama_tablosu[[#This Row],[DV MUAFİYET]] -> 87926.03949 | T16: =bordro_hesaplama_tablosu[[#This Row],[SGK İŞÇİ]]+bordro_hesaplama_tablosu[[#This Row],[SGK İŞVEREN]]-bordro_hesaplama_tablosu[[#This Row],[SGK TEŞVİK]] -> 24989.50596 | U16: =(bordro_hesaplama_tablosu[[#This Row],[KESİLECEK GELİR VERGİSİ]]-bordro_hesaplama_tablosu[[#This Row],[GV MUAFİYET]])+(bordro_hesaplama_tablosu[[#This Row],[KESİLECEK DAMGA VERGİSİ]]-bordro_hesaplama_tablosu[[#This Row],[DV MUAFİYET]]) -> 12936.53353
B17: TOPLAM | C17: =SUBTOTAL(109,bordro_hesaplama_tablosu[BRÜT ÜCRET]) -> 850826.7104 | D17: =SUBTOTAL(109,bordro_hesaplama_tablosu[SGK MATRAH]) -> 850826.7104 | E17: =SUBTOTAL(109,bordro_hesaplama_tablosu[SGK İŞÇİ]) -> 127624.0066 | H17: =SUBTOTAL(109,bordro_hesaplama_tablosu[HESAPLANAN GELİR VERGİSİ]) -> 164264.73 | I17: =SUBTOTAL(109,bordro_hesaplama_tablosu[AÜ GV İSTİSNA]) -> 45151.22 | J17: =SUBTOTAL(109,bordro_hesaplama_tablosu[KESİLECEK GELİR VERGİSİ]) -> 119113.51 | K17: =SUBTOTAL(109,bordro_hesaplama_tablosu[GV MUAFİYET]) -> 0 | L17: =SUBTOTAL(109,bordro_hesaplama_tablosu[HESAPLANAN DAMGA VERGİSİ]) -> 6457.774732 | M17: =SUBTOTAL(109,bordro_hesaplama_tablosu[AÜ DV İSTİSNA]) -> 2368.58094 | N17: =SUBTOTAL(109,bordro_hesaplama_tablosu[KESİLECEK DAMGA VERGİSİ]) -> 4089.193792 | O17: =SUBTOTAL(109,bordro_hesaplama_tablosu[DV MUAFİYET]) -> 0 | P17: =SUBTOTAL(109,bordro_hesaplama_tablosu[NET ÜCRET]) -> 600000 | Q17: =SUBTOTAL(109,bordro_hesaplama_tablosu[SGK İŞVEREN]) -> 193563.0766 | R17: =SUBTOTAL(109,bordro_hesaplama_tablosu[SGK TEŞVİK]) -> 34033.06842 | S17: =SUBTOTAL(109,bordro_hesaplama_tablosu[İŞVEREN TOPLAM MALİYET]) -> 1010356.719 | T17: =SUBTOTAL(109,bordro_hesaplama_tablosu[SGK]) -> 287154.0148 | U17: =SUBTOTAL(109,bordro_hesaplama_tablosu[VERGİ]) -> 123202.7038
C22: =CONCATENATE("Kıdem Süresi: ",DATEDIF(ISE_GIRIS_TARIHI,FESIH_TARIHI,"y")&" Yıl, "&DATEDIF(ISE_GIRIS_TARIHI,FESIH_TARIHI,"ym")&" Ay, "&DATEDIF(ISE_GIRIS_TARIHI,FESIH_TARIHI,"md")&" Gün") -> Kıdem Süresi: 26 Yıl, 7 Ay, 19 Gün | I22: =_xlfn.LET( _xlpm.Baslangic, K2, _xlpm.Bitis, IF(L2="", TODAY(), L2), _xlpm.Ay, IF( _xlpm.Baslangic="", 0, (YEAR(_xlpm.Bitis) - YEAR(_xlpm.Baslangic)) * 12 + MONTH(_xlpm.Bitis) - MONTH(_xlpm.Baslangic) - IF(DAY(_xlpm.Bitis) < DAY(_xlpm.Baslangic), 1, 0) ), IF( _xlpm.Baslangic="", "", "İhbar Süresi: " & _xlfn.IFS( _xlpm.Ay < 6, "2 Hafta (14 Gün)", _xlpm.Ay < 18, "4 Hafta (28 Gün)", _xlpm.Ay < 36, "6 Hafta (42 Gün)", TRUE, "8 Hafta (56 Gün)" ) ) ) -> İhbar Süresi: 8 Hafta (56 Gün)
C25: Kıdem Tazm.Esas Ücret | F25: =MIN(IF(MONTH(FESIH_TARIHI)<=6,KIDEM_TAZM_TAVAN_1,KIDEM_TAZM_TAVAN_2),AYLIK_BRUT) -> 53919.68 | I25: İhbar Tazminatı Brüt | L25: =AYLIK_BRUT/30*(--MID(I22,FIND("(",I22)+1,FIND(" ",I22,FIND("(",I22))-FIND("(",I22)-1)) -> 138213.5638
C27: Kıdem Tazminatı Brüt | F27: =_xlfn.LET( _xlpm.YIL,DATEDIF(ISE_GIRIS_TARIHI,FESIH_TARIHI,"y"), _xlpm.AY,DATEDIF(ISE_GIRIS_TARIHI,FESIH_TARIHI,"ym"), _xlpm.GUN,DATEDIF(ISE_GIRIS_TARIHI,FESIH_TARIHI,"md"), KIDEM_ESAS_BRUT*(_xlpm.YIL+_xlpm.AY/12+_xlpm.GUN/360) ) -> 1436210.588 | I27: İhbar Tazminatı Gelir Vergisi Kesintisi | L27: =MAX((IHBAR_ESAS_BRUT-vergi_dilimi_4_1)*0.05,0)+MAX((IHBAR_ESAS_BRUT-vergi_dilimi_3_1)*0.08,0)+MAX((IHBAR_ESAS_BRUT-vergi_dilimi_2_1)*0.07,0)+MAX((IHBAR_ESAS_BRUT-vergi_dilimi_1_1)*0.05,0)+IHBAR_ESAS_BRUT*0.15-(MAX((vergi_dilimi_0-vergi_dilimi_4_1)*0.05,0)+(MAX((vergi_dilimi_0-vergi_dilimi_3_1)*0.08,0)+MAX((vergi_dilimi_0-vergi_dilimi_2_1)*0.07,0)+MAX((vergi_dilimi_0-vergi_dilimi_1_1)*0.05,0)+vergi_dilimi_0*0.15)) -> 20732.03458
C29: Kıdem Tazminatı Damga Vergisi Kesintisi | F29: =F27*DAMGA_VERGISI_ORANI -> 10900.83836 | I29: İhbar Tazminatı Damga Vergisi Kesintisi | L29: =L25*DAMGA_VERGISI_ORANI -> 1049.040949
C31: Net Kıdem Tazminatı | F31: =F27-F29 -> 1425309.749 | I31: Net İhbar Tazminatı | L31: =IHBAR_ESAS_BRUT-L27-L29 -> 116432.4883

Sheet params
A1: =DATE(B2,MATCH(UPPER(C2),{"OCAK","ŞUBAT","MART","NİSAN","MAYIS","HAZİRAN","TEMMUZ","AĞUSTOS","EYLÜL","EKİM","KASIM","ARALIK"},0),1) -> 
A2: =DATE(YEAR(A1),MONTH(A1)+1,0) ->  | B2: 2026 | C2: 2. Dönem | H2: =_xlfn.LET( _xlpm.OncekiYil,IF(LEFT(ay,1)="1",yil-1,yil), _xlpm.OncekiDonem,IF(LEFT(ay,1)="1",2,1), "Önceki Dönem: "&_xlpm.OncekiYil&" - "&_xlpm.OncekiDonem ) -> Önceki Dönem: 2026 - 1
C4: indx | D4: Ücret Türü | E4: Aylık | F4: Günlük | G4: Saatlik | H4: ÖNCEKİ DÖNEM | I4: ARTIŞ ORANI | K4: indx | L4: VERGİ | M4: DİLİMLERİ | N4: VERGİ ORANLARI | O4: VERGİ KESİNTİSİ | Q4: indx | R4: KANUN | S4: SGK TEŞVİK ORANI | T4: VERGİ İSTİSNA ORANI
C5: 1 | D5: =INDEX( INDIRECT("Ucret_Turleri_"&yil&"_"&LEFT(ay,1)&"[" & D$4 & "]"), MATCH( secili_params_ucret_turleri[[#This Row],[indx]], INDIRECT("Ucret_Turleri_"&yil&"_"&LEFT(ay,1)&"[indx]"), 0 ) ) -> Asgari Brüt | E5: =INDEX( INDIRECT("Ucret_Turleri_"&yil&"_"&LEFT(ay,1)&"[" & E$4 & "]"), MATCH( secili_params_ucret_turleri[[#This Row],[indx]], INDIRECT("Ucret_Turleri_"&yil&"_"&LEFT(ay,1)&"[indx]"), 0 ) ) -> 33030 | F5: =INDEX( INDIRECT("Ucret_Turleri_"&yil&"_"&LEFT(ay,1)&"[" & F$4 & "]"), MATCH( secili_params_ucret_turleri[[#This Row],[indx]], INDIRECT("Ucret_Turleri_"&yil&"_"&LEFT(ay,1)&"[indx]"), 0 ) ) -> 1101 | G5: =INDEX( INDIRECT("Ucret_Turleri_"&yil&"_"&LEFT(ay,1)&"[" & G$4 & "]"), MATCH( secili_params_ucret_turleri[[#This Row],[indx]], INDIRECT("Ucret_Turleri_"&yil&"_"&LEFT(ay,1)&"[indx]"), 0 ) ) -> 146.8 | H5: =_xlfn.LET( _xlpm.OncekiYil,IF(LEFT(ay,1)="1",yil-1,yil), _xlpm.OncekiDonem,IF(LEFT(ay,1)="1",2,1), _xlpm.Tablo,"Ucret_Turleri_"&_xlpm.OncekiYil&"_"&_xlpm.OncekiDonem, INDEX( INDIRECT(_xlpm.Tablo&"["&E$4&"]"), MATCH( secili_params_ucret_turleri[[#This Row],[indx]], INDIRECT(_xlpm.Tablo&"[indx]"), 0 ) ) ) -> 33030 | I5: =(secili_params_ucret_turleri[[#This Row],[Aylık]]/secili_params_ucret_turleri[[#This Row],[ÖNCEKİ DÖNEM]])-1 -> 0 | K5: 1 | L5: =INDEX( INDIRECT("Vergi_Dilimleri_"&yil&"_"&LEFT(ay,1)&"[" & L$4 & "]"), MATCH( secili_params_vergi_dilimleri[[#This Row],[indx]], INDIRECT("Vergi_Dilimleri_"&yil&"_"&LEFT(ay,1)&"[indx]"), 0 ) ) -> 0 | M5: =INDEX( INDIRECT("Vergi_Dilimleri_"&yil&"_"&LEFT(ay,1)&"[" & M$4 & "]"), MATCH( secili_params_vergi_dilimleri[[#This Row],[indx]], INDIRECT("Vergi_Dilimleri_"&yil&"_"&LEFT(ay,1)&"[indx]"), 0 ) ) -> 190000 | N5: =INDEX( INDIRECT("Vergi_Dilimleri_"&yil&"_"&LEFT(ay,1)&"[" & N$4 & "]"), MATCH( secili_params_vergi_dilimleri[[#This Row],[indx]], INDIRECT("Vergi_Dilimleri_"&yil&"_"&LEFT(ay,1)&"[indx]"), 0 ) ) -> 0.15 | O5: =INDEX( INDIRECT("Vergi_Dilimleri_"&yil&"_"&LEFT(ay,1)&"[" & O$4 & "]"), MATCH( secili_params_vergi_dilimleri[[#This Row],[indx]], INDIRECT("Vergi_Dilimleri_"&yil&"_"&LEFT(ay,1)&"[indx]"), 0 ) ) -> 28500 | Q5: 1 | R5: 05510
C6: =C5+1 -> 2 | D6: =INDEX( INDIRECT("Ucret_Turleri_"&yil&"_"&LEFT(ay,1)&"[" & D$4 & "]"), MATCH( secili_params_ucret_turleri[[#This Row],[indx]], INDIRECT("Ucret_Turleri_"&yil&"_"&LEFT(ay,1)&"[indx]"), 0 ) ) -> SGK Tavan | E6: =INDEX( INDIRECT("Ucret_Turleri_"&yil&"_"&LEFT(ay,1)&"[" & E$4 & "]"), MATCH( secili_params_ucret_turleri[[#This Row],[indx]], INDIRECT("Ucret_Turleri_"&yil&"_"&LEFT(ay,1)&"[indx]"), 0 ) ) -> 297270 | F6: =INDEX( INDIRECT("Ucret_Turleri_"&yil&"_"&LEFT(ay,1)&"[" & F$4 & "]"), MATCH( secili_params_ucret_turleri[[#This Row],[indx]], INDIRECT("Ucret_Turleri_"&yil&"_"&LEFT(ay,1)&"[indx]"), 0 ) ) -> 9909 | G6: =INDEX( INDIRECT("Ucret_Turleri_"&yil&"_"&LEFT(ay,1)&"[" & G$4 & "]"), MATCH( secili_params_ucret_turleri[[#This Row],[indx]], INDIRECT("Ucret_Turleri_"&yil&"_"&LEFT(ay,1)&"[indx]"), 0 ) ) -> 1321.2 | H6: =_xlfn.LET( _xlpm.OncekiYil,IF(LEFT(ay,1)="1",yil-1,yil), _xlpm.OncekiDonem,IF(LEFT(ay,1)="1",2,1), _xlpm.Tablo,"Ucret_Turleri_"&_xlpm.OncekiYil&"_"&_xlpm.OncekiDonem, INDEX( INDIRECT(_xlpm.Tablo&"["&E$4&"]"), MATCH( secili_params_ucret_turleri[[#This Row],[indx]], INDIRECT(_xlpm.Tablo&"[indx]"), 0 ) ) ) -> 297270 | I6: =(secili_params_ucret_turleri[[#This Row],[Aylık]]/secili_params_ucret_turleri[[#This Row],[ÖNCEKİ DÖNEM]])-1 -> 0 | K6: =K5+1 -> 2 | L6: =INDEX( INDIRECT("Vergi_Dilimleri_"&yil&"_"&LEFT(ay,1)&"[" & L$4 & "]"), MATCH( secili_params_vergi_dilimleri[[#This Row],[indx]], INDIRECT("Vergi_Dilimleri_"&yil&"_"&LEFT(ay,1)&"[indx]"), 0 ) ) -> 190000.01 | M6: =INDEX( INDIRECT("Vergi_Dilimleri_"&yil&"_"&LEFT(ay,1)&"[" & M$4 & "]"), MATCH( secili_params_vergi_dilimleri[[#This Row],[indx]], INDIRECT("Vergi_Dilimleri_"&yil&"_"&LEFT(ay,1)&"[indx]"), 0 ) ) -> 400000 | N6: =INDEX( INDIRECT("Vergi_Dilimleri_"&yil&"_"&LEFT(ay,1)&"[" & N$4 & "]"), MATCH( secili_params_vergi_dilimleri[[#This Row],[indx]], INDIRECT("Vergi_Dilimleri_"&yil&"_"&LEFT(ay,1)&"[indx]"), 0 ) ) -> 0.2 | O6: =INDEX( INDIRECT("Vergi_Dilimleri_"&yil&"_"&LEFT(ay,1)&"[" & O$4 & "]"), MATCH( secili_params_vergi_dilimleri[[#This Row],[indx]], INDIRECT("Vergi_Dilimleri_"&yil&"_"&LEFT(ay,1)&"[indx]"), 0 ) ) -> 80000 | Q6: 2 | R6: 00000 | S6: 0 | T6: 0
C7: =C6+1 -> 3 | D7: =INDEX( INDIRECT("Ucret_Turleri_"&yil&"_"&LEFT(ay,1)&"[" & D$4 & "]"), MATCH( secili_params_ucret_turleri[[#This Row],[indx]], INDIRECT("Ucret_Turleri_"&yil&"_"&LEFT(ay,1)&"[indx]"), 0 ) ) -> Net Ücret | E7: =INDEX( INDIRECT("Ucret_Turleri_"&yil&"_"&LEFT(ay,1)&"[" & E$4 & "]"), MATCH( secili_params_ucret_turleri[[#This Row],[indx]], INDIRECT("Ucret_Turleri_"&yil&"_"&LEFT(ay,1)&"[indx]"), 0 ) ) -> 28075.5 | F7: =INDEX( INDIRECT("Ucret_Turleri_"&yil&"_"&LEFT(ay,1)&"[" & F$4 & "]"), MATCH( secili_params_ucret_turleri[[#This Row],[indx]], INDIRECT("Ucret_Turleri_"&yil&"_"&LEFT(ay,1)&"[indx]"), 0 ) ) -> 935.85 | G7: =INDEX( INDIRECT("Ucret_Turleri_"&yil&"_"&LEFT(ay,1)&"[" & G$4 & "]"), MATCH( secili_params_ucret_turleri[[#This Row],[indx]], INDIRECT("Ucret_Turleri_"&yil&"_"&LEFT(ay,1)&"[indx]"), 0 ) ) -> 124.78 | H7: =_xlfn.LET( _xlpm.OncekiYil,IF(LEFT(ay,1)="1",yil-1,yil), _xlpm.OncekiDonem,IF(LEFT(ay,1)="1",2,1), _xlpm.Tablo,"Ucret_Turleri_"&_xlpm.OncekiYil&"_"&_xlpm.OncekiDonem, INDEX( INDIRECT(_xlpm.Tablo&"["&E$4&"]"), MATCH( secili_params_ucret_turleri[[#This Row],[indx]], INDIRECT(_xlpm.Tablo&"[indx]"), 0 ) ) ) -> 28075.5 | I7: =(secili_params_ucret_turleri[[#This Row],[Aylık]]/secili_params_ucret_turleri[[#This Row],[ÖNCEKİ DÖNEM]])-1 -> 0 | K7: =K6+1 -> 3 | L7: =INDEX( INDIRECT("Vergi_Dilimleri_"&yil&"_"&LEFT(ay,1)&"[" & L$4 & "]"), MATCH( secili_params_vergi_dilimleri[[#This Row],[indx]], INDIRECT("Vergi_Dilimleri_"&yil&"_"&LEFT(ay,1)&"[indx]"), 0 ) ) -> 400000.01 | M7: =INDEX( INDIRECT("Vergi_Dilimleri_"&yil&"_"&LEFT(ay,1)&"[" & M$4 & "]"), MATCH( secili_params_vergi_dilimleri[[#This Row],[indx]], INDIRECT("Vergi_Dilimleri_"&yil&"_"&LEFT(ay,1)&"[indx]"), 0 ) ) -> 1500000 | N7: =INDEX( INDIRECT("Vergi_Dilimleri_"&yil&"_"&LEFT(ay,1)&"[" & N$4 & "]"), MATCH( secili_params_vergi_dilimleri[[#This Row],[indx]], INDIRECT("Vergi_Dilimleri_"&yil&"_"&LEFT(ay,1)&"[indx]"), 0 ) ) -> 0.27 | O7: =INDEX( INDIRECT("Vergi_Dilimleri_"&yil&"_"&LEFT(ay,1)&"[" & O$4 & "]"), MATCH( secili_params_vergi_dilimleri[[#This Row],[indx]], INDIRECT("Vergi_Dilimleri_"&yil&"_"&LEFT(ay,1)&"[indx]"), 0 ) ) -> 405000 | Q7: 3 | R7: 06111 | S7: 0.1675 | T7: 0
C8: 4 | D8: =INDEX( INDIRECT("Ucret_Turleri_"&yil&"_"&LEFT(ay,1)&"[" & D$4 & "]"), MATCH( secili_params_ucret_turleri[[#This Row],[indx]], INDIRECT("Ucret_Turleri_"&yil&"_"&LEFT(ay,1)&"[indx]"), 0 ) ) -> Emekli Net Ücret (Yıllık Ortalama) | E8: =INDEX( INDIRECT("Ucret_Turleri_"&yil&"_"&LEFT(ay,1)&"[" & E$4 & "]"), MATCH( secili_params_ucret_turleri[[#This Row],[indx]], INDIRECT("Ucret_Turleri_"&yil&"_"&LEFT(ay,1)&"[indx]"), 0 ) ) -> 30057.3 | F8: =INDEX( INDIRECT("Ucret_Turleri_"&yil&"_"&LEFT(ay,1)&"[" & F$4 & "]"), MATCH( secili_params_ucret_turleri[[#This Row],[indx]], INDIRECT("Ucret_Turleri_"&yil&"_"&LEFT(ay,1)&"[indx]"), 0 ) ) -> 1001.91 | G8: =INDEX( INDIRECT("Ucret_Turleri_"&yil&"_"&LEFT(ay,1)&"[" & G$4 & "]"), MATCH( secili_params_ucret_turleri[[#This Row],[indx]], INDIRECT("Ucret_Turleri_"&yil&"_"&LEFT(ay,1)&"[indx]"), 0 ) ) -> 133.588 | H8: =_xlfn.LET( _xlpm.OncekiYil,IF(LEFT(ay,1)="1",yil-1,yil), _xlpm.OncekiDonem,IF(LEFT(ay,1)="1",2,1), _xlpm.Tablo,"Ucret_Turleri_"&_xlpm.OncekiYil&"_"&_xlpm.OncekiDonem, INDEX( INDIRECT(_xlpm.Tablo&"["&E$4&"]"), MATCH( secili_params_ucret_turleri[[#This Row],[indx]], INDIRECT(_xlpm.Tablo&"[indx]"), 0 ) ) ) -> 30057.3 | I8: =(secili_params_ucret_turleri[[#This Row],[Aylık]]/secili_params_ucret_turleri[[#This Row],[ÖNCEKİ DÖNEM]])-1 -> 0 | K8: 4 | L8: =INDEX( INDIRECT("Vergi_Dilimleri_"&yil&"_"&LEFT(ay,1)&"[" & L$4 & "]"), MATCH( secili_params_vergi_dilimleri[[#This Row],[indx]], INDIRECT("Vergi_Dilimleri_"&yil&"_"&LEFT(ay,1)&"[indx]"), 0 ) ) -> 1500000.01 | M8: =INDEX( INDIRECT("Vergi_Dilimleri_"&yil&"_"&LEFT(ay,1)&"[" & M$4 & "]"), MATCH( secili_params_vergi_dilimleri[[#This Row],[indx]], INDIRECT("Vergi_Dilimleri_"&yil&"_"&LEFT(ay,1)&"[indx]"), 0 ) ) -> 5300000 | N8: =INDEX( INDIRECT("Vergi_Dilimleri_"&yil&"_"&LEFT(ay,1)&"[" & N$4 & "]"), MATCH( secili_params_vergi_dilimleri[[#This Row],[indx]], INDIRECT("Vergi_Dilimleri_"&yil&"_"&LEFT(ay,1)&"[indx]"), 0 ) ) -> 0.35 | O8: =INDEX( INDIRECT("Vergi_Dilimleri_"&yil&"_"&LEFT(ay,1)&"[" & O$4 & "]"), MATCH( secili_params_vergi_dilimleri[[#This Row],[indx]], INDIRECT("Vergi_Dilimleri_"&yil&"_"&LEFT(ay,1)&"[indx]"), 0 ) ) -> 1855000 | Q8: 4 | R8: 03294 | T8: 0
C9: 5 | D9: =INDEX( INDIRECT("Ucret_Turleri_"&yil&"_"&LEFT(ay,1)&"[" & D$4 & "]"), MATCH( secili_params_ucret_turleri[[#This Row],[indx]], INDIRECT("Ucret_Turleri_"&yil&"_"&LEFT(ay,1)&"[indx]"), 0 ) ) -> Emekli Engelli Net Ücret (Yıllık Ortalama) | E9: =INDEX( INDIRECT("Ucret_Turleri_"&yil&"_"&LEFT(ay,1)&"[" & E$4 & "]"), MATCH( secili_params_ucret_turleri[[#This Row],[indx]], INDIRECT("Ucret_Turleri_"&yil&"_"&LEFT(ay,1)&"[indx]"), 0 ) ) -> 30552.75 | F9: =INDEX( INDIRECT("Ucret_Turleri_"&yil&"_"&LEFT(ay,1)&"[" & F$4 & "]"), MATCH( secili_params_ucret_turleri[[#This Row],[indx]], INDIRECT("Ucret_Turleri_"&yil&"_"&LEFT(ay,1)&"[indx]"), 0 ) ) -> 1018.425 | G9: =INDEX( INDIRECT("Ucret_Turleri_"&yil&"_"&LEFT(ay,1)&"[" & G$4 & "]"), MATCH( secili_params_ucret_turleri[[#This Row],[indx]], INDIRECT("Ucret_Turleri_"&yil&"_"&LEFT(ay,1)&"[indx]"), 0 ) ) -> 135.79 | H9: =_xlfn.LET( _xlpm.OncekiYil,IF(LEFT(ay,1)="1",yil-1,yil), _xlpm.OncekiDonem,IF(LEFT(ay,1)="1",2,1), _xlpm.Tablo,"Ucret_Turleri_"&_xlpm.OncekiYil&"_"&_xlpm.OncekiDonem, INDEX( INDIRECT(_xlpm.Tablo&"["&E$4&"]"), MATCH( secili_params_ucret_turleri[[#This Row],[indx]], INDIRECT(_xlpm.Tablo&"[indx]"), 0 ) ) ) -> 30552.75 | I9: =(secili_params_ucret_turleri[[#This Row],[Aylık]]/secili_params_ucret_turleri[[#This Row],[ÖNCEKİ DÖNEM]])-1 -> 0 | K9: 5 | L9: =INDEX( INDIRECT("Vergi_Dilimleri_"&yil&"_"&LEFT(ay,1)&"[" & L$4 & "]"), MATCH( secili_params_vergi_dilimleri[[#This Row],[indx]], INDIRECT("Vergi_Dilimleri_"&yil&"_"&LEFT(ay,1)&"[indx]"), 0 ) ) -> 5300000.01 | M9: =INDEX( INDIRECT("Vergi_Dilimleri_"&yil&"_"&LEFT(ay,1)&"[" & M$4 & "]"), MATCH( secili_params_vergi_dilimleri[[#This Row],[indx]], INDIRECT("Vergi_Dilimleri_"&yil&"_"&LEFT(ay,1)&"[indx]"), 0 ) ) -> 9999999 | N9: =INDEX( INDIRECT("Vergi_Dilimleri_"&yil&"_"&LEFT(ay,1)&"[" & N$4 & "]"), MATCH( secili_params_vergi_dilimleri[[#This Row],[indx]], INDIRECT("Vergi_Dilimleri_"&yil&"_"&LEFT(ay,1)&"[indx]"), 0 ) ) -> 0.4 | O9: =INDEX( INDIRECT("Vergi_Dilimleri_"&yil&"_"&LEFT(ay,1)&"[" & O$4 & "]"), MATCH( secili_params_vergi_dilimleri[[#This Row],[indx]], INDIRECT("Vergi_Dilimleri_"&yil&"_"&LEFT(ay,1)&"[indx]"), 0 ) ) -> 3999999.6 | Q9: 5 | R9: 14857 | T9: 0
C10: 6 | D10: =INDEX( INDIRECT("Ucret_Turleri_"&yil&"_"&LEFT(ay,1)&"[" & D$4 & "]"), MATCH( secili_params_ucret_turleri[[#This Row],[indx]], INDIRECT("Ucret_Turleri_"&yil&"_"&LEFT(ay,1)&"[indx]"), 0 ) ) -> Kıdem Tazminanı Tavanı 2. Dönem | E10: =INDEX( INDIRECT("Ucret_Turleri_"&yil&"_"&LEFT(ay,1)&"[" & E$4 & "]"), MATCH( secili_params_ucret_turleri[[#This Row],[indx]], INDIRECT("Ucret_Turleri_"&yil&"_"&LEFT(ay,1)&"[indx]"), 0 ) ) -> 73729.87 | F10: =INDEX( INDIRECT("Ucret_Turleri_"&yil&"_"&LEFT(ay,1)&"[" & F$4 & "]"), MATCH( secili_params_ucret_turleri[[#This Row],[indx]], INDIRECT("Ucret_Turleri_"&yil&"_"&LEFT(ay,1)&"[indx]"), 0 ) ) -> 2457.662333 | G10: =INDEX( INDIRECT("Ucret_Turleri_"&yil&"_"&LEFT(ay,1)&"[" & G$4 & "]"), MATCH( secili_params_ucret_turleri[[#This Row],[indx]], INDIRECT("Ucret_Turleri_"&yil&"_"&LEFT(ay,1)&"[indx]"), 0 ) ) -> 327.6883111 | H10: =_xlfn.LET( _xlpm.OncekiYil,IF(LEFT(ay,1)="1",yil-1,yil), _xlpm.OncekiDonem,IF(LEFT(ay,1)="1",2,1), _xlpm.Tablo,"Ucret_Turleri_"&_xlpm.OncekiYil&"_"&_xlpm.OncekiDonem, INDEX( INDIRECT(_xlpm.Tablo&"["&E$4&"]"), MATCH( secili_params_ucret_turleri[[#This Row],[indx]], INDIRECT(_xlpm.Tablo&"[indx]"), 0 ) ) ) -> 64948.77 | I10: =(secili_params_ucret_turleri[[#This Row],[Aylık]]/secili_params_ucret_turleri[[#This Row],[ÖNCEKİ DÖNEM]])-1 -> 0.1352004049 | Q10: 6 | R10: 16322 | T10: 0
C11: 7 | D11: =INDEX( INDIRECT("Ucret_Turleri_"&yil&"_"&LEFT(ay,1)&"[" & D$4 & "]"), MATCH( secili_params_ucret_turleri[[#This Row],[indx]], INDIRECT("Ucret_Turleri_"&yil&"_"&LEFT(ay,1)&"[indx]"), 0 ) ) -> 1.DERECE ENGELLİ | E11: =INDEX( INDIRECT("Ucret_Turleri_"&yil&"_"&LEFT(ay,1)&"[" & E$4 & "]"), MATCH( secili_params_ucret_turleri[[#This Row],[indx]], INDIRECT("Ucret_Turleri_"&yil&"_"&LEFT(ay,1)&"[indx]"), 0 ) ) -> 12000 | F11: =INDEX( INDIRECT("Ucret_Turleri_"&yil&"_"&LEFT(ay,1)&"[" & F$4 & "]"), MATCH( secili_params_ucret_turleri[[#This Row],[indx]], INDIRECT("Ucret_Turleri_"&yil&"_"&LEFT(ay,1)&"[indx]"), 0 ) ) -> 400 | G11: =INDEX( INDIRECT("Ucret_Turleri_"&yil&"_"&LEFT(ay,1)&"[" & G$4 & "]"), MATCH( secili_params_ucret_turleri[[#This Row],[indx]], INDIRECT("Ucret_Turleri_"&yil&"_"&LEFT(ay,1)&"[indx]"), 0 ) ) -> 53.33333333 | H11: =_xlfn.LET( _xlpm.OncekiYil,IF(LEFT(ay,1)="1",yil-1,yil), _xlpm.OncekiDonem,IF(LEFT(ay,1)="1",2,1), _xlpm.Tablo,"Ucret_Turleri_"&_xlpm.OncekiYil&"_"&_xlpm.OncekiDonem, INDEX( INDIRECT(_xlpm.Tablo&"["&E$4&"]"), MATCH( secili_params_ucret_turleri[[#This Row],[indx]], INDIRECT(_xlpm.Tablo&"[indx]"), 0 ) ) ) -> 12000 | I11: =(secili_params_ucret_turleri[[#This Row],[Aylık]]/secili_params_ucret_turleri[[#This Row],[ÖNCEKİ DÖNEM]])-1 -> 0 | K11: indx | L11: Sigorta Kolu | M11: İşveren Payı | N11: Çalışan Payı | O11: Toplam | Q11: 7 | R11: 26322 | T11: 0
C12: 8 | D12: =INDEX( INDIRECT("Ucret_Turleri_"&yil&"_"&LEFT(ay,1)&"[" & D$4 & "]"), MATCH( secili_params_ucret_turleri[[#This Row],[indx]], INDIRECT("Ucret_Turleri_"&yil&"_"&LEFT(ay,1)&"[indx]"), 0 ) ) -> 2.DERECE ENGELLİ | E12: =INDEX( INDIRECT("Ucret_Turleri_"&yil&"_"&LEFT(ay,1)&"[" & E$4 & "]"), MATCH( secili_params_ucret_turleri[[#This Row],[indx]], INDIRECT("Ucret_Turleri_"&yil&"_"&LEFT(ay,1)&"[indx]"), 0 ) ) -> 7000 | F12: =INDEX( INDIRECT("Ucret_Turleri_"&yil&"_"&LEFT(ay,1)&"[" & F$4 & "]"), MATCH( secili_params_ucret_turleri[[#This Row],[indx]], INDIRECT("Ucret_Turleri_"&yil&"_"&LEFT(ay,1)&"[indx]"), 0 ) ) -> 233.3333333 | G12: =INDEX( INDIRECT("Ucret_Turleri_"&yil&"_"&LEFT(ay,1)&"[" & G$4 & "]"), MATCH( secili_params_ucret_turleri[[#This Row],[indx]], INDIRECT("Ucret_Turleri_"&yil&"_"&LEFT(ay,1)&"[indx]"), 0 ) ) -> 31.11111111 | H12: =_xlfn.LET( _xlpm.OncekiYil,IF(LEFT(ay,1)="1",yil-1,yil), _xlpm.OncekiDonem,IF(LEFT(ay,1)="1",2,1), _xlpm.Tablo,"Ucret_Turleri_"&_xlpm.OncekiYil&"_"&_xlpm.OncekiDonem, INDEX( INDIRECT(_xlpm.Tablo&"["&E$4&"]"), MATCH( secili_params_ucret_turleri[[#This Row],[indx]], INDIRECT(_xlpm.Tablo&"[indx]"), 0 ) ) ) -> 7000 | I12: =(secili_params_ucret_turleri[[#This Row],[Aylık]]/secili_params_ucret_turleri[[#This Row],[ÖNCEKİ DÖNEM]])-1 -> 0 | K12: 1 | L12: =INDEX( INDIRECT("Isveren_prim_oranlari_normal_"&yil&"_"&LEFT(ay,1)&"[" & L$11 & "]"), MATCH( secili_params_isveren_prim_oranlari_normal[[#This Row],[indx]], INDIRECT("Isveren_prim_oranlari_normal_"&yil&"_"&LEFT(ay,1)&"[indx]"), 0 ) ) -> Malüllük, Yaşlılık ve Ölüm | M12: =INDEX( INDIRECT("Isveren_prim_oranlari_normal_"&yil&"_"&LEFT(ay,1)&"[" & M$11 & "]"), MATCH( secili_params_isveren_prim_oranlari_normal[[#This Row],[indx]], INDIRECT("Isveren_prim_oranlari_normal_"&yil&"_"&LEFT(ay,1)&"[indx]"), 0 ) ) -> 0.12 | N12: =INDEX( INDIRECT("Isveren_prim_oranlari_normal_"&yil&"_"&LEFT(ay,1)&"[" & N$11 & "]"), MATCH( secili_params_isveren_prim_oranlari_normal[[#This Row],[indx]], INDIRECT("Isveren_prim_oranlari_normal_"&yil&"_"&LEFT(ay,1)&"[indx]"), 0 ) ) -> 0.09 | O12: =INDEX( INDIRECT("Isveren_prim_oranlari_normal_"&yil&"_"&LEFT(ay,1)&"[" & O$11 & "]"), MATCH( secili_params_isveren_prim_oranlari_normal[[#This Row],[indx]], INDIRECT("Isveren_prim_oranlari_normal_"&yil&"_"&LEFT(ay,1)&"[indx]"), 0 ) ) -> 0.2 | Q12: 8 | R12: 05746 | S12: 0.5
C13: 9 | D13: =INDEX( INDIRECT("Ucret_Turleri_"&yil&"_"&LEFT(ay,1)&"[" & D$4 & "]"), MATCH( secili_params_ucret_turleri[[#This Row],[indx]], INDIRECT("Ucret_Turleri_"&yil&"_"&LEFT(ay,1)&"[indx]"), 0 ) ) -> 3.DERECE ENGELLİ | E13: =INDEX( INDIRECT("Ucret_Turleri_"&yil&"_"&LEFT(ay,1)&"[" & E$4 & "]"), MATCH( secili_params_ucret_turleri[[#This Row],[indx]], INDIRECT("Ucret_Turleri_"&yil&"_"&LEFT(ay,1)&"[indx]"), 0 ) ) -> 3000 | F13: =INDEX( INDIRECT("Ucret_Turleri_"&yil&"_"&LEFT(ay,1)&"[" & F$4 & "]"), MATCH( secili_params_ucret_turleri[[#This Row],[indx]], INDIRECT("Ucret_Turleri_"&yil&"_"&LEFT(ay,1)&"[indx]"), 0 ) ) -> 100 | G13: =INDEX( INDIRECT("Ucret_Turleri_"&yil&"_"&LEFT(ay,1)&"[" & G$4 & "]"), MATCH( secili_params_ucret_turleri[[#This Row],[indx]], INDIRECT("Ucret_Turleri_"&yil&"_"&LEFT(ay,1)&"[indx]"), 0 ) ) -> 13.33333333 | H13: =_xlfn.LET( _xlpm.OncekiYil,IF(LEFT(ay,1)="1",yil-1,yil), _xlpm.OncekiDonem,IF(LEFT(ay,1)="1",2,1), _xlpm.Tablo,"Ucret_Turleri_"&_xlpm.OncekiYil&"_"&_xlpm.OncekiDonem, INDEX( INDIRECT(_xlpm.Tablo&"["&E$4&"]"), MATCH( secili_params_ucret_turleri[[#This Row],[indx]], INDIRECT(_xlpm.Tablo&"[indx]"), 0 ) ) ) -> 3000 | I13: =(secili_params_ucret_turleri[[#This Row],[Aylık]]/secili_params_ucret_turleri[[#This Row],[ÖNCEKİ DÖNEM]])-1 -> 0 | K13: =K12+1 -> 2 | L13: =INDEX( INDIRECT("Isveren_prim_oranlari_normal_"&yil&"_"&LEFT(ay,1)&"[" & L$11 & "]"), MATCH( secili_params_isveren_prim_oranlari_normal[[#This Row],[indx]], INDIRECT("Isveren_prim_oranlari_normal_"&yil&"_"&LEFT(ay,1)&"[indx]"), 0 ) ) -> Kısa Vadeli Sigorta Kolları | M13: =INDEX( INDIRECT("Isveren_prim_oranlari_normal_"&yil&"_"&LEFT(ay,1)&"[" & M$11 & "]"), MATCH( secili_params_isveren_prim_oranlari_normal[[#This Row],[indx]], INDIRECT("Isveren_prim_oranlari_normal_"&yil&"_"&LEFT(ay,1)&"[indx]"), 0 ) ) -> 0.0225 | N13: =INDEX( INDIRECT("Isveren_prim_oranlari_normal_"&yil&"_"&LEFT(ay,1)&"[" & N$11 & "]"), MATCH( secili_params_isveren_prim_oranlari_normal[[#This Row],[indx]], INDIRECT("Isveren_prim_oranlari_normal_"&yil&"_"&LEFT(ay,1)&"[indx]"), 0 ) ) -> - | O13: =INDEX( INDIRECT("Isveren_prim_oranlari_normal_"&yil&"_"&LEFT(ay,1)&"[" & O$11 & "]"), MATCH( secili_params_isveren_prim_oranlari_normal[[#This Row],[indx]], INDIRECT("Isveren_prim_oranlari_normal_"&yil&"_"&LEFT(ay,1)&"[indx]"), 0 ) ) -> 0.02 | Q13: 9 | R13: 04691 | T13: 1
C14: 10 | D14: =INDEX( INDIRECT("Ucret_Turleri_"&yil&"_"&LEFT(ay,1)&"[" & D$4 & "]"), MATCH( secili_params_ucret_turleri[[#This Row],[indx]], INDIRECT("Ucret_Turleri_"&yil&"_"&LEFT(ay,1)&"[indx]"), 0 ) ) -> Stajyer Ücreti | E14: =INDEX( INDIRECT("Ucret_Turleri_"&yil&"_"&LEFT(ay,1)&"[" & E$4 & "]"), MATCH( secili_params_ucret_turleri[[#This Row],[indx]], INDIRECT("Ucret_Turleri_"&yil&"_"&LEFT(ay,1)&"[indx]"), 0 ) ) -> 8422.65 | F14: =INDEX( INDIRECT("Ucret_Turleri_"&yil&"_"&LEFT(ay,1)&"[" & F$4 & "]"), MATCH( secili_params_ucret_turleri[[#This Row],[indx]], INDIRECT("Ucret_Turleri_"&yil&"_"&LEFT(ay,1)&"[indx]"), 0 ) ) -> 280.755 | G14: =INDEX( INDIRECT("Ucret_Turleri_"&yil&"_"&LEFT(ay,1)&"[" & G$4 & "]"), MATCH( secili_params_ucret_turleri[[#This Row],[indx]], INDIRECT("Ucret_Turleri_"&yil&"_"&LEFT(ay,1)&"[indx]"), 0 ) ) -> 37.434 | H14: =_xlfn.LET( _xlpm.OncekiYil,IF(LEFT(ay,1)="1",yil-1,yil), _xlpm.OncekiDonem,IF(LEFT(ay,1)="1",2,1), _xlpm.Tablo,"Ucret_Turleri_"&_xlpm.OncekiYil&"_"&_xlpm.OncekiDonem, INDEX( INDIRECT(_xlpm.Tablo&"["&E$4&"]"), MATCH( secili_params_ucret_turleri[[#This Row],[indx]], INDIRECT(_xlpm.Tablo&"[indx]"), 0 ) ) ) -> 8422.65 | I14: =(secili_params_ucret_turleri[[#This Row],[Aylık]]/secili_params_ucret_turleri[[#This Row],[ÖNCEKİ DÖNEM]])-1 -> 0 | K14: =K13+1 -> 3 | L14: =INDEX( INDIRECT("Isveren_prim_oranlari_normal_"&yil&"_"&LEFT(ay,1)&"[" & L$11 & "]"), MATCH( secili_params_isveren_prim_oranlari_normal[[#This Row],[indx]], INDIRECT("Isveren_prim_oranlari_normal_"&yil&"_"&LEFT(ay,1)&"[indx]"), 0 ) ) -> Genel Sağlık Sigortası | M14: =INDEX( INDIRECT("Isveren_prim_oranlari_normal_"&yil&"_"&LEFT(ay,1)&"[" & M$11 & "]"), MATCH( secili_params_isveren_prim_oranlari_normal[[#This Row],[indx]], INDIRECT("Isveren_prim_oranlari_normal_"&yil&"_"&LEFT(ay,1)&"[indx]"), 0 ) ) -> 0.075 | N14: =INDEX( INDIRECT("Isveren_prim_oranlari_normal_"&yil&"_"&LEFT(ay,1)&"[" & N$11 & "]"), MATCH( secili_params_isveren_prim_oranlari_normal[[#This Row],[indx]], INDIRECT("Isveren_prim_oranlari_normal_"&yil&"_"&LEFT(ay,1)&"[indx]"), 0 ) ) -> 0.05 | O14: =INDEX( INDIRECT("Isveren_prim_oranlari_normal_"&yil&"_"&LEFT(ay,1)&"[" & O$11 & "]"), MATCH( secili_params_isveren_prim_oranlari_normal[[#This Row],[indx]], INDIRECT("Isveren_prim_oranlari_normal_"&yil&"_"&LEFT(ay,1)&"[indx]"), 0 ) ) -> 0.125
C15: 11 | D15: =INDEX( INDIRECT("Ucret_Turleri_"&yil&"_"&LEFT(ay,1)&"[" & D$4 & "]"), MATCH( secili_params_ucret_turleri[[#This Row],[indx]], INDIRECT("Ucret_Turleri_"&yil&"_"&LEFT(ay,1)&"[indx]"), 0 ) ) -> Çocuk Yardımı SGK İstisnası | E15: =INDEX( INDIRECT("Ucret_Turleri_"&yil&"_"&LEFT(ay,1)&"[" & E$4 & "]"), MATCH( secili_params_ucret_turleri[[#This Row],[indx]], INDIRECT("Ucret_Turleri_"&yil&"_"&LEFT(ay,1)&"[indx]"), 0 ) ) -> 660.6 | F15: =INDEX( INDIRECT("Ucret_Turleri_"&yil&"_"&LEFT(ay,1)&"[" & F$4 & "]"), MATCH( secili_params_ucret_turleri[[#This Row],[indx]], INDIRECT("Ucret_Turleri_"&yil&"_"&LEFT(ay,1)&"[indx]"), 0 ) ) -> 22.02 | G15: =INDEX( INDIRECT("Ucret_Turleri_"&yil&"_"&LEFT(ay,1)&"[" & G$4 & "]"), MATCH( secili_params_ucret_turleri[[#This Row],[indx]], INDIRECT("Ucret_Turleri_"&yil&"_"&LEFT(ay,1)&"[indx]"), 0 ) ) -> 2.936 | H15: =_xlfn.LET( _xlpm.OncekiYil,IF(LEFT(ay,1)="1",yil-1,yil), _xlpm.OncekiDonem,IF(LEFT(ay,1)="1",2,1), _xlpm.Tablo,"Ucret_Turleri_"&_xlpm.OncekiYil&"_"&_xlpm.OncekiDonem, INDEX( INDIRECT(_xlpm.Tablo&"["&E$4&"]"), MATCH( secili_params_ucret_turleri[[#This Row],[indx]], INDIRECT(_xlpm.Tablo&"[indx]"), 0 ) ) ) -> 660.6 | I15: =(secili_params_ucret_turleri[[#This Row],[Aylık]]/secili_params_ucret_turleri[[#This Row],[ÖNCEKİ DÖNEM]])-1 -> 0 | K15: 4 | L15: =INDEX( INDIRECT("Isveren_prim_oranlari_normal_"&yil&"_"&LEFT(ay,1)&"[" & L$11 & "]"), MATCH( secili_params_isveren_prim_oranlari_normal[[#This Row],[indx]], INDIRECT("Isveren_prim_oranlari_normal_"&yil&"_"&LEFT(ay,1)&"[indx]"), 0 ) ) -> İşsizlik Sigortası | M15: =INDEX( INDIRECT("Isveren_prim_oranlari_normal_"&yil&"_"&LEFT(ay,1)&"[" & M$11 & "]"), MATCH( secili_params_isveren_prim_oranlari_normal[[#This Row],[indx]], INDIRECT("Isveren_prim_oranlari_normal_"&yil&"_"&LEFT(ay,1)&"[indx]"), 0 ) ) -> 0.02 | N15: =INDEX( INDIRECT("Isveren_prim_oranlari_normal_"&yil&"_"&LEFT(ay,1)&"[" & N$11 & "]"), MATCH( secili_params_isveren_prim_oranlari_normal[[#This Row],[indx]], INDIRECT("Isveren_prim_oranlari_normal_"&yil&"_"&LEFT(ay,1)&"[indx]"), 0 ) ) -> 0.01 | O15: =INDEX( INDIRECT("Isveren_prim_oranlari_normal_"&yil&"_"&LEFT(ay,1)&"[" & O$11 & "]"), MATCH( secili_params_isveren_prim_oranlari_normal[[#This Row],[indx]], INDIRECT("Isveren_prim_oranlari_normal_"&yil&"_"&LEFT(ay,1)&"[indx]"), 0 ) ) -> 0
C16: 12 | D16: =INDEX( INDIRECT("Ucret_Turleri_"&yil&"_"&LEFT(ay,1)&"[" & D$4 & "]"), MATCH( secili_params_ucret_turleri[[#This Row],[indx]], INDIRECT("Ucret_Turleri_"&yil&"_"&LEFT(ay,1)&"[indx]"), 0 ) ) -> Aile Yardımı SGK İstisnası | E16: =INDEX( INDIRECT("Ucret_Turleri_"&yil&"_"&LEFT(ay,1)&"[" & E$4 & "]"), MATCH( secili_params_ucret_turleri[[#This Row],[indx]], INDIRECT("Ucret_Turleri_"&yil&"_"&LEFT(ay,1)&"[indx]"), 0 ) ) -> 3303 | F16: =INDEX( INDIRECT("Ucret_Turleri_"&yil&"_"&LEFT(ay,1)&"[" & F$4 & "]"), MATCH( secili_params_ucret_turleri[[#This Row],[indx]], INDIRECT("Ucret_Turleri_"&yil&"_"&LEFT(ay,1)&"[indx]"), 0 ) ) -> 110.1 | G16: =INDEX( INDIRECT("Ucret_Turleri_"&yil&"_"&LEFT(ay,1)&"[" & G$4 & "]"), MATCH( secili_params_ucret_turleri[[#This Row],[indx]], INDIRECT("Ucret_Turleri_"&yil&"_"&LEFT(ay,1)&"[indx]"), 0 ) ) -> 14.68 | H16: =_xlfn.LET( _xlpm.OncekiYil,IF(LEFT(ay,1)="1",yil-1,yil), _xlpm.OncekiDonem,IF(LEFT(ay,1)="1",2,1), _xlpm.Tablo,"Ucret_Turleri_"&_xlpm.OncekiYil&"_"&_xlpm.OncekiDonem, INDEX( INDIRECT(_xlpm.Tablo&"["&E$4&"]"), MATCH( secili_params_ucret_turleri[[#This Row],[indx]], INDIRECT(_xlpm.Tablo&"[indx]"), 0 ) ) ) -> 3303 | I16: =(secili_params_ucret_turleri[[#This Row],[Aylık]]/secili_params_ucret_turleri[[#This Row],[ÖNCEKİ DÖNEM]])-1 -> 0 | K16: 5 | L16: =INDEX( INDIRECT("Isveren_prim_oranlari_normal_"&yil&"_"&LEFT(ay,1)&"[" & L$11 & "]"), MATCH( secili_params_isveren_prim_oranlari_normal[[#This Row],[indx]], INDIRECT("Isveren_prim_oranlari_normal_"&yil&"_"&LEFT(ay,1)&"[indx]"), 0 ) ) -> Toplam | M16: =INDEX( INDIRECT("Isveren_prim_oranlari_normal_"&yil&"_"&LEFT(ay,1)&"[" & M$11 & "]"), MATCH( secili_params_isveren_prim_oranlari_normal[[#This Row],[indx]], INDIRECT("Isveren_prim_oranlari_normal_"&yil&"_"&LEFT(ay,1)&"[indx]"), 0 ) ) -> 0.2375 | N16: =INDEX( INDIRECT("Isveren_prim_oranlari_normal_"&yil&"_"&LEFT(ay,1)&"[" & N$11 & "]"), MATCH( secili_params_isveren_prim_oranlari_normal[[#This Row],[indx]], INDIRECT("Isveren_prim_oranlari_normal_"&yil&"_"&LEFT(ay,1)&"[indx]"), 0 ) ) -> 0.15 | O16: =INDEX( INDIRECT("Isveren_prim_oranlari_normal_"&yil&"_"&LEFT(ay,1)&"[" & O$11 & "]"), MATCH( secili_params_isveren_prim_oranlari_normal[[#This Row],[indx]], INDIRECT("Isveren_prim_oranlari_normal_"&yil&"_"&LEFT(ay,1)&"[indx]"), 0 ) ) -> 0.3875
C17: 13 | D17: =INDEX( INDIRECT("Ucret_Turleri_"&yil&"_"&LEFT(ay,1)&"[" & D$4 & "]"), MATCH( secili_params_ucret_turleri[[#This Row],[indx]], INDIRECT("Ucret_Turleri_"&yil&"_"&LEFT(ay,1)&"[indx]"), 0 ) ) -> Nakit Yemek Parası SGK İstisnası | E17: =INDEX( INDIRECT("Ucret_Turleri_"&yil&"_"&LEFT(ay,1)&"[" & E$4 & "]"), MATCH( secili_params_ucret_turleri[[#This Row],[indx]], INDIRECT("Ucret_Turleri_"&yil&"_"&LEFT(ay,1)&"[indx]"), 0 ) ) -> 300 | F17: =INDEX( INDIRECT("Ucret_Turleri_"&yil&"_"&LEFT(ay,1)&"[" & F$4 & "]"), MATCH( secili_params_ucret_turleri[[#This Row],[indx]], INDIRECT("Ucret_Turleri_"&yil&"_"&LEFT(ay,1)&"[indx]"), 0 ) ) -> 10 | G17: =INDEX( INDIRECT("Ucret_Turleri_"&yil&"_"&LEFT(ay,1)&"[" & G$4 & "]"), MATCH( secili_params_ucret_turleri[[#This Row],[indx]], INDIRECT("Ucret_Turleri_"&yil&"_"&LEFT(ay,1)&"[indx]"), 0 ) ) -> 1.333333333 | H17: =_xlfn.LET( _xlpm.OncekiYil,IF(LEFT(ay,1)="1",yil-1,yil), _xlpm.OncekiDonem,IF(LEFT(ay,1)="1",2,1), _xlpm.Tablo,"Ucret_Turleri_"&_xlpm.OncekiYil&"_"&_xlpm.OncekiDonem, INDEX( INDIRECT(_xlpm.Tablo&"["&E$4&"]"), MATCH( secili_params_ucret_turleri[[#This Row],[indx]], INDIRECT(_xlpm.Tablo&"[indx]"), 0 ) ) ) -> 158 | I17: =(secili_params_ucret_turleri[[#This Row],[Aylık]]/secili_params_ucret_turleri[[#This Row],[ÖNCEKİ DÖNEM]])-1 -> 0.8987341772 | K17: 6 | L17: =INDEX( INDIRECT("Isveren_prim_oranlari_normal_"&yil&"_"&LEFT(ay,1)&"[" & L$11 & "]"), MATCH( secili_params_isveren_prim_oranlari_normal[[#This Row],[indx]], INDIRECT("Isveren_prim_oranlari_normal_"&yil&"_"&LEFT(ay,1)&"[indx]"), 0 ) ) -> Hazine | O17: =INDEX( INDIRECT("Isveren_prim_oranlari_normal_"&yil&"_"&LEFT(ay,1)&"[" & O$11 & "]"), MATCH( secili_params_isveren_prim_oranlari_normal[[#This Row],[indx]], INDIRECT("Isveren_prim_oranlari_normal_"&yil&"_"&LEFT(ay,1)&"[indx]"), 0 ) ) -> 0.02
C18: 14 | D18: =INDEX( INDIRECT("Ucret_Turleri_"&yil&"_"&LEFT(ay,1)&"[" & D$4 & "]"), MATCH( secili_params_ucret_turleri[[#This Row],[indx]], INDIRECT("Ucret_Turleri_"&yil&"_"&LEFT(ay,1)&"[indx]"), 0 ) ) -> Yemek Kartı SGK İstisnası | E18: =INDEX( INDIRECT("Ucret_Turleri_"&yil&"_"&LEFT(ay,1)&"[" & E$4 & "]"), MATCH( secili_params_ucret_turleri[[#This Row],[indx]], INDIRECT("Ucret_Turleri_"&yil&"_"&LEFT(ay,1)&"[indx]"), 0 ) ) -> 300 | F18: =INDEX( INDIRECT("Ucret_Turleri_"&yil&"_"&LEFT(ay,1)&"[" & F$4 & "]"), MATCH( secili_params_ucret_turleri[[#This Row],[indx]], INDIRECT("Ucret_Turleri_"&yil&"_"&LEFT(ay,1)&"[indx]"), 0 ) ) -> 10 | G18: =INDEX( INDIRECT("Ucret_Turleri_"&yil&"_"&LEFT(ay,1)&"[" & G$4 & "]"), MATCH( secili_params_ucret_turleri[[#This Row],[indx]], INDIRECT("Ucret_Turleri_"&yil&"_"&LEFT(ay,1)&"[indx]"), 0 ) ) -> 1.333333333 | H18: =_xlfn.LET( _xlpm.OncekiYil,IF(LEFT(ay,1)="1",yil-1,yil), _xlpm.OncekiDonem,IF(LEFT(ay,1)="1",2,1), _xlpm.Tablo,"Ucret_Turleri_"&_xlpm.OncekiYil&"_"&_xlpm.OncekiDonem, INDEX( INDIRECT(_xlpm.Tablo&"["&E$4&"]"), MATCH( secili_params_ucret_turleri[[#This Row],[indx]], INDIRECT(_xlpm.Tablo&"[indx]"), 0 ) ) ) -> 158 | I18: =(secili_params_ucret_turleri[[#This Row],[Aylık]]/secili_params_ucret_turleri[[#This Row],[ÖNCEKİ DÖNEM]])-1 -> 0.8987341772 | K18: 7 | L18: =INDEX( INDIRECT("Isveren_prim_oranlari_normal_"&yil&"_"&LEFT(ay,1)&"[" & L$11 & "]"), MATCH( secili_params_isveren_prim_oranlari_normal[[#This Row],[indx]], INDIRECT("Isveren_prim_oranlari_normal_"&yil&"_"&LEFT(ay,1)&"[indx]"), 0 ) ) -> Hazine (İmalat) | O18: =INDEX( INDIRECT("Isveren_prim_oranlari_normal_"&yil&"_"&LEFT(ay,1)&"[" & O$11 & "]"), MATCH( secili_params_isveren_prim_oranlari_normal[[#This Row],[indx]], INDIRECT("Isveren_prim_oranlari_normal_"&yil&"_"&LEFT(ay,1)&"[indx]"), 0 ) ) -> 0.05
C19: 15 | D19: =INDEX( INDIRECT("Ucret_Turleri_"&yil&"_"&LEFT(ay,1)&"[" & D$4 & "]"), MATCH( secili_params_ucret_turleri[[#This Row],[indx]], INDIRECT("Ucret_Turleri_"&yil&"_"&LEFT(ay,1)&"[indx]"), 0 ) ) -> Yemek Kartı GV İstisnası | E19: =INDEX( INDIRECT("Ucret_Turleri_"&yil&"_"&LEFT(ay,1)&"[" & E$4 & "]"), MATCH( secili_params_ucret_turleri[[#This Row],[indx]], INDIRECT("Ucret_Turleri_"&yil&"_"&LEFT(ay,1)&"[indx]"), 0 ) ) -> 300 | F19: =INDEX( INDIRECT("Ucret_Turleri_"&yil&"_"&LEFT(ay,1)&"[" & F$4 & "]"), MATCH( secili_params_ucret_turleri[[#This Row],[indx]], INDIRECT("Ucret_Turleri_"&yil&"_"&LEFT(ay,1)&"[indx]"), 0 ) ) -> 10 | G19: =INDEX( INDIRECT("Ucret_Turleri_"&yil&"_"&LEFT(ay,1)&"[" & G$4 & "]"), MATCH( secili_params_ucret_turleri[[#This Row],[indx]], INDIRECT("Ucret_Turleri_"&yil&"_"&LEFT(ay,1)&"[indx]"), 0 ) ) -> 1.333333333 | H19: =_xlfn.LET( _xlpm.OncekiYil,IF(LEFT(ay,1)="1",yil-1,yil), _xlpm.OncekiDonem,IF(LEFT(ay,1)="1",2,1), _xlpm.Tablo,"Ucret_Turleri_"&_xlpm.OncekiYil&"_"&_xlpm.OncekiDonem, INDEX( INDIRECT(_xlpm.Tablo&"["&E$4&"]"), MATCH( secili_params_ucret_turleri[[#This Row],[indx]], INDIRECT(_xlpm.Tablo&"[indx]"), 0 ) ) ) -> 300 | I19: =(secili_params_ucret_turleri[[#This Row],[Aylık]]/secili_params_ucret_turleri[[#This Row],[ÖNCEKİ DÖNEM]])-1 -> 0 | K19: 8 | L19: Damga Vergisi Oranı | O19: =INDEX( INDIRECT("Isveren_prim_oranlari_normal_"&yil&"_"&LEFT(ay,1)&"[" & O$11 & "]"), MATCH( secili_params_isveren_prim_oranlari_normal[[#This Row],[indx]], INDIRECT("Isveren_prim_oranlari_normal_"&yil&"_"&LEFT(ay,1)&"[indx]"), 0 ) ) -> 0.00759
C20: 16 | D20: =INDEX( INDIRECT("Ucret_Turleri_"&yil&"_"&LEFT(ay,1)&"[" & D$4 & "]"), MATCH( secili_params_ucret_turleri[[#This Row],[indx]], INDIRECT("Ucret_Turleri_"&yil&"_"&LEFT(ay,1)&"[indx]"), 0 ) ) -> Nakit Yemek Parası GV İstisnası | E20: =INDEX( INDIRECT("Ucret_Turleri_"&yil&"_"&LEFT(ay,1)&"[" & E$4 & "]"), MATCH( secili_params_ucret_turleri[[#This Row],[indx]], INDIRECT("Ucret_Turleri_"&yil&"_"&LEFT(ay,1)&"[indx]"), 0 ) ) -> 300 | F20: =INDEX( INDIRECT("Ucret_Turleri_"&yil&"_"&LEFT(ay,1)&"[" & F$4 & "]"), MATCH( secili_params_ucret_turleri[[#This Row],[indx]], INDIRECT("Ucret_Turleri_"&yil&"_"&LEFT(ay,1)&"[indx]"), 0 ) ) -> 10 | G20: =INDEX( INDIRECT("Ucret_Turleri_"&yil&"_"&LEFT(ay,1)&"[" & G$4 & "]"), MATCH( secili_params_ucret_turleri[[#This Row],[indx]], INDIRECT("Ucret_Turleri_"&yil&"_"&LEFT(ay,1)&"[indx]"), 0 ) ) -> 1.333333333 | H20: =_xlfn.LET( _xlpm.OncekiYil,IF(LEFT(ay,1)="1",yil-1,yil), _xlpm.OncekiDonem,IF(LEFT(ay,1)="1",2,1), _xlpm.Tablo,"Ucret_Turleri_"&_xlpm.OncekiYil&"_"&_xlpm.OncekiDonem, INDEX( INDIRECT(_xlpm.Tablo&"["&E$4&"]"), MATCH( secili_params_ucret_turleri[[#This Row],[indx]], INDIRECT(_xlpm.Tablo&"[indx]"), 0 ) ) ) -> 300 | I20: =(secili_params_ucret_turleri[[#This Row],[Aylık]]/secili_params_ucret_turleri[[#This Row],[ÖNCEKİ DÖNEM]])-1 -> 0
C21: 17 | D21: =INDEX( INDIRECT("Ucret_Turleri_"&yil&"_"&LEFT(ay,1)&"[" & D$4 & "]"), MATCH( secili_params_ucret_turleri[[#This Row],[indx]], INDIRECT("Ucret_Turleri_"&yil&"_"&LEFT(ay,1)&"[indx]"), 0 ) ) -> Nakit Yemek Parası DV İstisnası | E21: =INDEX( INDIRECT("Ucret_Turleri_"&yil&"_"&LEFT(ay,1)&"[" & E$4 & "]"), MATCH( secili_params_ucret_turleri[[#This Row],[indx]], INDIRECT("Ucret_Turleri_"&yil&"_"&LEFT(ay,1)&"[indx]"), 0 ) ) -> 300 | F21: =INDEX( INDIRECT("Ucret_Turleri_"&yil&"_"&LEFT(ay,1)&"[" & F$4 & "]"), MATCH( secili_params_ucret_turleri[[#This Row],[indx]], INDIRECT("Ucret_Turleri_"&yil&"_"&LEFT(ay,1)&"[indx]"), 0 ) ) -> 10 | G21: =INDEX( INDIRECT("Ucret_Turleri_"&yil&"_"&LEFT(ay,1)&"[" & G$4 & "]"), MATCH( secili_params_ucret_turleri[[#This Row],[indx]], INDIRECT("Ucret_Turleri_"&yil&"_"&LEFT(ay,1)&"[indx]"), 0 ) ) -> 1.333333333 | H21: =_xlfn.LET( _xlpm.OncekiYil,IF(LEFT(ay,1)="1",yil-1,yil), _xlpm.OncekiDonem,IF(LEFT(ay,1)="1",2,1), _xlpm.Tablo,"Ucret_Turleri_"&_xlpm.OncekiYil&"_"&_xlpm.OncekiDonem, INDEX( INDIRECT(_xlpm.Tablo&"["&E$4&"]"), MATCH( secili_params_ucret_turleri[[#This Row],[indx]], INDIRECT(_xlpm.Tablo&"[indx]"), 0 ) ) ) -> 300 | I21: =(secili_params_ucret_turleri[[#This Row],[Aylık]]/secili_params_ucret_turleri[[#This Row],[ÖNCEKİ DÖNEM]])-1 -> 0 | K21: indx | L21: SGDP Oranı | M21: İşveren Payı | N21: Çalışan Payı | O21: Toplam
C22: 18 | D22: =INDEX( INDIRECT("Ucret_Turleri_"&yil&"_"&LEFT(ay,1)&"[" & D$4 & "]"), MATCH( secili_params_ucret_turleri[[#This Row],[indx]], INDIRECT("Ucret_Turleri_"&yil&"_"&LEFT(ay,1)&"[indx]"), 0 ) ) -> Yol/Ulaşım Kartı GV İstisnası | E22: =INDEX( INDIRECT("Ucret_Turleri_"&yil&"_"&LEFT(ay,1)&"[" & E$4 & "]"), MATCH( secili_params_ucret_turleri[[#This Row],[indx]], INDIRECT("Ucret_Turleri_"&yil&"_"&LEFT(ay,1)&"[indx]"), 0 ) ) -> 158 | F22: =INDEX( INDIRECT("Ucret_Turleri_"&yil&"_"&LEFT(ay,1)&"[" & F$4 & "]"), MATCH( secili_params_ucret_turleri[[#This Row],[indx]], INDIRECT("Ucret_Turleri_"&yil&"_"&LEFT(ay,1)&"[indx]"), 0 ) ) -> 5.266666667 | G22: =INDEX( INDIRECT("Ucret_Turleri_"&yil&"_"&LEFT(ay,1)&"[" & G$4 & "]"), MATCH( secili_params_ucret_turleri[[#This Row],[indx]], INDIRECT("Ucret_Turleri_"&yil&"_"&LEFT(ay,1)&"[indx]"), 0 ) ) -> 0.7022222222 | H22: =_xlfn.LET( _xlpm.OncekiYil,IF(LEFT(ay,1)="1",yil-1,yil), _xlpm.OncekiDonem,IF(LEFT(ay,1)="1",2,1), _xlpm.Tablo,"Ucret_Turleri_"&_xlpm.OncekiYil&"_"&_xlpm.OncekiDonem, INDEX( INDIRECT(_xlpm.Tablo&"["&E$4&"]"), MATCH( secili_params_ucret_turleri[[#This Row],[indx]], INDIRECT(_xlpm.Tablo&"[indx]"), 0 ) ) ) -> 158 | I22: =(secili_params_ucret_turleri[[#This Row],[Aylık]]/secili_params_ucret_turleri[[#This Row],[ÖNCEKİ DÖNEM]])-1 -> 0 | K22: 1 | L22: =INDEX( INDIRECT("Isveren_prim_oranlari_emekli_"&yil&"_"&LEFT(ay,1)&"[" & L$21 & "]"), MATCH( secili_params_isveren_prim_oranlari_emekli[[#This Row],[indx]], INDIRECT("Isveren_prim_oranlari_emekli_"&yil&"_"&LEFT(ay,1)&"[indx]"), 0 ) ) -> Emekli Çalışan | M22: =INDEX( INDIRECT("Isveren_prim_oranlari_emekli_"&yil&"_"&LEFT(ay,1)&"[" & M$21 & "]"), MATCH( secili_params_isveren_prim_oranlari_emekli[[#This Row],[indx]], INDIRECT("Isveren_prim_oranlari_emekli_"&yil&"_"&LEFT(ay,1)&"[indx]"), 0 ) ) -> 0.2475 | N22: =INDEX( INDIRECT("Isveren_prim_oranlari_emekli_"&yil&"_"&LEFT(ay,1)&"[" & N$21 & "]"), MATCH( secili_params_isveren_prim_oranlari_emekli[[#This Row],[indx]], INDIRECT("Isveren_prim_oranlari_emekli_"&yil&"_"&LEFT(ay,1)&"[indx]"), 0 ) ) -> 0.075 | O22: =INDEX( INDIRECT("Isveren_prim_oranlari_emekli_"&yil&"_"&LEFT(ay,1)&"[" & O$21 & "]"), MATCH( secili_params_isveren_prim_oranlari_emekli[[#This Row],[indx]], INDIRECT("Isveren_prim_oranlari_emekli_"&yil&"_"&LEFT(ay,1)&"[indx]"), 0 ) ) -> 0.3225
C23: 19 | D23: =INDEX( INDIRECT("Ucret_Turleri_"&yil&"_"&LEFT(ay,1)&"[" & D$4 & "]"), MATCH( secili_params_ucret_turleri[[#This Row],[indx]], INDIRECT("Ucret_Turleri_"&yil&"_"&LEFT(ay,1)&"[indx]"), 0 ) ) -> Çocuk Yardımı GV İstisnası – 0-6 yaş | E23: =INDEX( INDIRECT("Ucret_Turleri_"&yil&"_"&LEFT(ay,1)&"[" & E$4 & "]"), MATCH( secili_params_ucret_turleri[[#This Row],[indx]], INDIRECT("Ucret_Turleri_"&yil&"_"&LEFT(ay,1)&"[indx]"), 0 ) ) -> 787.76 | F23: =INDEX( INDIRECT("Ucret_Turleri_"&yil&"_"&LEFT(ay,1)&"[" & F$4 & "]"), MATCH( secili_params_ucret_turleri[[#This Row],[indx]], INDIRECT("Ucret_Turleri_"&yil&"_"&LEFT(ay,1)&"[indx]"), 0 ) ) -> 26.25866667 | G23: =INDEX( INDIRECT("Ucret_Turleri_"&yil&"_"&LEFT(ay,1)&"[" & G$4 & "]"), MATCH( secili_params_ucret_turleri[[#This Row],[indx]], INDIRECT("Ucret_Turleri_"&yil&"_"&LEFT(ay,1)&"[indx]"), 0 ) ) -> 3.501155556 | H23: =_xlfn.LET( _xlpm.OncekiYil,IF(LEFT(ay,1)="1",yil-1,yil), _xlpm.OncekiDonem,IF(LEFT(ay,1)="1",2,1), _xlpm.Tablo,"Ucret_Turleri_"&_xlpm.OncekiYil&"_"&_xlpm.OncekiDonem, INDEX( INDIRECT(_xlpm.Tablo&"["&E$4&"]"), MATCH( secili_params_ucret_turleri[[#This Row],[indx]], INDIRECT(_xlpm.Tablo&"[indx]"), 0 ) ) ) -> 787.76 | I23: =(secili_params_ucret_turleri[[#This Row],[Aylık]]/secili_params_ucret_turleri[[#This Row],[ÖNCEKİ DÖNEM]])-1 -> 0
C24: 20 | D24: =INDEX( INDIRECT("Ucret_Turleri_"&yil&"_"&LEFT(ay,1)&"[" & D$4 & "]"), MATCH( secili_params_ucret_turleri[[#This Row],[indx]], INDIRECT("Ucret_Turleri_"&yil&"_"&LEFT(ay,1)&"[indx]"), 0 ) ) -> Çocuk Yardımı GV İstisnası – 6 yaş üzeri | E24: =INDEX( INDIRECT("Ucret_Turleri_"&yil&"_"&LEFT(ay,1)&"[" & E$4 & "]"), MATCH( secili_params_ucret_turleri[[#This Row],[indx]], INDIRECT("Ucret_Turleri_"&yil&"_"&LEFT(ay,1)&"[indx]"), 0 ) ) -> 393.88 | F24: =INDEX( INDIRECT("Ucret_Turleri_"&yil&"_"&LEFT(ay,1)&"[" & F$4 & "]"), MATCH( secili_params_ucret_turleri[[#This Row],[indx]], INDIRECT("Ucret_Turleri_"&yil&"_"&LEFT(ay,1)&"[indx]"), 0 ) ) -> 13.12933333 | G24: =INDEX( INDIRECT("Ucret_Turleri_"&yil&"_"&LEFT(ay,1)&"[" & G$4 & "]"), MATCH( secili_params_ucret_turleri[[#This Row],[indx]], INDIRECT("Ucret_Turleri_"&yil&"_"&LEFT(ay,1)&"[indx]"), 0 ) ) -> 1.750577778 | H24: =_xlfn.LET( _xlpm.OncekiYil,IF(LEFT(ay,1)="1",yil-1,yil), _xlpm.OncekiDonem,IF(LEFT(ay,1)="1",2,1), _xlpm.Tablo,"Ucret_Turleri_"&_xlpm.OncekiYil&"_"&_xlpm.OncekiDonem, INDEX( INDIRECT(_xlpm.Tablo&"["&E$4&"]"), MATCH( secili_params_ucret_turleri[[#This Row],[indx]], INDIRECT(_xlpm.Tablo&"[indx]"), 0 ) ) ) -> 393.88 | I24: =(secili_params_ucret_turleri[[#This Row],[Aylık]]/secili_params_ucret_turleri[[#This Row],[ÖNCEKİ DÖNEM]])-1 -> 0
C25: 21 | D25: =INDEX( INDIRECT("Ucret_Turleri_"&yil&"_"&LEFT(ay,1)&"[" & D$4 & "]"), MATCH( secili_params_ucret_turleri[[#This Row],[indx]], INDIRECT("Ucret_Turleri_"&yil&"_"&LEFT(ay,1)&"[indx]"), 0 ) ) -> Emzirme Ödeneği | E25: =INDEX( INDIRECT("Ucret_Turleri_"&yil&"_"&LEFT(ay,1)&"[" & E$4 & "]"), MATCH( secili_params_ucret_turleri[[#This Row],[indx]], INDIRECT("Ucret_Turleri_"&yil&"_"&LEFT(ay,1)&"[indx]"), 0 ) ) -> 1621 | F25: =INDEX( INDIRECT("Ucret_Turleri_"&yil&"_"&LEFT(ay,1)&"[" & F$4 & "]"), MATCH( secili_params_ucret_turleri[[#This Row],[indx]], INDIRECT("Ucret_Turleri_"&yil&"_"&LEFT(ay,1)&"[indx]"), 0 ) ) -> 54.03333333 | G25: =INDEX( INDIRECT("Ucret_Turleri_"&yil&"_"&LEFT(ay,1)&"[" & G$4 & "]"), MATCH( secili_params_ucret_turleri[[#This Row],[indx]], INDIRECT("Ucret_Turleri_"&yil&"_"&LEFT(ay,1)&"[indx]"), 0 ) ) -> 7.204444444 | H25: =_xlfn.LET( _xlpm.OncekiYil,IF(LEFT(ay,1)="1",yil-1,yil), _xlpm.OncekiDonem,IF(LEFT(ay,1)="1",2,1), _xlpm.Tablo,"Ucret_Turleri_"&_xlpm.OncekiYil&"_"&_xlpm.OncekiDonem, INDEX( INDIRECT(_xlpm.Tablo&"["&E$4&"]"), MATCH( secili_params_ucret_turleri[[#This Row],[indx]], INDIRECT(_xlpm.Tablo&"[indx]"), 0 ) ) ) -> 1621 | I25: =(secili_params_ucret_turleri[[#This Row],[Aylık]]/secili_params_ucret_turleri[[#This Row],[ÖNCEKİ DÖNEM]])-1 -> 0
C26: 22 | D26: =INDEX( INDIRECT("Ucret_Turleri_"&yil&"_"&LEFT(ay,1)&"[" & D$4 & "]"), MATCH( secili_params_ucret_turleri[[#This Row],[indx]], INDIRECT("Ucret_Turleri_"&yil&"_"&LEFT(ay,1)&"[indx]"), 0 ) ) -> İşsizlik Ödeneği – Alt Limit | E26: =INDEX( INDIRECT("Ucret_Turleri_"&yil&"_"&LEFT(ay,1)&"[" & E$4 & "]"), MATCH( secili_params_ucret_turleri[[#This Row],[indx]], INDIRECT("Ucret_Turleri_"&yil&"_"&LEFT(ay,1)&"[indx]"), 0 ) ) -> 13111.79 | F26: =INDEX( INDIRECT("Ucret_Turleri_"&yil&"_"&LEFT(ay,1)&"[" & F$4 & "]"), MATCH( secili_params_ucret_turleri[[#This Row],[indx]], INDIRECT("Ucret_Turleri_"&yil&"_"&LEFT(ay,1)&"[indx]"), 0 ) ) -> 437.0596667 | G26: =INDEX( INDIRECT("Ucret_Turleri_"&yil&"_"&LEFT(ay,1)&"[" & G$4 & "]"), MATCH( secili_params_ucret_turleri[[#This Row],[indx]], INDIRECT("Ucret_Turleri_"&yil&"_"&LEFT(ay,1)&"[indx]"), 0 ) ) -> 58.27462222 | H26: =_xlfn.LET( _xlpm.OncekiYil,IF(LEFT(ay,1)="1",yil-1,yil), _xlpm.OncekiDonem,IF(LEFT(ay,1)="1",2,1), _xlpm.Tablo,"Ucret_Turleri_"&_xlpm.OncekiYil&"_"&_xlpm.OncekiDonem, INDEX( INDIRECT(_xlpm.Tablo&"["&E$4&"]"), MATCH( secili_params_ucret_turleri[[#This Row],[indx]], INDIRECT(_xlpm.Tablo&"[indx]"), 0 ) ) ) -> 13111.79 | I26: =(secili_params_ucret_turleri[[#This Row],[Aylık]]/secili_params_ucret_turleri[[#This Row],[ÖNCEKİ DÖNEM]])-1 -> 0
C27: 23 | D27: =INDEX( INDIRECT("Ucret_Turleri_"&yil&"_"&LEFT(ay,1)&"[" & D$4 & "]"), MATCH( secili_params_ucret_turleri[[#This Row],[indx]], INDIRECT("Ucret_Turleri_"&yil&"_"&LEFT(ay,1)&"[indx]"), 0 ) ) -> İşsizlik Ödeneği – Üst Limit | E27: =INDEX( INDIRECT("Ucret_Turleri_"&yil&"_"&LEFT(ay,1)&"[" & E$4 & "]"), MATCH( secili_params_ucret_turleri[[#This Row],[indx]], INDIRECT("Ucret_Turleri_"&yil&"_"&LEFT(ay,1)&"[indx]"), 0 ) ) -> 26223.44 | F27: =INDEX( INDIRECT("Ucret_Turleri_"&yil&"_"&LEFT(ay,1)&"[" & F$4 & "]"), MATCH( secili_params_ucret_turleri[[#This Row],[indx]], INDIRECT("Ucret_Turleri_"&yil&"_"&LEFT(ay,1)&"[indx]"), 0 ) ) -> 874.1146667 | G27: =INDEX( INDIRECT("Ucret_Turleri_"&yil&"_"&LEFT(ay,1)&"[" & G$4 & "]"), MATCH( secili_params_ucret_turleri[[#This Row],[indx]], INDIRECT("Ucret_Turleri_"&yil&"_"&LEFT(ay,1)&"[indx]"), 0 ) ) -> 116.5486222 | H27: =_xlfn.LET( _xlpm.OncekiYil,IF(LEFT(ay,1)="1",yil-1,yil), _xlpm.OncekiDonem,IF(LEFT(ay,1)="1",2,1), _xlpm.Tablo,"Ucret_Turleri_"&_xlpm.OncekiYil&"_"&_xlpm.OncekiDonem, INDEX( INDIRECT(_xlpm.Tablo&"["&E$4&"]"), MATCH( secili_params_ucret_turleri[[#This Row],[indx]], INDIRECT(_xlpm.Tablo&"[indx]"), 0 ) ) ) -> 26223.44 | I27: =(secili_params_ucret_turleri[[#This Row],[Aylık]]/secili_params_ucret_turleri[[#This Row],[ÖNCEKİ DÖNEM]])-1 -> 0
C28: 24 | D28: =INDEX( INDIRECT("Ucret_Turleri_"&yil&"_"&LEFT(ay,1)&"[" & D$4 & "]"), MATCH( secili_params_ucret_turleri[[#This Row],[indx]], INDIRECT("Ucret_Turleri_"&yil&"_"&LEFT(ay,1)&"[indx]"), 0 ) ) -> İş Göremezlik Ödeneği Ayakta Tedavi – Alt Limit | E28: =INDEX( INDIRECT("Ucret_Turleri_"&yil&"_"&LEFT(ay,1)&"[" & E$4 & "]"), MATCH( secili_params_ucret_turleri[[#This Row],[indx]], INDIRECT("Ucret_Turleri_"&yil&"_"&LEFT(ay,1)&"[indx]"), 0 ) ) -> 0 | F28: =INDEX( INDIRECT("Ucret_Turleri_"&yil&"_"&LEFT(ay,1)&"[" & F$4 & "]"), MATCH( secili_params_ucret_turleri[[#This Row],[indx]], INDIRECT("Ucret_Turleri_"&yil&"_"&LEFT(ay,1)&"[indx]"), 0 ) ) -> 0 | G28: =INDEX( INDIRECT("Ucret_Turleri_"&yil&"_"&LEFT(ay,1)&"[" & G$4 & "]"), MATCH( secili_params_ucret_turleri[[#This Row],[indx]], INDIRECT("Ucret_Turleri_"&yil&"_"&LEFT(ay,1)&"[indx]"), 0 ) ) -> 0 | H28: =_xlfn.LET( _xlpm.OncekiYil,IF(LEFT(ay,1)="1",yil-1,yil), _xlpm.OncekiDonem,IF(LEFT(ay,1)="1",2,1), _xlpm.Tablo,"Ucret_Turleri_"&_xlpm.OncekiYil&"_"&_xlpm.OncekiDonem, INDEX( INDIRECT(_xlpm.Tablo&"["&E$4&"]"), MATCH( secili_params_ucret_turleri[[#This Row],[indx]], INDIRECT(_xlpm.Tablo&"[indx]"), 0 ) ) ) -> 0 | I28: =(secili_params_ucret_turleri[[#This Row],[Aylık]]/secili_params_ucret_turleri[[#This Row],[ÖNCEKİ DÖNEM]])-1 -> 
C29: 25 | D29: =INDEX( INDIRECT("Ucret_Turleri_"&yil&"_"&LEFT(ay,1)&"[" & D$4 & "]"), MATCH( secili_params_ucret_turleri[[#This Row],[indx]], INDIRECT("Ucret_Turleri_"&yil&"_"&LEFT(ay,1)&"[indx]"), 0 ) ) -> İş Göremezlik Ödeneği Ayakta Tedavi – Üst Limit | E29: =INDEX( INDIRECT("Ucret_Turleri_"&yil&"_"&LEFT(ay,1)&"[" & E$4 & "]"), MATCH( secili_params_ucret_turleri[[#This Row],[indx]], INDIRECT("Ucret_Turleri_"&yil&"_"&LEFT(ay,1)&"[indx]"), 0 ) ) -> 0 | F29: =INDEX( INDIRECT("Ucret_Turleri_"&yil&"_"&LEFT(ay,1)&"[" & F$4 & "]"), MATCH( secili_params_ucret_turleri[[#This Row],[indx]], INDIRECT("Ucret_Turleri_"&yil&"_"&LEFT(ay,1)&"[indx]"), 0 ) ) -> 0 | G29: =INDEX( INDIRECT("Ucret_Turleri_"&yil&"_"&LEFT(ay,1)&"[" & G$4 & "]"), MATCH( secili_params_ucret_turleri[[#This Row],[indx]], INDIRECT("Ucret_Turleri_"&yil&"_"&LEFT(ay,1)&"[indx]"), 0 ) ) -> 0 | H29: =_xlfn.LET( _xlpm.OncekiYil,IF(LEFT(ay,1)="1",yil-1,yil), _xlpm.OncekiDonem,IF(LEFT(ay,1)="1",2,1), _xlpm.Tablo,"Ucret_Turleri_"&_xlpm.OncekiYil&"_"&_xlpm.OncekiDonem, INDEX( INDIRECT(_xlpm.Tablo&"["&E$4&"]"), MATCH( secili_params_ucret_turleri[[#This Row],[indx]], INDIRECT(_xlpm.Tablo&"[indx]"), 0 ) ) ) -> 0 | I29: =(secili_params_ucret_turleri[[#This Row],[Aylık]]/secili_params_ucret_turleri[[#This Row],[ÖNCEKİ DÖNEM]])-1 -> 
C30: 26 | D30: =INDEX( INDIRECT("Ucret_Turleri_"&yil&"_"&LEFT(ay,1)&"[" & D$4 & "]"), MATCH( secili_params_ucret_turleri[[#This Row],[indx]], INDIRECT("Ucret_Turleri_"&yil&"_"&LEFT(ay,1)&"[indx]"), 0 ) ) -> İş Göremezlik Ödeneği Yatarak Tedavi – Alt Limit | E30: =INDEX( INDIRECT("Ucret_Turleri_"&yil&"_"&LEFT(ay,1)&"[" & E$4 & "]"), MATCH( secili_params_ucret_turleri[[#This Row],[indx]], INDIRECT("Ucret_Turleri_"&yil&"_"&LEFT(ay,1)&"[indx]"), 0 ) ) -> 0 | F30: =INDEX( INDIRECT("Ucret_Turleri_"&yil&"_"&LEFT(ay,1)&"[" & F$4 & "]"), MATCH( secili_params_ucret_turleri[[#This Row],[indx]], INDIRECT("Ucret_Turleri_"&yil&"_"&LEFT(ay,1)&"[indx]"), 0 ) ) -> 0 | G30: =INDEX( INDIRECT("Ucret_Turleri_"&yil&"_"&LEFT(ay,1)&"[" & G$4 & "]"), MATCH( secili_params_ucret_turleri[[#This Row],[indx]], INDIRECT("Ucret_Turleri_"&yil&"_"&LEFT(ay,1)&"[indx]"), 0 ) ) -> 0 | H30: =_xlfn.LET( _xlpm.OncekiYil,IF(LEFT(ay,1)="1",yil-1,yil), _xlpm.OncekiDonem,IF(LEFT(ay,1)="1",2,1), _xlpm.Tablo,"Ucret_Turleri_"&_xlpm.OncekiYil&"_"&_xlpm.OncekiDonem, INDEX( INDIRECT(_xlpm.Tablo&"["&E$4&"]"), MATCH( secili_params_ucret_turleri[[#This Row],[indx]], INDIRECT(_xlpm.Tablo&"[indx]"), 0 ) ) ) -> 0 | I30: =(secili_params_ucret_turleri[[#This Row],[Aylık]]/secili_params_ucret_turleri[[#This Row],[ÖNCEKİ DÖNEM]])-1 -> 
C31: 27 | D31: =INDEX( INDIRECT("Ucret_Turleri_"&yil&"_"&LEFT(ay,1)&"[" & D$4 & "]"), MATCH( secili_params_ucret_turleri[[#This Row],[indx]], INDIRECT("Ucret_Turleri_"&yil&"_"&LEFT(ay,1)&"[indx]"), 0 ) ) -> İş Göremezlik Ödeneği Yatarak Tedavi – Üst Limit | E31: =INDEX( INDIRECT("Ucret_Turleri_"&yil&"_"&LEFT(ay,1)&"[" & E$4 & "]"), MATCH( secili_params_ucret_turleri[[#This Row],[indx]], INDIRECT("Ucret_Turleri_"&yil&"_"&LEFT(ay,1)&"[indx]"), 0 ) ) -> 0 | F31: =INDEX( INDIRECT("Ucret_Turleri_"&yil&"_"&LEFT(ay,1)&"[" & F$4 & "]"), MATCH( secili_params_ucret_turleri[[#This Row],[indx]], INDIRECT("Ucret_Turleri_"&yil&"_"&LEFT(ay,1)&"[indx]"), 0 ) ) -> 0 | G31: =INDEX( INDIRECT("Ucret_Turleri_"&yil&"_"&LEFT(ay,1)&"[" & G$4 & "]"), MATCH( secili_params_ucret_turleri[[#This Row],[indx]], INDIRECT("Ucret_Turleri_"&yil&"_"&LEFT(ay,1)&"[indx]"), 0 ) ) -> 0 | H31: =_xlfn.LET( _xlpm.OncekiYil,IF(LEFT(ay,1)="1",yil-1,yil), _xlpm.OncekiDonem,IF(LEFT(ay,1)="1",2,1), _xlpm.Tablo,"Ucret_Turleri_"&_xlpm.OncekiYil&"_"&_xlpm.OncekiDonem, INDEX( INDIRECT(_xlpm.Tablo&"["&E$4&"]"), MATCH( secili_params_ucret_turleri[[#This Row],[indx]], INDIRECT(_xlpm.Tablo&"[indx]"), 0 ) ) ) -> 0 | I31: =(secili_params_ucret_turleri[[#This Row],[Aylık]]/secili_params_ucret_turleri[[#This Row],[ÖNCEKİ DÖNEM]])-1 -> 
C32: 28 | D32: =INDEX( INDIRECT("Ucret_Turleri_"&yil&"_"&LEFT(ay,1)&"[" & D$4 & "]"), MATCH( secili_params_ucret_turleri[[#This Row],[indx]], INDIRECT("Ucret_Turleri_"&yil&"_"&LEFT(ay,1)&"[indx]"), 0 ) ) -> Yarım Çalışma Ödeneği | E32: =INDEX( INDIRECT("Ucret_Turleri_"&yil&"_"&LEFT(ay,1)&"[" & E$4 & "]"), MATCH( secili_params_ucret_turleri[[#This Row],[indx]], INDIRECT("Ucret_Turleri_"&yil&"_"&LEFT(ay,1)&"[indx]"), 0 ) ) -> 0 | F32: =INDEX( INDIRECT("Ucret_Turleri_"&yil&"_"&LEFT(ay,1)&"[" & F$4 & "]"), MATCH( secili_params_ucret_turleri[[#This Row],[indx]], INDIRECT("Ucret_Turleri_"&yil&"_"&LEFT(ay,1)&"[indx]"), 0 ) ) -> 0 | G32: =INDEX( INDIRECT("Ucret_Turleri_"&yil&"_"&LEFT(ay,1)&"[" & G$4 & "]"), MATCH( secili_params_ucret_turleri[[#This Row],[indx]], INDIRECT("Ucret_Turleri_"&yil&"_"&LEFT(ay,1)&"[indx]"), 0 ) ) -> 0 | H32: =_xlfn.LET( _xlpm.OncekiYil,IF(LEFT(ay,1)="1",yil-1,yil), _xlpm.OncekiDonem,IF(LEFT(ay,1)="1",2,1), _xlpm.Tablo,"Ucret_Turleri_"&_xlpm.OncekiYil&"_"&_xlpm.OncekiDonem, INDEX( INDIRECT(_xlpm.Tablo&"["&E$4&"]"), MATCH( secili_params_ucret_turleri[[#This Row],[indx]], INDIRECT(_xlpm.Tablo&"[indx]"), 0 ) ) ) -> 0 | I32: =(secili_params_ucret_turleri[[#This Row],[Aylık]]/secili_params_ucret_turleri[[#This Row],[ÖNCEKİ DÖNEM]])-1 -> 
C33: 29 | D33: =INDEX( INDIRECT("Ucret_Turleri_"&yil&"_"&LEFT(ay,1)&"[" & D$4 & "]"), MATCH( secili_params_ucret_turleri[[#This Row],[indx]], INDIRECT("Ucret_Turleri_"&yil&"_"&LEFT(ay,1)&"[indx]"), 0 ) ) ->  | E33: =INDEX( INDIRECT("Ucret_Turleri_"&yil&"_"&LEFT(ay,1)&"[" & E$4 & "]"), MATCH( secili_params_ucret_turleri[[#This Row],[indx]], INDIRECT("Ucret_Turleri_"&yil&"_"&LEFT(ay,1)&"[indx]"), 0 ) ) ->  | H33: =_xlfn.LET( _xlpm.OncekiYil,IF(LEFT(ay,1)="1",yil-1,yil), _xlpm.OncekiDonem,IF(LEFT(ay,1)="1",2,1), _xlpm.Tablo,"Ucret_Turleri_"&_xlpm.OncekiYil&"_"&_xlpm.OncekiDonem, INDEX( INDIRECT(_xlpm.Tablo&"["&E$4&"]"), MATCH( secili_params_ucret_turleri[[#This Row],[indx]], INDIRECT(_xlpm.Tablo&"[indx]"), 0 ) ) ) ->  | I33: =(secili_params_ucret_turleri[[#This Row],[Aylık]]/secili_params_ucret_turleri[[#This Row],[ÖNCEKİ DÖNEM]])-1 -> 
C34: 30 | D34: =INDEX( INDIRECT("Ucret_Turleri_"&yil&"_"&LEFT(ay,1)&"[" & D$4 & "]"), MATCH( secili_params_ucret_turleri[[#This Row],[indx]], INDIRECT("Ucret_Turleri_"&yil&"_"&LEFT(ay,1)&"[indx]"), 0 ) ) ->  | E34: =INDEX( INDIRECT("Ucret_Turleri_"&yil&"_"&LEFT(ay,1)&"[" & E$4 & "]"), MATCH( secili_params_ucret_turleri[[#This Row],[indx]], INDIRECT("Ucret_Turleri_"&yil&"_"&LEFT(ay,1)&"[indx]"), 0 ) ) ->  | H34: =_xlfn.LET( _xlpm.OncekiYil,IF(LEFT(ay,1)="1",yil-1,yil), _xlpm.OncekiDonem,IF(LEFT(ay,1)="1",2,1), _xlpm.Tablo,"Ucret_Turleri_"&_xlpm.OncekiYil&"_"&_xlpm.OncekiDonem, INDEX( INDIRECT(_xlpm.Tablo&"["&E$4&"]"), MATCH( secili_params_ucret_turleri[[#This Row],[indx]], INDIRECT(_xlpm.Tablo&"[indx]"), 0 ) ) ) ->  | I34: =(secili_params_ucret_turleri[[#This Row],[Aylık]]/secili_params_ucret_turleri[[#This Row],[ÖNCEKİ DÖNEM]])-1 -> 
C35: 31 | D35: =INDEX( INDIRECT("Ucret_Turleri_"&yil&"_"&LEFT(ay,1)&"[" & D$4 & "]"), MATCH( secili_params_ucret_turleri[[#This Row],[indx]], INDIRECT("Ucret_Turleri_"&yil&"_"&LEFT(ay,1)&"[indx]"), 0 ) ) ->  | E35: =INDEX( INDIRECT("Ucret_Turleri_"&yil&"_"&LEFT(ay,1)&"[" & E$4 & "]"), MATCH( secili_params_ucret_turleri[[#This Row],[indx]], INDIRECT("Ucret_Turleri_"&yil&"_"&LEFT(ay,1)&"[indx]"), 0 ) ) ->  | H35: =_xlfn.LET( _xlpm.OncekiYil,IF(LEFT(ay,1)="1",yil-1,yil), _xlpm.OncekiDonem,IF(LEFT(ay,1)="1",2,1), _xlpm.Tablo,"Ucret_Turleri_"&_xlpm.OncekiYil&"_"&_xlpm.OncekiDonem, INDEX( INDIRECT(_xlpm.Tablo&"["&E$4&"]"), MATCH( secili_params_ucret_turleri[[#This Row],[indx]], INDIRECT(_xlpm.Tablo&"[indx]"), 0 ) ) ) ->  | I35: =(secili_params_ucret_turleri[[#This Row],[Aylık]]/secili_params_ucret_turleri[[#This Row],[ÖNCEKİ DÖNEM]])-1 -> 
C36: 32 | D36: =INDEX( INDIRECT("Ucret_Turleri_"&yil&"_"&LEFT(ay,1)&"[" & D$4 & "]"), MATCH( secili_params_ucret_turleri[[#This Row],[indx]], INDIRECT("Ucret_Turleri_"&yil&"_"&LEFT(ay,1)&"[indx]"), 0 ) ) ->  | E36: =INDEX( INDIRECT("Ucret_Turleri_"&yil&"_"&LEFT(ay,1)&"[" & E$4 & "]"), MATCH( secili_params_ucret_turleri[[#This Row],[indx]], INDIRECT("Ucret_Turleri_"&yil&"_"&LEFT(ay,1)&"[indx]"), 0 ) ) ->  | H36: =_xlfn.LET( _xlpm.OncekiYil,IF(LEFT(ay,1)="1",yil-1,yil), _xlpm.OncekiDonem,IF(LEFT(ay,1)="1",2,1), _xlpm.Tablo,"Ucret_Turleri_"&_xlpm.OncekiYil&"_"&_xlpm.OncekiDonem, INDEX( INDIRECT(_xlpm.Tablo&"["&E$4&"]"), MATCH( secili_params_ucret_turleri[[#This Row],[indx]], INDIRECT(_xlpm.Tablo&"[indx]"), 0 ) ) ) ->  | I36: =(secili_params_ucret_turleri[[#This Row],[Aylık]]/secili_params_ucret_turleri[[#This Row],[ÖNCEKİ DÖNEM]])-1 -> 
C37: 33 | D37: =INDEX( INDIRECT("Ucret_Turleri_"&yil&"_"&LEFT(ay,1)&"[" & D$4 & "]"), MATCH( secili_params_ucret_turleri[[#This Row],[indx]], INDIRECT("Ucret_Turleri_"&yil&"_"&LEFT(ay,1)&"[indx]"), 0 ) ) ->  | E37: =INDEX( INDIRECT("Ucret_Turleri_"&yil&"_"&LEFT(ay,1)&"[" & E$4 & "]"), MATCH( secili_params_ucret_turleri[[#This Row],[indx]], INDIRECT("Ucret_Turleri_"&yil&"_"&LEFT(ay,1)&"[indx]"), 0 ) ) ->  | H37: =_xlfn.LET( _xlpm.OncekiYil,IF(LEFT(ay,1)="1",yil-1,yil), _xlpm.OncekiDonem,IF(LEFT(ay,1)="1",2,1), _xlpm.Tablo,"Ucret_Turleri_"&_xlpm.OncekiYil&"_"&_xlpm.OncekiDonem, INDEX( INDIRECT(_xlpm.Tablo&"["&E$4&"]"), MATCH( secili_params_ucret_turleri[[#This Row],[indx]], INDIRECT(_xlpm.Tablo&"[indx]"), 0 ) ) ) ->  | I37: =(secili_params_ucret_turleri[[#This Row],[Aylık]]/secili_params_ucret_turleri[[#This Row],[ÖNCEKİ DÖNEM]])-1 -> 

Sheet asg_istisna (hidden)
D3: AYLAR | E3: GÜN | F3: BRÜT ÜCRET | G3: AYLIK GVM | H3: KGVM | I3: AÜ GV İSTİSNA | J3: AÜ DV İSTİSNA
D4: OCAK | E4: 30 | F4: =BRUT_ASGARI_1/30*asgari_ucrt_istisna[[#This Row],[GÜN]] -> 26005.5 | G4: =(GUNLUK_BRUT_ASGARI_1-(GUNLUK_BRUT_ASGARI_1*vergi_orani_1_1))*asgari_ucrt_istisna[[#This Row],[GÜN]] -> 22104.675 | H4: =asgari_ucrt_istisna[[#This Row],[AYLIK GVM]] -> 22104.675 | I4: =MAX((asgari_ucrt_istisna[[#This Row],[KGVM]]-vergi_dilimi_4_1)*0.05,0)+MAX((asgari_ucrt_istisna[[#This Row],[KGVM]]-vergi_dilimi_3_1)*0.08,0)+MAX((asgari_ucrt_istisna[[#This Row],[KGVM]]-vergi_dilimi_2_1)*0.07,0)+MAX((asgari_ucrt_istisna[[#This Row],[KGVM]]-vergi_dilimi_1_1)*0.05,0)+asgari_ucrt_istisna[[#This Row],[KGVM]]*0.15-(MAX((vergi_dilimi_0-vergi_dilimi_4_1)*0.05,0)+(MAX((vergi_dilimi_0-vergi_dilimi_3_1)*0.08,0)+MAX((vergi_dilimi_0-vergi_dilimi_2_1)*0.07,0)+MAX((vergi_dilimi_0-vergi_dilimi_1_1)*0.05,0)+vergi_dilimi_0*0.15)) -> 3315.70125 | J4: =asgari_ucrt_istisna[[#This Row],[BRÜT ÜCRET]]*damga_vergisi_orani -> 197.381745
D5: ŞUBAT | E5: 30 | F5: =BRUT_ASGARI_1/30*asgari_ucrt_istisna[[#This Row],[GÜN]] -> 26005.5 | G5: =(GUNLUK_BRUT_ASGARI_1-(GUNLUK_BRUT_ASGARI_1*vergi_orani_1_1))*asgari_ucrt_istisna[[#This Row],[GÜN]] -> 22104.675 | H5: =asgari_ucrt_istisna[[#This Row],[AYLIK GVM]]+H4 -> 44209.35 | I5: =MAX((H5-vergi_dilimi_4_1)*0.05,0)+MAX((H5-vergi_dilimi_3_1)*0.08,0)+MAX((H5-vergi_dilimi_2_1)*0.07,0)+MAX((H5-vergi_dilimi_1_1)*0.05,0)+H5*0.15-(MAX((H4-vergi_dilimi_4_1)*0.05,0)+(MAX((H4-vergi_dilimi_3_1)*0.08,0)+MAX((H4-vergi_dilimi_2_1)*0.07,0)+MAX((H4-vergi_dilimi_1_1)*0.05,0)+H4*0.15)) -> 3315.70125 | J5: =asgari_ucrt_istisna[[#This Row],[BRÜT ÜCRET]]*damga_vergisi_orani -> 197.381745
D6: MART | E6: 30 | F6: =BRUT_ASGARI_1/30*asgari_ucrt_istisna[[#This Row],[GÜN]] -> 26005.5 | G6: =(GUNLUK_BRUT_ASGARI_1-(GUNLUK_BRUT_ASGARI_1*vergi_orani_1_1))*asgari_ucrt_istisna[[#This Row],[GÜN]] -> 22104.675 | H6: =asgari_ucrt_istisna[[#This Row],[AYLIK GVM]]+H5 -> 66314.025 | I6: =MAX((H6-vergi_dilimi_4_1)*0.05,0)+MAX((H6-vergi_dilimi_3_1)*0.08,0)+MAX((H6-vergi_dilimi_2_1)*0.07,0)+MAX((H6-vergi_dilimi_1_1)*0.05,0)+H6*0.15-(MAX((H5-vergi_dilimi_4_1)*0.05,0)+(MAX((H5-vergi_dilimi_3_1)*0.08,0)+MAX((H5-vergi_dilimi_2_1)*0.07,0)+MAX((H5-vergi_dilimi_1_1)*0.05,0)+H5*0.15)) -> 3315.70125 | J6: =asgari_ucrt_istisna[[#This Row],[BRÜT ÜCRET]]*damga_vergisi_orani -> 197.381745
D7: NİSAN | E7: 30 | F7: =BRUT_ASGARI_1/30*asgari_ucrt_istisna[[#This Row],[GÜN]] -> 26005.5 | G7: =(GUNLUK_BRUT_ASGARI_1-(GUNLUK_BRUT_ASGARI_1*vergi_orani_1_1))*asgari_ucrt_istisna[[#This Row],[GÜN]] -> 22104.675 | H7: =asgari_ucrt_istisna[[#This Row],[AYLIK GVM]]+H6 -> 88418.7 | I7: =MAX((H7-vergi_dilimi_4_1)*0.05,0)+MAX((H7-vergi_dilimi_3_1)*0.08,0)+MAX((H7-vergi_dilimi_2_1)*0.07,0)+MAX((H7-vergi_dilimi_1_1)*0.05,0)+H7*0.15-(MAX((H6-vergi_dilimi_4_1)*0.05,0)+(MAX((H6-vergi_dilimi_3_1)*0.08,0)+MAX((H6-vergi_dilimi_2_1)*0.07,0)+MAX((H6-vergi_dilimi_1_1)*0.05,0)+H6*0.15)) -> 3315.70125 | J7: =asgari_ucrt_istisna[[#This Row],[BRÜT ÜCRET]]*damga_vergisi_orani -> 197.381745
D8: MAYIS | E8: 30 | F8: =BRUT_ASGARI_1/30*asgari_ucrt_istisna[[#This Row],[GÜN]] -> 26005.5 | G8: =(GUNLUK_BRUT_ASGARI_1-(GUNLUK_BRUT_ASGARI_1*vergi_orani_1_1))*asgari_ucrt_istisna[[#This Row],[GÜN]] -> 22104.675 | H8: =asgari_ucrt_istisna[[#This Row],[AYLIK GVM]]+H7 -> 110523.375 | I8: =MAX((H8-vergi_dilimi_4_1)*0.05,0)+MAX((H8-vergi_dilimi_3_1)*0.08,0)+MAX((H8-vergi_dilimi_2_1)*0.07,0)+MAX((H8-vergi_dilimi_1_1)*0.05,0)+H8*0.15-(MAX((H7-vergi_dilimi_4_1)*0.05,0)+(MAX((H7-vergi_dilimi_3_1)*0.08,0)+MAX((H7-vergi_dilimi_2_1)*0.07,0)+MAX((H7-vergi_dilimi_1_1)*0.05,0)+H7*0.15)) -> 3315.70125 | J8: =asgari_ucrt_istisna[[#This Row],[BRÜT ÜCRET]]*damga_vergisi_orani -> 197.381745
D9: HAZİRAN | E9: 30 | F9: =BRUT_ASGARI_1/30*asgari_ucrt_istisna[[#This Row],[GÜN]] -> 26005.5 | G9: =(GUNLUK_BRUT_ASGARI_1-(GUNLUK_BRUT_ASGARI_1*vergi_orani_1_1))*asgari_ucrt_istisna[[#This Row],[GÜN]] -> 22104.675 | H9: =asgari_ucrt_istisna[[#This Row],[AYLIK GVM]]+H8 -> 132628.05 | I9: =MAX((H9-vergi_dilimi_4_1)*0.05,0)+MAX((H9-vergi_dilimi_3_1)*0.08,0)+MAX((H9-vergi_dilimi_2_1)*0.07,0)+MAX((H9-vergi_dilimi_1_1)*0.05,0)+H9*0.15-(MAX((H8-vergi_dilimi_4_1)*0.05,0)+(MAX((H8-vergi_dilimi_3_1)*0.08,0)+MAX((H8-vergi_dilimi_2_1)*0.07,0)+MAX((H8-vergi_dilimi_1_1)*0.05,0)+H8*0.15)) -> 3315.70125 | J9: =asgari_ucrt_istisna[[#This Row],[BRÜT ÜCRET]]*damga_vergisi_orani -> 197.381745
D10: TEMMUZ | E10: 30 | F10: =BRUT_ASGARI_2/30*asgari_ucrt_istisna[[#This Row],[GÜN]] -> 26005.5 | G10: =(GUNLUK_BRUT_ASGARI_2-(GUNLUK_BRUT_ASGARI_2*vergi_orani_1_1))*asgari_ucrt_istisna[[#This Row],[GÜN]] -> 22104.675 | H10: =asgari_ucrt_istisna[[#This Row],[AYLIK GVM]]+H9 -> 154732.725 | I10: =MAX((H10-vergi_dilimi_4_2)*0.05,0)+MAX((H10-vergi_dilimi_3_2)*0.08,0)+MAX((H10-vergi_dilimi_2_2)*0.07,0)+MAX((H10-vergi_dilimi_1_2)*0.05,0)+H10*0.15-(MAX((H9-vergi_dilimi_4_2)*0.05,0)+(MAX((H9-vergi_dilimi_3_2)*0.08,0)+MAX((H9-vergi_dilimi_2_2)*0.07,0)+MAX((H9-vergi_dilimi_1_2)*0.05,0)+H9*0.15)) -> 3315.70125 | J10: =asgari_ucrt_istisna[[#This Row],[BRÜT ÜCRET]]*damga_vergisi_orani -> 197.381745
D11: AĞUSTOS | E11: 30 | F11: =BRUT_ASGARI_2/30*asgari_ucrt_istisna[[#This Row],[GÜN]] -> 26005.5 | G11: =(GUNLUK_BRUT_ASGARI_2-(GUNLUK_BRUT_ASGARI_2*vergi_orani_1_1))*asgari_ucrt_istisna[[#This Row],[GÜN]] -> 22104.675 | H11: =asgari_ucrt_istisna[[#This Row],[AYLIK GVM]]+H10 -> 176837.4 | I11: 4257.57125 | J11: =asgari_ucrt_istisna[[#This Row],[BRÜT ÜCRET]]*damga_vergisi_orani -> 197.381745
D12: EYLÜL | E12: 30 | F12: =BRUT_ASGARI_2/30*asgari_ucrt_istisna[[#This Row],[GÜN]] -> 26005.5 | G12: =(GUNLUK_BRUT_ASGARI_2-(GUNLUK_BRUT_ASGARI_2*vergi_orani_1_1))*asgari_ucrt_istisna[[#This Row],[GÜN]] -> 22104.675 | H12: =asgari_ucrt_istisna[[#This Row],[AYLIK GVM]]+H11 -> 198942.075 | I12: 4420.935 | J12: =asgari_ucrt_istisna[[#This Row],[BRÜT ÜCRET]]*damga_vergisi_orani -> 197.381745
D13: EKİM | E13: 30 | F13: =BRUT_ASGARI_2/30*asgari_ucrt_istisna[[#This Row],[GÜN]] -> 26005.5 | G13: =(GUNLUK_BRUT_ASGARI_2-(GUNLUK_BRUT_ASGARI_2*vergi_orani_1_1))*asgari_ucrt_istisna[[#This Row],[GÜN]] -> 22104.675 | H13: =asgari_ucrt_istisna[[#This Row],[AYLIK GVM]]+H12 -> 221046.75 | I13: 4420.935 | J13: =asgari_ucrt_istisna[[#This Row],[BRÜT ÜCRET]]*damga_vergisi_orani -> 197.381745
D14: KASIM | E14: 30 | F14: =BRUT_ASGARI_2/30*asgari_ucrt_istisna[[#This Row],[GÜN]] -> 26005.5 | G14: =(GUNLUK_BRUT_ASGARI_2-(GUNLUK_BRUT_ASGARI_2*vergi_orani_1_1))*asgari_ucrt_istisna[[#This Row],[GÜN]] -> 22104.675 | H14: =asgari_ucrt_istisna[[#This Row],[AYLIK GVM]]+H13 -> 243151.425 | I14: 4420.935 | J14: =asgari_ucrt_istisna[[#This Row],[BRÜT ÜCRET]]*damga_vergisi_orani -> 197.381745
D15: ARALIK | E15: 30 | F15: =BRUT_ASGARI_2/30*asgari_ucrt_istisna[[#This Row],[GÜN]] -> 26005.5 | G15: =(GUNLUK_BRUT_ASGARI_2-(GUNLUK_BRUT_ASGARI_2*vergi_orani_1_1))*asgari_ucrt_istisna[[#This Row],[GÜN]] -> 22104.675 | H15: =asgari_ucrt_istisna[[#This Row],[AYLIK GVM]]+H14 -> 265256.1 | I15: 4420.935 | J15: =asgari_ucrt_istisna[[#This Row],[BRÜT ÜCRET]]*damga_vergisi_orani -> 197.381745
E16: =SUBTOTAL(109,asgari_ucrt_istisna[GÜN]) -> 360 | I16: =SUBTOTAL(109,asgari_ucrt_istisna[AÜ GV İSTİSNA]) -> 45151.22 | J16: =SUBTOTAL(109,asgari_ucrt_istisna[AÜ DV İSTİSNA]) -> 2368.58094

Sheet params_BORD_1 (hidden)
A1: =DATE(B2,MATCH(UPPER(C2),{"OCAK","ŞUBAT","MART","NİSAN","MAYIS","HAZİRAN","TEMMUZ","AĞUSTOS","EYLÜL","EKİM","KASIM","ARALIK"},0),1) -> 
A2: =DATE(YEAR(A1),MONTH(A1)+1,0) ->  | B2: =sm_b!B2 -> 2025 | C2: 1. Dönem
C4: indx | D4: Ücret Türü | E4: Aylık | F4: Günlük | G4: Saatlik | I4: indx | J4: VERGİ | K4: DİLİMLERİ | L4: VERGİ ORANLARI | M4: VERGİ KESİNTİSİ
C5: 1 | D5: =INDEX( INDIRECT("Ucret_Turleri_"&yil_1&"_"&LEFT(ay_1,1)&"[" & D$4 & "]"), MATCH( secili_params_ucret_turleri_1[[#This Row],[indx]], INDIRECT("Ucret_Turleri_"&yil_1&"_"&LEFT(ay_1,1)&"[indx]"), 0 ) ) -> Asgari Brüt | E5: =INDEX( INDIRECT("Ucret_Turleri_"&yil_1&"_"&LEFT(ay_1,1)&"[" & E$4 & "]"), MATCH( secili_params_ucret_turleri_1[[#This Row],[indx]], INDIRECT("Ucret_Turleri_"&yil_1&"_"&LEFT(ay_1,1)&"[indx]"), 0 ) ) -> 26005.5 | F5: =INDEX( INDIRECT("Ucret_Turleri_"&yil_1&"_"&LEFT(ay_1,1)&"[" & F$4 & "]"), MATCH( secili_params_ucret_turleri_1[[#This Row],[indx]], INDIRECT("Ucret_Turleri_"&yil_1&"_"&LEFT(ay_1,1)&"[indx]"), 0 ) ) -> 866.85 | G5: =INDEX( INDIRECT("Ucret_Turleri_"&yil_1&"_"&LEFT(ay_1,1)&"[" & G$4 & "]"), MATCH( secili_params_ucret_turleri_1[[#This Row],[indx]], INDIRECT("Ucret_Turleri_"&yil_1&"_"&LEFT(ay_1,1)&"[indx]"), 0 ) ) -> 115.58 | I5: 1 | J5: =INDEX( INDIRECT("Vergi_Dilimleri_"&yil_1&"_"&LEFT(ay_1,1)&"[" & J$4 & "]"), MATCH( secili_params_vergi_dilimleri_1[[#This Row],[indx]], INDIRECT("Vergi_Dilimleri_"&yil_1&"_"&LEFT(ay_1,1)&"[indx]"), 0 ) ) -> 0 | K5: =INDEX( INDIRECT("Vergi_Dilimleri_"&yil_1&"_"&LEFT(ay_1,1)&"[" & K$4 & "]"), MATCH( secili_params_vergi_dilimleri_1[[#This Row],[indx]], INDIRECT("Vergi_Dilimleri_"&yil_1&"_"&LEFT(ay_1,1)&"[indx]"), 0 ) ) -> 158000 | L5: =INDEX( INDIRECT("Vergi_Dilimleri_"&yil_1&"_"&LEFT(ay_1,1)&"[" & L$4 & "]"), MATCH( secili_params_vergi_dilimleri_1[[#This Row],[indx]], INDIRECT("Vergi_Dilimleri_"&yil_1&"_"&LEFT(ay_1,1)&"[indx]"), 0 ) ) -> 0.15 | M5: =INDEX( INDIRECT("Vergi_Dilimleri_"&yil_1&"_"&LEFT(ay_1,1)&"[" & M$4 & "]"), MATCH( secili_params_vergi_dilimleri_1[[#This Row],[indx]], INDIRECT("Vergi_Dilimleri_"&yil_1&"_"&LEFT(ay_1,1)&"[indx]"), 0 ) ) -> 23700
C6: =C5+1 -> 2 | D6: =INDEX( INDIRECT("Ucret_Turleri_"&yil_1&"_"&LEFT(ay_1,1)&"[" & D$4 & "]"), MATCH( secili_params_ucret_turleri_1[[#This Row],[indx]], INDIRECT("Ucret_Turleri_"&yil_1&"_"&LEFT(ay_1,1)&"[indx]"), 0 ) ) -> SGK Tavan | E6: =INDEX( INDIRECT("Ucret_Turleri_"&yil_1&"_"&LEFT(ay_1,1)&"[" & E$4 & "]"), MATCH( secili_params_ucret_turleri_1[[#This Row],[indx]], INDIRECT("Ucret_Turleri_"&yil_1&"_"&LEFT(ay_1,1)&"[indx]"), 0 ) ) -> 195041.4 | F6: =INDEX( INDIRECT("Ucret_Turleri_"&yil_1&"_"&LEFT(ay_1,1)&"[" & F$4 & "]"), MATCH( secili_params_ucret_turleri_1[[#This Row],[indx]], INDIRECT("Ucret_Turleri_"&yil_1&"_"&LEFT(ay_1,1)&"[indx]"), 0 ) ) -> 6501.38 | G6: =INDEX( INDIRECT("Ucret_Turleri_"&yil_1&"_"&LEFT(ay_1,1)&"[" & G$4 & "]"), MATCH( secili_params_ucret_turleri_1[[#This Row],[indx]], INDIRECT("Ucret_Turleri_"&yil_1&"_"&LEFT(ay_1,1)&"[indx]"), 0 ) ) -> 866.8506667 | I6: =I5+1 -> 2 | J6: =INDEX( INDIRECT("Vergi_Dilimleri_"&yil_1&"_"&LEFT(ay_1,1)&"[" & J$4 & "]"), MATCH( secili_params_vergi_dilimleri_1[[#This Row],[indx]], INDIRECT("Vergi_Dilimleri_"&yil_1&"_"&LEFT(ay_1,1)&"[indx]"), 0 ) ) -> 158000.01 | K6: =INDEX( INDIRECT("Vergi_Dilimleri_"&yil_1&"_"&LEFT(ay_1,1)&"[" & K$4 & "]"), MATCH( secili_params_vergi_dilimleri_1[[#This Row],[indx]], INDIRECT("Vergi_Dilimleri_"&yil_1&"_"&LEFT(ay_1,1)&"[indx]"), 0 ) ) -> 330000 | L6: =INDEX( INDIRECT("Vergi_Dilimleri_"&yil_1&"_"&LEFT(ay_1,1)&"[" & L$4 & "]"), MATCH( secili_params_vergi_dilimleri_1[[#This Row],[indx]], INDIRECT("Vergi_Dilimleri_"&yil_1&"_"&LEFT(ay_1,1)&"[indx]"), 0 ) ) -> 0.2 | M6: =INDEX( INDIRECT("Vergi_Dilimleri_"&yil_1&"_"&LEFT(ay_1,1)&"[" & M$4 & "]"), MATCH( secili_params_vergi_dilimleri_1[[#This Row],[indx]], INDIRECT("Vergi_Dilimleri_"&yil_1&"_"&LEFT(ay_1,1)&"[indx]"), 0 ) ) -> 66000
C7: =C6+1 -> 3 | D7: =INDEX( INDIRECT("Ucret_Turleri_"&yil_1&"_"&LEFT(ay_1,1)&"[" & D$4 & "]"), MATCH( secili_params_ucret_turleri_1[[#This Row],[indx]], INDIRECT("Ucret_Turleri_"&yil_1&"_"&LEFT(ay_1,1)&"[indx]"), 0 ) ) -> Net Ücret | E7: =INDEX( INDIRECT("Ucret_Turleri_"&yil_1&"_"&LEFT(ay_1,1)&"[" & E$4 & "]"), MATCH( secili_params_ucret_turleri_1[[#This Row],[indx]], INDIRECT("Ucret_Turleri_"&yil_1&"_"&LEFT(ay_1,1)&"[indx]"), 0 ) ) -> 22104.67 | F7: =INDEX( INDIRECT("Ucret_Turleri_"&yil_1&"_"&LEFT(ay_1,1)&"[" & F$4 & "]"), MATCH( secili_params_ucret_turleri_1[[#This Row],[indx]], INDIRECT("Ucret_Turleri_"&yil_1&"_"&LEFT(ay_1,1)&"[indx]"), 0 ) ) -> 736.8223333 | G7: =INDEX( INDIRECT("Ucret_Turleri_"&yil_1&"_"&LEFT(ay_1,1)&"[" & G$4 & "]"), MATCH( secili_params_ucret_turleri_1[[#This Row],[indx]], INDIRECT("Ucret_Turleri_"&yil_1&"_"&LEFT(ay_1,1)&"[indx]"), 0 ) ) -> 98.24297778 | I7: =I6+1 -> 3 | J7: =INDEX( INDIRECT("Vergi_Dilimleri_"&yil_1&"_"&LEFT(ay_1,1)&"[" & J$4 & "]"), MATCH( secili_params_vergi_dilimleri_1[[#This Row],[indx]], INDIRECT("Vergi_Dilimleri_"&yil_1&"_"&LEFT(ay_1,1)&"[indx]"), 0 ) ) -> 330000.01 | K7: =INDEX( INDIRECT("Vergi_Dilimleri_"&yil_1&"_"&LEFT(ay_1,1)&"[" & K$4 & "]"), MATCH( secili_params_vergi_dilimleri_1[[#This Row],[indx]], INDIRECT("Vergi_Dilimleri_"&yil_1&"_"&LEFT(ay_1,1)&"[indx]"), 0 ) ) -> 1200000 | L7: =INDEX( INDIRECT("Vergi_Dilimleri_"&yil_1&"_"&LEFT(ay_1,1)&"[" & L$4 & "]"), MATCH( secili_params_vergi_dilimleri_1[[#This Row],[indx]], INDIRECT("Vergi_Dilimleri_"&yil_1&"_"&LEFT(ay_1,1)&"[indx]"), 0 ) ) -> 0.27 | M7: =INDEX( INDIRECT("Vergi_Dilimleri_"&yil_1&"_"&LEFT(ay_1,1)&"[" & M$4 & "]"), MATCH( secili_params_vergi_dilimleri_1[[#This Row],[indx]], INDIRECT("Vergi_Dilimleri_"&yil_1&"_"&LEFT(ay_1,1)&"[indx]"), 0 ) ) -> 324000
C8: 4 | D8: =INDEX( INDIRECT("Ucret_Turleri_"&yil_1&"_"&LEFT(ay_1,1)&"[" & D$4 & "]"), MATCH( secili_params_ucret_turleri_1[[#This Row],[indx]], INDIRECT("Ucret_Turleri_"&yil_1&"_"&LEFT(ay_1,1)&"[indx]"), 0 ) ) -> Emekli Net Ücret (Yıllık Ortalama) | E8: =INDEX( INDIRECT("Ucret_Turleri_"&yil_1&"_"&LEFT(ay_1,1)&"[" & E$4 & "]"), MATCH( secili_params_ucret_turleri_1[[#This Row],[indx]], INDIRECT("Ucret_Turleri_"&yil_1&"_"&LEFT(ay_1,1)&"[indx]"), 0 ) ) -> 23665.01 | F8: =INDEX( INDIRECT("Ucret_Turleri_"&yil_1&"_"&LEFT(ay_1,1)&"[" & F$4 & "]"), MATCH( secili_params_ucret_turleri_1[[#This Row],[indx]], INDIRECT("Ucret_Turleri_"&yil_1&"_"&LEFT(ay_1,1)&"[indx]"), 0 ) ) -> 788.8336667 | G8: =INDEX( INDIRECT("Ucret_Turleri_"&yil_1&"_"&LEFT(ay_1,1)&"[" & G$4 & "]"), MATCH( secili_params_ucret_turleri_1[[#This Row],[indx]], INDIRECT("Ucret_Turleri_"&yil_1&"_"&LEFT(ay_1,1)&"[indx]"), 0 ) ) -> 105.1778222 | I8: 4 | J8: =INDEX( INDIRECT("Vergi_Dilimleri_"&yil_1&"_"&LEFT(ay_1,1)&"[" & J$4 & "]"), MATCH( secili_params_vergi_dilimleri_1[[#This Row],[indx]], INDIRECT("Vergi_Dilimleri_"&yil_1&"_"&LEFT(ay_1,1)&"[indx]"), 0 ) ) -> 1200000.01 | K8: =INDEX( INDIRECT("Vergi_Dilimleri_"&yil_1&"_"&LEFT(ay_1,1)&"[" & K$4 & "]"), MATCH( secili_params_vergi_dilimleri_1[[#This Row],[indx]], INDIRECT("Vergi_Dilimleri_"&yil_1&"_"&LEFT(ay_1,1)&"[indx]"), 0 ) ) -> 4300000 | L8: =INDEX( INDIRECT("Vergi_Dilimleri_"&yil_1&"_"&LEFT(ay_1,1)&"[" & L$4 & "]"), MATCH( secili_params_vergi_dilimleri_1[[#This Row],[indx]], INDIRECT("Vergi_Dilimleri_"&yil_1&"_"&LEFT(ay_1,1)&"[indx]"), 0 ) ) -> 0.35 | M8: =INDEX( INDIRECT("Vergi_Dilimleri_"&yil_1&"_"&LEFT(ay_1,1)&"[" & M$4 & "]"), MATCH( secili_params_vergi_dilimleri_1[[#This Row],[indx]], INDIRECT("Vergi_Dilimleri_"&yil_1&"_"&LEFT(ay_1,1)&"[indx]"), 0 ) ) -> 1505000
C9: 5 | D9: =INDEX( INDIRECT("Ucret_Turleri_"&yil_1&"_"&LEFT(ay_1,1)&"[" & D$4 & "]"), MATCH( secili_params_ucret_turleri_1[[#This Row],[indx]], INDIRECT("Ucret_Turleri_"&yil_1&"_"&LEFT(ay_1,1)&"[indx]"), 0 ) ) -> Emekli Engelli Net Ücret (Yıllık Ortalama) | E9: =INDEX( INDIRECT("Ucret_Turleri_"&yil_1&"_"&LEFT(ay_1,1)&"[" & E$4 & "]"), MATCH( secili_params_ucret_turleri_1[[#This Row],[indx]], INDIRECT("Ucret_Turleri_"&yil_1&"_"&LEFT(ay_1,1)&"[indx]"), 0 ) ) -> 24055.09 | F9: =INDEX( INDIRECT("Ucret_Turleri_"&yil_1&"_"&LEFT(ay_1,1)&"[" & F$4 & "]"), MATCH( secili_params_ucret_turleri_1[[#This Row],[indx]], INDIRECT("Ucret_Turleri_"&yil_1&"_"&LEFT(ay_1,1)&"[indx]"), 0 ) ) -> 801.8363333 | G9: =INDEX( INDIRECT("Ucret_Turleri_"&yil_1&"_"&LEFT(ay_1,1)&"[" & G$4 & "]"), MATCH( secili_params_ucret_turleri_1[[#This Row],[indx]], INDIRECT("Ucret_Turleri_"&yil_1&"_"&LEFT(ay_1,1)&"[indx]"), 0 ) ) -> 106.9115111 | I9: 5 | J9: =INDEX( INDIRECT("Vergi_Dilimleri_"&yil_1&"_"&LEFT(ay_1,1)&"[" & J$4 & "]"), MATCH( secili_params_vergi_dilimleri_1[[#This Row],[indx]], INDIRECT("Vergi_Dilimleri_"&yil_1&"_"&LEFT(ay_1,1)&"[indx]"), 0 ) ) -> 4300000.01 | K9: =INDEX( INDIRECT("Vergi_Dilimleri_"&yil_1&"_"&LEFT(ay_1,1)&"[" & K$4 & "]"), MATCH( secili_params_vergi_dilimleri_1[[#This Row],[indx]], INDIRECT("Vergi_Dilimleri_"&yil_1&"_"&LEFT(ay_1,1)&"[indx]"), 0 ) ) -> 9999999 | L9: =INDEX( INDIRECT("Vergi_Dilimleri_"&yil_1&"_"&LEFT(ay_1,1)&"[" & L$4 & "]"), MATCH( secili_params_vergi_dilimleri_1[[#This Row],[indx]], INDIRECT("Vergi_Dilimleri_"&yil_1&"_"&LEFT(ay_1,1)&"[indx]"), 0 ) ) -> 0.4 | M9: =INDEX( INDIRECT("Vergi_Dilimleri_"&yil_1&"_"&LEFT(ay_1,1)&"[" & M$4 & "]"), MATCH( secili_params_vergi_dilimleri_1[[#This Row],[indx]], INDIRECT("Vergi_Dilimleri_"&yil_1&"_"&LEFT(ay_1,1)&"[indx]"), 0 ) ) -> 3999999.6
C10: 6 | D10: =INDEX( INDIRECT("Ucret_Turleri_"&yil_1&"_"&LEFT(ay_1,1)&"[" & D$4 & "]"), MATCH( secili_params_ucret_turleri_1[[#This Row],[indx]], INDIRECT("Ucret_Turleri_"&yil_1&"_"&LEFT(ay_1,1)&"[indx]"), 0 ) ) -> Kıdem Tazminanı Tavanı 1. Dönem | E10: =INDEX( INDIRECT("Ucret_Turleri_"&yil_1&"_"&LEFT(ay_1,1)&"[" & E$4 & "]"), MATCH( secili_params_ucret_turleri_1[[#This Row],[indx]], INDIRECT("Ucret_Turleri_"&yil_1&"_"&LEFT(ay_1,1)&"[indx]"), 0 ) ) -> 46655.43 | F10: =INDEX( INDIRECT("Ucret_Turleri_"&yil_1&"_"&LEFT(ay_1,1)&"[" & F$4 & "]"), MATCH( secili_params_ucret_turleri_1[[#This Row],[indx]], INDIRECT("Ucret_Turleri_"&yil_1&"_"&LEFT(ay_1,1)&"[indx]"), 0 ) ) -> 1555.181 | G10: =INDEX( INDIRECT("Ucret_Turleri_"&yil_1&"_"&LEFT(ay_1,1)&"[" & G$4 & "]"), MATCH( secili_params_ucret_turleri_1[[#This Row],[indx]], INDIRECT("Ucret_Turleri_"&yil_1&"_"&LEFT(ay_1,1)&"[indx]"), 0 ) ) -> 207.3574667
C11: 7 | D11: =INDEX( INDIRECT("Ucret_Turleri_"&yil_1&"_"&LEFT(ay_1,1)&"[" & D$4 & "]"), MATCH( secili_params_ucret_turleri_1[[#This Row],[indx]], INDIRECT("Ucret_Turleri_"&yil_1&"_"&LEFT(ay_1,1)&"[indx]"), 0 ) ) -> 1.DERECE ENGELLİ | E11: =INDEX( INDIRECT("Ucret_Turleri_"&yil_1&"_"&LEFT(ay_1,1)&"[" & E$4 & "]"), MATCH( secili_params_ucret_turleri_1[[#This Row],[indx]], INDIRECT("Ucret_Turleri_"&yil_1&"_"&LEFT(ay_1,1)&"[indx]"), 0 ) ) -> 9900 | F11: =INDEX( INDIRECT("Ucret_Turleri_"&yil_1&"_"&LEFT(ay_1,1)&"[" & F$4 & "]"), MATCH( secili_params_ucret_turleri_1[[#This Row],[indx]], INDIRECT("Ucret_Turleri_"&yil_1&"_"&LEFT(ay_1,1)&"[indx]"), 0 ) ) -> 330 | G11: =INDEX( INDIRECT("Ucret_Turleri_"&yil_1&"_"&LEFT(ay_1,1)&"[" & G$4 & "]"), MATCH( secili_params_ucret_turleri_1[[#This Row],[indx]], INDIRECT("Ucret_Turleri_"&yil_1&"_"&LEFT(ay_1,1)&"[indx]"), 0 ) ) -> 44 | I11: indx | J11: Sigorta Kolu | K11: İşveren Payı | L11: Çalışan Payı | M11: Toplam
C12: 8 | D12: =INDEX( INDIRECT("Ucret_Turleri_"&yil_1&"_"&LEFT(ay_1,1)&"[" & D$4 & "]"), MATCH( secili_params_ucret_turleri_1[[#This Row],[indx]], INDIRECT("Ucret_Turleri_"&yil_1&"_"&LEFT(ay_1,1)&"[indx]"), 0 ) ) -> 2.DERECE ENGELLİ | E12: =INDEX( INDIRECT("Ucret_Turleri_"&yil_1&"_"&LEFT(ay_1,1)&"[" & E$4 & "]"), MATCH( secili_params_ucret_turleri_1[[#This Row],[indx]], INDIRECT("Ucret_Turleri_"&yil_1&"_"&LEFT(ay_1,1)&"[indx]"), 0 ) ) -> 5700 | F12: =INDEX( INDIRECT("Ucret_Turleri_"&yil_1&"_"&LEFT(ay_1,1)&"[" & F$4 & "]"), MATCH( secili_params_ucret_turleri_1[[#This Row],[indx]], INDIRECT("Ucret_Turleri_"&yil_1&"_"&LEFT(ay_1,1)&"[indx]"), 0 ) ) -> 190 | G12: =INDEX( INDIRECT("Ucret_Turleri_"&yil_1&"_"&LEFT(ay_1,1)&"[" & G$4 & "]"), MATCH( secili_params_ucret_turleri_1[[#This Row],[indx]], INDIRECT("Ucret_Turleri_"&yil_1&"_"&LEFT(ay_1,1)&"[indx]"), 0 ) ) -> 25.33333333 | I12: 1 | J12: =INDEX( INDIRECT("Isveren_prim_oranlari_normal_"&yil_1&"_"&LEFT(ay_1,1)&"[" & J$11 & "]"), MATCH( secili_params_isveren_prim_oranlari_normal_1[[#This Row],[indx]], INDIRECT("Isveren_prim_oranlari_normal_"&yil_1&"_"&LEFT(ay_1,1)&"[indx]"), 0 ) ) -> Malüllük, Yaşlılık ve Ölüm | K12: =INDEX( INDIRECT("Isveren_prim_oranlari_normal_"&yil_1&"_"&LEFT(ay_1,1)&"[" & K$11 & "]"), MATCH( secili_params_isveren_prim_oranlari_normal_1[[#This Row],[indx]], INDIRECT("Isveren_prim_oranlari_normal_"&yil_1&"_"&LEFT(ay_1,1)&"[indx]"), 0 ) ) -> 0.11 | L12: =INDEX( INDIRECT("Isveren_prim_oranlari_normal_"&yil_1&"_"&LEFT(ay_1,1)&"[" & L$11 & "]"), MATCH( secili_params_isveren_prim_oranlari_normal_1[[#This Row],[indx]], INDIRECT("Isveren_prim_oranlari_normal_"&yil_1&"_"&LEFT(ay_1,1)&"[indx]"), 0 ) ) -> 0.09 | M12: =INDEX( INDIRECT("Isveren_prim_oranlari_normal_"&yil_1&"_"&LEFT(ay_1,1)&"[" & M$11 & "]"), MATCH( secili_params_isveren_prim_oranlari_normal_1[[#This Row],[indx]], INDIRECT("Isveren_prim_oranlari_normal_"&yil_1&"_"&LEFT(ay_1,1)&"[indx]"), 0 ) ) -> 0.2
C13: 9 | D13: =INDEX( INDIRECT("Ucret_Turleri_"&yil_1&"_"&LEFT(ay_1,1)&"[" & D$4 & "]"), MATCH( secili_params_ucret_turleri_1[[#This Row],[indx]], INDIRECT("Ucret_Turleri_"&yil_1&"_"&LEFT(ay_1,1)&"[indx]"), 0 ) ) -> 3.DERECE ENGELLİ | E13: =INDEX( INDIRECT("Ucret_Turleri_"&yil_1&"_"&LEFT(ay_1,1)&"[" & E$4 & "]"), MATCH( secili_params_ucret_turleri_1[[#This Row],[indx]], INDIRECT("Ucret_Turleri_"&yil_1&"_"&LEFT(ay_1,1)&"[indx]"), 0 ) ) -> 2400 | F13: =INDEX( INDIRECT("Ucret_Turleri_"&yil_1&"_"&LEFT(ay_1,1)&"[" & F$4 & "]"), MATCH( secili_params_ucret_turleri_1[[#This Row],[indx]], INDIRECT("Ucret_Turleri_"&yil_1&"_"&LEFT(ay_1,1)&"[indx]"), 0 ) ) -> 80 | G13: =INDEX( INDIRECT("Ucret_Turleri_"&yil_1&"_"&LEFT(ay_1,1)&"[" & G$4 & "]"), MATCH( secili_params_ucret_turleri_1[[#This Row],[indx]], INDIRECT("Ucret_Turleri_"&yil_1&"_"&LEFT(ay_1,1)&"[indx]"), 0 ) ) -> 10.66666667 | I13: =I12+1 -> 2 | J13: =INDEX( INDIRECT("Isveren_prim_oranlari_normal_"&yil_1&"_"&LEFT(ay_1,1)&"[" & J$11 & "]"), MATCH( secili_params_isveren_prim_oranlari_normal_1[[#This Row],[indx]], INDIRECT("Isveren_prim_oranlari_normal_"&yil_1&"_"&LEFT(ay_1,1)&"[indx]"), 0 ) ) -> Kısa Vadeli Sigorta Kolları | K13: =INDEX( INDIRECT("Isveren_prim_oranlari_normal_"&yil_1&"_"&LEFT(ay_1,1)&"[" & K$11 & "]"), MATCH( secili_params_isveren_prim_oranlari_normal_1[[#This Row],[indx]], INDIRECT("Isveren_prim_oranlari_normal_"&yil_1&"_"&LEFT(ay_1,1)&"[indx]"), 0 ) ) -> 0.0225 | L13: =INDEX( INDIRECT("Isveren_prim_oranlari_normal_"&yil_1&"_"&LEFT(ay_1,1)&"[" & L$11 & "]"), MATCH( secili_params_isveren_prim_oranlari_normal_1[[#This Row],[indx]], INDIRECT("Isveren_prim_oranlari_normal_"&yil_1&"_"&LEFT(ay_1,1)&"[indx]"), 0 ) ) -> - | M13: =INDEX( INDIRECT("Isveren_prim_oranlari_normal_"&yil_1&"_"&LEFT(ay_1,1)&"[" & M$11 & "]"), MATCH( secili_params_isveren_prim_oranlari_normal_1[[#This Row],[indx]], INDIRECT("Isveren_prim_oranlari_normal_"&yil_1&"_"&LEFT(ay_1,1)&"[indx]"), 0 ) ) -> 0.02
C14: 10 | D14: =INDEX( INDIRECT("Ucret_Turleri_"&yil_1&"_"&LEFT(ay_1,1)&"[" & D$4 & "]"), MATCH( secili_params_ucret_turleri_1[[#This Row],[indx]], INDIRECT("Ucret_Turleri_"&yil_1&"_"&LEFT(ay_1,1)&"[indx]"), 0 ) ) -> Stajyer Ücreti | E14: =INDEX( INDIRECT("Ucret_Turleri_"&yil_1&"_"&LEFT(ay_1,1)&"[" & E$4 & "]"), MATCH( secili_params_ucret_turleri_1[[#This Row],[indx]], INDIRECT("Ucret_Turleri_"&yil_1&"_"&LEFT(ay_1,1)&"[indx]"), 0 ) ) -> 6631.4 | F14: =INDEX( INDIRECT("Ucret_Turleri_"&yil_1&"_"&LEFT(ay_1,1)&"[" & F$4 & "]"), MATCH( secili_params_ucret_turleri_1[[#This Row],[indx]], INDIRECT("Ucret_Turleri_"&yil_1&"_"&LEFT(ay_1,1)&"[indx]"), 0 ) ) -> 221.0466667 | G14: =INDEX( INDIRECT("Ucret_Turleri_"&yil_1&"_"&LEFT(ay_1,1)&"[" & G$4 & "]"), MATCH( secili_params_ucret_turleri_1[[#This Row],[indx]], INDIRECT("Ucret_Turleri_"&yil_1&"_"&LEFT(ay_1,1)&"[indx]"), 0 ) ) -> 29.47288889 | I14: =I13+1 -> 3 | J14: =INDEX( INDIRECT("Isveren_prim_oranlari_normal_"&yil_1&"_"&LEFT(ay_1,1)&"[" & J$11 & "]"), MATCH( secili_params_isveren_prim_oranlari_normal_1[[#This Row],[indx]], INDIRECT("Isveren_prim_oranlari_normal_"&yil_1&"_"&LEFT(ay_1,1)&"[indx]"), 0 ) ) -> Genel Sağlık Sigortası | K14: =INDEX( INDIRECT("Isveren_prim_oranlari_normal_"&yil_1&"_"&LEFT(ay_1,1)&"[" & K$11 & "]"), MATCH( secili_params_isveren_prim_oranlari_normal_1[[#This Row],[indx]], INDIRECT("Isveren_prim_oranlari_normal_"&yil_1&"_"&LEFT(ay_1,1)&"[indx]"), 0 ) ) -> 0.075 | L14: =INDEX( INDIRECT("Isveren_prim_oranlari_normal_"&yil_1&"_"&LEFT(ay_1,1)&"[" & L$11 & "]"), MATCH( secili_params_isveren_prim_oranlari_normal_1[[#This Row],[indx]], INDIRECT("Isveren_prim_oranlari_normal_"&yil_1&"_"&LEFT(ay_1,1)&"[indx]"), 0 ) ) -> 0.05 | M14: =INDEX( INDIRECT("Isveren_prim_oranlari_normal_"&yil_1&"_"&LEFT(ay_1,1)&"[" & M$11 & "]"), MATCH( secili_params_isveren_prim_oranlari_normal_1[[#This Row],[indx]], INDIRECT("Isveren_prim_oranlari_normal_"&yil_1&"_"&LEFT(ay_1,1)&"[indx]"), 0 ) ) -> 0.125
C15: 11 | D15: =INDEX( INDIRECT("Ucret_Turleri_"&yil_1&"_"&LEFT(ay_1,1)&"[" & D$4 & "]"), MATCH( secili_params_ucret_turleri_1[[#This Row],[indx]], INDIRECT("Ucret_Turleri_"&yil_1&"_"&LEFT(ay_1,1)&"[indx]"), 0 ) ) -> Çocuk Yardımı SGK İstisnası | E15: =INDEX( INDIRECT("Ucret_Turleri_"&yil_1&"_"&LEFT(ay_1,1)&"[" & E$4 & "]"), MATCH( secili_params_ucret_turleri_1[[#This Row],[indx]], INDIRECT("Ucret_Turleri_"&yil_1&"_"&LEFT(ay_1,1)&"[indx]"), 0 ) ) -> 520.11 | F15: =INDEX( INDIRECT("Ucret_Turleri_"&yil_1&"_"&LEFT(ay_1,1)&"[" & F$4 & "]"), MATCH( secili_params_ucret_turleri_1[[#This Row],[indx]], INDIRECT("Ucret_Turleri_"&yil_1&"_"&LEFT(ay_1,1)&"[indx]"), 0 ) ) -> 17.337 | G15: =INDEX( INDIRECT("Ucret_Turleri_"&yil_1&"_"&LEFT(ay_1,1)&"[" & G$4 & "]"), MATCH( secili_params_ucret_turleri_1[[#This Row],[indx]], INDIRECT("Ucret_Turleri_"&yil_1&"_"&LEFT(ay_1,1)&"[indx]"), 0 ) ) -> 2.3116 | I15: 4 | J15: =INDEX( INDIRECT("Isveren_prim_oranlari_normal_"&yil_1&"_"&LEFT(ay_1,1)&"[" & J$11 & "]"), MATCH( secili_params_isveren_prim_oranlari_normal_1[[#This Row],[indx]], INDIRECT("Isveren_prim_oranlari_normal_"&yil_1&"_"&LEFT(ay_1,1)&"[indx]"), 0 ) ) -> İşsizlik Sigortası | K15: =INDEX( INDIRECT("Isveren_prim_oranlari_normal_"&yil_1&"_"&LEFT(ay_1,1)&"[" & K$11 & "]"), MATCH( secili_params_isveren_prim_oranlari_normal_1[[#This Row],[indx]], INDIRECT("Isveren_prim_oranlari_normal_"&yil_1&"_"&LEFT(ay_1,1)&"[indx]"), 0 ) ) -> 0.02 | L15: =INDEX( INDIRECT("Isveren_prim_oranlari_normal_"&yil_1&"_"&LEFT(ay_1,1)&"[" & L$11 & "]"), MATCH( secili_params_isveren_prim_oranlari_normal_1[[#This Row],[indx]], INDIRECT("Isveren_prim_oranlari_normal_"&yil_1&"_"&LEFT(ay_1,1)&"[indx]"), 0 ) ) -> 0.01 | M15: =INDEX( INDIRECT("Isveren_prim_oranlari_normal_"&yil_1&"_"&LEFT(ay_1,1)&"[" & M$11 & "]"), MATCH( secili_params_isveren_prim_oranlari_normal_1[[#This Row],[indx]], INDIRECT("Isveren_prim_oranlari_normal_"&yil_1&"_"&LEFT(ay_1,1)&"[indx]"), 0 ) ) -> 0
C16: 12 | D16: =INDEX( INDIRECT("Ucret_Turleri_"&yil_1&"_"&LEFT(ay_1,1)&"[" & D$4 & "]"), MATCH( secili_params_ucret_turleri_1[[#This Row],[indx]], INDIRECT("Ucret_Turleri_"&yil_1&"_"&LEFT(ay_1,1)&"[indx]"), 0 ) ) -> Aile Yardımı SGK İstisnası | E16: =INDEX( INDIRECT("Ucret_Turleri_"&yil_1&"_"&LEFT(ay_1,1)&"[" & E$4 & "]"), MATCH( secili_params_ucret_turleri_1[[#This Row],[indx]], INDIRECT("Ucret_Turleri_"&yil_1&"_"&LEFT(ay_1,1)&"[indx]"), 0 ) ) -> 2600.55 | F16: =INDEX( INDIRECT("Ucret_Turleri_"&yil_1&"_"&LEFT(ay_1,1)&"[" & F$4 & "]"), MATCH( secili_params_ucret_turleri_1[[#This Row],[indx]], INDIRECT("Ucret_Turleri_"&yil_1&"_"&LEFT(ay_1,1)&"[indx]"), 0 ) ) -> 86.685 | G16: =INDEX( INDIRECT("Ucret_Turleri_"&yil_1&"_"&LEFT(ay_1,1)&"[" & G$4 & "]"), MATCH( secili_params_ucret_turleri_1[[#This Row],[indx]], INDIRECT("Ucret_Turleri_"&yil_1&"_"&LEFT(ay_1,1)&"[indx]"), 0 ) ) -> 11.558 | I16: 5 | J16: =INDEX( INDIRECT("Isveren_prim_oranlari_normal_"&yil_1&"_"&LEFT(ay_1,1)&"[" & J$11 & "]"), MATCH( secili_params_isveren_prim_oranlari_normal_1[[#This Row],[indx]], INDIRECT("Isveren_prim_oranlari_normal_"&yil_1&"_"&LEFT(ay_1,1)&"[indx]"), 0 ) ) -> Toplam | K16: =INDEX( INDIRECT("Isveren_prim_oranlari_normal_"&yil_1&"_"&LEFT(ay_1,1)&"[" & K$11 & "]"), MATCH( secili_params_isveren_prim_oranlari_normal_1[[#This Row],[indx]], INDIRECT("Isveren_prim_oranlari_normal_"&yil_1&"_"&LEFT(ay_1,1)&"[indx]"), 0 ) ) -> 0.2275 | L16: =INDEX( INDIRECT("Isveren_prim_oranlari_normal_"&yil_1&"_"&LEFT(ay_1,1)&"[" & L$11 & "]"), MATCH( secili_params_isveren_prim_oranlari_normal_1[[#This Row],[indx]], INDIRECT("Isveren_prim_oranlari_normal_"&yil_1&"_"&LEFT(ay_1,1)&"[indx]"), 0 ) ) -> 0.15 | M16: =INDEX( INDIRECT("Isveren_prim_oranlari_normal_"&yil_1&"_"&LEFT(ay_1,1)&"[" & M$11 & "]"), MATCH( secili_params_isveren_prim_oranlari_normal_1[[#This Row],[indx]], INDIRECT("Isveren_prim_oranlari_normal_"&yil_1&"_"&LEFT(ay_1,1)&"[indx]"), 0 ) ) -> 0.3775
C17: 13 | D17: =INDEX( INDIRECT("Ucret_Turleri_"&yil_1&"_"&LEFT(ay_1,1)&"[" & D$4 & "]"), MATCH( secili_params_ucret_turleri_1[[#This Row],[indx]], INDIRECT("Ucret_Turleri_"&yil_1&"_"&LEFT(ay_1,1)&"[indx]"), 0 ) ) -> Nakit Yemek Parası SGK İstisnası | E17: =INDEX( INDIRECT("Ucret_Turleri_"&yil_1&"_"&LEFT(ay_1,1)&"[" & E$4 & "]"), MATCH( secili_params_ucret_turleri_1[[#This Row],[indx]], INDIRECT("Ucret_Turleri_"&yil_1&"_"&LEFT(ay_1,1)&"[indx]"), 0 ) ) -> 158 | F17: =INDEX( INDIRECT("Ucret_Turleri_"&yil_1&"_"&LEFT(ay_1,1)&"[" & F$4 & "]"), MATCH( secili_params_ucret_turleri_1[[#This Row],[indx]], INDIRECT("Ucret_Turleri_"&yil_1&"_"&LEFT(ay_1,1)&"[indx]"), 0 ) ) -> 5.266666667 | G17: =INDEX( INDIRECT("Ucret_Turleri_"&yil_1&"_"&LEFT(ay_1,1)&"[" & G$4 & "]"), MATCH( secili_params_ucret_turleri_1[[#This Row],[indx]], INDIRECT("Ucret_Turleri_"&yil_1&"_"&LEFT(ay_1,1)&"[indx]"), 0 ) ) -> 0.7022222222 | I17: 6 | J17: =INDEX( INDIRECT("Isveren_prim_oranlari_normal_"&yil_1&"_"&LEFT(ay_1,1)&"[" & J$11 & "]"), MATCH( secili_params_isveren_prim_oranlari_normal_1[[#This Row],[indx]], INDIRECT("Isveren_prim_oranlari_normal_"&yil_1&"_"&LEFT(ay_1,1)&"[indx]"), 0 ) ) -> Hazine | K17: =INDEX( INDIRECT("Isveren_prim_oranlari_normal_"&yil_1&"_"&LEFT(ay_1,1)&"[" & K$11 & "]"), MATCH( secili_params_isveren_prim_oranlari_normal_1[[#This Row],[indx]], INDIRECT("Isveren_prim_oranlari_normal_"&yil_1&"_"&LEFT(ay_1,1)&"[indx]"), 0 ) ) -> 0 | L17: =INDEX( INDIRECT("Isveren_prim_oranlari_normal_"&yil_1&"_"&LEFT(ay_1,1)&"[" & L$11 & "]"), MATCH( secili_params_isveren_prim_oranlari_normal_1[[#This Row],[indx]], INDIRECT("Isveren_prim_oranlari_normal_"&yil_1&"_"&LEFT(ay_1,1)&"[indx]"), 0 ) ) -> 0 | M17: =INDEX( INDIRECT("Isveren_prim_oranlari_normal_"&yil_1&"_"&LEFT(ay_1,1)&"[" & M$11 & "]"), MATCH( secili_params_isveren_prim_oranlari_normal_1[[#This Row],[indx]], INDIRECT("Isveren_prim_oranlari_normal_"&yil_1&"_"&LEFT(ay_1,1)&"[indx]"), 0 ) ) -> 0.04
C18: 14 | D18: =INDEX( INDIRECT("Ucret_Turleri_"&yil_1&"_"&LEFT(ay_1,1)&"[" & D$4 & "]"), MATCH( secili_params_ucret_turleri_1[[#This Row],[indx]], INDIRECT("Ucret_Turleri_"&yil_1&"_"&LEFT(ay_1,1)&"[indx]"), 0 ) ) -> Yemek Kartı SGK İstisnası | E18: =INDEX( INDIRECT("Ucret_Turleri_"&yil_1&"_"&LEFT(ay_1,1)&"[" & E$4 & "]"), MATCH( secili_params_ucret_turleri_1[[#This Row],[indx]], INDIRECT("Ucret_Turleri_"&yil_1&"_"&LEFT(ay_1,1)&"[indx]"), 0 ) ) -> 0 | F18: =INDEX( INDIRECT("Ucret_Turleri_"&yil_1&"_"&LEFT(ay_1,1)&"[" & F$4 & "]"), MATCH( secili_params_ucret_turleri_1[[#This Row],[indx]], INDIRECT("Ucret_Turleri_"&yil_1&"_"&LEFT(ay_1,1)&"[indx]"), 0 ) ) -> 0 | G18: =INDEX( INDIRECT("Ucret_Turleri_"&yil_1&"_"&LEFT(ay_1,1)&"[" & G$4 & "]"), MATCH( secili_params_ucret_turleri_1[[#This Row],[indx]], INDIRECT("Ucret_Turleri_"&yil_1&"_"&LEFT(ay_1,1)&"[indx]"), 0 ) ) -> 0 | I18: 7 | J18: =INDEX( INDIRECT("Isveren_prim_oranlari_normal_"&yil_1&"_"&LEFT(ay_1,1)&"[" & J$11 & "]"), MATCH( secili_params_isveren_prim_oranlari_normal_1[[#This Row],[indx]], INDIRECT("Isveren_prim_oranlari_normal_"&yil_1&"_"&LEFT(ay_1,1)&"[indx]"), 0 ) ) -> Hazine (İmalat) | K18: =INDEX( INDIRECT("Isveren_prim_oranlari_normal_"&yil_1&"_"&LEFT(ay_1,1)&"[" & K$11 & "]"), MATCH( secili_params_isveren_prim_oranlari_normal_1[[#This Row],[indx]], INDIRECT("Isveren_prim_oranlari_normal_"&yil_1&"_"&LEFT(ay_1,1)&"[indx]"), 0 ) ) -> 0 | L18: =INDEX( INDIRECT("Isveren_prim_oranlari_normal_"&yil_1&"_"&LEFT(ay_1,1)&"[" & L$11 & "]"), MATCH( secili_params_isveren_prim_oranlari_normal_1[[#This Row],[indx]], INDIRECT("Isveren_prim_oranlari_normal_"&yil_1&"_"&LEFT(ay_1,1)&"[indx]"), 0 ) ) -> 0 | M18: =INDEX( INDIRECT("Isveren_prim_oranlari_normal_"&yil_1&"_"&LEFT(ay_1,1)&"[" & M$11 & "]"), MATCH( secili_params_isveren_prim_oranlari_normal_1[[#This Row],[indx]], INDIRECT("Isveren_prim_oranlari_normal_"&yil_1&"_"&LEFT(ay_1,1)&"[indx]"), 0 ) ) -> 0.05
C19: 15 | D19: =INDEX( INDIRECT("Ucret_Turleri_"&yil_1&"_"&LEFT(ay_1,1)&"[" & D$4 & "]"), MATCH( secili_params_ucret_turleri_1[[#This Row],[indx]], INDIRECT("Ucret_Turleri_"&yil_1&"_"&LEFT(ay_1,1)&"[indx]"), 0 ) ) -> Yemek Kartı GV İstisnası | E19: =INDEX( INDIRECT("Ucret_Turleri_"&yil_1&"_"&LEFT(ay_1,1)&"[" & E$4 & "]"), MATCH( secili_params_ucret_turleri_1[[#This Row],[indx]], INDIRECT("Ucret_Turleri_"&yil_1&"_"&LEFT(ay_1,1)&"[indx]"), 0 ) ) -> 240 | F19: =INDEX( INDIRECT("Ucret_Turleri_"&yil_1&"_"&LEFT(ay_1,1)&"[" & F$4 & "]"), MATCH( secili_params_ucret_turleri_1[[#This Row],[indx]], INDIRECT("Ucret_Turleri_"&yil_1&"_"&LEFT(ay_1,1)&"[indx]"), 0 ) ) -> 8 | G19: =INDEX( INDIRECT("Ucret_Turleri_"&yil_1&"_"&LEFT(ay_1,1)&"[" & G$4 & "]"), MATCH( secili_params_ucret_turleri_1[[#This Row],[indx]], INDIRECT("Ucret_Turleri_"&yil_1&"_"&LEFT(ay_1,1)&"[indx]"), 0 ) ) -> 1.066666667 | I19: 8 | J19: =INDEX( INDIRECT("Isveren_prim_oranlari_normal_"&yil_1&"_"&LEFT(ay_1,1)&"[" & J$11 & "]"), MATCH( secili_params_isveren_prim_oranlari_normal_1[[#This Row],[indx]], INDIRECT("Isveren_prim_oranlari_normal_"&yil_1&"_"&LEFT(ay_1,1)&"[indx]"), 0 ) ) -> Damga Vergisi Oranı | K19: =INDEX( INDIRECT("Isveren_prim_oranlari_normal_"&yil_1&"_"&LEFT(ay_1,1)&"[" & K$11 & "]"), MATCH( secili_params_isveren_prim_oranlari_normal_1[[#This Row],[indx]], INDIRECT("Isveren_prim_oranlari_normal_"&yil_1&"_"&LEFT(ay_1,1)&"[indx]"), 0 ) ) -> 0 | L19: =INDEX( INDIRECT("Isveren_prim_oranlari_normal_"&yil_1&"_"&LEFT(ay_1,1)&"[" & L$11 & "]"), MATCH( secili_params_isveren_prim_oranlari_normal_1[[#This Row],[indx]], INDIRECT("Isveren_prim_oranlari_normal_"&yil_1&"_"&LEFT(ay_1,1)&"[indx]"), 0 ) ) -> 0 | M19: =INDEX( INDIRECT("Isveren_prim_oranlari_normal_"&yil_1&"_"&LEFT(ay_1,1)&"[" & M$11 & "]"), MATCH( secili_params_isveren_prim_oranlari_normal_1[[#This Row],[indx]], INDIRECT("Isveren_prim_oranlari_normal_"&yil_1&"_"&LEFT(ay_1,1)&"[indx]"), 0 ) ) -> 0.00759
C20: 16 | D20: =INDEX( INDIRECT("Ucret_Turleri_"&yil_1&"_"&LEFT(ay_1,1)&"[" & D$4 & "]"), MATCH( secili_params_ucret_turleri_1[[#This Row],[indx]], INDIRECT("Ucret_Turleri_"&yil_1&"_"&LEFT(ay_1,1)&"[indx]"), 0 ) ) -> Nakit Yemek Parası GV İstisnası | E20: =INDEX( INDIRECT("Ucret_Turleri_"&yil_1&"_"&LEFT(ay_1,1)&"[" & E$4 & "]"), MATCH( secili_params_ucret_turleri_1[[#This Row],[indx]], INDIRECT("Ucret_Turleri_"&yil_1&"_"&LEFT(ay_1,1)&"[indx]"), 0 ) ) -> 240 | F20: =INDEX( INDIRECT("Ucret_Turleri_"&yil_1&"_"&LEFT(ay_1,1)&"[" & F$4 & "]"), MATCH( secili_params_ucret_turleri_1[[#This Row],[indx]], INDIRECT("Ucret_Turleri_"&yil_1&"_"&LEFT(ay_1,1)&"[indx]"), 0 ) ) -> 8 | G20: =INDEX( INDIRECT("Ucret_Turleri_"&yil_1&"_"&LEFT(ay_1,1)&"[" & G$4 & "]"), MATCH( secili_params_ucret_turleri_1[[#This Row],[indx]], INDIRECT("Ucret_Turleri_"&yil_1&"_"&LEFT(ay_1,1)&"[indx]"), 0 ) ) -> 1.066666667
C21: 17 | D21: =INDEX( INDIRECT("Ucret_Turleri_"&yil_1&"_"&LEFT(ay_1,1)&"[" & D$4 & "]"), MATCH( secili_params_ucret_turleri_1[[#This Row],[indx]], INDIRECT("Ucret_Turleri_"&yil_1&"_"&LEFT(ay_1,1)&"[indx]"), 0 ) ) -> Nakit Yemek Parası DV İstisnası | E21: =INDEX( INDIRECT("Ucret_Turleri_"&yil_1&"_"&LEFT(ay_1,1)&"[" & E$4 & "]"), MATCH( secili_params_ucret_turleri_1[[#This Row],[indx]], INDIRECT("Ucret_Turleri_"&yil_1&"_"&LEFT(ay_1,1)&"[indx]"), 0 ) ) -> 0 | F21: =INDEX( INDIRECT("Ucret_Turleri_"&yil_1&"_"&LEFT(ay_1,1)&"[" & F$4 & "]"), MATCH( secili_params_ucret_turleri_1[[#This Row],[indx]], INDIRECT("Ucret_Turleri_"&yil_1&"_"&LEFT(ay_1,1)&"[indx]"), 0 ) ) -> 0 | G21: =INDEX( INDIRECT("Ucret_Turleri_"&yil_1&"_"&LEFT(ay_1,1)&"[" & G$4 & "]"), MATCH( secili_params_ucret_turleri_1[[#This Row],[indx]], INDIRECT("Ucret_Turleri_"&yil_1&"_"&LEFT(ay_1,1)&"[indx]"), 0 ) ) -> 0 | I21: indx | J21: SGDP Oranı | K21: İşveren Payı | L21: Çalışan Payı | M21: Toplam
C22: 18 | D22: =INDEX( INDIRECT("Ucret_Turleri_"&yil_1&"_"&LEFT(ay_1,1)&"[" & D$4 & "]"), MATCH( secili_params_ucret_turleri_1[[#This Row],[indx]], INDIRECT("Ucret_Turleri_"&yil_1&"_"&LEFT(ay_1,1)&"[indx]"), 0 ) ) -> Yol/Ulaşım Kartı GV İstisnası | E22: =INDEX( INDIRECT("Ucret_Turleri_"&yil_1&"_"&LEFT(ay_1,1)&"[" & E$4 & "]"), MATCH( secili_params_ucret_turleri_1[[#This Row],[indx]], INDIRECT("Ucret_Turleri_"&yil_1&"_"&LEFT(ay_1,1)&"[indx]"), 0 ) ) -> 126 | F22: =INDEX( INDIRECT("Ucret_Turleri_"&yil_1&"_"&LEFT(ay_1,1)&"[" & F$4 & "]"), MATCH( secili_params_ucret_turleri_1[[#This Row],[indx]], INDIRECT("Ucret_Turleri_"&yil_1&"_"&LEFT(ay_1,1)&"[indx]"), 0 ) ) -> 4.2 | G22: =INDEX( INDIRECT("Ucret_Turleri_"&yil_1&"_"&LEFT(ay_1,1)&"[" & G$4 & "]"), MATCH( secili_params_ucret_turleri_1[[#This Row],[indx]], INDIRECT("Ucret_Turleri_"&yil_1&"_"&LEFT(ay_1,1)&"[indx]"), 0 ) ) -> 0.56 | I22: 1 | J22: =INDEX( INDIRECT("Isveren_prim_oranlari_emekli_"&yil_1&"_"&LEFT(ay_1,1)&"[" & J$21 & "]"), MATCH( secili_params_isveren_prim_oranlari_emekli_1[[#This Row],[indx]], INDIRECT("Isveren_prim_oranlari_emekli_"&yil_1&"_"&LEFT(ay_1,1)&"[indx]"), 0 ) ) -> Emekli Çalışan | K22: =INDEX( INDIRECT("Isveren_prim_oranlari_emekli_"&yil_1&"_"&LEFT(ay_1,1)&"[" & K$21 & "]"), MATCH( secili_params_isveren_prim_oranlari_emekli_1[[#This Row],[indx]], INDIRECT("Isveren_prim_oranlari_emekli_"&yil_1&"_"&LEFT(ay_1,1)&"[indx]"), 0 ) ) -> 0.2475 | L22: =INDEX( INDIRECT("Isveren_prim_oranlari_emekli_"&yil_1&"_"&LEFT(ay_1,1)&"[" & L$21 & "]"), MATCH( secili_params_isveren_prim_oranlari_emekli_1[[#This Row],[indx]], INDIRECT("Isveren_prim_oranlari_emekli_"&yil_1&"_"&LEFT(ay_1,1)&"[indx]"), 0 ) ) -> 0.075 | M22: =INDEX( INDIRECT("Isveren_prim_oranlari_emekli_"&yil_1&"_"&LEFT(ay_1,1)&"[" & M$21 & "]"), MATCH( secili_params_isveren_prim_oranlari_emekli_1[[#This Row],[indx]], INDIRECT("Isveren_prim_oranlari_emekli_"&yil_1&"_"&LEFT(ay_1,1)&"[indx]"), 0 ) ) -> 0.3225
C23: 19 | D23: =INDEX( INDIRECT("Ucret_Turleri_"&yil_1&"_"&LEFT(ay_1,1)&"[" & D$4 & "]"), MATCH( secili_params_ucret_turleri_1[[#This Row],[indx]], INDIRECT("Ucret_Turleri_"&yil_1&"_"&LEFT(ay_1,1)&"[indx]"), 0 ) ) -> Çocuk Yardımı GV İstisnası – 0-6 yaş | E23: =INDEX( INDIRECT("Ucret_Turleri_"&yil_1&"_"&LEFT(ay_1,1)&"[" & E$4 & "]"), MATCH( secili_params_ucret_turleri_1[[#This Row],[indx]], INDIRECT("Ucret_Turleri_"&yil_1&"_"&LEFT(ay_1,1)&"[indx]"), 0 ) ) -> 506.28 | F23: =INDEX( INDIRECT("Ucret_Turleri_"&yil_1&"_"&LEFT(ay_1,1)&"[" & F$4 & "]"), MATCH( secili_params_ucret_turleri_1[[#This Row],[indx]], INDIRECT("Ucret_Turleri_"&yil_1&"_"&LEFT(ay_1,1)&"[indx]"), 0 ) ) -> 16.876 | G23: =INDEX( INDIRECT("Ucret_Turleri_"&yil_1&"_"&LEFT(ay_1,1)&"[" & G$4 & "]"), MATCH( secili_params_ucret_turleri_1[[#This Row],[indx]], INDIRECT("Ucret_Turleri_"&yil_1&"_"&LEFT(ay_1,1)&"[indx]"), 0 ) ) -> 2.250133333
C24: 20 | D24: =INDEX( INDIRECT("Ucret_Turleri_"&yil_1&"_"&LEFT(ay_1,1)&"[" & D$4 & "]"), MATCH( secili_params_ucret_turleri_1[[#This Row],[indx]], INDIRECT("Ucret_Turleri_"&yil_1&"_"&LEFT(ay_1,1)&"[indx]"), 0 ) ) -> Çocuk Yardımı GV İstisnası – 6 yaş üzeri | E24: =INDEX( INDIRECT("Ucret_Turleri_"&yil_1&"_"&LEFT(ay_1,1)&"[" & E$4 & "]"), MATCH( secili_params_ucret_turleri_1[[#This Row],[indx]], INDIRECT("Ucret_Turleri_"&yil_1&"_"&LEFT(ay_1,1)&"[indx]"), 0 ) ) -> 253.14 | F24: =INDEX( INDIRECT("Ucret_Turleri_"&yil_1&"_"&LEFT(ay_1,1)&"[" & F$4 & "]"), MATCH( secili_params_ucret_turleri_1[[#This Row],[indx]], INDIRECT("Ucret_Turleri_"&yil_1&"_"&LEFT(ay_1,1)&"[indx]"), 0 ) ) -> 8.438 | G24: =INDEX( INDIRECT("Ucret_Turleri_"&yil_1&"_"&LEFT(ay_1,1)&"[" & G$4 & "]"), MATCH( secili_params_ucret_turleri_1[[#This Row],[indx]], INDIRECT("Ucret_Turleri_"&yil_1&"_"&LEFT(ay_1,1)&"[indx]"), 0 ) ) -> 1.125066667
C25: 21 | D25: =INDEX( INDIRECT("Ucret_Turleri_"&yil_1&"_"&LEFT(ay_1,1)&"[" & D$4 & "]"), MATCH( secili_params_ucret_turleri_1[[#This Row],[indx]], INDIRECT("Ucret_Turleri_"&yil_1&"_"&LEFT(ay_1,1)&"[indx]"), 0 ) ) -> Emzirme Ödeneği | E25: =INDEX( INDIRECT("Ucret_Turleri_"&yil_1&"_"&LEFT(ay_1,1)&"[" & E$4 & "]"), MATCH( secili_params_ucret_turleri_1[[#This Row],[indx]], INDIRECT("Ucret_Turleri_"&yil_1&"_"&LEFT(ay_1,1)&"[indx]"), 0 ) ) -> 1238 | F25: =INDEX( INDIRECT("Ucret_Turleri_"&yil_1&"_"&LEFT(ay_1,1)&"[" & F$4 & "]"), MATCH( secili_params_ucret_turleri_1[[#This Row],[indx]], INDIRECT("Ucret_Turleri_"&yil_1&"_"&LEFT(ay_1,1)&"[indx]"), 0 ) ) -> 41.26666667 | G25: =INDEX( INDIRECT("Ucret_Turleri_"&yil_1&"_"&LEFT(ay_1,1)&"[" & G$4 & "]"), MATCH( secili_params_ucret_turleri_1[[#This Row],[indx]], INDIRECT("Ucret_Turleri_"&yil_1&"_"&LEFT(ay_1,1)&"[indx]"), 0 ) ) -> 5.502222222
C26: 22 | D26: =INDEX( INDIRECT("Ucret_Turleri_"&yil_1&"_"&LEFT(ay_1,1)&"[" & D$4 & "]"), MATCH( secili_params_ucret_turleri_1[[#This Row],[indx]], INDIRECT("Ucret_Turleri_"&yil_1&"_"&LEFT(ay_1,1)&"[indx]"), 0 ) ) -> İşsizlik Ödeneği – Alt Limit | E26: =INDEX( INDIRECT("Ucret_Turleri_"&yil_1&"_"&LEFT(ay_1,1)&"[" & E$4 & "]"), MATCH( secili_params_ucret_turleri_1[[#This Row],[indx]], INDIRECT("Ucret_Turleri_"&yil_1&"_"&LEFT(ay_1,1)&"[indx]"), 0 ) ) -> 10323.25 | F26: =INDEX( INDIRECT("Ucret_Turleri_"&yil_1&"_"&LEFT(ay_1,1)&"[" & F$4 & "]"), MATCH( secili_params_ucret_turleri_1[[#This Row],[indx]], INDIRECT("Ucret_Turleri_"&yil_1&"_"&LEFT(ay_1,1)&"[indx]"), 0 ) ) -> 344.1083333 | G26: =INDEX( INDIRECT("Ucret_Turleri_"&yil_1&"_"&LEFT(ay_1,1)&"[" & G$4 & "]"), MATCH( secili_params_ucret_turleri_1[[#This Row],[indx]], INDIRECT("Ucret_Turleri_"&yil_1&"_"&LEFT(ay_1,1)&"[indx]"), 0 ) ) -> 45.88111111
C27: 23 | D27: =INDEX( INDIRECT("Ucret_Turleri_"&yil_1&"_"&LEFT(ay_1,1)&"[" & D$4 & "]"), MATCH( secili_params_ucret_turleri_1[[#This Row],[indx]], INDIRECT("Ucret_Turleri_"&yil_1&"_"&LEFT(ay_1,1)&"[indx]"), 0 ) ) -> İşsizlik Ödeneği – Üst Limit | E27: =INDEX( INDIRECT("Ucret_Turleri_"&yil_1&"_"&LEFT(ay_1,1)&"[" & E$4 & "]"), MATCH( secili_params_ucret_turleri_1[[#This Row],[indx]], INDIRECT("Ucret_Turleri_"&yil_1&"_"&LEFT(ay_1,1)&"[indx]"), 0 ) ) -> 20646.49 | F27: =INDEX( INDIRECT("Ucret_Turleri_"&yil_1&"_"&LEFT(ay_1,1)&"[" & F$4 & "]"), MATCH( secili_params_ucret_turleri_1[[#This Row],[indx]], INDIRECT("Ucret_Turleri_"&yil_1&"_"&LEFT(ay_1,1)&"[indx]"), 0 ) ) -> 688.2163333 | G27: =INDEX( INDIRECT("Ucret_Turleri_"&yil_1&"_"&LEFT(ay_1,1)&"[" & G$4 & "]"), MATCH( secili_params_ucret_turleri_1[[#This Row],[indx]], INDIRECT("Ucret_Turleri_"&yil_1&"_"&LEFT(ay_1,1)&"[indx]"), 0 ) ) -> 91.76217778
C28: 24 | D28: =INDEX( INDIRECT("Ucret_Turleri_"&yil_1&"_"&LEFT(ay_1,1)&"[" & D$4 & "]"), MATCH( secili_params_ucret_turleri_1[[#This Row],[indx]], INDIRECT("Ucret_Turleri_"&yil_1&"_"&LEFT(ay_1,1)&"[indx]"), 0 ) ) -> İş Göremezlik Ödeneği Ayakta Tedavi – Alt Limit | E28: =INDEX( INDIRECT("Ucret_Turleri_"&yil_1&"_"&LEFT(ay_1,1)&"[" & E$4 & "]"), MATCH( secili_params_ucret_turleri_1[[#This Row],[indx]], INDIRECT("Ucret_Turleri_"&yil_1&"_"&LEFT(ay_1,1)&"[indx]"), 0 ) ) -> 17337 | F28: =INDEX( INDIRECT("Ucret_Turleri_"&yil_1&"_"&LEFT(ay_1,1)&"[" & F$4 & "]"), MATCH( secili_params_ucret_turleri_1[[#This Row],[indx]], INDIRECT("Ucret_Turleri_"&yil_1&"_"&LEFT(ay_1,1)&"[indx]"), 0 ) ) -> 577.9 | G28: =INDEX( INDIRECT("Ucret_Turleri_"&yil_1&"_"&LEFT(ay_1,1)&"[" & G$4 & "]"), MATCH( secili_params_ucret_turleri_1[[#This Row],[indx]], INDIRECT("Ucret_Turleri_"&yil_1&"_"&LEFT(ay_1,1)&"[indx]"), 0 ) ) -> 77.05333333
C29: 25 | D29: =INDEX( INDIRECT("Ucret_Turleri_"&yil_1&"_"&LEFT(ay_1,1)&"[" & D$4 & "]"), MATCH( secili_params_ucret_turleri_1[[#This Row],[indx]], INDIRECT("Ucret_Turleri_"&yil_1&"_"&LEFT(ay_1,1)&"[indx]"), 0 ) ) -> İş Göremezlik Ödeneği Ayakta Tedavi – Üst Limit | E29: =INDEX( INDIRECT("Ucret_Turleri_"&yil_1&"_"&LEFT(ay_1,1)&"[" & E$4 & "]"), MATCH( secili_params_ucret_turleri_1[[#This Row],[indx]], INDIRECT("Ucret_Turleri_"&yil_1&"_"&LEFT(ay_1,1)&"[indx]"), 0 ) ) -> 130027.5 | F29: =INDEX( INDIRECT("Ucret_Turleri_"&yil_1&"_"&LEFT(ay_1,1)&"[" & F$4 & "]"), MATCH( secili_params_ucret_turleri_1[[#This Row],[indx]], INDIRECT("Ucret_Turleri_"&yil_1&"_"&LEFT(ay_1,1)&"[indx]"), 0 ) ) -> 4334.25 | G29: =INDEX( INDIRECT("Ucret_Turleri_"&yil_1&"_"&LEFT(ay_1,1)&"[" & G$4 & "]"), MATCH( secili_params_ucret_turleri_1[[#This Row],[indx]], INDIRECT("Ucret_Turleri_"&yil_1&"_"&LEFT(ay_1,1)&"[indx]"), 0 ) ) -> 577.9
C30: 26 | D30: =INDEX( INDIRECT("Ucret_Turleri_"&yil_1&"_"&LEFT(ay_1,1)&"[" & D$4 & "]"), MATCH( secili_params_ucret_turleri_1[[#This Row],[indx]], INDIRECT("Ucret_Turleri_"&yil_1&"_"&LEFT(ay_1,1)&"[indx]"), 0 ) ) -> İş Göremezlik Ödeneği Yatarak Tedavi – Alt Limit | E30: =INDEX( INDIRECT("Ucret_Turleri_"&yil_1&"_"&LEFT(ay_1,1)&"[" & E$4 & "]"), MATCH( secili_params_ucret_turleri_1[[#This Row],[indx]], INDIRECT("Ucret_Turleri_"&yil_1&"_"&LEFT(ay_1,1)&"[indx]"), 0 ) ) -> 13002.9 | F30: =INDEX( INDIRECT("Ucret_Turleri_"&yil_1&"_"&LEFT(ay_1,1)&"[" & F$4 & "]"), MATCH( secili_params_ucret_turleri_1[[#This Row],[indx]], INDIRECT("Ucret_Turleri_"&yil_1&"_"&LEFT(ay_1,1)&"[indx]"), 0 ) ) -> 433.43 | G30: =INDEX( INDIRECT("Ucret_Turleri_"&yil_1&"_"&LEFT(ay_1,1)&"[" & G$4 & "]"), MATCH( secili_params_ucret_turleri_1[[#This Row],[indx]], INDIRECT("Ucret_Turleri_"&yil_1&"_"&LEFT(ay_1,1)&"[indx]"), 0 ) ) -> 57.79066667
C31: 27 | D31: =INDEX( INDIRECT("Ucret_Turleri_"&yil_1&"_"&LEFT(ay_1,1)&"[" & D$4 & "]"), MATCH( secili_params_ucret_turleri_1[[#This Row],[indx]], INDIRECT("Ucret_Turleri_"&yil_1&"_"&LEFT(ay_1,1)&"[indx]"), 0 ) ) -> İş Göremezlik Ödeneği Yatarak Tedavi – Üst Limit | E31: =INDEX( INDIRECT("Ucret_Turleri_"&yil_1&"_"&LEFT(ay_1,1)&"[" & E$4 & "]"), MATCH( secili_params_ucret_turleri_1[[#This Row],[indx]], INDIRECT("Ucret_Turleri_"&yil_1&"_"&LEFT(ay_1,1)&"[indx]"), 0 ) ) -> 97520.7 | F31: =INDEX( INDIRECT("Ucret_Turleri_"&yil_1&"_"&LEFT(ay_1,1)&"[" & F$4 & "]"), MATCH( secili_params_ucret_turleri_1[[#This Row],[indx]], INDIRECT("Ucret_Turleri_"&yil_1&"_"&LEFT(ay_1,1)&"[indx]"), 0 ) ) -> 3250.69 | G31: =INDEX( INDIRECT("Ucret_Turleri_"&yil_1&"_"&LEFT(ay_1,1)&"[" & G$4 & "]"), MATCH( secili_params_ucret_turleri_1[[#This Row],[indx]], INDIRECT("Ucret_Turleri_"&yil_1&"_"&LEFT(ay_1,1)&"[indx]"), 0 ) ) -> 433.4253333
C32: 28 | D32: =INDEX( INDIRECT("Ucret_Turleri_"&yil_1&"_"&LEFT(ay_1,1)&"[" & D$4 & "]"), MATCH( secili_params_ucret_turleri_1[[#This Row],[indx]], INDIRECT("Ucret_Turleri_"&yil_1&"_"&LEFT(ay_1,1)&"[indx]"), 0 ) ) -> Yarım Çalışma Ödeneği | E32: =INDEX( INDIRECT("Ucret_Turleri_"&yil_1&"_"&LEFT(ay_1,1)&"[" & E$4 & "]"), MATCH( secili_params_ucret_turleri_1[[#This Row],[indx]], INDIRECT("Ucret_Turleri_"&yil_1&"_"&LEFT(ay_1,1)&"[indx]"), 0 ) ) -> 860.27 | F32: =INDEX( INDIRECT("Ucret_Turleri_"&yil_1&"_"&LEFT(ay_1,1)&"[" & F$4 & "]"), MATCH( secili_params_ucret_turleri_1[[#This Row],[indx]], INDIRECT("Ucret_Turleri_"&yil_1&"_"&LEFT(ay_1,1)&"[indx]"), 0 ) ) -> 28.67566667 | G32: =INDEX( INDIRECT("Ucret_Turleri_"&yil_1&"_"&LEFT(ay_1,1)&"[" & G$4 & "]"), MATCH( secili_params_ucret_turleri_1[[#This Row],[indx]], INDIRECT("Ucret_Turleri_"&yil_1&"_"&LEFT(ay_1,1)&"[indx]"), 0 ) ) -> 3.823422222
C33: 29 | D33: =INDEX( INDIRECT("Ucret_Turleri_"&yil_1&"_"&LEFT(ay_1,1)&"[" & D$4 & "]"), MATCH( secili_params_ucret_turleri_1[[#This Row],[indx]], INDIRECT("Ucret_Turleri_"&yil_1&"_"&LEFT(ay_1,1)&"[indx]"), 0 ) ) ->  | E33: =INDEX( INDIRECT("Ucret_Turleri_"&yil_1&"_"&LEFT(ay_1,1)&"[" & E$4 & "]"), MATCH( secili_params_ucret_turleri_1[[#This Row],[indx]], INDIRECT("Ucret_Turleri_"&yil_1&"_"&LEFT(ay_1,1)&"[indx]"), 0 ) ) ->  | F33: =INDEX( INDIRECT("Ucret_Turleri_"&yil_1&"_"&LEFT(ay_1,1)&"[" & F$4 & "]"), MATCH( secili_params_ucret_turleri_1[[#This Row],[indx]], INDIRECT("Ucret_Turleri_"&yil_1&"_"&LEFT(ay_1,1)&"[indx]"), 0 ) ) ->  | G33: =INDEX( INDIRECT("Ucret_Turleri_"&yil_1&"_"&LEFT(ay_1,1)&"[" & G$4 & "]"), MATCH( secili_params_ucret_turleri_1[[#This Row],[indx]], INDIRECT("Ucret_Turleri_"&yil_1&"_"&LEFT(ay_1,1)&"[indx]"), 0 ) ) -> 
C34: 30 | D34: =INDEX( INDIRECT("Ucret_Turleri_"&yil_1&"_"&LEFT(ay_1,1)&"[" & D$4 & "]"), MATCH( secili_params_ucret_turleri_1[[#This Row],[indx]], INDIRECT("Ucret_Turleri_"&yil_1&"_"&LEFT(ay_1,1)&"[indx]"), 0 ) ) ->  | E34: =INDEX( INDIRECT("Ucret_Turleri_"&yil_1&"_"&LEFT(ay_1,1)&"[" & E$4 & "]"), MATCH( secili_params_ucret_turleri_1[[#This Row],[indx]], INDIRECT("Ucret_Turleri_"&yil_1&"_"&LEFT(ay_1,1)&"[indx]"), 0 ) ) ->  | F34: =INDEX( INDIRECT("Ucret_Turleri_"&yil_1&"_"&LEFT(ay_1,1)&"[" & F$4 & "]"), MATCH( secili_params_ucret_turleri_1[[#This Row],[indx]], INDIRECT("Ucret_Turleri_"&yil_1&"_"&LEFT(ay_1,1)&"[indx]"), 0 ) ) ->  | G34: =INDEX( INDIRECT("Ucret_Turleri_"&yil_1&"_"&LEFT(ay_1,1)&"[" & G$4 & "]"), MATCH( secili_params_ucret_turleri_1[[#This Row],[indx]], INDIRECT("Ucret_Turleri_"&yil_1&"_"&LEFT(ay_1,1)&"[indx]"), 0 ) ) -> 
C35: 31 | D35: =INDEX( INDIRECT("Ucret_Turleri_"&yil_1&"_"&LEFT(ay_1,1)&"[" & D$4 & "]"), MATCH( secili_params_ucret_turleri_1[[#This Row],[indx]], INDIRECT("Ucret_Turleri_"&yil_1&"_"&LEFT(ay_1,1)&"[indx]"), 0 ) ) ->  | E35: =INDEX( INDIRECT("Ucret_Turleri_"&yil_1&"_"&LEFT(ay_1,1)&"[" & E$4 & "]"), MATCH( secili_params_ucret_turleri_1[[#This Row],[indx]], INDIRECT("Ucret_Turleri_"&yil_1&"_"&LEFT(ay_1,1)&"[indx]"), 0 ) ) ->  | F35: =INDEX( INDIRECT("Ucret_Turleri_"&yil_1&"_"&LEFT(ay_1,1)&"[" & F$4 & "]"), MATCH( secili_params_ucret_turleri_1[[#This Row],[indx]], INDIRECT("Ucret_Turleri_"&yil_1&"_"&LEFT(ay_1,1)&"[indx]"), 0 ) ) ->  | G35: =INDEX( INDIRECT("Ucret_Turleri_"&yil_1&"_"&LEFT(ay_1,1)&"[" & G$4 & "]"), MATCH( secili_params_ucret_turleri_1[[#This Row],[indx]], INDIRECT("Ucret_Turleri_"&yil_1&"_"&LEFT(ay_1,1)&"[indx]"), 0 ) ) -> 
C36: 32 | D36: =INDEX( INDIRECT("Ucret_Turleri_"&yil_1&"_"&LEFT(ay_1,1)&"[" & D$4 & "]"), MATCH( secili_params_ucret_turleri_1[[#This Row],[indx]], INDIRECT("Ucret_Turleri_"&yil_1&"_"&LEFT(ay_1,1)&"[indx]"), 0 ) ) ->  | E36: =INDEX( INDIRECT("Ucret_Turleri_"&yil_1&"_"&LEFT(ay_1,1)&"[" & E$4 & "]"), MATCH( secili_params_ucret_turleri_1[[#This Row],[indx]], INDIRECT("Ucret_Turleri_"&yil_1&"_"&LEFT(ay_1,1)&"[indx]"), 0 ) ) ->  | F36: =INDEX( INDIRECT("Ucret_Turleri_"&yil_1&"_"&LEFT(ay_1,1)&"[" & F$4 & "]"), MATCH( secili_params_ucret_turleri_1[[#This Row],[indx]], INDIRECT("Ucret_Turleri_"&yil_1&"_"&LEFT(ay_1,1)&"[indx]"), 0 ) ) ->  | G36: =INDEX( INDIRECT("Ucret_Turleri_"&yil_1&"_"&LEFT(ay_1,1)&"[" & G$4 & "]"), MATCH( secili_params_ucret_turleri_1[[#This Row],[indx]], INDIRECT("Ucret_Turleri_"&yil_1&"_"&LEFT(ay_1,1)&"[indx]"), 0 ) ) -> 
C37: 33 | D37: =INDEX( INDIRECT("Ucret_Turleri_"&yil_1&"_"&LEFT(ay_1,1)&"[" & D$4 & "]"), MATCH( secili_params_ucret_turleri_1[[#This Row],[indx]], INDIRECT("Ucret_Turleri_"&yil_1&"_"&LEFT(ay_1,1)&"[indx]"), 0 ) ) ->  | E37: =INDEX( INDIRECT("Ucret_Turleri_"&yil_1&"_"&LEFT(ay_1,1)&"[" & E$4 & "]"), MATCH( secili_params_ucret_turleri_1[[#This Row],[indx]], INDIRECT("Ucret_Turleri_"&yil_1&"_"&LEFT(ay_1,1)&"[indx]"), 0 ) ) ->  | F37: =INDEX( INDIRECT("Ucret_Turleri_"&yil_1&"_"&LEFT(ay_1,1)&"[" & F$4 & "]"), MATCH( secili_params_ucret_turleri_1[[#This Row],[indx]], INDIRECT("Ucret_Turleri_"&yil_1&"_"&LEFT(ay_1,1)&"[indx]"), 0 ) ) ->  | G37: =INDEX( INDIRECT("Ucret_Turleri_"&yil_1&"_"&LEFT(ay_1,1)&"[" & G$4 & "]"), MATCH( secili_params_ucret_turleri_1[[#This Row],[indx]], INDIRECT("Ucret_Turleri_"&yil_1&"_"&LEFT(ay_1,1)&"[indx]"), 0 ) ) -> 

Sheet params_BORD_2 (hidden)
A1: =DATE(B2,MATCH(UPPER(C2),{"OCAK","ŞUBAT","MART","NİSAN","MAYIS","HAZİRAN","TEMMUZ","AĞUSTOS","EYLÜL","EKİM","KASIM","ARALIK"},0),1) -> 
A2: =DATE(YEAR(A1),MONTH(A1)+1,0) ->  | B2: =sm_b!B2 -> 2025 | C2: 2. Dönem
C4: indx | D4: Ücret Türü | E4: Aylık | F4: Günlük | G4: Saatlik | I4: indx | J4: VERGİ | K4: DİLİMLERİ | L4: VERGİ ORANLARI | M4: VERGİ KESİNTİSİ
C5: 1 | D5: =INDEX( INDIRECT("Ucret_Turleri_"&yil_1&"_"&LEFT(ay_2,1)&"[" & D$4 & "]"), MATCH( secili_params_ucret_turleri_2[[#This Row],[indx]], INDIRECT("Ucret_Turleri_"&yil_1&"_"&LEFT(ay_2,1)&"[indx]"), 0 ) ) -> Asgari Brüt | E5: =INDEX( INDIRECT("Ucret_Turleri_"&yil_1&"_"&LEFT(ay_2,1)&"[" & E$4 & "]"), MATCH( secili_params_ucret_turleri_2[[#This Row],[indx]], INDIRECT("Ucret_Turleri_"&yil_1&"_"&LEFT(ay_2,1)&"[indx]"), 0 ) ) -> 26005.5 | F5: =INDEX( INDIRECT("Ucret_Turleri_"&yil_1&"_"&LEFT(ay_2,1)&"[" & F$4 & "]"), MATCH( secili_params_ucret_turleri_2[[#This Row],[indx]], INDIRECT("Ucret_Turleri_"&yil_1&"_"&LEFT(ay_2,1)&"[indx]"), 0 ) ) -> 866.85 | G5: =INDEX( INDIRECT("Ucret_Turleri_"&yil_1&"_"&LEFT(ay_2,1)&"[" & G$4 & "]"), MATCH( secili_params_ucret_turleri_2[[#This Row],[indx]], INDIRECT("Ucret_Turleri_"&yil_1&"_"&LEFT(ay_2,1)&"[indx]"), 0 ) ) -> 115.58 | I5: 1 | J5: =INDEX( INDIRECT("Vergi_Dilimleri_"&yil_1&"_"&LEFT(ay_2,1)&"[" & J$4 & "]"), MATCH( secili_params_vergi_dilimleri_2[[#This Row],[indx]], INDIRECT("Vergi_Dilimleri_"&yil_1&"_"&LEFT(ay_2,1)&"[indx]"), 0 ) ) -> 0 | K5: =INDEX( INDIRECT("Vergi_Dilimleri_"&yil_1&"_"&LEFT(ay_2,1)&"[" & K$4 & "]"), MATCH( secili_params_vergi_dilimleri_2[[#This Row],[indx]], INDIRECT("Vergi_Dilimleri_"&yil_1&"_"&LEFT(ay_2,1)&"[indx]"), 0 ) ) -> 158000 | L5: =INDEX( INDIRECT("Vergi_Dilimleri_"&yil_1&"_"&LEFT(ay_2,1)&"[" & L$4 & "]"), MATCH( secili_params_vergi_dilimleri_2[[#This Row],[indx]], INDIRECT("Vergi_Dilimleri_"&yil_1&"_"&LEFT(ay_2,1)&"[indx]"), 0 ) ) -> 0.15 | M5: =INDEX( INDIRECT("Vergi_Dilimleri_"&yil_1&"_"&LEFT(ay_2,1)&"[" & M$4 & "]"), MATCH( secili_params_vergi_dilimleri_2[[#This Row],[indx]], INDIRECT("Vergi_Dilimleri_"&yil_1&"_"&LEFT(ay_2,1)&"[indx]"), 0 ) ) -> 23700
C6: =C5+1 -> 2 | D6: =INDEX( INDIRECT("Ucret_Turleri_"&yil_1&"_"&LEFT(ay_2,1)&"[" & D$4 & "]"), MATCH( secili_params_ucret_turleri_2[[#This Row],[indx]], INDIRECT("Ucret_Turleri_"&yil_1&"_"&LEFT(ay_2,1)&"[indx]"), 0 ) ) -> SGK Tavan | E6: =INDEX( INDIRECT("Ucret_Turleri_"&yil_1&"_"&LEFT(ay_2,1)&"[" & E$4 & "]"), MATCH( secili_params_ucret_turleri_2[[#This Row],[indx]], INDIRECT("Ucret_Turleri_"&yil_1&"_"&LEFT(ay_2,1)&"[indx]"), 0 ) ) -> 195041.4 | F6: =INDEX( INDIRECT("Ucret_Turleri_"&yil_1&"_"&LEFT(ay_2,1)&"[" & F$4 & "]"), MATCH( secili_params_ucret_turleri_2[[#This Row],[indx]], INDIRECT("Ucret_Turleri_"&yil_1&"_"&LEFT(ay_2,1)&"[indx]"), 0 ) ) -> 6501.38 | G6: =INDEX( INDIRECT("Ucret_Turleri_"&yil_1&"_"&LEFT(ay_2,1)&"[" & G$4 & "]"), MATCH( secili_params_ucret_turleri_2[[#This Row],[indx]], INDIRECT("Ucret_Turleri_"&yil_1&"_"&LEFT(ay_2,1)&"[indx]"), 0 ) ) -> 866.8506667 | I6: =I5+1 -> 2 | J6: =INDEX( INDIRECT("Vergi_Dilimleri_"&yil_1&"_"&LEFT(ay_2,1)&"[" & J$4 & "]"), MATCH( secili_params_vergi_dilimleri_2[[#This Row],[indx]], INDIRECT("Vergi_Dilimleri_"&yil_1&"_"&LEFT(ay_2,1)&"[indx]"), 0 ) ) -> 158000.01 | K6: =INDEX( INDIRECT("Vergi_Dilimleri_"&yil_1&"_"&LEFT(ay_2,1)&"[" & K$4 & "]"), MATCH( secili_params_vergi_dilimleri_2[[#This Row],[indx]], INDIRECT("Vergi_Dilimleri_"&yil_1&"_"&LEFT(ay_2,1)&"[indx]"), 0 ) ) -> 330000 | L6: =INDEX( INDIRECT("Vergi_Dilimleri_"&yil_1&"_"&LEFT(ay_2,1)&"[" & L$4 & "]"), MATCH( secili_params_vergi_dilimleri_2[[#This Row],[indx]], INDIRECT("Vergi_Dilimleri_"&yil_1&"_"&LEFT(ay_2,1)&"[indx]"), 0 ) ) -> 0.2 | M6: =INDEX( INDIRECT("Vergi_Dilimleri_"&yil_1&"_"&LEFT(ay_2,1)&"[" & M$4 & "]"), MATCH( secili_params_vergi_dilimleri_2[[#This Row],[indx]], INDIRECT("Vergi_Dilimleri_"&yil_1&"_"&LEFT(ay_2,1)&"[indx]"), 0 ) ) -> 66000
C7: =C6+1 -> 3 | D7: =INDEX( INDIRECT("Ucret_Turleri_"&yil_1&"_"&LEFT(ay_2,1)&"[" & D$4 & "]"), MATCH( secili_params_ucret_turleri_2[[#This Row],[indx]], INDIRECT("Ucret_Turleri_"&yil_1&"_"&LEFT(ay_2,1)&"[indx]"), 0 ) ) -> Net Ücret | E7: =INDEX( INDIRECT("Ucret_Turleri_"&yil_1&"_"&LEFT(ay_2,1)&"[" & E$4 & "]"), MATCH( secili_params_ucret_turleri_2[[#This Row],[indx]], INDIRECT("Ucret_Turleri_"&yil_1&"_"&LEFT(ay_2,1)&"[indx]"), 0 ) ) -> 22104.67 | F7: =INDEX( INDIRECT("Ucret_Turleri_"&yil_1&"_"&LEFT(ay_2,1)&"[" & F$4 & "]"), MATCH( secili_params_ucret_turleri_2[[#This Row],[indx]], INDIRECT("Ucret_Turleri_"&yil_1&"_"&LEFT(ay_2,1)&"[indx]"), 0 ) ) -> 736.8223333 | G7: =INDEX( INDIRECT("Ucret_Turleri_"&yil_1&"_"&LEFT(ay_2,1)&"[" & G$4 & "]"), MATCH( secili_params_ucret_turleri_2[[#This Row],[indx]], INDIRECT("Ucret_Turleri_"&yil_1&"_"&LEFT(ay_2,1)&"[indx]"), 0 ) ) -> 98.24297778 | I7: =I6+1 -> 3 | J7: =INDEX( INDIRECT("Vergi_Dilimleri_"&yil_1&"_"&LEFT(ay_2,1)&"[" & J$4 & "]"), MATCH( secili_params_vergi_dilimleri_2[[#This Row],[indx]], INDIRECT("Vergi_Dilimleri_"&yil_1&"_"&LEFT(ay_2,1)&"[indx]"), 0 ) ) -> 330000.01 | K7: =INDEX( INDIRECT("Vergi_Dilimleri_"&yil_1&"_"&LEFT(ay_2,1)&"[" & K$4 & "]"), MATCH( secili_params_vergi_dilimleri_2[[#This Row],[indx]], INDIRECT("Vergi_Dilimleri_"&yil_1&"_"&LEFT(ay_2,1)&"[indx]"), 0 ) ) -> 1200000 | L7: =INDEX( INDIRECT("Vergi_Dilimleri_"&yil_1&"_"&LEFT(ay_2,1)&"[" & L$4 & "]"), MATCH( secili_params_vergi_dilimleri_2[[#This Row],[indx]], INDIRECT("Vergi_Dilimleri_"&yil_1&"_"&LEFT(ay_2,1)&"[indx]"), 0 ) ) -> 0.27 | M7: =INDEX( INDIRECT("Vergi_Dilimleri_"&yil_1&"_"&LEFT(ay_2,1)&"[" & M$4 & "]"), MATCH( secili_params_vergi_dilimleri_2[[#This Row],[indx]], INDIRECT("Vergi_Dilimleri_"&yil_1&"_"&LEFT(ay_2,1)&"[indx]"), 0 ) ) -> 324000
C8: 4 | D8: =INDEX( INDIRECT("Ucret_Turleri_"&yil_1&"_"&LEFT(ay_2,1)&"[" & D$4 & "]"), MATCH( secili_params_ucret_turleri_2[[#This Row],[indx]], INDIRECT("Ucret_Turleri_"&yil_1&"_"&LEFT(ay_2,1)&"[indx]"), 0 ) ) -> Emekli Net Ücret (Yıllık Ortalama) | E8: =INDEX( INDIRECT("Ucret_Turleri_"&yil_1&"_"&LEFT(ay_2,1)&"[" & E$4 & "]"), MATCH( secili_params_ucret_turleri_2[[#This Row],[indx]], INDIRECT("Ucret_Turleri_"&yil_1&"_"&LEFT(ay_2,1)&"[indx]"), 0 ) ) -> 23665.01 | F8: =INDEX( INDIRECT("Ucret_Turleri_"&yil_1&"_"&LEFT(ay_2,1)&"[" & F$4 & "]"), MATCH( secili_params_ucret_turleri_2[[#This Row],[indx]], INDIRECT("Ucret_Turleri_"&yil_1&"_"&LEFT(ay_2,1)&"[indx]"), 0 ) ) -> 788.8336667 | G8: =INDEX( INDIRECT("Ucret_Turleri_"&yil_1&"_"&LEFT(ay_2,1)&"[" & G$4 & "]"), MATCH( secili_params_ucret_turleri_2[[#This Row],[indx]], INDIRECT("Ucret_Turleri_"&yil_1&"_"&LEFT(ay_2,1)&"[indx]"), 0 ) ) -> 105.1778222 | I8: 4 | J8: =INDEX( INDIRECT("Vergi_Dilimleri_"&yil_1&"_"&LEFT(ay_2,1)&"[" & J$4 & "]"), MATCH( secili_params_vergi_dilimleri_2[[#This Row],[indx]], INDIRECT("Vergi_Dilimleri_"&yil_1&"_"&LEFT(ay_2,1)&"[indx]"), 0 ) ) -> 1200000.01 | K8: =INDEX( INDIRECT("Vergi_Dilimleri_"&yil_1&"_"&LEFT(ay_2,1)&"[" & K$4 & "]"), MATCH( secili_params_vergi_dilimleri_2[[#This Row],[indx]], INDIRECT("Vergi_Dilimleri_"&yil_1&"_"&LEFT(ay_2,1)&"[indx]"), 0 ) ) -> 4300000 | L8: =INDEX( INDIRECT("Vergi_Dilimleri_"&yil_1&"_"&LEFT(ay_2,1)&"[" & L$4 & "]"), MATCH( secili_params_vergi_dilimleri_2[[#This Row],[indx]], INDIRECT("Vergi_Dilimleri_"&yil_1&"_"&LEFT(ay_2,1)&"[indx]"), 0 ) ) -> 0.35 | M8: =INDEX( INDIRECT("Vergi_Dilimleri_"&yil_1&"_"&LEFT(ay_2,1)&"[" & M$4 & "]"), MATCH( secili_params_vergi_dilimleri_2[[#This Row],[indx]], INDIRECT("Vergi_Dilimleri_"&yil_1&"_"&LEFT(ay_2,1)&"[indx]"), 0 ) ) -> 1505000
C9: 5 | D9: =INDEX( INDIRECT("Ucret_Turleri_"&yil_1&"_"&LEFT(ay_2,1)&"[" & D$4 & "]"), MATCH( secili_params_ucret_turleri_2[[#This Row],[indx]], INDIRECT("Ucret_Turleri_"&yil_1&"_"&LEFT(ay_2,1)&"[indx]"), 0 ) ) -> Emekli Engelli Net Ücret (Yıllık Ortalama) | E9: =INDEX( INDIRECT("Ucret_Turleri_"&yil_1&"_"&LEFT(ay_2,1)&"[" & E$4 & "]"), MATCH( secili_params_ucret_turleri_2[[#This Row],[indx]], INDIRECT("Ucret_Turleri_"&yil_1&"_"&LEFT(ay_2,1)&"[indx]"), 0 ) ) -> 24055.09 | F9: =INDEX( INDIRECT("Ucret_Turleri_"&yil_1&"_"&LEFT(ay_2,1)&"[" & F$4 & "]"), MATCH( secili_params_ucret_turleri_2[[#This Row],[indx]], INDIRECT("Ucret_Turleri_"&yil_1&"_"&LEFT(ay_2,1)&"[indx]"), 0 ) ) -> 801.8363333 | G9: =INDEX( INDIRECT("Ucret_Turleri_"&yil_1&"_"&LEFT(ay_2,1)&"[" & G$4 & "]"), MATCH( secili_params_ucret_turleri_2[[#This Row],[indx]], INDIRECT("Ucret_Turleri_"&yil_1&"_"&LEFT(ay_2,1)&"[indx]"), 0 ) ) -> 106.9115111 | I9: 5 | J9: =INDEX( INDIRECT("Vergi_Dilimleri_"&yil_1&"_"&LEFT(ay_2,1)&"[" & J$4 & "]"), MATCH( secili_params_vergi_dilimleri_2[[#This Row],[indx]], INDIRECT("Vergi_Dilimleri_"&yil_1&"_"&LEFT(ay_2,1)&"[indx]"), 0 ) ) -> 4300000.01 | K9: =INDEX( INDIRECT("Vergi_Dilimleri_"&yil_1&"_"&LEFT(ay_2,1)&"[" & K$4 & "]"), MATCH( secili_params_vergi_dilimleri_2[[#This Row],[indx]], INDIRECT("Vergi_Dilimleri_"&yil_1&"_"&LEFT(ay_2,1)&"[indx]"), 0 ) ) -> 9999999 | L9: =INDEX( INDIRECT("Vergi_Dilimleri_"&yil_1&"_"&LEFT(ay_2,1)&"[" & L$4 & "]"), MATCH( secili_params_vergi_dilimleri_2[[#This Row],[indx]], INDIRECT("Vergi_Dilimleri_"&yil_1&"_"&LEFT(ay_2,1)&"[indx]"), 0 ) ) -> 0.4 | M9: =INDEX( INDIRECT("Vergi_Dilimleri_"&yil_1&"_"&LEFT(ay_2,1)&"[" & M$4 & "]"), MATCH( secili_params_vergi_dilimleri_2[[#This Row],[indx]], INDIRECT("Vergi_Dilimleri_"&yil_1&"_"&LEFT(ay_2,1)&"[indx]"), 0 ) ) -> 3999999.6
C10: 6 | D10: =INDEX( INDIRECT("Ucret_Turleri_"&yil_1&"_"&LEFT(ay_2,1)&"[" & D$4 & "]"), MATCH( secili_params_ucret_turleri_2[[#This Row],[indx]], INDIRECT("Ucret_Turleri_"&yil_1&"_"&LEFT(ay_2,1)&"[indx]"), 0 ) ) -> Kıdem Tazminanı Tavanı 2. Dönem | E10: =INDEX( INDIRECT("Ucret_Turleri_"&yil_1&"_"&LEFT(ay_2,1)&"[" & E$4 & "]"), MATCH( secili_params_ucret_turleri_2[[#This Row],[indx]], INDIRECT("Ucret_Turleri_"&yil_1&"_"&LEFT(ay_2,1)&"[indx]"), 0 ) ) -> 53919.68 | F10: =INDEX( INDIRECT("Ucret_Turleri_"&yil_1&"_"&LEFT(ay_2,1)&"[" & F$4 & "]"), MATCH( secili_params_ucret_turleri_2[[#This Row],[indx]], INDIRECT("Ucret_Turleri_"&yil_1&"_"&LEFT(ay_2,1)&"[indx]"), 0 ) ) -> 1797.322667 | G10: =INDEX( INDIRECT("Ucret_Turleri_"&yil_1&"_"&LEFT(ay_2,1)&"[" & G$4 & "]"), MATCH( secili_params_ucret_turleri_2[[#This Row],[indx]], INDIRECT("Ucret_Turleri_"&yil_1&"_"&LEFT(ay_2,1)&"[indx]"), 0 ) ) -> 239.6430222
C11: 7 | D11: =INDEX( INDIRECT("Ucret_Turleri_"&yil_1&"_"&LEFT(ay_2,1)&"[" & D$4 & "]"), MATCH( secili_params_ucret_turleri_2[[#This Row],[indx]], INDIRECT("Ucret_Turleri_"&yil_1&"_"&LEFT(ay_2,1)&"[indx]"), 0 ) ) -> 1.DERECE ENGELLİ | E11: =INDEX( INDIRECT("Ucret_Turleri_"&yil_1&"_"&LEFT(ay_2,1)&"[" & E$4 & "]"), MATCH( secili_params_ucret_turleri_2[[#This Row],[indx]], INDIRECT("Ucret_Turleri_"&yil_1&"_"&LEFT(ay_2,1)&"[indx]"), 0 ) ) -> 9900 | F11: =INDEX( INDIRECT("Ucret_Turleri_"&yil_1&"_"&LEFT(ay_2,1)&"[" & F$4 & "]"), MATCH( secili_params_ucret_turleri_2[[#This Row],[indx]], INDIRECT("Ucret_Turleri_"&yil_1&"_"&LEFT(ay_2,1)&"[indx]"), 0 ) ) -> 330 | G11: =INDEX( INDIRECT("Ucret_Turleri_"&yil_1&"_"&LEFT(ay_2,1)&"[" & G$4 & "]"), MATCH( secili_params_ucret_turleri_2[[#This Row],[indx]], INDIRECT("Ucret_Turleri_"&yil_1&"_"&LEFT(ay_2,1)&"[indx]"), 0 ) ) -> 44 | I11: indx | J11: Sigorta Kolu | K11: İşveren Payı | L11: Çalışan Payı | M11: Toplam
C12: 8 | D12: =INDEX( INDIRECT("Ucret_Turleri_"&yil_1&"_"&LEFT(ay_2,1)&"[" & D$4 & "]"), MATCH( secili_params_ucret_turleri_2[[#This Row],[indx]], INDIRECT("Ucret_Turleri_"&yil_1&"_"&LEFT(ay_2,1)&"[indx]"), 0 ) ) -> 2.DERECE ENGELLİ | E12: =INDEX( INDIRECT("Ucret_Turleri_"&yil_1&"_"&LEFT(ay_2,1)&"[" & E$4 & "]"), MATCH( secili_params_ucret_turleri_2[[#This Row],[indx]], INDIRECT("Ucret_Turleri_"&yil_1&"_"&LEFT(ay_2,1)&"[indx]"), 0 ) ) -> 5700 | F12: =INDEX( INDIRECT("Ucret_Turleri_"&yil_1&"_"&LEFT(ay_2,1)&"[" & F$4 & "]"), MATCH( secili_params_ucret_turleri_2[[#This Row],[indx]], INDIRECT("Ucret_Turleri_"&yil_1&"_"&LEFT(ay_2,1)&"[indx]"), 0 ) ) -> 190 | G12: =INDEX( INDIRECT("Ucret_Turleri_"&yil_1&"_"&LEFT(ay_2,1)&"[" & G$4 & "]"), MATCH( secili_params_ucret_turleri_2[[#This Row],[indx]], INDIRECT("Ucret_Turleri_"&yil_1&"_"&LEFT(ay_2,1)&"[indx]"), 0 ) ) -> 25.33333333 | I12: 1 | J12: =INDEX( INDIRECT("Isveren_prim_oranlari_normal_"&yil&"_"&LEFT(ay,1)&"[" & J$11 & "]"), MATCH( secili_params_isveren_prim_oranlari_normal_2[[#This Row],[indx]], INDIRECT("Isveren_prim_oranlari_normal_"&yil&"_"&LEFT(ay,1)&"[indx]"), 0 ) ) -> Malüllük, Yaşlılık ve Ölüm | K12: =INDEX( INDIRECT("Isveren_prim_oranlari_normal_"&yil_1&"_"&LEFT(ay_2,1)&"[" & K$11 & "]"), MATCH( secili_params_isveren_prim_oranlari_normal_2[[#This Row],[indx]], INDIRECT("Isveren_prim_oranlari_normal_"&yil_1&"_"&LEFT(ay_2,1)&"[indx]"), 0 ) ) -> 0.11 | L12: =INDEX( INDIRECT("Isveren_prim_oranlari_normal_"&yil_1&"_"&LEFT(ay_2,1)&"[" & L$11 & "]"), MATCH( secili_params_isveren_prim_oranlari_normal_2[[#This Row],[indx]], INDIRECT("Isveren_prim_oranlari_normal_"&yil_1&"_"&LEFT(ay_2,1)&"[indx]"), 0 ) ) -> 0.09 | M12: =INDEX( INDIRECT("Isveren_prim_oranlari_normal_"&yil_1&"_"&LEFT(ay_2,1)&"[" & M$11 & "]"), MATCH( secili_params_isveren_prim_oranlari_normal_2[[#This Row],[indx]], INDIRECT("Isveren_prim_oranlari_normal_"&yil_1&"_"&LEFT(ay_2,1)&"[indx]"), 0 ) ) -> 0.2
C13: 9 | D13: =INDEX( INDIRECT("Ucret_Turleri_"&yil_1&"_"&LEFT(ay_2,1)&"[" & D$4 & "]"), MATCH( secili_params_ucret_turleri_2[[#This Row],[indx]], INDIRECT("Ucret_Turleri_"&yil_1&"_"&LEFT(ay_2,1)&"[indx]"), 0 ) ) -> 3.DERECE ENGELLİ | E13: =INDEX( INDIRECT("Ucret_Turleri_"&yil_1&"_"&LEFT(ay_2,1)&"[" & E$4 & "]"), MATCH( secili_params_ucret_turleri_2[[#This Row],[indx]], INDIRECT("Ucret_Turleri_"&yil_1&"_"&LEFT(ay_2,1)&"[indx]"), 0 ) ) -> 2400 | F13: =INDEX( INDIRECT("Ucret_Turleri_"&yil_1&"_"&LEFT(ay_2,1)&"[" & F$4 & "]"), MATCH( secili_params_ucret_turleri_2[[#This Row],[indx]], INDIRECT("Ucret_Turleri_"&yil_1&"_"&LEFT(ay_2,1)&"[indx]"), 0 ) ) -> 80 | G13: =INDEX( INDIRECT("Ucret_Turleri_"&yil_1&"_"&LEFT(ay_2,1)&"[" & G$4 & "]"), MATCH( secili_params_ucret_turleri_2[[#This Row],[indx]], INDIRECT("Ucret_Turleri_"&yil_1&"_"&LEFT(ay_2,1)&"[indx]"), 0 ) ) -> 10.66666667 | I13: =I12+1 -> 2 | J13: =INDEX( INDIRECT("Isveren_prim_oranlari_normal_"&yil&"_"&LEFT(ay,1)&"[" & J$11 & "]"), MATCH( secili_params_isveren_prim_oranlari_normal_2[[#This Row],[indx]], INDIRECT("Isveren_prim_oranlari_normal_"&yil&"_"&LEFT(ay,1)&"[indx]"), 0 ) ) -> Kısa Vadeli Sigorta Kolları | K13: =INDEX( INDIRECT("Isveren_prim_oranlari_normal_"&yil_1&"_"&LEFT(ay_2,1)&"[" & K$11 & "]"), MATCH( secili_params_isveren_prim_oranlari_normal_2[[#This Row],[indx]], INDIRECT("Isveren_prim_oranlari_normal_"&yil_1&"_"&LEFT(ay_2,1)&"[indx]"), 0 ) ) -> 0.0225 | L13: =INDEX( INDIRECT("Isveren_prim_oranlari_normal_"&yil_1&"_"&LEFT(ay_2,1)&"[" & L$11 & "]"), MATCH( secili_params_isveren_prim_oranlari_normal_2[[#This Row],[indx]], INDIRECT("Isveren_prim_oranlari_normal_"&yil_1&"_"&LEFT(ay_2,1)&"[indx]"), 0 ) ) -> - | M13: =INDEX( INDIRECT("Isveren_prim_oranlari_normal_"&yil_1&"_"&LEFT(ay_2,1)&"[" & M$11 & "]"), MATCH( secili_params_isveren_prim_oranlari_normal_2[[#This Row],[indx]], INDIRECT("Isveren_prim_oranlari_normal_"&yil_1&"_"&LEFT(ay_2,1)&"[indx]"), 0 ) ) -> 0.02
C14: 10 | D14: =INDEX( INDIRECT("Ucret_Turleri_"&yil_1&"_"&LEFT(ay_2,1)&"[" & D$4 & "]"), MATCH( secili_params_ucret_turleri_2[[#This Row],[indx]], INDIRECT("Ucret_Turleri_"&yil_1&"_"&LEFT(ay_2,1)&"[indx]"), 0 ) ) -> Stajyer Ücreti | E14: =INDEX( INDIRECT("Ucret_Turleri_"&yil_1&"_"&LEFT(ay_2,1)&"[" & E$4 & "]"), MATCH( secili_params_ucret_turleri_2[[#This Row],[indx]], INDIRECT("Ucret_Turleri_"&yil_1&"_"&LEFT(ay_2,1)&"[indx]"), 0 ) ) -> 6631.4 | F14: =INDEX( INDIRECT("Ucret_Turleri_"&yil_1&"_"&LEFT(ay_2,1)&"[" & F$4 & "]"), MATCH( secili_params_ucret_turleri_2[[#This Row],[indx]], INDIRECT("Ucret_Turleri_"&yil_1&"_"&LEFT(ay_2,1)&"[indx]"), 0 ) ) -> 221.0466667 | G14: =INDEX( INDIRECT("Ucret_Turleri_"&yil_1&"_"&LEFT(ay_2,1)&"[" & G$4 & "]"), MATCH( secili_params_ucret_turleri_2[[#This Row],[indx]], INDIRECT("Ucret_Turleri_"&yil_1&"_"&LEFT(ay_2,1)&"[indx]"), 0 ) ) -> 29.47288889 | I14: =I13+1 -> 3 | J14: =INDEX( INDIRECT("Isveren_prim_oranlari_normal_"&yil&"_"&LEFT(ay,1)&"[" & J$11 & "]"), MATCH( secili_params_isveren_prim_oranlari_normal_2[[#This Row],[indx]], INDIRECT("Isveren_prim_oranlari_normal_"&yil&"_"&LEFT(ay,1)&"[indx]"), 0 ) ) -> Genel Sağlık Sigortası | K14: =INDEX( INDIRECT("Isveren_prim_oranlari_normal_"&yil_1&"_"&LEFT(ay_2,1)&"[" & K$11 & "]"), MATCH( secili_params_isveren_prim_oranlari_normal_2[[#This Row],[indx]], INDIRECT("Isveren_prim_oranlari_normal_"&yil_1&"_"&LEFT(ay_2,1)&"[indx]"), 0 ) ) -> 0.075 | L14: =INDEX( INDIRECT("Isveren_prim_oranlari_normal_"&yil_1&"_"&LEFT(ay_2,1)&"[" & L$11 & "]"), MATCH( secili_params_isveren_prim_oranlari_normal_2[[#This Row],[indx]], INDIRECT("Isveren_prim_oranlari_normal_"&yil_1&"_"&LEFT(ay_2,1)&"[indx]"), 0 ) ) -> 0.05 | M14: =INDEX( INDIRECT("Isveren_prim_oranlari_normal_"&yil_1&"_"&LEFT(ay_2,1)&"[" & M$11 & "]"), MATCH( secili_params_isveren_prim_oranlari_normal_2[[#This Row],[indx]], INDIRECT("Isveren_prim_oranlari_normal_"&yil_1&"_"&LEFT(ay_2,1)&"[indx]"), 0 ) ) -> 0.125
C15: 11 | D15: =INDEX( INDIRECT("Ucret_Turleri_"&yil_1&"_"&LEFT(ay_2,1)&"[" & D$4 & "]"), MATCH( secili_params_ucret_turleri_2[[#This Row],[indx]], INDIRECT("Ucret_Turleri_"&yil_1&"_"&LEFT(ay_2,1)&"[indx]"), 0 ) ) -> Çocuk Yardımı SGK İstisnası | E15: =INDEX( INDIRECT("Ucret_Turleri_"&yil_1&"_"&LEFT(ay_2,1)&"[" & E$4 & "]"), MATCH( secili_params_ucret_turleri_2[[#This Row],[indx]], INDIRECT("Ucret_Turleri_"&yil_1&"_"&LEFT(ay_2,1)&"[indx]"), 0 ) ) -> 520.11 | F15: =INDEX( INDIRECT("Ucret_Turleri_"&yil_1&"_"&LEFT(ay_2,1)&"[" & F$4 & "]"), MATCH( secili_params_ucret_turleri_2[[#This Row],[indx]], INDIRECT("Ucret_Turleri_"&yil_1&"_"&LEFT(ay_2,1)&"[indx]"), 0 ) ) -> 17.337 | G15: =INDEX( INDIRECT("Ucret_Turleri_"&yil_1&"_"&LEFT(ay_2,1)&"[" & G$4 & "]"), MATCH( secili_params_ucret_turleri_2[[#This Row],[indx]], INDIRECT("Ucret_Turleri_"&yil_1&"_"&LEFT(ay_2,1)&"[indx]"), 0 ) ) -> 2.3116 | I15: 4 | J15: =INDEX( INDIRECT("Isveren_prim_oranlari_normal_"&yil&"_"&LEFT(ay,1)&"[" & J$11 & "]"), MATCH( secili_params_isveren_prim_oranlari_normal_2[[#This Row],[indx]], INDIRECT("Isveren_prim_oranlari_normal_"&yil&"_"&LEFT(ay,1)&"[indx]"), 0 ) ) -> İşsizlik Sigortası | K15: =INDEX( INDIRECT("Isveren_prim_oranlari_normal_"&yil_1&"_"&LEFT(ay_2,1)&"[" & K$11 & "]"), MATCH( secili_params_isveren_prim_oranlari_normal_2[[#This Row],[indx]], INDIRECT("Isveren_prim_oranlari_normal_"&yil_1&"_"&LEFT(ay_2,1)&"[indx]"), 0 ) ) -> 0.02 | L15: =INDEX( INDIRECT("Isveren_prim_oranlari_normal_"&yil_1&"_"&LEFT(ay_2,1)&"[" & L$11 & "]"), MATCH( secili_params_isveren_prim_oranlari_normal_2[[#This Row],[indx]], INDIRECT("Isveren_prim_oranlari_normal_"&yil_1&"_"&LEFT(ay_2,1)&"[indx]"), 0 ) ) -> 0.01 | M15: =INDEX( INDIRECT("Isveren_prim_oranlari_normal_"&yil_1&"_"&LEFT(ay_2,1)&"[" & M$11 & "]"), MATCH( secili_params_isveren_prim_oranlari_normal_2[[#This Row],[indx]], INDIRECT("Isveren_prim_oranlari_normal_"&yil_1&"_"&LEFT(ay_2,1)&"[indx]"), 0 ) ) -> 0
C16: 12 | D16: =INDEX( INDIRECT("Ucret_Turleri_"&yil_1&"_"&LEFT(ay_2,1)&"[" & D$4 & "]"), MATCH( secili_params_ucret_turleri_2[[#This Row],[indx]], INDIRECT("Ucret_Turleri_"&yil_1&"_"&LEFT(ay_2,1)&"[indx]"), 0 ) ) -> Aile Yardımı SGK İstisnası | E16: =INDEX( INDIRECT("Ucret_Turleri_"&yil_1&"_"&LEFT(ay_2,1)&"[" & E$4 & "]"), MATCH( secili_params_ucret_turleri_2[[#This Row],[indx]], INDIRECT("Ucret_Turleri_"&yil_1&"_"&LEFT(ay_2,1)&"[indx]"), 0 ) ) -> 2600.55 | F16: =INDEX( INDIRECT("Ucret_Turleri_"&yil_1&"_"&LEFT(ay_2,1)&"[" & F$4 & "]"), MATCH( secili_params_ucret_turleri_2[[#This Row],[indx]], INDIRECT("Ucret_Turleri_"&yil_1&"_"&LEFT(ay_2,1)&"[indx]"), 0 ) ) -> 86.685 | G16: =INDEX( INDIRECT("Ucret_Turleri_"&yil_1&"_"&LEFT(ay_2,1)&"[" & G$4 & "]"), MATCH( secili_params_ucret_turleri_2[[#This Row],[indx]], INDIRECT("Ucret_Turleri_"&yil_1&"_"&LEFT(ay_2,1)&"[indx]"), 0 ) ) -> 11.558 | I16: 5 | J16: =INDEX( INDIRECT("Isveren_prim_oranlari_normal_"&yil&"_"&LEFT(ay,1)&"[" & J$11 & "]"), MATCH( secili_params_isveren_prim_oranlari_normal_2[[#This Row],[indx]], INDIRECT("Isveren_prim_oranlari_normal_"&yil&"_"&LEFT(ay,1)&"[indx]"), 0 ) ) -> Toplam | K16: =INDEX( INDIRECT("Isveren_prim_oranlari_normal_"&yil_1&"_"&LEFT(ay_2,1)&"[" & K$11 & "]"), MATCH( secili_params_isveren_prim_oranlari_normal_2[[#This Row],[indx]], INDIRECT("Isveren_prim_oranlari_normal_"&yil_1&"_"&LEFT(ay_2,1)&"[indx]"), 0 ) ) -> 0.2275 | L16: =INDEX( INDIRECT("Isveren_prim_oranlari_normal_"&yil_1&"_"&LEFT(ay_2,1)&"[" & L$11 & "]"), MATCH( secili_params_isveren_prim_oranlari_normal_2[[#This Row],[indx]], INDIRECT("Isveren_prim_oranlari_normal_"&yil_1&"_"&LEFT(ay_2,1)&"[indx]"), 0 ) ) -> 0.15 | M16: =INDEX( INDIRECT("Isveren_prim_oranlari_normal_"&yil_1&"_"&LEFT(ay_2,1)&"[" & M$11 & "]"), MATCH( secili_params_isveren_prim_oranlari_normal_2[[#This Row],[indx]], INDIRECT("Isveren_prim_oranlari_normal_"&yil_1&"_"&LEFT(ay_2,1)&"[indx]"), 0 ) ) -> 0.3775
C17: 13 | D17: =INDEX( INDIRECT("Ucret_Turleri_"&yil_1&"_"&LEFT(ay_2,1)&"[" & D$4 & "]"), MATCH( secili_params_ucret_turleri_2[[#This Row],[indx]], INDIRECT("Ucret_Turleri_"&yil_1&"_"&LEFT(ay_2,1)&"[indx]"), 0 ) ) -> Nakit Yemek Parası SGK İstisnası | E17: =INDEX( INDIRECT("Ucret_Turleri_"&yil_1&"_"&LEFT(ay_2,1)&"[" & E$4 & "]"), MATCH( secili_params_ucret_turleri_2[[#This Row],[indx]], INDIRECT("Ucret_Turleri_"&yil_1&"_"&LEFT(ay_2,1)&"[indx]"), 0 ) ) -> 158 | F17: =INDEX( INDIRECT("Ucret_Turleri_"&yil_1&"_"&LEFT(ay_2,1)&"[" & F$4 & "]"), MATCH( secili_params_ucret_turleri_2[[#This Row],[indx]], INDIRECT("Ucret_Turleri_"&yil_1&"_"&LEFT(ay_2,1)&"[indx]"), 0 ) ) -> 5.266666667 | G17: =INDEX( INDIRECT("Ucret_Turleri_"&yil_1&"_"&LEFT(ay_2,1)&"[" & G$4 & "]"), MATCH( secili_params_ucret_turleri_2[[#This Row],[indx]], INDIRECT("Ucret_Turleri_"&yil_1&"_"&LEFT(ay_2,1)&"[indx]"), 0 ) ) -> 0.7022222222 | I17: 6 | J17: =INDEX( INDIRECT("Isveren_prim_oranlari_normal_"&yil&"_"&LEFT(ay,1)&"[" & J$11 & "]"), MATCH( secili_params_isveren_prim_oranlari_normal_2[[#This Row],[indx]], INDIRECT("Isveren_prim_oranlari_normal_"&yil&"_"&LEFT(ay,1)&"[indx]"), 0 ) ) -> Hazine | K17: =INDEX( INDIRECT("Isveren_prim_oranlari_normal_"&yil_1&"_"&LEFT(ay_2,1)&"[" & K$11 & "]"), MATCH( secili_params_isveren_prim_oranlari_normal_2[[#This Row],[indx]], INDIRECT("Isveren_prim_oranlari_normal_"&yil_1&"_"&LEFT(ay_2,1)&"[indx]"), 0 ) ) -> 0 | L17: =INDEX( INDIRECT("Isveren_prim_oranlari_normal_"&yil_1&"_"&LEFT(ay_2,1)&"[" & L$11 & "]"), MATCH( secili_params_isveren_prim_oranlari_normal_2[[#This Row],[indx]], INDIRECT("Isveren_prim_oranlari_normal_"&yil_1&"_"&LEFT(ay_2,1)&"[indx]"), 0 ) ) -> 0 | M17: =INDEX( INDIRECT("Isveren_prim_oranlari_normal_"&yil_1&"_"&LEFT(ay_2,1)&"[" & M$11 & "]"), MATCH( secili_params_isveren_prim_oranlari_normal_2[[#This Row],[indx]], INDIRECT("Isveren_prim_oranlari_normal_"&yil_1&"_"&LEFT(ay_2,1)&"[indx]"), 0 ) ) -> 0.04
C18: 14 | D18: =INDEX( INDIRECT("Ucret_Turleri_"&yil_1&"_"&LEFT(ay_2,1)&"[" & D$4 & "]"), MATCH( secili_params_ucret_turleri_2[[#This Row],[indx]], INDIRECT("Ucret_Turleri_"&yil_1&"_"&LEFT(ay_2,1)&"[indx]"), 0 ) ) -> Yemek Kartı SGK İstisnası | E18: =INDEX( INDIRECT("Ucret_Turleri_"&yil_1&"_"&LEFT(ay_2,1)&"[" & E$4 & "]"), MATCH( secili_params_ucret_turleri_2[[#This Row],[indx]], INDIRECT("Ucret_Turleri_"&yil_1&"_"&LEFT(ay_2,1)&"[indx]"), 0 ) ) -> 158 | F18: =INDEX( INDIRECT("Ucret_Turleri_"&yil_1&"_"&LEFT(ay_2,1)&"[" & F$4 & "]"), MATCH( secili_params_ucret_turleri_2[[#This Row],[indx]], INDIRECT("Ucret_Turleri_"&yil_1&"_"&LEFT(ay_2,1)&"[indx]"), 0 ) ) -> 5.266666667 | G18: =INDEX( INDIRECT("Ucret_Turleri_"&yil_1&"_"&LEFT(ay_2,1)&"[" & G$4 & "]"), MATCH( secili_params_ucret_turleri_2[[#This Row],[indx]], INDIRECT("Ucret_Turleri_"&yil_1&"_"&LEFT(ay_2,1)&"[indx]"), 0 ) ) -> 0.7022222222 | I18: 7 | J18: =INDEX( INDIRECT("Isveren_prim_oranlari_normal_"&yil&"_"&LEFT(ay,1)&"[" & J$11 & "]"), MATCH( secili_params_isveren_prim_oranlari_normal_2[[#This Row],[indx]], INDIRECT("Isveren_prim_oranlari_normal_"&yil&"_"&LEFT(ay,1)&"[indx]"), 0 ) ) -> Hazine (İmalat) | K18: =INDEX( INDIRECT("Isveren_prim_oranlari_normal_"&yil_1&"_"&LEFT(ay_2,1)&"[" & K$11 & "]"), MATCH( secili_params_isveren_prim_oranlari_normal_2[[#This Row],[indx]], INDIRECT("Isveren_prim_oranlari_normal_"&yil_1&"_"&LEFT(ay_2,1)&"[indx]"), 0 ) ) -> 0 | L18: =INDEX( INDIRECT("Isveren_prim_oranlari_normal_"&yil_1&"_"&LEFT(ay_2,1)&"[" & L$11 & "]"), MATCH( secili_params_isveren_prim_oranlari_normal_2[[#This Row],[indx]], INDIRECT("Isveren_prim_oranlari_normal_"&yil_1&"_"&LEFT(ay_2,1)&"[indx]"), 0 ) ) -> 0 | M18: =INDEX( INDIRECT("Isveren_prim_oranlari_normal_"&yil_1&"_"&LEFT(ay_2,1)&"[" & M$11 & "]"), MATCH( secili_params_isveren_prim_oranlari_normal_2[[#This Row],[indx]], INDIRECT("Isveren_prim_oranlari_normal_"&yil_1&"_"&LEFT(ay_2,1)&"[indx]"), 0 ) ) -> 0.05
C19: 15 | D19: =INDEX( INDIRECT("Ucret_Turleri_"&yil_1&"_"&LEFT(ay_2,1)&"[" & D$4 & "]"), MATCH( secili_params_ucret_turleri_2[[#This Row],[indx]], INDIRECT("Ucret_Turleri_"&yil_1&"_"&LEFT(ay_2,1)&"[indx]"), 0 ) ) -> Yemek Kartı GV İstisnası | E19: =INDEX( INDIRECT("Ucret_Turleri_"&yil_1&"_"&LEFT(ay_2,1)&"[" & E$4 & "]"), MATCH( secili_params_ucret_turleri_2[[#This Row],[indx]], INDIRECT("Ucret_Turleri_"&yil_1&"_"&LEFT(ay_2,1)&"[indx]"), 0 ) ) -> 240 | F19: =INDEX( INDIRECT("Ucret_Turleri_"&yil_1&"_"&LEFT(ay_2,1)&"[" & F$4 & "]"), MATCH( secili_params_ucret_turleri_2[[#This Row],[indx]], INDIRECT("Ucret_Turleri_"&yil_1&"_"&LEFT(ay_2,1)&"[indx]"), 0 ) ) -> 8 | G19: =INDEX( INDIRECT("Ucret_Turleri_"&yil_1&"_"&LEFT(ay_2,1)&"[" & G$4 & "]"), MATCH( secili_params_ucret_turleri_2[[#This Row],[indx]], INDIRECT("Ucret_Turleri_"&yil_1&"_"&LEFT(ay_2,1)&"[indx]"), 0 ) ) -> 1.066666667 | I19: 8 | J19: =INDEX( INDIRECT("Isveren_prim_oranlari_normal_"&yil&"_"&LEFT(ay,1)&"[" & J$11 & "]"), MATCH( secili_params_isveren_prim_oranlari_normal_2[[#This Row],[indx]], INDIRECT("Isveren_prim_oranlari_normal_"&yil&"_"&LEFT(ay,1)&"[indx]"), 0 ) ) -> Damga Vergisi Oranı | K19: =INDEX( INDIRECT("Isveren_prim_oranlari_normal_"&yil_1&"_"&LEFT(ay_2,1)&"[" & K$11 & "]"), MATCH( secili_params_isveren_prim_oranlari_normal_2[[#This Row],[indx]], INDIRECT("Isveren_prim_oranlari_normal_"&yil_1&"_"&LEFT(ay_2,1)&"[indx]"), 0 ) ) -> 0 | L19: =INDEX( INDIRECT("Isveren_prim_oranlari_normal_"&yil_1&"_"&LEFT(ay_2,1)&"[" & L$11 & "]"), MATCH( secili_params_isveren_prim_oranlari_normal_2[[#This Row],[indx]], INDIRECT("Isveren_prim_oranlari_normal_"&yil_1&"_"&LEFT(ay_2,1)&"[indx]"), 0 ) ) -> 0 | M19: =INDEX( INDIRECT("Isveren_prim_oranlari_normal_"&yil_1&"_"&LEFT(ay_2,1)&"[" & M$11 & "]"), MATCH( secili_params_isveren_prim_oranlari_normal_2[[#This Row],[indx]], INDIRECT("Isveren_prim_oranlari_normal_"&yil_1&"_"&LEFT(ay_2,1)&"[indx]"), 0 ) ) -> 0.00759
C20: 16 | D20: =INDEX( INDIRECT("Ucret_Turleri_"&yil_1&"_"&LEFT(ay_2,1)&"[" & D$4 & "]"), MATCH( secili_params_ucret_turleri_2[[#This Row],[indx]], INDIRECT("Ucret_Turleri_"&yil_1&"_"&LEFT(ay_2,1)&"[indx]"), 0 ) ) -> Nakit Yemek Parası GV İstisnası | E20: =INDEX( INDIRECT("Ucret_Turleri_"&yil_1&"_"&LEFT(ay_2,1)&"[" & E$4 & "]"), MATCH( secili_params_ucret_turleri_2[[#This Row],[indx]], INDIRECT("Ucret_Turleri_"&yil_1&"_"&LEFT(ay_2,1)&"[indx]"), 0 ) ) -> 240 | F20: =INDEX( INDIRECT("Ucret_Turleri_"&yil_1&"_"&LEFT(ay_2,1)&"[" & F$4 & "]"), MATCH( secili_params_ucret_turleri_2[[#This Row],[indx]], INDIRECT("Ucret_Turleri_"&yil_1&"_"&LEFT(ay_2,1)&"[indx]"), 0 ) ) -> 8 | G20: =INDEX( INDIRECT("Ucret_Turleri_"&yil_1&"_"&LEFT(ay_2,1)&"[" & G$4 & "]"), MATCH( secili_params_ucret_turleri_2[[#This Row],[indx]], INDIRECT("Ucret_Turleri_"&yil_1&"_"&LEFT(ay_2,1)&"[indx]"), 0 ) ) -> 1.066666667
C21: 17 | D21: =INDEX( INDIRECT("Ucret_Turleri_"&yil_1&"_"&LEFT(ay_2,1)&"[" & D$4 & "]"), MATCH( secili_params_ucret_turleri_2[[#This Row],[indx]], INDIRECT("Ucret_Turleri_"&yil_1&"_"&LEFT(ay_2,1)&"[indx]"), 0 ) ) -> Nakit Yemek Parası DV İstisnası | E21: =INDEX( INDIRECT("Ucret_Turleri_"&yil_1&"_"&LEFT(ay_2,1)&"[" & E$4 & "]"), MATCH( secili_params_ucret_turleri_2[[#This Row],[indx]], INDIRECT("Ucret_Turleri_"&yil_1&"_"&LEFT(ay_2,1)&"[indx]"), 0 ) ) -> 0 | F21: =INDEX( INDIRECT("Ucret_Turleri_"&yil_1&"_"&LEFT(ay_2,1)&"[" & F$4 & "]"), MATCH( secili_params_ucret_turleri_2[[#This Row],[indx]], INDIRECT("Ucret_Turleri_"&yil_1&"_"&LEFT(ay_2,1)&"[indx]"), 0 ) ) -> 0 | G21: =INDEX( INDIRECT("Ucret_Turleri_"&yil_1&"_"&LEFT(ay_2,1)&"[" & G$4 & "]"), MATCH( secili_params_ucret_turleri_2[[#This Row],[indx]], INDIRECT("Ucret_Turleri_"&yil_1&"_"&LEFT(ay_2,1)&"[indx]"), 0 ) ) -> 0 | I21: indx | J21: SGDP Oranı | K21: İşveren Payı | L21: Çalışan Payı | M21: Toplam
C22: 18 | D22: =INDEX( INDIRECT("Ucret_Turleri_"&yil_1&"_"&LEFT(ay_2,1)&"[" & D$4 & "]"), MATCH( secili_params_ucret_turleri_2[[#This Row],[indx]], INDIRECT("Ucret_Turleri_"&yil_1&"_"&LEFT(ay_2,1)&"[indx]"), 0 ) ) -> Yol/Ulaşım Kartı GV İstisnası | E22: =INDEX( INDIRECT("Ucret_Turleri_"&yil_1&"_"&LEFT(ay_2,1)&"[" & E$4 & "]"), MATCH( secili_params_ucret_turleri_2[[#This Row],[indx]], INDIRECT("Ucret_Turleri_"&yil_1&"_"&LEFT(ay_2,1)&"[indx]"), 0 ) ) -> 126 | F22: =INDEX( INDIRECT("Ucret_Turleri_"&yil_1&"_"&LEFT(ay_2,1)&"[" & F$4 & "]"), MATCH( secili_params_ucret_turleri_2[[#This Row],[indx]], INDIRECT("Ucret_Turleri_"&yil_1&"_"&LEFT(ay_2,1)&"[indx]"), 0 ) ) -> 4.2 | G22: =INDEX( INDIRECT("Ucret_Turleri_"&yil_1&"_"&LEFT(ay_2,1)&"[" & G$4 & "]"), MATCH( secili_params_ucret_turleri_2[[#This Row],[indx]], INDIRECT("Ucret_Turleri_"&yil_1&"_"&LEFT(ay_2,1)&"[indx]"), 0 ) ) -> 0.56 | I22: 1 | J22: =INDEX( INDIRECT("Isveren_prim_oranlari_emekli_"&yil&"_"&LEFT(ay,1)&"[" & J$21 & "]"), MATCH( secili_params_isveren_prim_oranlari_emekli_2[[#This Row],[indx]], INDIRECT("Isveren_prim_oranlari_emekli_"&yil&"_"&LEFT(ay,1)&"[indx]"), 0 ) ) -> Emekli Çalışan | K22: =INDEX( INDIRECT("Isveren_prim_oranlari_emekli_"&yil_1&"_"&LEFT(ay_2,1)&"[" & K$21 & "]"), MATCH( secili_params_isveren_prim_oranlari_emekli_2[[#This Row],[indx]], INDIRECT("Isveren_prim_oranlari_emekli_"&yil_1&"_"&LEFT(ay_2,1)&"[indx]"), 0 ) ) -> 0.2475 | L22: =INDEX( INDIRECT("Isveren_prim_oranlari_emekli_"&yil_1&"_"&LEFT(ay_2,1)&"[" & L$21 & "]"), MATCH( secili_params_isveren_prim_oranlari_emekli_2[[#This Row],[indx]], INDIRECT("Isveren_prim_oranlari_emekli_"&yil_1&"_"&LEFT(ay_2,1)&"[indx]"), 0 ) ) -> 0.075 | M22: =INDEX( INDIRECT("Isveren_prim_oranlari_emekli_"&yil_1&"_"&LEFT(yil_1,1)&"[" & M$21 & "]"), MATCH( secili_params_isveren_prim_oranlari_emekli_2[[#This Row],[indx]], INDIRECT("Isveren_prim_oranlari_emekli_"&yil_1&"_"&LEFT(ay,1)&"[indx]"), 0 ) ) -> 0.3225
C23: 19 | D23: =INDEX( INDIRECT("Ucret_Turleri_"&yil_1&"_"&LEFT(ay_2,1)&"[" & D$4 & "]"), MATCH( secili_params_ucret_turleri_2[[#This Row],[indx]], INDIRECT("Ucret_Turleri_"&yil_1&"_"&LEFT(ay_2,1)&"[indx]"), 0 ) ) -> Çocuk Yardımı GV İstisnası – 0-6 yaş | E23: =INDEX( INDIRECT("Ucret_Turleri_"&yil_1&"_"&LEFT(ay_2,1)&"[" & E$4 & "]"), MATCH( secili_params_ucret_turleri_2[[#This Row],[indx]], INDIRECT("Ucret_Turleri_"&yil_1&"_"&LEFT(ay_2,1)&"[indx]"), 0 ) ) -> 585.11 | F23: =INDEX( INDIRECT("Ucret_Turleri_"&yil_1&"_"&LEFT(ay_2,1)&"[" & F$4 & "]"), MATCH( secili_params_ucret_turleri_2[[#This Row],[indx]], INDIRECT("Ucret_Turleri_"&yil_1&"_"&LEFT(ay_2,1)&"[indx]"), 0 ) ) -> 19.50366667 | G23: =INDEX( INDIRECT("Ucret_Turleri_"&yil_1&"_"&LEFT(ay_2,1)&"[" & G$4 & "]"), MATCH( secili_params_ucret_turleri_2[[#This Row],[indx]], INDIRECT("Ucret_Turleri_"&yil_1&"_"&LEFT(ay_2,1)&"[indx]"), 0 ) ) -> 2.600488889
C24: 20 | D24: =INDEX( INDIRECT("Ucret_Turleri_"&yil_1&"_"&LEFT(ay_2,1)&"[" & D$4 & "]"), MATCH( secili_params_ucret_turleri_2[[#This Row],[indx]], INDIRECT("Ucret_Turleri_"&yil_1&"_"&LEFT(ay_2,1)&"[indx]"), 0 ) ) -> Çocuk Yardımı GV İstisnası – 6 yaş üzeri | E24: =INDEX( INDIRECT("Ucret_Turleri_"&yil_1&"_"&LEFT(ay_2,1)&"[" & E$4 & "]"), MATCH( secili_params_ucret_turleri_2[[#This Row],[indx]], INDIRECT("Ucret_Turleri_"&yil_1&"_"&LEFT(ay_2,1)&"[indx]"), 0 ) ) -> 292.55 | F24: =INDEX( INDIRECT("Ucret_Turleri_"&yil_1&"_"&LEFT(ay_2,1)&"[" & F$4 & "]"), MATCH( secili_params_ucret_turleri_2[[#This Row],[indx]], INDIRECT("Ucret_Turleri_"&yil_1&"_"&LEFT(ay_2,1)&"[indx]"), 0 ) ) -> 9.751666667 | G24: =INDEX( INDIRECT("Ucret_Turleri_"&yil_1&"_"&LEFT(ay_2,1)&"[" & G$4 & "]"), MATCH( secili_params_ucret_turleri_2[[#This Row],[indx]], INDIRECT("Ucret_Turleri_"&yil_1&"_"&LEFT(ay_2,1)&"[indx]"), 0 ) ) -> 1.300222222
C25: 21 | D25: =INDEX( INDIRECT("Ucret_Turleri_"&yil_1&"_"&LEFT(ay_2,1)&"[" & D$4 & "]"), MATCH( secili_params_ucret_turleri_2[[#This Row],[indx]], INDIRECT("Ucret_Turleri_"&yil_1&"_"&LEFT(ay_2,1)&"[indx]"), 0 ) ) -> Emzirme Ödeneği | E25: =INDEX( INDIRECT("Ucret_Turleri_"&yil_1&"_"&LEFT(ay_2,1)&"[" & E$4 & "]"), MATCH( secili_params_ucret_turleri_2[[#This Row],[indx]], INDIRECT("Ucret_Turleri_"&yil_1&"_"&LEFT(ay_2,1)&"[indx]"), 0 ) ) -> 1238 | F25: =INDEX( INDIRECT("Ucret_Turleri_"&yil_1&"_"&LEFT(ay_2,1)&"[" & F$4 & "]"), MATCH( secili_params_ucret_turleri_2[[#This Row],[indx]], INDIRECT("Ucret_Turleri_"&yil_1&"_"&LEFT(ay_2,1)&"[indx]"), 0 ) ) -> 41.26666667 | G25: =INDEX( INDIRECT("Ucret_Turleri_"&yil_1&"_"&LEFT(ay_2,1)&"[" & G$4 & "]"), MATCH( secili_params_ucret_turleri_2[[#This Row],[indx]], INDIRECT("Ucret_Turleri_"&yil_1&"_"&LEFT(ay_2,1)&"[indx]"), 0 ) ) -> 5.502222222
C26: 22 | D26: =INDEX( INDIRECT("Ucret_Turleri_"&yil_1&"_"&LEFT(ay_2,1)&"[" & D$4 & "]"), MATCH( secili_params_ucret_turleri_2[[#This Row],[indx]], INDIRECT("Ucret_Turleri_"&yil_1&"_"&LEFT(ay_2,1)&"[indx]"), 0 ) ) -> İşsizlik Ödeneği – Alt Limit | E26: =INDEX( INDIRECT("Ucret_Turleri_"&yil_1&"_"&LEFT(ay_2,1)&"[" & E$4 & "]"), MATCH( secili_params_ucret_turleri_2[[#This Row],[indx]], INDIRECT("Ucret_Turleri_"&yil_1&"_"&LEFT(ay_2,1)&"[indx]"), 0 ) ) -> 10323.25 | F26: =INDEX( INDIRECT("Ucret_Turleri_"&yil_1&"_"&LEFT(ay_2,1)&"[" & F$4 & "]"), MATCH( secili_params_ucret_turleri_2[[#This Row],[indx]], INDIRECT("Ucret_Turleri_"&yil_1&"_"&LEFT(ay_2,1)&"[indx]"), 0 ) ) -> 344.1083333 | G26: =INDEX( INDIRECT("Ucret_Turleri_"&yil_1&"_"&LEFT(ay_2,1)&"[" & G$4 & "]"), MATCH( secili_params_ucret_turleri_2[[#This Row],[indx]], INDIRECT("Ucret_Turleri_"&yil_1&"_"&LEFT(ay_2,1)&"[indx]"), 0 ) ) -> 45.88111111
C27: 23 | D27: =INDEX( INDIRECT("Ucret_Turleri_"&yil_1&"_"&LEFT(ay_2,1)&"[" & D$4 & "]"), MATCH( secili_params_ucret_turleri_2[[#This Row],[indx]], INDIRECT("Ucret_Turleri_"&yil_1&"_"&LEFT(ay_2,1)&"[indx]"), 0 ) ) -> İşsizlik Ödeneği – Üst Limit | E27: =INDEX( INDIRECT("Ucret_Turleri_"&yil_1&"_"&LEFT(ay_2,1)&"[" & E$4 & "]"), MATCH( secili_params_ucret_turleri_2[[#This Row],[indx]], INDIRECT("Ucret_Turleri_"&yil_1&"_"&LEFT(ay_2,1)&"[indx]"), 0 ) ) -> 20646.49 | F27: =INDEX( INDIRECT("Ucret_Turleri_"&yil_1&"_"&LEFT(ay_2,1)&"[" & F$4 & "]"), MATCH( secili_params_ucret_turleri_2[[#This Row],[indx]], INDIRECT("Ucret_Turleri_"&yil_1&"_"&LEFT(ay_2,1)&"[indx]"), 0 ) ) -> 688.2163333 | G27: =INDEX( INDIRECT("Ucret_Turleri_"&yil_1&"_"&LEFT(ay_2,1)&"[" & G$4 & "]"), MATCH( secili_params_ucret_turleri_2[[#This Row],[indx]], INDIRECT("Ucret_Turleri_"&yil_1&"_"&LEFT(ay_2,1)&"[indx]"), 0 ) ) -> 91.76217778
C28: 24 | D28: =INDEX( INDIRECT("Ucret_Turleri_"&yil_1&"_"&LEFT(ay_2,1)&"[" & D$4 & "]"), MATCH( secili_params_ucret_turleri_2[[#This Row],[indx]], INDIRECT("Ucret_Turleri_"&yil_1&"_"&LEFT(ay_2,1)&"[indx]"), 0 ) ) -> İş Göremezlik Ödeneği Ayakta Tedavi – Alt Limit | E28: =INDEX( INDIRECT("Ucret_Turleri_"&yil_1&"_"&LEFT(ay_2,1)&"[" & E$4 & "]"), MATCH( secili_params_ucret_turleri_2[[#This Row],[indx]], INDIRECT("Ucret_Turleri_"&yil_1&"_"&LEFT(ay_2,1)&"[indx]"), 0 ) ) -> 17337 | F28: =INDEX( INDIRECT("Ucret_Turleri_"&yil_1&"_"&LEFT(ay_2,1)&"[" & F$4 & "]"), MATCH( secili_params_ucret_turleri_2[[#This Row],[indx]], INDIRECT("Ucret_Turleri_"&yil_1&"_"&LEFT(ay_2,1)&"[indx]"), 0 ) ) -> 577.9 | G28: =INDEX( INDIRECT("Ucret_Turleri_"&yil_1&"_"&LEFT(ay_2,1)&"[" & G$4 & "]"), MATCH( secili_params_ucret_turleri_2[[#This Row],[indx]], INDIRECT("Ucret_Turleri_"&yil_1&"_"&LEFT(ay_2,1)&"[indx]"), 0 ) ) -> 77.05333333
C29: 25 | D29: =INDEX( INDIRECT("Ucret_Turleri_"&yil_1&"_"&LEFT(ay_2,1)&"[" & D$4 & "]"), MATCH( secili_params_ucret_turleri_2[[#This Row],[indx]], INDIRECT("Ucret_Turleri_"&yil_1&"_"&LEFT(ay_2,1)&"[indx]"), 0 ) ) -> İş Göremezlik Ödeneği Ayakta Tedavi – Üst Limit | E29: =INDEX( INDIRECT("Ucret_Turleri_"&yil_1&"_"&LEFT(ay_2,1)&"[" & E$4 & "]"), MATCH( secili_params_ucret_turleri_2[[#This Row],[indx]], INDIRECT("Ucret_Turleri_"&yil_1&"_"&LEFT(ay_2,1)&"[indx]"), 0 ) ) -> 130027.5 | F29: =INDEX( INDIRECT("Ucret_Turleri_"&yil_1&"_"&LEFT(ay_2,1)&"[" & F$4 & "]"), MATCH( secili_params_ucret_turleri_2[[#This Row],[indx]], INDIRECT("Ucret_Turleri_"&yil_1&"_"&LEFT(ay_2,1)&"[indx]"), 0 ) ) -> 4334.25 | G29: =INDEX( INDIRECT("Ucret_Turleri_"&yil_1&"_"&LEFT(ay_2,1)&"[" & G$4 & "]"), MATCH( secili_params_ucret_turleri_2[[#This Row],[indx]], INDIRECT("Ucret_Turleri_"&yil_1&"_"&LEFT(ay_2,1)&"[indx]"), 0 ) ) -> 577.9
C30: 26 | D30: =INDEX( INDIRECT("Ucret_Turleri_"&yil_1&"_"&LEFT(ay_2,1)&"[" & D$4 & "]"), MATCH( secili_params_ucret_turleri_2[[#This Row],[indx]], INDIRECT("Ucret_Turleri_"&yil_1&"_"&LEFT(ay_2,1)&"[indx]"), 0 ) ) -> İş Göremezlik Ödeneği Yatarak Tedavi – Alt Limit | E30: =INDEX( INDIRECT("Ucret_Turleri_"&yil_1&"_"&LEFT(ay_2,1)&"[" & E$4 & "]"), MATCH( secili_params_ucret_turleri_2[[#This Row],[indx]], INDIRECT("Ucret_Turleri_"&yil_1&"_"&LEFT(ay_2,1)&"[indx]"), 0 ) ) -> 13002.9 | F30: =INDEX( INDIRECT("Ucret_Turleri_"&yil_1&"_"&LEFT(ay_2,1)&"[" & F$4 & "]"), MATCH( secili_params_ucret_turleri_2[[#This Row],[indx]], INDIRECT("Ucret_Turleri_"&yil_1&"_"&LEFT(ay_2,1)&"[indx]"), 0 ) ) -> 433.43 | G30: =INDEX( INDIRECT("Ucret_Turleri_"&yil_1&"_"&LEFT(ay_2,1)&"[" & G$4 & "]"), MATCH( secili_params_ucret_turleri_2[[#This Row],[indx]], INDIRECT("Ucret_Turleri_"&yil_1&"_"&LEFT(ay_2,1)&"[indx]"), 0 ) ) -> 57.79066667
C31: 27 | D31: =INDEX( INDIRECT("Ucret_Turleri_"&yil_1&"_"&LEFT(ay_2,1)&"[" & D$4 & "]"), MATCH( secili_params_ucret_turleri_2[[#This Row],[indx]], INDIRECT("Ucret_Turleri_"&yil_1&"_"&LEFT(ay_2,1)&"[indx]"), 0 ) ) -> İş Göremezlik Ödeneği Yatarak Tedavi – Üst Limit | E31: =INDEX( INDIRECT("Ucret_Turleri_"&yil_1&"_"&LEFT(ay_2,1)&"[" & E$4 & "]"), MATCH( secili_params_ucret_turleri_2[[#This Row],[indx]], INDIRECT("Ucret_Turleri_"&yil_1&"_"&LEFT(ay_2,1)&"[indx]"), 0 ) ) -> 97520.7 | F31: =INDEX( INDIRECT("Ucret_Turleri_"&yil_1&"_"&LEFT(ay_2,1)&"[" & F$4 & "]"), MATCH( secili_params_ucret_turleri_2[[#This Row],[indx]], INDIRECT("Ucret_Turleri_"&yil_1&"_"&LEFT(ay_2,1)&"[indx]"), 0 ) ) -> 3250.69 | G31: =INDEX( INDIRECT("Ucret_Turleri_"&yil_1&"_"&LEFT(ay_2,1)&"[" & G$4 & "]"), MATCH( secili_params_ucret_turleri_2[[#This Row],[indx]], INDIRECT("Ucret_Turleri_"&yil_1&"_"&LEFT(ay_2,1)&"[indx]"), 0 ) ) -> 433.4253333
C32: 28 | D32: =INDEX( INDIRECT("Ucret_Turleri_"&yil_1&"_"&LEFT(ay_2,1)&"[" & D$4 & "]"), MATCH( secili_params_ucret_turleri_2[[#This Row],[indx]], INDIRECT("Ucret_Turleri_"&yil_1&"_"&LEFT(ay_2,1)&"[indx]"), 0 ) ) -> Yarım Çalışma Ödeneği | E32: =INDEX( INDIRECT("Ucret_Turleri_"&yil_1&"_"&LEFT(ay_2,1)&"[" & E$4 & "]"), MATCH( secili_params_ucret_turleri_2[[#This Row],[indx]], INDIRECT("Ucret_Turleri_"&yil_1&"_"&LEFT(ay_2,1)&"[indx]"), 0 ) ) -> 860.27 | F32: =INDEX( INDIRECT("Ucret_Turleri_"&yil_1&"_"&LEFT(ay_2,1)&"[" & F$4 & "]"), MATCH( secili_params_ucret_turleri_2[[#This Row],[indx]], INDIRECT("Ucret_Turleri_"&yil_1&"_"&LEFT(ay_2,1)&"[indx]"), 0 ) ) -> 28.67566667 | G32: =INDEX( INDIRECT("Ucret_Turleri_"&yil_1&"_"&LEFT(ay_2,1)&"[" & G$4 & "]"), MATCH( secili_params_ucret_turleri_2[[#This Row],[indx]], INDIRECT("Ucret_Turleri_"&yil_1&"_"&LEFT(ay_2,1)&"[indx]"), 0 ) ) -> 3.823422222
C33: 29 | D33: =INDEX( INDIRECT("Ucret_Turleri_"&yil_1&"_"&LEFT(ay_2,1)&"[" & D$4 & "]"), MATCH( secili_params_ucret_turleri_2[[#This Row],[indx]], INDIRECT("Ucret_Turleri_"&yil_1&"_"&LEFT(ay_2,1)&"[indx]"), 0 ) ) ->  | E33: =INDEX( INDIRECT("Ucret_Turleri_"&yil_1&"_"&LEFT(ay_2,1)&"[" & E$4 & "]"), MATCH( secili_params_ucret_turleri_2[[#This Row],[indx]], INDIRECT("Ucret_Turleri_"&yil_1&"_"&LEFT(ay_2,1)&"[indx]"), 0 ) ) ->  | F33: =INDEX( INDIRECT("Ucret_Turleri_"&yil_1&"_"&LEFT(ay_2,1)&"[" & F$4 & "]"), MATCH( secili_params_ucret_turleri_2[[#This Row],[indx]], INDIRECT("Ucret_Turleri_"&yil_1&"_"&LEFT(ay_2,1)&"[indx]"), 0 ) ) ->  | G33: =INDEX( INDIRECT("Ucret_Turleri_"&yil_1&"_"&LEFT(ay_2,1)&"[" & G$4 & "]"), MATCH( secili_params_ucret_turleri_2[[#This Row],[indx]], INDIRECT("Ucret_Turleri_"&yil_1&"_"&LEFT(ay_2,1)&"[indx]"), 0 ) ) -> 
C34: 30 | D34: =INDEX( INDIRECT("Ucret_Turleri_"&yil_1&"_"&LEFT(ay_2,1)&"[" & D$4 & "]"), MATCH( secili_params_ucret_turleri_2[[#This Row],[indx]], INDIRECT("Ucret_Turleri_"&yil_1&"_"&LEFT(ay_2,1)&"[indx]"), 0 ) ) ->  | E34: =INDEX( INDIRECT("Ucret_Turleri_"&yil_1&"_"&LEFT(ay_2,1)&"[" & E$4 & "]"), MATCH( secili_params_ucret_turleri_2[[#This Row],[indx]], INDIRECT("Ucret_Turleri_"&yil_1&"_"&LEFT(ay_2,1)&"[indx]"), 0 ) ) ->  | F34: =INDEX( INDIRECT("Ucret_Turleri_"&yil_1&"_"&LEFT(ay_2,1)&"[" & F$4 & "]"), MATCH( secili_params_ucret_turleri_2[[#This Row],[indx]], INDIRECT("Ucret_Turleri_"&yil_1&"_"&LEFT(ay_2,1)&"[indx]"), 0 ) ) ->  | G34: =INDEX( INDIRECT("Ucret_Turleri_"&yil_1&"_"&LEFT(ay_2,1)&"[" & G$4 & "]"), MATCH( secili_params_ucret_turleri_2[[#This Row],[indx]], INDIRECT("Ucret_Turleri_"&yil_1&"_"&LEFT(ay_2,1)&"[indx]"), 0 ) ) -> 
C35: 31 | D35: =INDEX( INDIRECT("Ucret_Turleri_"&yil_1&"_"&LEFT(ay_2,1)&"[" & D$4 & "]"), MATCH( secili_params_ucret_turleri_2[[#This Row],[indx]], INDIRECT("Ucret_Turleri_"&yil_1&"_"&LEFT(ay_2,1)&"[indx]"), 0 ) ) ->  | E35: =INDEX( INDIRECT("Ucret_Turleri_"&yil_1&"_"&LEFT(ay_2,1)&"[" & E$4 & "]"), MATCH( secili_params_ucret_turleri_2[[#This Row],[indx]], INDIRECT("Ucret_Turleri_"&yil_1&"_"&LEFT(ay_2,1)&"[indx]"), 0 ) ) ->  | F35: =INDEX( INDIRECT("Ucret_Turleri_"&yil_1&"_"&LEFT(ay_2,1)&"[" & F$4 & "]"), MATCH( secili_params_ucret_turleri_2[[#This Row],[indx]], INDIRECT("Ucret_Turleri_"&yil_1&"_"&LEFT(ay_2,1)&"[indx]"), 0 ) ) ->  | G35: =INDEX( INDIRECT("Ucret_Turleri_"&yil_1&"_"&LEFT(ay_2,1)&"[" & G$4 & "]"), MATCH( secili_params_ucret_turleri_2[[#This Row],[indx]], INDIRECT("Ucret_Turleri_"&yil_1&"_"&LEFT(ay_2,1)&"[indx]"), 0 ) ) -> 
C36: 32 | D36: =INDEX( INDIRECT("Ucret_Turleri_"&yil_1&"_"&LEFT(ay_2,1)&"[" & D$4 & "]"), MATCH( secili_params_ucret_turleri_2[[#This Row],[indx]], INDIRECT("Ucret_Turleri_"&yil_1&"_"&LEFT(ay_2,1)&"[indx]"), 0 ) ) ->  | E36: =INDEX( INDIRECT("Ucret_Turleri_"&yil_1&"_"&LEFT(ay_2,1)&"[" & E$4 & "]"), MATCH( secili_params_ucret_turleri_2[[#This Row],[indx]], INDIRECT("Ucret_Turleri_"&yil_1&"_"&LEFT(ay_2,1)&"[indx]"), 0 ) ) ->  | F36: =INDEX( INDIRECT("Ucret_Turleri_"&yil_1&"_"&LEFT(ay_2,1)&"[" & F$4 & "]"), MATCH( secili_params_ucret_turleri_2[[#This Row],[indx]], INDIRECT("Ucret_Turleri_"&yil_1&"_"&LEFT(ay_2,1)&"[indx]"), 0 ) ) ->  | G36: =INDEX( INDIRECT("Ucret_Turleri_"&yil_1&"_"&LEFT(ay_2,1)&"[" & G$4 & "]"), MATCH( secili_params_ucret_turleri_2[[#This Row],[indx]], INDIRECT("Ucret_Turleri_"&yil_1&"_"&LEFT(ay_2,1)&"[indx]"), 0 ) ) -> 
C37: 33 | D37: =INDEX( INDIRECT("Ucret_Turleri_"&yil_1&"_"&LEFT(ay_2,1)&"[" & D$4 & "]"), MATCH( secili_params_ucret_turleri_2[[#This Row],[indx]], INDIRECT("Ucret_Turleri_"&yil_1&"_"&LEFT(ay_2,1)&"[indx]"), 0 ) ) ->  | E37: =INDEX( INDIRECT("Ucret_Turleri_"&yil_1&"_"&LEFT(ay_2,1)&"[" & E$4 & "]"), MATCH( secili_params_ucret_turleri_2[[#This Row],[indx]], INDIRECT("Ucret_Turleri_"&yil_1&"_"&LEFT(ay_2,1)&"[indx]"), 0 ) ) ->  | F37: =INDEX( INDIRECT("Ucret_Turleri_"&yil_1&"_"&LEFT(ay_2,1)&"[" & F$4 & "]"), MATCH( secili_params_ucret_turleri_2[[#This Row],[indx]], INDIRECT("Ucret_Turleri_"&yil_1&"_"&LEFT(ay_2,1)&"[indx]"), 0 ) ) ->  | G37: =INDEX( INDIRECT("Ucret_Turleri_"&yil_1&"_"&LEFT(ay_2,1)&"[" & G$4 & "]"), MATCH( secili_params_ucret_turleri_2[[#This Row],[indx]], INDIRECT("Ucret_Turleri_"&yil_1&"_"&LEFT(ay_2,1)&"[indx]"), 0 ) ) -> 

Sheet 2026
A1: 1. DÖNEM
A2: indx | B2: Ücret Türü | C2: Aylık | D2: Günlük | E2: Saatlik | G2: indx | H2: VERGİ | I2: DİLİMLERİ | J2: VERGİ ORANLARI | K2: VERGİ KESİNTİSİ | M2: indx | N2: Sigorta Kolu | O2: İşveren Payı | P2: Çalışan Payı | Q2: Toplam
A3: 1 | B3: Asgari Brüt | C3: 33030 | D3: =Ucret_Turleri_2026_1[[#This Row],[Aylık]]/30 -> 1101 | E3: =Ucret_Turleri_2026_1[[#This Row],[Günlük]]/7.5 -> 146.8 | G3: 1 | H3: 0 | I3: 190000 | J3: 0.15 | K3: =Vergi_Dilimleri_2026_1[[#This Row],[DİLİMLERİ]]*Vergi_Dilimleri_2026_1[[#This Row],[VERGİ ORANLARI]] -> 28500 | M3: 1 | N3: Malüllük, Yaşlılık ve Ölüm | O3: 0.12 | P3: 0.09 | Q3: 0.2
A4: =A3+1 -> 2 | B4: SGK Tavan | C4: 297270 | D4: =Ucret_Turleri_2026_1[[#This Row],[Aylık]]/30 -> 9909 | E4: =Ucret_Turleri_2026_1[[#This Row],[Günlük]]/7.5 -> 1321.2 | G4: =G3+1 -> 2 | H4: =I3+0.01 -> 190000.01 | I4: 400000 | J4: 0.2 | K4: =Vergi_Dilimleri_2026_1[[#This Row],[DİLİMLERİ]]*Vergi_Dilimleri_2026_1[[#This Row],[VERGİ ORANLARI]] -> 80000 | M4: =M3+1 -> 2 | N4: Kısa Vadeli Sigorta Kolları | O4: 0.0225 | P4: - | Q4: 0.02
A5: =A4+1 -> 3 | B5: Net Ücret | C5: 28075.5 | D5: =Ucret_Turleri_2026_1[[#This Row],[Aylık]]/30 -> 935.85 | E5: =Ucret_Turleri_2026_1[[#This Row],[Günlük]]/7.5 -> 124.78 | G5: =G4+1 -> 3 | H5: =I4+0.01 -> 400000.01 | I5: 1500000 | J5: 0.27 | K5: =Vergi_Dilimleri_2026_1[[#This Row],[DİLİMLERİ]]*Vergi_Dilimleri_2026_1[[#This Row],[VERGİ ORANLARI]] -> 405000 | M5: =M4+1 -> 3 | N5: Genel Sağlık Sigortası | O5: 0.075 | P5: 0.05 | Q5: 0.125
A6: 4 | B6: Emekli Net Ücret (Yıllık Ortalama) | C6: 30057.3 | D6: =Ucret_Turleri_2026_1[[#This Row],[Aylık]]/30 -> 1001.91 | E6: =Ucret_Turleri_2026_1[[#This Row],[Günlük]]/7.5 -> 133.588 | G6: 4 | H6: 1500000.01 | I6: 5300000 | J6: 0.35 | K6: =Vergi_Dilimleri_2026_1[[#This Row],[DİLİMLERİ]]*Vergi_Dilimleri_2026_1[[#This Row],[VERGİ ORANLARI]] -> 1855000 | M6: 4 | N6: İşsizlik Sigortası | O6: 0.02 | P6: 0.01
A7: 5 | B7: Emekli Engelli Net Ücret (Yıllık Ortalama) | C7: 30552.75 | D7: =Ucret_Turleri_2026_1[[#This Row],[Aylık]]/30 -> 1018.425 | E7: =Ucret_Turleri_2026_1[[#This Row],[Günlük]]/7.5 -> 135.79 | G7: 5 | H7: 5300000.01 | I7: 9999999 | J7: 0.4 | K7: =Vergi_Dilimleri_2026_1[[#This Row],[DİLİMLERİ]]*Vergi_Dilimleri_2026_1[[#This Row],[VERGİ ORANLARI]] -> 3999999.6 | M7: 5 | N7: Toplam | O7: =SUBTOTAL(109,O3:O6) -> 0.2375 | P7: =SUBTOTAL(109,P3:P6) -> 0.15 | Q7: =SUM(Isveren_prim_oranlari_normal_2026_1[[#This Row],[İşveren Payı]:[Çalışan Payı]]) -> 0.3875
A8: 6 | B8: Kıdem Tazminanı Tavanı 1. Dönem | C8: 64948.77 | D8: =Ucret_Turleri_2026_1[[#This Row],[Aylık]]/30 -> 2164.959 | E8: =Ucret_Turleri_2026_1[[#This Row],[Günlük]]/7.5 -> 288.6612 | M8: 6 | N8: Hazine | Q8: 0.02
A9: 7 | B9: 1.DERECE ENGELLİ | C9: 12000 | D9: =Ucret_Turleri_2026_1[[#This Row],[Aylık]]/30 -> 400 | E9: =Ucret_Turleri_2026_1[[#This Row],[Günlük]]/7.5 -> 53.33333333 | M9: 7 | N9: Hazine (İmalat) | Q9: 0.05
A10: 8 | B10: 2.DERECE ENGELLİ | C10: 7000 | D10: =Ucret_Turleri_2026_1[[#This Row],[Aylık]]/30 -> 233.3333333 | E10: =Ucret_Turleri_2026_1[[#This Row],[Günlük]]/7.5 -> 31.11111111 | M10: 8 | N10: Damga Vergisi Oranı | Q10: 0.00759
A11: 9 | B11: 3.DERECE ENGELLİ | C11: 3000 | D11: =Ucret_Turleri_2026_1[[#This Row],[Aylık]]/30 -> 100 | E11: =Ucret_Turleri_2026_1[[#This Row],[Günlük]]/7.5 -> 13.33333333
A12: 10 | B12: Stajyer Ücreti | C12: 8422.65 | D12: =Ucret_Turleri_2026_1[[#This Row],[Aylık]]/30 -> 280.755 | E12: =Ucret_Turleri_2026_1[[#This Row],[Günlük]]/7.5 -> 37.434 | M12: indx | N12: SGDP Oranı | O12: İşveren Payı | P12: Çalışan Payı | Q12: Toplam
A13: 11 | B13: Çocuk Yardımı SGK İstisnası | C13: 660.6 | D13: =Ucret_Turleri_2026_1[[#This Row],[Aylık]]/30 -> 22.02 | E13: =Ucret_Turleri_2026_1[[#This Row],[Günlük]]/7.5 -> 2.936 | M13: 1 | N13: Emekli Çalışan | O13: 0.2475 | P13: 0.075 | Q13: 0.3225
A14: 12 | B14: Aile Yardımı SGK İstisnası | C14: 3303 | D14: =Ucret_Turleri_2026_1[[#This Row],[Aylık]]/30 -> 110.1 | E14: =Ucret_Turleri_2026_1[[#This Row],[Günlük]]/7.5 -> 14.68
A15: 13 | B15: Nakit Yemek Parası SGK İstisnası | C15: 158 | D15: =Ucret_Turleri_2026_1[[#This Row],[Aylık]]/30 -> 5.266666667 | E15: =Ucret_Turleri_2026_1[[#This Row],[Günlük]]/7.5 -> 0.7022222222
A16: 14 | B16: Yemek Kartı SGK İstisnası | C16: 158 | D16: =Ucret_Turleri_2026_1[[#This Row],[Aylık]]/30 -> 5.266666667 | E16: =Ucret_Turleri_2026_1[[#This Row],[Günlük]]/7.5 -> 0.7022222222
A17: 15 | B17: Yemek Kartı GV İstisnası | C17: 300 | D17: =Ucret_Turleri_2026_1[[#This Row],[Aylık]]/30 -> 10 | E17: =Ucret_Turleri_2026_1[[#This Row],[Günlük]]/7.5 -> 1.333333333
A18: 16 | B18: Nakit Yemek Parası GV İstisnası | C18: 300 | D18: =Ucret_Turleri_2026_1[[#This Row],[Aylık]]/30 -> 10 | E18: =Ucret_Turleri_2026_1[[#This Row],[Günlük]]/7.5 -> 1.333333333
A19: 17 | B19: Nakit Yemek Parası DV İstisnası | C19: 300 | D19: =Ucret_Turleri_2026_1[[#This Row],[Aylık]]/30 -> 10 | E19: =Ucret_Turleri_2026_1[[#This Row],[Günlük]]/7.5 -> 1.333333333
A20: 18 | B20: Yol/Ulaşım Kartı GV İstisnası | C20: 158 | D20: =Ucret_Turleri_2026_1[[#This Row],[Aylık]]/30 -> 5.266666667 | E20: =Ucret_Turleri_2026_1[[#This Row],[Günlük]]/7.5 -> 0.7022222222
A21: 19 | B21: Çocuk Yardımı GV İstisnası – 0-6 yaş | C21: 787.76 | D21: =Ucret_Turleri_2026_1[[#This Row],[Aylık]]/30 -> 26.25866667 | E21: =Ucret_Turleri_2026_1[[#This Row],[Günlük]]/7.5 -> 3.501155556
A22: 20 | B22: Çocuk Yardımı GV İstisnası – 6 yaş üzeri | C22: 393.88 | D22: =Ucret_Turleri_2026_1[[#This Row],[Aylık]]/30 -> 13.12933333 | E22: =Ucret_Turleri_2026_1[[#This Row],[Günlük]]/7.5 -> 1.750577778
A23: 21 | B23: Emzirme Ödeneği | C23: 1621 | D23: =Ucret_Turleri_2026_1[[#This Row],[Aylık]]/30 -> 54.03333333 | E23: =Ucret_Turleri_2026_1[[#This Row],[Günlük]]/7.5 -> 7.204444444
A24: 22 | B24: İşsizlik Ödeneği – Alt Limit | C24: 13111.79 | D24: =Ucret_Turleri_2026_1[[#This Row],[Aylık]]/30 -> 437.0596667 | E24: =Ucret_Turleri_2026_1[[#This Row],[Günlük]]/7.5 -> 58.27462222
A25: 23 | B25: İşsizlik Ödeneği – Üst Limit | C25: 26223.44 | D25: =Ucret_Turleri_2026_1[[#This Row],[Aylık]]/30 -> 874.1146667 | E25: =Ucret_Turleri_2026_1[[#This Row],[Günlük]]/7.5 -> 116.5486222
A26: 24 | B26: İş Göremezlik Ödeneği Ayakta Tedavi – Alt Limit | D26: =Ucret_Turleri_2026_1[[#This Row],[Aylık]]/30 -> 0 | E26: =Ucret_Turleri_2026_1[[#This Row],[Günlük]]/7.5 -> 0
A27: 25 | B27: İş Göremezlik Ödeneği Ayakta Tedavi – Üst Limit | D27: =Ucret_Turleri_2026_1[[#This Row],[Aylık]]/30 -> 0 | E27: =Ucret_Turleri_2026_1[[#This Row],[Günlük]]/7.5 -> 0
A28: 26 | B28: İş Göremezlik Ödeneği Yatarak Tedavi – Alt Limit | D28: =Ucret_Turleri_2026_1[[#This Row],[Aylık]]/30 -> 0 | E28: =Ucret_Turleri_2026_1[[#This Row],[Günlük]]/7.5 -> 0
A29: 27 | B29: İş Göremezlik Ödeneği Yatarak Tedavi – Üst Limit | D29: =Ucret_Turleri_2026_1[[#This Row],[Aylık]]/30 -> 0 | E29: =Ucret_Turleri_2026_1[[#This Row],[Günlük]]/7.5 -> 0
A30: 28 | B30: Yarım Çalışma Ödeneği | D30: =Ucret_Turleri_2026_1[[#This Row],[Aylık]]/30 -> 0 | E30: =Ucret_Turleri_2026_1[[#This Row],[Günlük]]/7.5 -> 0
A44: 2. DÖNEM
A45: indx | B45: Ücret Türü | C45: Aylık | D45: Günlük | E45: Saatlik | G45: indx | H45: VERGİ | I45: DİLİMLERİ | J45: VERGİ ORANLARI | K45: VERGİ KESİNTİSİ | M45: indx | N45: Sigorta Kolu | O45: İşveren Payı | P45: Çalışan Payı | Q45: Toplam
A46: 1 | B46: Asgari Brüt | C46: 33030 | D46: =Ucret_Turleri_2026_2[[#This Row],[Aylık]]/30 -> 1101 | E46: =Ucret_Turleri_2026_2[[#This Row],[Günlük]]/7.5 -> 146.8 | G46: 1 | H46: 0 | I46: 190000 | J46: 0.15 | K46: =Vergi_Dilimleri_2026_2[[#This Row],[DİLİMLERİ]]*Vergi_Dilimleri_2026_2[[#This Row],[VERGİ ORANLARI]] -> 28500 | M46: 1 | N46: Malüllük, Yaşlılık ve Ölüm | O46: 0.12 | P46: 0.09 | Q46: 0.2
A47: =A46+1 -> 2 | B47: SGK Tavan | C47: 297270 | D47: =Ucret_Turleri_2026_2[[#This Row],[Aylık]]/30 -> 9909 | E47: =Ucret_Turleri_2026_2[[#This Row],[Günlük]]/7.5 -> 1321.2 | G47: =G46+1 -> 2 | H47: =I46+0.01 -> 190000.01 | I47: 400000 | J47: 0.2 | K47: =Vergi_Dilimleri_2026_2[[#This Row],[DİLİMLERİ]]*Vergi_Dilimleri_2026_2[[#This Row],[VERGİ ORANLARI]] -> 80000 | M47: =M46+1 -> 2 | N47: Kısa Vadeli Sigorta Kolları | O47: 0.0225 | P47: - | Q47: 0.02
A48: =A47+1 -> 3 | B48: Net Ücret | C48: 28075.5 | D48: =Ucret_Turleri_2026_2[[#This Row],[Aylık]]/30 -> 935.85 | E48: =Ucret_Turleri_2026_2[[#This Row],[Günlük]]/7.5 -> 124.78 | G48: =G47+1 -> 3 | H48: =I47+0.01 -> 400000.01 | I48: 1500000 | J48: 0.27 | K48: =Vergi_Dilimleri_2026_2[[#This Row],[DİLİMLERİ]]*Vergi_Dilimleri_2026_2[[#This Row],[VERGİ ORANLARI]] -> 405000 | M48: =M47+1 -> 3 | N48: Genel Sağlık Sigortası | O48: 0.075 | P48: 0.05 | Q48: 0.125
A49: 4 | B49: Emekli Net Ücret (Yıllık Ortalama) | C49: 30057.3 | D49: =Ucret_Turleri_2026_2[[#This Row],[Aylık]]/30 -> 1001.91 | E49: =Ucret_Turleri_2026_2[[#This Row],[Günlük]]/7.5 -> 133.588 | G49: 4 | H49: 1500000.01 | I49: 5300000 | J49: 0.35 | K49: =Vergi_Dilimleri_2026_2[[#This Row],[DİLİMLERİ]]*Vergi_Dilimleri_2026_2[[#This Row],[VERGİ ORANLARI]] -> 1855000 | M49: 4 | N49: İşsizlik Sigortası | O49: 0.02 | P49: 0.01
A50: 5 | B50: Emekli Engelli Net Ücret (Yıllık Ortalama) | C50: 30552.75 | D50: =Ucret_Turleri_2026_2[[#This Row],[Aylık]]/30 -> 1018.425 | E50: =Ucret_Turleri_2026_2[[#This Row],[Günlük]]/7.5 -> 135.79 | G50: 5 | H50: 5300000.01 | I50: 9999999 | J50: 0.4 | K50: =Vergi_Dilimleri_2026_2[[#This Row],[DİLİMLERİ]]*Vergi_Dilimleri_2026_2[[#This Row],[VERGİ ORANLARI]] -> 3999999.6 | M50: 5 | N50: Toplam | O50: =SUBTOTAL(109,O46:O49) -> 0.2375 | P50: =SUBTOTAL(109,P46:P49) -> 0.15 | Q50: =SUM(Isveren_prim_oranlari_normal_2026_2[[#This Row],[İşveren Payı]:[Çalışan Payı]]) -> 0.3875
A51: 6 | B51: Kıdem Tazminanı Tavanı 2. Dönem | C51: 73729.87 | D51: =Ucret_Turleri_2026_2[[#This Row],[Aylık]]/30 -> 2457.662333 | E51: =Ucret_Turleri_2026_2[[#This Row],[Günlük]]/7.5 -> 327.6883111 | M51: 6 | N51: Hazine | Q51: 0.02
A52: 7 | B52: 1.DERECE ENGELLİ | C52: 12000 | D52: =Ucret_Turleri_2026_2[[#This Row],[Aylık]]/30 -> 400 | E52: =Ucret_Turleri_2026_2[[#This Row],[Günlük]]/7.5 -> 53.33333333 | M52: 7 | N52: Hazine (İmalat) | Q52: 0.05
A53: 8 | B53: 2.DERECE ENGELLİ | C53: 7000 | D53: =Ucret_Turleri_2026_2[[#This Row],[Aylık]]/30 -> 233.3333333 | E53: =Ucret_Turleri_2026_2[[#This Row],[Günlük]]/7.5 -> 31.11111111 | M53: 8 | N53: Damga Vergisi Oranı | Q53: 0.00759
A54: 9 | B54: 3.DERECE ENGELLİ | C54: 3000 | D54: =Ucret_Turleri_2026_2[[#This Row],[Aylık]]/30 -> 100 | E54: =Ucret_Turleri_2026_2[[#This Row],[Günlük]]/7.5 -> 13.33333333
A55: 10 | B55: Stajyer Ücreti | C55: 8422.65 | D55: =Ucret_Turleri_2026_2[[#This Row],[Aylık]]/30 -> 280.755 | E55: =Ucret_Turleri_2026_2[[#This Row],[Günlük]]/7.5 -> 37.434 | M55: indx | N55: SGDP Oranı | O55: İşveren Payı | P55: Çalışan Payı | Q55: Toplam
A56: 11 | B56: Çocuk Yardımı SGK İstisnası | C56: 660.6 | D56: =Ucret_Turleri_2026_2[[#This Row],[Aylık]]/30 -> 22.02 | E56: =Ucret_Turleri_2026_2[[#This Row],[Günlük]]/7.5 -> 2.936 | M56: 1 | N56: Emekli Çalışan | O56: 0.2475 | P56: 0.075 | Q56: 0.3225
A57: 12 | B57: Aile Yardımı SGK İstisnası | C57: 3303 | D57: =Ucret_Turleri_2026_2[[#This Row],[Aylık]]/30 -> 110.1 | E57: =Ucret_Turleri_2026_2[[#This Row],[Günlük]]/7.5 -> 14.68
A58: 13 | B58: Nakit Yemek Parası SGK İstisnası | C58: 300 | D58: =Ucret_Turleri_2026_2[[#This Row],[Aylık]]/30 -> 10 | E58: =Ucret_Turleri_2026_2[[#This Row],[Günlük]]/7.5 -> 1.333333333
A59: 14 | B59: Yemek Kartı SGK İstisnası | C59: 300 | D59: =Ucret_Turleri_2026_2[[#This Row],[Aylık]]/30 -> 10 | E59: =Ucret_Turleri_2026_2[[#This Row],[Günlük]]/7.5 -> 1.333333333
A60: 15 | B60: Yemek Kartı GV İstisnası | C60: 300 | D60: =Ucret_Turleri_2026_2[[#This Row],[Aylık]]/30 -> 10 | E60: =Ucret_Turleri_2026_2[[#This Row],[Günlük]]/7.5 -> 1.333333333
A61: 16 | B61: Nakit Yemek Parası GV İstisnası | C61: 300 | D61: =Ucret_Turleri_2026_2[[#This Row],[Aylık]]/30 -> 10 | E61: =Ucret_Turleri_2026_2[[#This Row],[Günlük]]/7.5 -> 1.333333333
A62: 17 | B62: Nakit Yemek Parası DV İstisnası | C62: 300 | D62: =Ucret_Turleri_2026_2[[#This Row],[Aylık]]/30 -> 10 | E62: =Ucret_Turleri_2026_2[[#This Row],[Günlük]]/7.5 -> 1.333333333
A63: 18 | B63: Yol/Ulaşım Kartı GV İstisnası | C63: 158 | D63: =Ucret_Turleri_2026_2[[#This Row],[Aylık]]/30 -> 5.266666667 | E63: =Ucret_Turleri_2026_2[[#This Row],[Günlük]]/7.5 -> 0.7022222222
A64: 19 | B64: Çocuk Yardımı GV İstisnası – 0-6 yaş | C64: 787.76 | D64: =Ucret_Turleri_2026_2[[#This Row],[Aylık]]/30 -> 26.25866667 | E64: =Ucret_Turleri_2026_2[[#This Row],[Günlük]]/7.5 -> 3.501155556
A65: 20 | B65: Çocuk Yardımı GV İstisnası – 6 yaş üzeri | C65: 393.88 | D65: =Ucret_Turleri_2026_2[[#This Row],[Aylık]]/30 -> 13.12933333 | E65: =Ucret_Turleri_2026_2[[#This Row],[Günlük]]/7.5 -> 1.750577778
A66: 21 | B66: Emzirme Ödeneği | C66: 1621 | D66: =Ucret_Turleri_2026_2[[#This Row],[Aylık]]/30 -> 54.03333333 | E66: =Ucret_Turleri_2026_2[[#This Row],[Günlük]]/7.5 -> 7.204444444
A67: 22 | B67: İşsizlik Ödeneği – Alt Limit | C67: 13111.79 | D67: =Ucret_Turleri_2026_2[[#This Row],[Aylık]]/30 -> 437.0596667 | E67: =Ucret_Turleri_2026_2[[#This Row],[Günlük]]/7.5 -> 58.27462222
A68: 23 | B68: İşsizlik Ödeneği – Üst Limit | C68: 26223.44 | D68: =Ucret_Turleri_2026_2[[#This Row],[Aylık]]/30 -> 874.1146667 | E68: =Ucret_Turleri_2026_2[[#This Row],[Günlük]]/7.5 -> 116.5486222
A69: 24 | B69: İş Göremezlik Ödeneği Ayakta Tedavi – Alt Limit | D69: =Ucret_Turleri_2026_2[[#This Row],[Aylık]]/30 -> 0 | E69: =Ucret_Turleri_2026_2[[#This Row],[Günlük]]/7.5 -> 0
A70: 25 | B70: İş Göremezlik Ödeneği Ayakta Tedavi – Üst Limit | D70: =Ucret_Turleri_2026_2[[#This Row],[Aylık]]/30 -> 0 | E70: =Ucret_Turleri_2026_2[[#This Row],[Günlük]]/7.5 -> 0
A71: 26 | B71: İş Göremezlik Ödeneği Yatarak Tedavi – Alt Limit | D71: =Ucret_Turleri_2026_2[[#This Row],[Aylık]]/30 -> 0 | E71: =Ucret_Turleri_2026_2[[#This Row],[Günlük]]/7.5 -> 0
A72: 27 | B72: İş Göremezlik Ödeneği Yatarak Tedavi – Üst Limit | D72: =Ucret_Turleri_2026_2[[#This Row],[Aylık]]/30 -> 0 | E72: =Ucret_Turleri_2026_2[[#This Row],[Günlük]]/7.5 -> 0
A73: 28 | B73: Yarım Çalışma Ödeneği | D73: =Ucret_Turleri_2026_2[[#This Row],[Aylık]]/30 -> 0 | E73: =Ucret_Turleri_2026_2[[#This Row],[Günlük]]/7.5 -> 0

Sheet 2025
A1: 1. DÖNEM
A2: indx | B2: Ücret Türü | C2: Aylık | D2: Günlük | E2: Saatlik | G2: indx | H2: VERGİ | I2: DİLİMLERİ | J2: VERGİ ORANLARI | K2: VERGİ KESİNTİSİ | M2: indx | N2: Sigorta Kolu | O2: İşveren Payı | P2: Çalışan Payı | Q2: Toplam
A3: 1 | B3: Asgari Brüt | C3: 26005.5 | D3: =Ucret_Turleri_2025_1[[#This Row],[Aylık]]/30 -> 866.85 | E3: =Ucret_Turleri_2025_1[[#This Row],[Günlük]]/7.5 -> 115.58 | G3: 1 | H3: 0 | I3: 158000 | J3: 0.15 | K3: =Vergi_Dilimleri_2025_1[[#This Row],[DİLİMLERİ]]*Vergi_Dilimleri_2025_1[[#This Row],[VERGİ ORANLARI]] -> 23700 | M3: 1 | N3: Malüllük, Yaşlılık ve Ölüm | O3: 0.11 | P3: 0.09 | Q3: 0.2
A4: =A3+1 -> 2 | B4: SGK Tavan | C4: 195041.4 | D4: =Ucret_Turleri_2025_1[[#This Row],[Aylık]]/30 -> 6501.38 | E4: =Ucret_Turleri_2025_1[[#This Row],[Günlük]]/7.5 -> 866.8506667 | G4: =G3+1 -> 2 | H4: =I3+0.01 -> 158000.01 | I4: 330000 | J4: 0.2 | K4: =Vergi_Dilimleri_2025_1[[#This Row],[DİLİMLERİ]]*Vergi_Dilimleri_2025_1[[#This Row],[VERGİ ORANLARI]] -> 66000 | M4: =M3+1 -> 2 | N4: Kısa Vadeli Sigorta Kolları | O4: 0.0225 | P4: - | Q4: 0.02
A5: =A4+1 -> 3 | B5: Net Ücret | C5: 22104.67 | D5: =Ucret_Turleri_2025_1[[#This Row],[Aylık]]/30 -> 736.8223333 | E5: =Ucret_Turleri_2025_1[[#This Row],[Günlük]]/7.5 -> 98.24297778 | G5: =G4+1 -> 3 | H5: =I4+0.01 -> 330000.01 | I5: 1200000 | J5: 0.27 | K5: =Vergi_Dilimleri_2025_1[[#This Row],[DİLİMLERİ]]*Vergi_Dilimleri_2025_1[[#This Row],[VERGİ ORANLARI]] -> 324000 | M5: =M4+1 -> 3 | N5: Genel Sağlık Sigortası | O5: 0.075 | P5: 0.05 | Q5: 0.125
A6: 4 | B6: Emekli Net Ücret (Yıllık Ortalama) | C6: 23665.01 | D6: =Ucret_Turleri_2025_1[[#This Row],[Aylık]]/30 -> 788.8336667 | E6: =Ucret_Turleri_2025_1[[#This Row],[Günlük]]/7.5 -> 105.1778222 | G6: 4 | H6: 1200000.01 | I6: 4300000 | J6: 0.35 | K6: =Vergi_Dilimleri_2025_1[[#This Row],[DİLİMLERİ]]*Vergi_Dilimleri_2025_1[[#This Row],[VERGİ ORANLARI]] -> 1505000 | M6: 4 | N6: İşsizlik Sigortası | O6: 0.02 | P6: 0.01
A7: 5 | B7: Emekli Engelli Net Ücret (Yıllık Ortalama) | C7: 24055.09 | D7: =Ucret_Turleri_2025_1[[#This Row],[Aylık]]/30 -> 801.8363333 | E7: =Ucret_Turleri_2025_1[[#This Row],[Günlük]]/7.5 -> 106.9115111 | G7: 5 | H7: 4300000.01 | I7: 9999999 | J7: 0.4 | K7: =Vergi_Dilimleri_2025_1[[#This Row],[DİLİMLERİ]]*Vergi_Dilimleri_2025_1[[#This Row],[VERGİ ORANLARI]] -> 3999999.6 | M7: 5 | N7: Toplam | O7: =SUBTOTAL(109,O3:O6) -> 0.2275 | P7: =SUBTOTAL(109,P3:P6) -> 0.15 | Q7: =SUM(Isveren_prim_oranlari_normal_2025_1[[#This Row],[İşveren Payı]:[Çalışan Payı]]) -> 0.3775
A8: 6 | B8: Kıdem Tazminanı Tavanı 1. Dönem | C8: 46655.43 | D8: =Ucret_Turleri_2025_1[[#This Row],[Aylık]]/30 -> 1555.181 | E8: =Ucret_Turleri_2025_1[[#This Row],[Günlük]]/7.5 -> 207.3574667 | M8: 6 | N8: Hazine | Q8: 0.04
A9: 7 | B9: 1.DERECE ENGELLİ | C9: 9900 | D9: =Ucret_Turleri_2025_1[[#This Row],[Aylık]]/30 -> 330 | E9: =Ucret_Turleri_2025_1[[#This Row],[Günlük]]/7.5 -> 44 | M9: 7 | N9: Hazine (İmalat) | Q9: 0.05
A10: 8 | B10: 2.DERECE ENGELLİ | C10: 5700 | D10: =Ucret_Turleri_2025_1[[#This Row],[Aylık]]/30 -> 190 | E10: =Ucret_Turleri_2025_1[[#This Row],[Günlük]]/7.5 -> 25.33333333 | M10: 8 | N10: Damga Vergisi Oranı | Q10: 0.00759
A11: 9 | B11: 3.DERECE ENGELLİ | C11: 2400 | D11: =Ucret_Turleri_2025_1[[#This Row],[Aylık]]/30 -> 80 | E11: =Ucret_Turleri_2025_1[[#This Row],[Günlük]]/7.5 -> 10.66666667
A12: 10 | B12: Stajyer Ücreti | C12: 6631.4 | D12: =Ucret_Turleri_2025_1[[#This Row],[Aylık]]/30 -> 221.0466667 | E12: =Ucret_Turleri_2025_1[[#This Row],[Günlük]]/7.5 -> 29.47288889 | M12: indx | N12: SGDP Oranı | O12: İşveren Payı | P12: Çalışan Payı | Q12: Toplam
A13: 11 | B13: Çocuk Yardımı SGK İstisnası | C13: 520.11 | D13: =Ucret_Turleri_2025_1[[#This Row],[Aylık]]/30 -> 17.337 | E13: =Ucret_Turleri_2025_1[[#This Row],[Günlük]]/7.5 -> 2.3116 | M13: 1 | N13: Emekli Çalışan | O13: 0.2475 | P13: 0.075 | Q13: 0.3225
A14: 12 | B14: Aile Yardımı SGK İstisnası | C14: 2600.55 | D14: =Ucret_Turleri_2025_1[[#This Row],[Aylık]]/30 -> 86.685 | E14: =Ucret_Turleri_2025_1[[#This Row],[Günlük]]/7.5 -> 11.558
A15: 13 | B15: Nakit Yemek Parası SGK İstisnası | C15: 158 | D15: =Ucret_Turleri_2025_1[[#This Row],[Aylık]]/30 -> 5.266666667 | E15: =Ucret_Turleri_2025_1[[#This Row],[Günlük]]/7.5 -> 0.7022222222
A16: 14 | B16: Yemek Kartı SGK İstisnası | D16: =Ucret_Turleri_2025_1[[#This Row],[Aylık]]/30 -> 0 | E16: =Ucret_Turleri_2025_1[[#This Row],[Günlük]]/7.5 -> 0
A17: 15 | B17: Yemek Kartı GV İstisnası | C17: 240 | D17: =Ucret_Turleri_2025_1[[#This Row],[Aylık]]/30 -> 8 | E17: =Ucret_Turleri_2025_1[[#This Row],[Günlük]]/7.5 -> 1.066666667
A18: 16 | B18: Nakit Yemek Parası GV İstisnası | C18: 240 | D18: =Ucret_Turleri_2025_1[[#This Row],[Aylık]]/30 -> 8 | E18: =Ucret_Turleri_2025_1[[#This Row],[Günlük]]/7.5 -> 1.066666667
A19: 17 | B19: Nakit Yemek Parası DV İstisnası | D19: =Ucret_Turleri_2025_1[[#This Row],[Aylık]]/30 -> 0 | E19: =Ucret_Turleri_2025_1[[#This Row],[Günlük]]/7.5 -> 0
A20: 18 | B20: Yol/Ulaşım Kartı GV İstisnası | C20: 126 | D20: =Ucret_Turleri_2025_1[[#This Row],[Aylık]]/30 -> 4.2 | E20: =Ucret_Turleri_2025_1[[#This Row],[Günlük]]/7.5 -> 0.56
A21: 19 | B21: Çocuk Yardımı GV İstisnası – 0-6 yaş | C21: 506.28 | D21: =Ucret_Turleri_2025_1[[#This Row],[Aylık]]/30 -> 16.876 | E21: =Ucret_Turleri_2025_1[[#This Row],[Günlük]]/7.5 -> 2.250133333
A22: 20 | B22: Çocuk Yardımı GV İstisnası – 6 yaş üzeri | C22: 253.14 | D22: =Ucret_Turleri_2025_1[[#This Row],[Aylık]]/30 -> 8.438 | E22: =Ucret_Turleri_2025_1[[#This Row],[Günlük]]/7.5 -> 1.125066667
A23: 21 | B23: Emzirme Ödeneği | C23: 1238 | D23: =Ucret_Turleri_2025_1[[#This Row],[Aylık]]/30 -> 41.26666667 | E23: =Ucret_Turleri_2025_1[[#This Row],[Günlük]]/7.5 -> 5.502222222
A24: 22 | B24: İşsizlik Ödeneği – Alt Limit | C24: 10323.25 | D24: =Ucret_Turleri_2025_1[[#This Row],[Aylık]]/30 -> 344.1083333 | E24: =Ucret_Turleri_2025_1[[#This Row],[Günlük]]/7.5 -> 45.88111111
A25: 23 | B25: İşsizlik Ödeneği – Üst Limit | C25: 20646.49 | D25: =Ucret_Turleri_2025_1[[#This Row],[Aylık]]/30 -> 688.2163333 | E25: =Ucret_Turleri_2025_1[[#This Row],[Günlük]]/7.5 -> 91.76217778
A26: 24 | B26: İş Göremezlik Ödeneği Ayakta Tedavi – Alt Limit | C26: 17337 | D26: =Ucret_Turleri_2025_1[[#This Row],[Aylık]]/30 -> 577.9 | E26: =Ucret_Turleri_2025_1[[#This Row],[Günlük]]/7.5 -> 77.05333333
A27: 25 | B27: İş Göremezlik Ödeneği Ayakta Tedavi – Üst Limit | C27: 130027.5 | D27: =Ucret_Turleri_2025_1[[#This Row],[Aylık]]/30 -> 4334.25 | E27: =Ucret_Turleri_2025_1[[#This Row],[Günlük]]/7.5 -> 577.9
A28: 26 | B28: İş Göremezlik Ödeneği Yatarak Tedavi – Alt Limit | C28: 13002.9 | D28: =Ucret_Turleri_2025_1[[#This Row],[Aylık]]/30 -> 433.43 | E28: =Ucret_Turleri_2025_1[[#This Row],[Günlük]]/7.5 -> 57.79066667
A29: 27 | B29: İş Göremezlik Ödeneği Yatarak Tedavi – Üst Limit | C29: 97520.7 | D29: =Ucret_Turleri_2025_1[[#This Row],[Aylık]]/30 -> 3250.69 | E29: =Ucret_Turleri_2025_1[[#This Row],[Günlük]]/7.5 -> 433.4253333
A30: 28 | B30: Yarım Çalışma Ödeneği | C30: 860.27 | D30: =Ucret_Turleri_2025_1[[#This Row],[Aylık]]/30 -> 28.67566667 | E30: =Ucret_Turleri_2025_1[[#This Row],[Günlük]]/7.5 -> 3.823422222
A44: 2. DÖNEM
A45: indx | B45: Ücret Türü | C45: Aylık | D45: Günlük | E45: Saatlik | G45: indx | H45: VERGİ | I45: DİLİMLERİ | J45: VERGİ ORANLARI | K45: VERGİ KESİNTİSİ | M45: indx | N45: Sigorta Kolu | O45: İşveren Payı | P45: Çalışan Payı | Q45: Toplam
A46: 1 | B46: Asgari Brüt | C46: 26005.5 | D46: =Ucret_Turleri_2025_2[[#This Row],[Aylık]]/30 -> 866.85 | E46: =Ucret_Turleri_2025_2[[#This Row],[Günlük]]/7.5 -> 115.58 | G46: 1 | H46: 0 | I46: 158000 | J46: 0.15 | K46: =Vergi_Dilimleri_2025_2[[#This Row],[DİLİMLERİ]]*Vergi_Dilimleri_2025_2[[#This Row],[VERGİ ORANLARI]] -> 23700 | M46: 1 | N46: Malüllük, Yaşlılık ve Ölüm | O46: 0.11 | P46: 0.09 | Q46: 0.2
A47: =A46+1 -> 2 | B47: SGK Tavan | C47: 195041.4 | D47: =Ucret_Turleri_2025_2[[#This Row],[Aylık]]/30 -> 6501.38 | E47: =Ucret_Turleri_2025_2[[#This Row],[Günlük]]/7.5 -> 866.8506667 | G47: =G46+1 -> 2 | H47: =I46+0.01 -> 158000.01 | I47: 330000 | J47: 0.2 | K47: =Vergi_Dilimleri_2025_2[[#This Row],[DİLİMLERİ]]*Vergi_Dilimleri_2025_2[[#This Row],[VERGİ ORANLARI]] -> 66000 | M47: =M46+1 -> 2 | N47: Kısa Vadeli Sigorta Kolları | O47: 0.0225 | P47: - | Q47: 0.02
A48: =A47+1 -> 3 | B48: Net Ücret | C48: 22104.67 | D48: =Ucret_Turleri_2025_2[[#This Row],[Aylık]]/30 -> 736.8223333 | E48: =Ucret_Turleri_2025_2[[#This Row],[Günlük]]/7.5 -> 98.24297778 | G48: =G47+1 -> 3 | H48: =I47+0.01 -> 330000.01 | I48: 1200000 | J48: 0.27 | K48: =Vergi_Dilimleri_2025_2[[#This Row],[DİLİMLERİ]]*Vergi_Dilimleri_2025_2[[#This Row],[VERGİ ORANLARI]] -> 324000 | M48: =M47+1 -> 3 | N48: Genel Sağlık Sigortası | O48: 0.075 | P48: 0.05 | Q48: 0.125
A49: 4 | B49: Emekli Net Ücret (Yıllık Ortalama) | C49: 23665.01 | D49: =Ucret_Turleri_2025_2[[#This Row],[Aylık]]/30 -> 788.8336667 | E49: =Ucret_Turleri_2025_2[[#This Row],[Günlük]]/7.5 -> 105.1778222 | G49: 4 | H49: 1200000.01 | I49: 4300000 | J49: 0.35 | K49: =Vergi_Dilimleri_2025_2[[#This Row],[DİLİMLERİ]]*Vergi_Dilimleri_2025_2[[#This Row],[VERGİ ORANLARI]] -> 1505000 | M49: 4 | N49: İşsizlik Sigortası | O49: 0.02 | P49: 0.01
A50: 5 | B50: Emekli Engelli Net Ücret (Yıllık Ortalama) | C50: 24055.09 | D50: =Ucret_Turleri_2025_2[[#This Row],[Aylık]]/30 -> 801.8363333 | E50: =Ucret_Turleri_2025_2[[#This Row],[Günlük]]/7.5 -> 106.9115111 | G50: 5 | H50: 4300000.01 | I50: 9999999 | J50: 0.4 | K50: =Vergi_Dilimleri_2025_2[[#This Row],[DİLİMLERİ]]*Vergi_Dilimleri_2025_2[[#This Row],[VERGİ ORANLARI]] -> 3999999.6 | M50: 5 | N50: Toplam | O50: =SUBTOTAL(109,O46:O49) -> 0.2275 | P50: =SUBTOTAL(109,P46:P49) -> 0.15 | Q50: =SUM(Isveren_prim_oranlari_normal_2025_2[[#This Row],[İşveren Payı]:[Çalışan Payı]]) -> 0.3775
A51: 6 | B51: Kıdem Tazminanı Tavanı 2. Dönem | C51: 53919.68 | D51: =Ucret_Turleri_2025_2[[#This Row],[Aylık]]/30 -> 1797.322667 | E51: =Ucret_Turleri_2025_2[[#This Row],[Günlük]]/7.5 -> 239.6430222 | M51: 6 | N51: Hazine | Q51: 0.04
A52: 7 | B52: 1.DERECE ENGELLİ | C52: 9900 | D52: =Ucret_Turleri_2025_2[[#This Row],[Aylık]]/30 -> 330 | E52: =Ucret_Turleri_2025_2[[#This Row],[Günlük]]/7.5 -> 44 | M52: 7 | N52: Hazine (İmalat) | Q52: 0.05
A53: 8 | B53: 2.DERECE ENGELLİ | C53: 5700 | D53: =Ucret_Turleri_2025_2[[#This Row],[Aylık]]/30 -> 190 | E53: =Ucret_Turleri_2025_2[[#This Row],[Günlük]]/7.5 -> 25.33333333 | M53: 8 | N53: Damga Vergisi Oranı | Q53: 0.00759
A54: 9 | B54: 3.DERECE ENGELLİ | C54: 2400 | D54: =Ucret_Turleri_2025_2[[#This Row],[Aylık]]/30 -> 80 | E54: =Ucret_Turleri_2025_2[[#This Row],[Günlük]]/7.5 -> 10.66666667
A55: 10 | B55: Stajyer Ücreti | C55: 6631.4 | D55: =Ucret_Turleri_2025_2[[#This Row],[Aylık]]/30 -> 221.0466667 | E55: =Ucret_Turleri_2025_2[[#This Row],[Günlük]]/7.5 -> 29.47288889 | M55: indx | N55: SGDP Oranı | O55: İşveren Payı | P55: Çalışan Payı | Q55: Toplam
A56: 11 | B56: Çocuk Yardımı SGK İstisnası | C56: 520.11 | D56: =Ucret_Turleri_2025_2[[#This Row],[Aylık]]/30 -> 17.337 | E56: =Ucret_Turleri_2025_2[[#This Row],[Günlük]]/7.5 -> 2.3116 | M56: 1 | N56: Emekli Çalışan | O56: 0.2475 | P56: 0.075 | Q56: 0.3225
A57: 12 | B57: Aile Yardımı SGK İstisnası | C57: 2600.55 | D57: =Ucret_Turleri_2025_2[[#This Row],[Aylık]]/30 -> 86.685 | E57: =Ucret_Turleri_2025_2[[#This Row],[Günlük]]/7.5 -> 11.558
A58: 13 | B58: Nakit Yemek Parası SGK İstisnası | C58: 158 | D58: =Ucret_Turleri_2025_2[[#This Row],[Aylık]]/30 -> 5.266666667 | E58: =Ucret_Turleri_2025_2[[#This Row],[Günlük]]/7.5 -> 0.7022222222
A59: 14 | B59: Yemek Kartı SGK İstisnası | C59: 158 | D59: =Ucret_Turleri_2025_2[[#This Row],[Aylık]]/30 -> 5.266666667 | E59: =Ucret_Turleri_2025_2[[#This Row],[Günlük]]/7.5 -> 0.7022222222
A60: 15 | B60: Yemek Kartı GV İstisnası | C60: 240 | D60: =Ucret_Turleri_2025_2[[#This Row],[Aylık]]/30 -> 8 | E60: =Ucret_Turleri_2025_2[[#This Row],[Günlük]]/7.5 -> 1.066666667
A61: 16 | B61: Nakit Yemek Parası GV İstisnası | C61: 240 | D61: =Ucret_Turleri_2025_2[[#This Row],[Aylık]]/30 -> 8 | E61: =Ucret_Turleri_2025_2[[#This Row],[Günlük]]/7.5 -> 1.066666667
A62: 17 | B62: Nakit Yemek Parası DV İstisnası | D62: =Ucret_Turleri_2025_2[[#This Row],[Aylık]]/30 -> 0 | E62: =Ucret_Turleri_2025_2[[#This Row],[Günlük]]/7.5 -> 0
A63: 18 | B63: Yol/Ulaşım Kartı GV İstisnası | C63: 126 | D63: =Ucret_Turleri_2025_2[[#This Row],[Aylık]]/30 -> 4.2 | E63: =Ucret_Turleri_2025_2[[#This Row],[Günlük]]/7.5 -> 0.56
A64: 19 | B64: Çocuk Yardımı GV İstisnası – 0-6 yaş | C64: 585.11 | D64: =Ucret_Turleri_2025_2[[#This Row],[Aylık]]/30 -> 19.50366667 | E64: =Ucret_Turleri_2025_2[[#This Row],[Günlük]]/7.5 -> 2.600488889
A65: 20 | B65: Çocuk Yardımı GV İstisnası – 6 yaş üzeri | C65: 292.55 | D65: =Ucret_Turleri_2025_2[[#This Row],[Aylık]]/30 -> 9.751666667 | E65: =Ucret_Turleri_2025_2[[#This Row],[Günlük]]/7.5 -> 1.300222222
A66: 21 | B66: Emzirme Ödeneği | C66: 1238 | D66: =Ucret_Turleri_2025_2[[#This Row],[Aylık]]/30 -> 41.26666667 | E66: =Ucret_Turleri_2025_2[[#This Row],[Günlük]]/7.5 -> 5.502222222
A67: 22 | B67: İşsizlik Ödeneği – Alt Limit | C67: 10323.25 | D67: =Ucret_Turleri_2025_2[[#This Row],[Aylık]]/30 -> 344.1083333 | E67: =Ucret_Turleri_2025_2[[#This Row],[Günlük]]/7.5 -> 45.88111111
A68: 23 | B68: İşsizlik Ödeneği – Üst Limit | C68: 20646.49 | D68: =Ucret_Turleri_2025_2[[#This Row],[Aylık]]/30 -> 688.2163333 | E68: =Ucret_Turleri_2025_2[[#This Row],[Günlük]]/7.5 -> 91.76217778
A69: 24 | B69: İş Göremezlik Ödeneği Ayakta Tedavi – Alt Limit | C69: 17337 | D69: =Ucret_Turleri_2025_2[[#This Row],[Aylık]]/30 -> 577.9 | E69: =Ucret_Turleri_2025_2[[#This Row],[Günlük]]/7.5 -> 77.05333333
A70: 25 | B70: İş Göremezlik Ödeneği Ayakta Tedavi – Üst Limit | C70: 130027.5 | D70: =Ucret_Turleri_2025_2[[#This Row],[Aylık]]/30 -> 4334.25 | E70: =Ucret_Turleri_2025_2[[#This Row],[Günlük]]/7.5 -> 577.9
A71: 26 | B71: İş Göremezlik Ödeneği Yatarak Tedavi – Alt Limit | C71: 13002.9 | D71: =Ucret_Turleri_2025_2[[#This Row],[Aylık]]/30 -> 433.43 | E71: =Ucret_Turleri_2025_2[[#This Row],[Günlük]]/7.5 -> 57.79066667
A72: 27 | B72: İş Göremezlik Ödeneği Yatarak Tedavi – Üst Limit | C72: 97520.7 | D72: =Ucret_Turleri_2025_2[[#This Row],[Aylık]]/30 -> 3250.69 | E72: =Ucret_Turleri_2025_2[[#This Row],[Günlük]]/7.5 -> 433.4253333
A73: 28 | B73: Yarım Çalışma Ödeneği | C73: 860.27 | D73: =Ucret_Turleri_2025_2[[#This Row],[Aylık]]/30 -> 28.67566667 | E73: =Ucret_Turleri_2025_2[[#This Row],[Günlük]]/7.5 -> 3.823422222

Sheet 2024
A1: 1. DÖNEM
A2: indx | B2: Ücret Türü | C2: Aylık | D2: Günlük | E2: Saatlik | G2: indx | H2: VERGİ | I2: DİLİMLERİ | J2: VERGİ ORANLARI | K2: VERGİ KESİNTİSİ | M2: indx | N2: Sigorta Kolu | O2: İşveren Payı | P2: Çalışan Payı | Q2: Toplam
A3: 1 | B3: Asgari Brüt | C3: 20002.5 | D3: =Ucret_Turleri_2024_1[[#This Row],[Aylık]]/30 -> 666.75 | E3: =Ucret_Turleri_2024_1[[#This Row],[Günlük]]/7.5 -> 88.9 | G3: 1 | H3: 0 | I3: 110000 | J3: 0.15 | K3: =Vergi_Dilimleri_2024_1[[#This Row],[DİLİMLERİ]]*Vergi_Dilimleri_2024_1[[#This Row],[VERGİ ORANLARI]] -> 16500 | M3: 1 | N3: Malüllük, Yaşlılık ve Ölüm | O3: 0.11 | P3: 0.09 | Q3: 0.2
A4: =A3+1 -> 2 | B4: SGK Tavan | C4: 150018.9 | D4: =Ucret_Turleri_2024_1[[#This Row],[Aylık]]/30 -> 5000.63 | E4: =Ucret_Turleri_2024_1[[#This Row],[Günlük]]/7.5 -> 666.7506667 | G4: =G3+1 -> 2 | H4: =I3+0.01 -> 110000.01 | I4: 230000 | J4: 0.2 | K4: =Vergi_Dilimleri_2024_1[[#This Row],[DİLİMLERİ]]*Vergi_Dilimleri_2024_1[[#This Row],[VERGİ ORANLARI]] -> 46000 | M4: =M3+1 -> 2 | N4: Kısa Vadeli Sigorta Kolları | O4: 0.02 | P4: - | Q4: 0.02
A5: =A4+1 -> 3 | B5: Net Ücret | C5: 17002.12 | D5: =Ucret_Turleri_2024_1[[#This Row],[Aylık]]/30 -> 566.7373333 | E5: =Ucret_Turleri_2024_1[[#This Row],[Günlük]]/7.5 -> 75.56497778 | G5: =G4+1 -> 3 | H5: =I4+0.01 -> 230000.01 | I5: 870000 | J5: 0.27 | K5: =Vergi_Dilimleri_2024_1[[#This Row],[DİLİMLERİ]]*Vergi_Dilimleri_2024_1[[#This Row],[VERGİ ORANLARI]] -> 234900 | M5: =M4+1 -> 3 | N5: Genel Sağlık Sigortası | O5: 0.075 | P5: 0.05 | Q5: 0.125
A6: 4 | B6: Emekli Net Ücret (Yıllık Ortalama) | C6: 18202.27 | D6: =Ucret_Turleri_2024_1[[#This Row],[Aylık]]/30 -> 606.7423333 | E6: =Ucret_Turleri_2024_1[[#This Row],[Günlük]]/7.5 -> 80.89897778 | G6: 4 | H6: 870000.01 | I6: 3000000 | J6: 0.35 | K6: =Vergi_Dilimleri_2024_1[[#This Row],[DİLİMLERİ]]*Vergi_Dilimleri_2024_1[[#This Row],[VERGİ ORANLARI]] -> 1050000 | M6: 4 | N6: İşsizlik Sigortası | O6: 0.02 | P6: 0.01
A7: 5 | B7: Emekli Engelli Net Ücret (Yıllık Ortalama) | C7: 18502.31 | D7: =Ucret_Turleri_2024_1[[#This Row],[Aylık]]/30 -> 616.7436667 | E7: =Ucret_Turleri_2024_1[[#This Row],[Günlük]]/7.5 -> 82.23248889 | G7: 5 | H7: 3000000.01 | I7: 9999999 | J7: 0.4 | K7: =Vergi_Dilimleri_2024_1[[#This Row],[DİLİMLERİ]]*Vergi_Dilimleri_2024_1[[#This Row],[VERGİ ORANLARI]] -> 3999999.6 | M7: 5 | N7: Toplam | O7: =SUBTOTAL(109,O3:O6) -> 0.225 | P7: =SUBTOTAL(109,P3:P6) -> 0.15 | Q7: =SUM(Isveren_prim_oranlari_normal_2024_1[[#This Row],[İşveren Payı]:[Çalışan Payı]]) -> 0.375
A8: 6 | B8: Kıdem Tazminanı Tavanı 1. Dönem | C8: 35058.58 | D8: =Ucret_Turleri_2024_1[[#This Row],[Aylık]]/30 -> 1168.619333 | E8: =Ucret_Turleri_2024_1[[#This Row],[Günlük]]/7.5 -> 155.8159111 | M8: 6 | N8: Hazine | Q8: 0.05
A9: 7 | B9: 1.DERECE ENGELLİ | C9: 6900 | D9: =Ucret_Turleri_2024_1[[#This Row],[Aylık]]/30 -> 230 | E9: =Ucret_Turleri_2024_1[[#This Row],[Günlük]]/7.5 -> 30.66666667 | M9: 7 | N9: Hazine (İmalat) | Q9: 0.05
A10: 8 | B10: 2.DERECE ENGELLİ | C10: 4000 | D10: =Ucret_Turleri_2024_1[[#This Row],[Aylık]]/30 -> 133.3333333 | E10: =Ucret_Turleri_2024_1[[#This Row],[Günlük]]/7.5 -> 17.77777778 | M10: 8 | N10: Damga Vergisi Oranı | Q10: 0.00759
A11: 9 | B11: 3.DERECE ENGELLİ | C11: 1700 | D11: =Ucret_Turleri_2024_1[[#This Row],[Aylık]]/30 -> 56.66666667 | E11: =Ucret_Turleri_2024_1[[#This Row],[Günlük]]/7.5 -> 7.555555556
A12: 10 | B12: Stajyer Ücreti | C12: 5100.64 | D12: =Ucret_Turleri_2024_1[[#This Row],[Aylık]]/30 -> 170.0213333 | E12: =Ucret_Turleri_2024_1[[#This Row],[Günlük]]/7.5 -> 22.66951111 | M12: indx | N12: SGDP Oranı | O12: İşveren Payı | P12: Çalışan Payı | Q12: Toplam
A13: 11 | B13: Çocuk Yardımı SGK İstisnası | C13: 400.05 | D13: =Ucret_Turleri_2024_1[[#This Row],[Aylık]]/30 -> 13.335 | E13: =Ucret_Turleri_2024_1[[#This Row],[Günlük]]/7.5 -> 1.778 | M13: 1 | N13: Emekli Çalışan | O13: 0.245 | P13: 0.075 | Q13: 0.32
A14: 12 | B14: Aile Yardımı SGK İstisnası | C14: 2000.25 | D14: =Ucret_Turleri_2024_1[[#This Row],[Aylık]]/30 -> 66.675 | E14: =Ucret_Turleri_2024_1[[#This Row],[Günlük]]/7.5 -> 8.89
A15: 13 | B15: Nakit Yemek Parası SGK İstisnası | C15: 157.69 | D15: =Ucret_Turleri_2024_1[[#This Row],[Aylık]]/30 -> 5.256333333 | E15: =Ucret_Turleri_2024_1[[#This Row],[Günlük]]/7.5 -> 0.7008444444
A16: 14 | B16: Yemek Kartı SGK İstisnası | C16: 157.69 | D16: =Ucret_Turleri_2024_1[[#This Row],[Aylık]]/30 -> 5.256333333 | E16: =Ucret_Turleri_2024_1[[#This Row],[Günlük]]/7.5 -> 0.7008444444
A17: 15 | B17: Yemek Kartı GV İstisnası | C17: 170 | D17: =Ucret_Turleri_2024_1[[#This Row],[Aylık]]/30 -> 5.666666667 | E17: =Ucret_Turleri_2024_1[[#This Row],[Günlük]]/7.5 -> 0.7555555556
A18: 16 | B18: Nakit Yemek Parası GV İstisnası | C18: 170 | D18: =Ucret_Turleri_2024_1[[#This Row],[Aylık]]/30 -> 5.666666667 | E18: =Ucret_Turleri_2024_1[[#This Row],[Günlük]]/7.5 -> 0.7555555556
A19: 17 | B19: Nakit Yemek Parası DV İstisnası | C19: 170 | D19: =Ucret_Turleri_2024_1[[#This Row],[Aylık]]/30 -> 5.666666667 | E19: =Ucret_Turleri_2024_1[[#This Row],[Günlük]]/7.5 -> 0.7555555556
A20: 18 | B20: Yol/Ulaşım Kartı GV İstisnası | C20: 88 | D20: =Ucret_Turleri_2024_1[[#This Row],[Aylık]]/30 -> 2.933333333 | E20: =Ucret_Turleri_2024_1[[#This Row],[Günlük]]/7.5 -> 0.3911111111
A21: 19 | B21: Çocuk Yardımı GV İstisnası – 0-6 yaş | C21: 380.44 | D21: =Ucret_Turleri_2024_1[[#This Row],[Aylık]]/30 -> 12.68133333 | E21: =Ucret_Turleri_2024_1[[#This Row],[Günlük]]/7.5 -> 1.690844444
A22: 20 | B22: Çocuk Yardımı GV İstisnası – 6 yaş üzeri | C22: 190.22 | D22: =Ucret_Turleri_2024_1[[#This Row],[Aylık]]/30 -> 6.340666667 | E22: =Ucret_Turleri_2024_1[[#This Row],[Günlük]]/7.5 -> 0.8454222222
A23: 21 | B23: Emzirme Ödeneği | C23: 857 | D23: =Ucret_Turleri_2024_1[[#This Row],[Aylık]]/30 -> 28.56666667 | E23: =Ucret_Turleri_2024_1[[#This Row],[Günlük]]/7.5 -> 3.808888889
A24: 22 | B24: İşsizlik Ödeneği – Alt Limit | C24: 7940.27 | D24: =Ucret_Turleri_2024_1[[#This Row],[Aylık]]/30 -> 264.6756667 | E24: =Ucret_Turleri_2024_1[[#This Row],[Günlük]]/7.5 -> 35.29008889
A25: 23 | B25: İşsizlik Ödeneği – Üst Limit | C25: 15880.54 | D25: =Ucret_Turleri_2024_1[[#This Row],[Aylık]]/30 -> 529.3513333 | E25: =Ucret_Turleri_2024_1[[#This Row],[Günlük]]/7.5 -> 70.58017778
A26: 24 | B26: İş Göremezlik Ödeneği Ayakta Tedavi – Alt Limit | C26: 13335 | D26: =Ucret_Turleri_2024_1[[#This Row],[Aylık]]/30 -> 444.5 | E26: =Ucret_Turleri_2024_1[[#This Row],[Günlük]]/7.5 -> 59.26666667
A27: 25 | B27: İş Göremezlik Ödeneği Ayakta Tedavi – Üst Limit | C27: 100012.5 | D27: =Ucret_Turleri_2024_1[[#This Row],[Aylık]]/30 -> 3333.75 | E27: =Ucret_Turleri_2024_1[[#This Row],[Günlük]]/7.5 -> 444.5
A28: 26 | B28: İş Göremezlik Ödeneği Yatarak Tedavi – Alt Limit | C28: 10001.4 | D28: =Ucret_Turleri_2024_1[[#This Row],[Aylık]]/30 -> 333.38 | E28: =Ucret_Turleri_2024_1[[#This Row],[Günlük]]/7.5 -> 44.45066667
A29: 27 | B29: İş Göremezlik Ödeneği Yatarak Tedavi – Üst Limit | C29: 75009.3 | D29: =Ucret_Turleri_2024_1[[#This Row],[Aylık]]/30 -> 2500.31 | E29: =Ucret_Turleri_2024_1[[#This Row],[Günlük]]/7.5 -> 333.3746667
A30: 28 | B30: Yarım Çalışma Ödeneği | C30: 661.69 | D30: =Ucret_Turleri_2024_1[[#This Row],[Aylık]]/30 -> 22.05633333 | E30: =Ucret_Turleri_2024_1[[#This Row],[Günlük]]/7.5 -> 2.940844444
A44: 2. DÖNEM
A45: indx | B45: Ücret Türü | C45: Aylık | D45: Günlük | E45: Saatlik | G45: indx | H45: VERGİ | I45: DİLİMLERİ | J45: VERGİ ORANLARI | K45: VERGİ KESİNTİSİ | M45: indx | N45: Sigorta Kolu | O45: İşveren Payı | P45: Çalışan Payı | Q45: Toplam
A46: 1 | B46: Asgari Brüt | C46: 20002.5 | D46: =Ucret_Turleri_2024_2[[#This Row],[Aylık]]/30 -> 666.75 | E46: =Ucret_Turleri_2024_2[[#This Row],[Günlük]]/7.5 -> 88.9 | G46: 1 | H46: 0 | I46: 110000 | J46: 0.15 | K46: =Vergi_Dilimleri_2024_2[[#This Row],[DİLİMLERİ]]*Vergi_Dilimleri_2024_2[[#This Row],[VERGİ ORANLARI]] -> 16500 | M46: 1 | N46: Malüllük, Yaşlılık ve Ölüm | O46: 0.11 | P46: 0.09 | Q46: 0.2
A47: =A46+1 -> 2 | B47: SGK Tavan | C47: 150018.9 | D47: =Ucret_Turleri_2024_2[[#This Row],[Aylık]]/30 -> 5000.63 | E47: =Ucret_Turleri_2024_2[[#This Row],[Günlük]]/7.5 -> 666.7506667 | G47: =G46+1 -> 2 | H47: =I46+0.01 -> 110000.01 | I47: 230000 | J47: 0.2 | K47: =Vergi_Dilimleri_2024_2[[#This Row],[DİLİMLERİ]]*Vergi_Dilimleri_2024_2[[#This Row],[VERGİ ORANLARI]] -> 46000 | M47: =M46+1 -> 2 | N47: Kısa Vadeli Sigorta Kolları | O47: 0.0225 | P47: - | Q47: 0.02
A48: =A47+1 -> 3 | B48: Net Ücret | C48: 17002.12 | D48: =Ucret_Turleri_2024_2[[#This Row],[Aylık]]/30 -> 566.7373333 | E48: =Ucret_Turleri_2024_2[[#This Row],[Günlük]]/7.5 -> 75.56497778 | G48: =G47+1 -> 3 | H48: =I47+0.01 -> 230000.01 | I48: 870000 | J48: 0.27 | K48: =Vergi_Dilimleri_2024_2[[#This Row],[DİLİMLERİ]]*Vergi_Dilimleri_2024_2[[#This Row],[VERGİ ORANLARI]] -> 234900 | M48: =M47+1 -> 3 | N48: Genel Sağlık Sigortası | O48: 0.075 | P48: 0.05 | Q48: 0.125
A49: 4 | B49: Emekli Net Ücret (Yıllık Ortalama) | C49: 18202.27 | D49: =Ucret_Turleri_2024_2[[#This Row],[Aylık]]/30 -> 606.7423333 | E49: =Ucret_Turleri_2024_2[[#This Row],[Günlük]]/7.5 -> 80.89897778 | G49: 4 | H49: 870000.01 | I49: 3000000 | J49: 0.35 | K49: =Vergi_Dilimleri_2024_2[[#This Row],[DİLİMLERİ]]*Vergi_Dilimleri_2024_2[[#This Row],[VERGİ ORANLARI]] -> 1050000 | M49: 4 | N49: İşsizlik Sigortası | O49: 0.02 | P49: 0.01
A50: 5 | B50: Emekli Engelli Net Ücret (Yıllık Ortalama) | C50: 18502.31 | D50: =Ucret_Turleri_2024_2[[#This Row],[Aylık]]/30 -> 616.7436667 | E50: =Ucret_Turleri_2024_2[[#This Row],[Günlük]]/7.5 -> 82.23248889 | G50: 5 | H50: 3000000.01 | I50: 9999999 | J50: 0.4 | K50: =Vergi_Dilimleri_2024_2[[#This Row],[DİLİMLERİ]]*Vergi_Dilimleri_2024_2[[#This Row],[VERGİ ORANLARI]] -> 3999999.6 | M50: 5 | N50: Toplam | O50: =SUBTOTAL(109,O46:O49) -> 0.2275 | P50: =SUBTOTAL(109,P46:P49) -> 0.15 | Q50: =SUM(Isveren_prim_oranlari_normal_2024_2[[#This Row],[İşveren Payı]:[Çalışan Payı]]) -> 0.3775
A51: 6 | B51: Kıdem Tazminanı Tavanı 2. Dönem | C51: 41828.42 | D51: =Ucret_Turleri_2024_2[[#This Row],[Aylık]]/30 -> 1394.280667 | E51: =Ucret_Turleri_2024_2[[#This Row],[Günlük]]/7.5 -> 185.9040889 | M51: 6 | N51: Hazine | Q51: 0.05
A52: 7 | B52: 1.DERECE ENGELLİ | C52: 6900 | D52: =Ucret_Turleri_2024_2[[#This Row],[Aylık]]/30 -> 230 | E52: =Ucret_Turleri_2024_2[[#This Row],[Günlük]]/7.5 -> 30.66666667 | M52: 7 | N52: Hazine (İmalat) | Q52: 0.05
A53: 8 | B53: 2.DERECE ENGELLİ | C53: 4000 | D53: =Ucret_Turleri_2024_2[[#This Row],[Aylık]]/30 -> 133.3333333 | E53: =Ucret_Turleri_2024_2[[#This Row],[Günlük]]/7.5 -> 17.77777778 | M53: 8 | N53: Damga Vergisi Oranı | Q53: 0.00759
A54: 9 | B54: 3.DERECE ENGELLİ | C54: 1700 | D54: =Ucret_Turleri_2024_2[[#This Row],[Aylık]]/30 -> 56.66666667 | E54: =Ucret_Turleri_2024_2[[#This Row],[Günlük]]/7.5 -> 7.555555556
A55: 10 | B55: Stajyer Ücreti | C55: 5100.64 | D55: =Ucret_Turleri_2024_2[[#This Row],[Aylık]]/30 -> 170.0213333 | E55: =Ucret_Turleri_2024_2[[#This Row],[Günlük]]/7.5 -> 22.66951111 | M55: indx | N55: SGDP Oranı | O55: İşveren Payı | P55: Çalışan Payı | Q55: Toplam
A56: 11 | B56: Çocuk Yardımı SGK İstisnası | C56: 400.05 | D56: =Ucret_Turleri_2024_2[[#This Row],[Aylık]]/30 -> 13.335 | E56: =Ucret_Turleri_2024_2[[#This Row],[Günlük]]/7.5 -> 1.778 | M56: 1 | N56: Emekli Çalışan | O56: 0.2475 | P56: 0.075 | Q56: 0.3225
A57: 12 | B57: Aile Yardımı SGK İstisnası | C57: 2000.25 | D57: =Ucret_Turleri_2024_2[[#This Row],[Aylık]]/30 -> 66.675 | E57: =Ucret_Turleri_2024_2[[#This Row],[Günlük]]/7.5 -> 8.89
A58: 13 | B58: Nakit Yemek Parası SGK İstisnası | C58: 157.69 | D58: =Ucret_Turleri_2024_2[[#This Row],[Aylık]]/30 -> 5.256333333 | E58: =Ucret_Turleri_2024_2[[#This Row],[Günlük]]/7.5 -> 0.7008444444
A59: 14 | B59: Yemek Kartı SGK İstisnası | C59: 157.69 | D59: =Ucret_Turleri_2024_2[[#This Row],[Aylık]]/30 -> 5.256333333 | E59: =Ucret_Turleri_2024_2[[#This Row],[Günlük]]/7.5 -> 0.7008444444
A60: 15 | B60: Yemek Kartı GV İstisnası | C60: 170 | D60: =Ucret_Turleri_2024_2[[#This Row],[Aylık]]/30 -> 5.666666667 | E60: =Ucret_Turleri_2024_2[[#This Row],[Günlük]]/7.5 -> 0.7555555556
A61: 16 | B61: Nakit Yemek Parası GV İstisnası | C61: 170 | D61: =Ucret_Turleri_2024_2[[#This Row],[Aylık]]/30 -> 5.666666667 | E61: =Ucret_Turleri_2024_2[[#This Row],[Günlük]]/7.5 -> 0.7555555556
A62: 17 | B62: Nakit Yemek Parası DV İstisnası | C62: 170 | D62: =Ucret_Turleri_2024_2[[#This Row],[Aylık]]/30 -> 5.666666667 | E62: =Ucret_Turleri_2024_2[[#This Row],[Günlük]]/7.5 -> 0.7555555556
A63: 18 | B63: Yol/Ulaşım Kartı GV İstisnası | C63: 88 | D63: =Ucret_Turleri_2024_2[[#This Row],[Aylık]]/30 -> 2.933333333 | E63: =Ucret_Turleri_2024_2[[#This Row],[Günlük]]/7.5 -> 0.3911111111
A64: 19 | B64: Çocuk Yardımı GV İstisnası – 0-6 yaş | C64: 453.9 | D64: =Ucret_Turleri_2024_2[[#This Row],[Aylık]]/30 -> 15.13 | E64: =Ucret_Turleri_2024_2[[#This Row],[Günlük]]/7.5 -> 2.017333333
A65: 20 | B65: Çocuk Yardımı GV İstisnası – 6 yaş üzeri | C65: 226.95 | D65: =Ucret_Turleri_2024_2[[#This Row],[Aylık]]/30 -> 7.565 | E65: =Ucret_Turleri_2024_2[[#This Row],[Günlük]]/7.5 -> 1.008666667
A66: 21 | B66: Emzirme Ödeneği | C66: 857 | D66: =Ucret_Turleri_2024_2[[#This Row],[Aylık]]/30 -> 28.56666667 | E66: =Ucret_Turleri_2024_2[[#This Row],[Günlük]]/7.5 -> 3.808888889
A67: 22 | B67: İşsizlik Ödeneği – Alt Limit | C67: 7940.27 | D67: =Ucret_Turleri_2024_2[[#This Row],[Aylık]]/30 -> 264.6756667 | E67: =Ucret_Turleri_2024_2[[#This Row],[Günlük]]/7.5 -> 35.29008889
A68: 23 | B68: İşsizlik Ödeneği – Üst Limit | C68: 15880.54 | D68: =Ucret_Turleri_2024_2[[#This Row],[Aylık]]/30 -> 529.3513333 | E68: =Ucret_Turleri_2024_2[[#This Row],[Günlük]]/7.5 -> 70.58017778
A69: 24 | B69: İş Göremezlik Ödeneği Ayakta Tedavi – Alt Limit | C69: 13335 | D69: =Ucret_Turleri_2024_2[[#This Row],[Aylık]]/30 -> 444.5 | E69: =Ucret_Turleri_2024_2[[#This Row],[Günlük]]/7.5 -> 59.26666667
A70: 25 | B70: İş Göremezlik Ödeneği Ayakta Tedavi – Üst Limit | C70: 100012.5 | D70: =Ucret_Turleri_2024_2[[#This Row],[Aylık]]/30 -> 3333.75 | E70: =Ucret_Turleri_2024_2[[#This Row],[Günlük]]/7.5 -> 444.5
A71: 26 | B71: İş Göremezlik Ödeneği Yatarak Tedavi – Alt Limit | C71: 10001.4 | D71: =Ucret_Turleri_2024_2[[#This Row],[Aylık]]/30 -> 333.38 | E71: =Ucret_Turleri_2024_2[[#This Row],[Günlük]]/7.5 -> 44.45066667
A72: 27 | B72: İş Göremezlik Ödeneği Yatarak Tedavi – Üst Limit | C72: 75009.3 | D72: =Ucret_Turleri_2024_2[[#This Row],[Aylık]]/30 -> 2500.31 | E72: =Ucret_Turleri_2024_2[[#This Row],[Günlük]]/7.5 -> 333.3746667
A73: 28 | B73: Yarım Çalışma Ödeneği | C73: 661.69 | D73: =Ucret_Turleri_2024_2[[#This Row],[Aylık]]/30 -> 22.05633333 | E73: =Ucret_Turleri_2024_2[[#This Row],[Günlük]]/7.5 -> 2.940844444

Sheet 2023
A1: 1. DÖNEM
A2: indx | B2: Ücret Türü | C2: Aylık | D2: Günlük | E2: Saatlik | G2: indx | H2: VERGİ | I2: DİLİMLERİ | J2: VERGİ ORANLARI | K2: VERGİ KESİNTİSİ | M2: indx | N2: Sigorta Kolu | O2: İşveren Payı | P2: Çalışan Payı | Q2: Toplam
A3: 1 | B3: Asgari Brüt | C3: 10008 | D3: =Ucret_Turleri_2023_1[[#This Row],[Aylık]]/30 -> 333.6 | E3: =Ucret_Turleri_2023_1[[#This Row],[Günlük]]/7.5 -> 44.48 | G3: 1 | H3: 0 | I3: 70000 | J3: 0.15 | K3: =I3*J3 -> 10500 | M3: 1 | N3: Malüllük, Yaşlılık ve Ölüm | O3: 0.11 | P3: 0.09 | Q3: 0.2
A4: =A3+1 -> 2 | B4: SGK Tavan | C4: 75060 | D4: =Ucret_Turleri_2023_1[[#This Row],[Aylık]]/30 -> 2502 | E4: =Ucret_Turleri_2023_1[[#This Row],[Günlük]]/7.5 -> 333.6 | G4: =G3+1 -> 2 | H4: =I3+0.01 -> 70000.01 | I4: 150000 | J4: 0.2 | K4: =I4*J4 -> 30000 | M4: =M3+1 -> 2 | N4: Kısa Vadeli Sigorta Kolları | O4: 0.02 | P4: - | Q4: 0.02
A5: =A4+1 -> 3 | B5: Net Ücret | C5: 8506.8 | D5: =Ucret_Turleri_2023_1[[#This Row],[Aylık]]/30 -> 283.56 | E5: =Ucret_Turleri_2023_1[[#This Row],[Günlük]]/7.5 -> 37.808 | G5: =G4+1 -> 3 | H5: =I4+0.01 -> 150000.01 | I5: 550000 | J5: 0.27 | K5: 148500 | M5: =M4+1 -> 3 | N5: Genel Sağlık Sigortası | O5: 0.075 | P5: 0.05 | Q5: 0.125
A6: 4 | B6: Emekli Net Ücret (Yıllık Ortalama) | C6: 10657.24 | D6: =Ucret_Turleri_2023_1[[#This Row],[Aylık]]/30 -> 355.2413333 | E6: =Ucret_Turleri_2023_1[[#This Row],[Günlük]]/7.5 -> 47.36551111 | G6: 4 | H6: 550000.01 | I6: 1900000 | J6: 0.35 | K6: 665000 | M6: 4 | N6: İşsizlik Sigortası | O6: 0.02 | P6: 0.01
A7: 5 | B7: Emekli Engelli Net Ücret (Yıllık Ortalama) | C7: 10832.91 | D7: =Ucret_Turleri_2023_1[[#This Row],[Aylık]]/30 -> 361.097 | E7: =Ucret_Turleri_2023_1[[#This Row],[Günlük]]/7.5 -> 48.14626667 | G7: 5 | H7: 1900000.01 | I7: 9999999 | J7: 0.4 | K7: 3999999.6 | M7: 5 | N7: Toplam | O7: =SUBTOTAL(109,O3:O6) -> 0.225 | P7: =SUBTOTAL(109,P3:P6) -> 0.15 | Q7: =SUM(Isveren_prim_oranlari_normal_2023_1[[#This Row],[İşveren Payı]:[Çalışan Payı]]) -> 0.375
A8: 6 | B8: Kıdem Tazminanı Tavanı 1. Dönem | C8: 19982.83 | D8: =Ucret_Turleri_2023_1[[#This Row],[Aylık]]/30 -> 666.0943333 | E8: =Ucret_Turleri_2023_1[[#This Row],[Günlük]]/7.5 -> 88.81257778 | M8: 6 | N8: Hazine | Q8: 0.05
A9: 7 | B9: 1.DERECE ENGELLİ | C9: 4400 | D9: =Ucret_Turleri_2023_1[[#This Row],[Aylık]]/30 -> 146.6666667 | E9: =Ucret_Turleri_2023_1[[#This Row],[Günlük]]/7.5 -> 19.55555556 | M9: 7 | N9: Hazine (İmalat) | Q9: 0.05
A10: 8 | B10: 2.DERECE ENGELLİ | C10: 2600 | D10: =Ucret_Turleri_2023_1[[#This Row],[Aylık]]/30 -> 86.66666667 | E10: =Ucret_Turleri_2023_1[[#This Row],[Günlük]]/7.5 -> 11.55555556 | M10: 8 | N10: Damga Vergisi Oranı | Q10: 0.00759
A11: 9 | B11: 3.DERECE ENGELLİ | C11: 1100 | D11: =Ucret_Turleri_2023_1[[#This Row],[Aylık]]/30 -> 36.66666667 | E11: =Ucret_Turleri_2023_1[[#This Row],[Günlük]]/7.5 -> 4.888888889
A12: 10 | B12: Stajyer Ücreti | C12: 2552.04 | D12: =Ucret_Turleri_2023_1[[#This Row],[Aylık]]/30 -> 85.068 | E12: =Ucret_Turleri_2023_1[[#This Row],[Günlük]]/7.5 -> 11.3424 | M12: indx | N12: SGDP Oranı | O12: İşveren Payı | P12: Çalışan Payı | Q12: Toplam
A13: 11 | B13: Çocuk Yardımı SGK İstisnası | C13: 200.16 | D13: =Ucret_Turleri_2023_1[[#This Row],[Aylık]]/30 -> 6.672 | E13: =Ucret_Turleri_2023_1[[#This Row],[Günlük]]/7.5 -> 0.8896 | M13: 1 | N13: Emekli Çalışan | O13: 0.245 | P13: 0.075 | Q13: 0.32
A14: 12 | B14: Aile Yardımı SGK İstisnası | C14: 1000.8 | D14: =Ucret_Turleri_2023_1[[#This Row],[Aylık]]/30 -> 33.36 | E14: =Ucret_Turleri_2023_1[[#This Row],[Günlük]]/7.5 -> 4.448
A15: 13 | B15: Nakit Yemek Parası SGK İstisnası | C15: 78.9 | D15: =Ucret_Turleri_2023_1[[#This Row],[Aylık]]/30 -> 2.63 | E15: =Ucret_Turleri_2023_1[[#This Row],[Günlük]]/7.5 -> 0.3506666667
A16: 14 | B16: Yemek Kartı SGK İstisnası | C16: 78.9 | D16: =Ucret_Turleri_2023_1[[#This Row],[Aylık]]/30 -> 2.63 | E16: =Ucret_Turleri_2023_1[[#This Row],[Günlük]]/7.5 -> 0.3506666667
A17: 15 | B17: Yemek Kartı GV İstisnası | C17: 110 | D17: =Ucret_Turleri_2023_1[[#This Row],[Aylık]]/30 -> 3.666666667 | E17: =Ucret_Turleri_2023_1[[#This Row],[Günlük]]/7.5 -> 0.4888888889
A18: 16 | B18: Nakit Yemek Parası GV İstisnası | C18: 110 | D18: =Ucret_Turleri_2023_1[[#This Row],[Aylık]]/30 -> 3.666666667 | E18: =Ucret_Turleri_2023_1[[#This Row],[Günlük]]/7.5 -> 0.4888888889
A19: 17 | B19: Nakit Yemek Parası DV İstisnası | C19: 110 | D19: =Ucret_Turleri_2023_1[[#This Row],[Aylık]]/30 -> 3.666666667 | E19: =Ucret_Turleri_2023_1[[#This Row],[Günlük]]/7.5 -> 0.4888888889
A20: 18 | B20: Yol/Ulaşım Kartı GV İstisnası | C20: 56 | D20: =Ucret_Turleri_2023_1[[#This Row],[Aylık]]/30 -> 1.866666667 | E20: =Ucret_Turleri_2023_1[[#This Row],[Günlük]]/7.5 -> 0.2488888889
A21: 19 | B21: Çocuk Yardımı GV İstisnası – 0-6 yaş | C21: 216.84 | D21: =Ucret_Turleri_2023_1[[#This Row],[Aylık]]/30 -> 7.228 | E21: =Ucret_Turleri_2023_1[[#This Row],[Günlük]]/7.5 -> 0.9637333333
A22: 20 | B22: Çocuk Yardımı GV İstisnası – 6 yaş üzeri | C22: 108.42 | D22: =Ucret_Turleri_2023_1[[#This Row],[Aylık]]/30 -> 3.614 | E22: =Ucret_Turleri_2023_1[[#This Row],[Günlük]]/7.5 -> 0.4818666667
A23: 21 | B23: Emzirme Ödeneği | C23: 520 | D23: =Ucret_Turleri_2023_1[[#This Row],[Aylık]]/30 -> 17.33333333 | E23: =Ucret_Turleri_2023_1[[#This Row],[Günlük]]/7.5 -> 2.311111111
A24: 22 | B24: İşsizlik Ödeneği – Alt Limit | C24: 3972.82 | D24: =Ucret_Turleri_2023_1[[#This Row],[Aylık]]/30 -> 132.4273333 | E24: =Ucret_Turleri_2023_1[[#This Row],[Günlük]]/7.5 -> 17.65697778
A25: 23 | B25: İşsizlik Ödeneği – Üst Limit | C25: 7945.63 | D25: =Ucret_Turleri_2023_1[[#This Row],[Aylık]]/30 -> 264.8543333 | E25: =Ucret_Turleri_2023_1[[#This Row],[Günlük]]/7.5 -> 35.31391111
A26: 24 | B26: İş Göremezlik Ödeneği Ayakta Tedavi – Alt Limit | C26: 6672 | D26: =Ucret_Turleri_2023_1[[#This Row],[Aylık]]/30 -> 222.4 | E26: =Ucret_Turleri_2023_1[[#This Row],[Günlük]]/7.5 -> 29.65333333
A27: 25 | B27: İş Göremezlik Ödeneği Ayakta Tedavi – Üst Limit | C27: 50040 | D27: =Ucret_Turleri_2023_1[[#This Row],[Aylık]]/30 -> 1668 | E27: =Ucret_Turleri_2023_1[[#This Row],[Günlük]]/7.5 -> 222.4
A28: 26 | B28: İş Göremezlik Ödeneği Yatarak Tedavi – Alt Limit | C28: 5004 | D28: =Ucret_Turleri_2023_1[[#This Row],[Aylık]]/30 -> 166.8 | E28: =Ucret_Turleri_2023_1[[#This Row],[Günlük]]/7.5 -> 22.24
A29: 27 | B29: İş Göremezlik Ödeneği Yatarak Tedavi – Üst Limit | C29: 37530 | D29: =Ucret_Turleri_2023_1[[#This Row],[Aylık]]/30 -> 1251 | E29: =Ucret_Turleri_2023_1[[#This Row],[Günlük]]/7.5 -> 166.8
A30: 28 | B30: Yarım Çalışma Ödeneği | C30: 9932.1 | D30: =Ucret_Turleri_2023_1[[#This Row],[Aylık]]/30 -> 331.07 | E30: =Ucret_Turleri_2023_1[[#This Row],[Günlük]]/7.5 -> 44.14266667
A44: 2. DÖNEM
A45: indx | B45: Ücret Türü | C45: Aylık | D45: Günlük | E45: Saatlik | G45: indx | H45: VERGİ | I45: DİLİMLERİ | J45: VERGİ ORANLARI | K45: VERGİ KESİNTİSİ | M45: indx | N45: Sigorta Kolu | O45: İşveren Payı | P45: Çalışan Payı | Q45: Toplam
A46: 1 | B46: Asgari Brüt | C46: 13414.5 | D46: =Ucret_Turleri_2023_2[[#This Row],[Aylık]]/30 -> 447.15 | E46: =Ucret_Turleri_2023_2[[#This Row],[Günlük]]/7.5 -> 59.62 | G46: 1 | H46: 0 | I46: 70000 | J46: 0.15 | K46: =I3*J3 -> 10500 | M46: 1 | N46: Malüllük, Yaşlılık ve Ölüm | O46: 0.11 | P46: 0.09 | Q46: 0.2
A47: =A46+1 -> 2 | B47: SGK Tavan | C47: 100608.9 | D47: =Ucret_Turleri_2023_2[[#This Row],[Aylık]]/30 -> 3353.63 | E47: =Ucret_Turleri_2023_2[[#This Row],[Günlük]]/7.5 -> 447.1506667 | G47: =G46+1 -> 2 | H47: =I46+0.01 -> 70000.01 | I47: 150000 | J47: 0.2 | K47: =I4*J4 -> 30000 | M47: =M46+1 -> 2 | N47: Kısa Vadeli Sigorta Kolları | O47: 0.02 | P47: - | Q47: 0.02
A48: =A47+1 -> 3 | B48: Net Ücret | C48: 11402.32 | D48: =Ucret_Turleri_2023_2[[#This Row],[Aylık]]/30 -> 380.0773333 | E48: =Ucret_Turleri_2023_2[[#This Row],[Günlük]]/7.5 -> 50.67697778 | G48: =G47+1 -> 3 | H48: =I47+0.01 -> 150000.01 | I48: 550000 | J48: 0.27 | K48: =I5*J5 -> 148500 | M48: =M47+1 -> 3 | N48: Genel Sağlık Sigortası | O48: 0.075 | P48: 0.05 | Q48: 0.125
A49: 4 | B49: Emekli Net Ücret (Yıllık Ortalama) | C49: 10657.24 | D49: =Ucret_Turleri_2023_2[[#This Row],[Aylık]]/30 -> 355.2413333 | E49: =Ucret_Turleri_2023_2[[#This Row],[Günlük]]/7.5 -> 47.36551111 | G49: 4 | H49: 550000.01 | I49: 1900000 | J49: 0.35 | K49: =I6*J6 -> 665000 | M49: 4 | N49: İşsizlik Sigortası | O49: 0.02 | P49: 0.01
A50: 5 | B50: Emekli Engelli Net Ücret (Yıllık Ortalama) | C50: 10832.91 | D50: =Ucret_Turleri_2023_2[[#This Row],[Aylık]]/30 -> 361.097 | E50: =Ucret_Turleri_2023_2[[#This Row],[Günlük]]/7.5 -> 48.14626667 | G50: 5 | H50: 1900000.01 | I50: 9999999 | J50: 0.4 | K50: =I7*J7 -> 3999999.6 | M50: 5 | N50: Toplam | O50: =SUBTOTAL(109,O46:O49) -> 0.225 | P50: =SUBTOTAL(109,P46:P49) -> 0.15 | Q50: =SUM(Isveren_prim_oranlari_normal_2023_2[[#This Row],[İşveren Payı]:[Çalışan Payı]]) -> 0.375
A51: 6 | B51: Kıdem Tazminanı Tavanı 2. Dönem | C51: 23489.83 | D51: =Ucret_Turleri_2023_2[[#This Row],[Aylık]]/30 -> 782.9943333 | E51: =Ucret_Turleri_2023_2[[#This Row],[Günlük]]/7.5 -> 104.3992444 | M51: 6 | N51: Hazine | Q51: 0.05
A52: 7 | B52: 1.DERECE ENGELLİ | C52: 4400 | D52: =Ucret_Turleri_2023_2[[#This Row],[Aylık]]/30 -> 146.6666667 | E52: =Ucret_Turleri_2023_2[[#This Row],[Günlük]]/7.5 -> 19.55555556 | M52: 7 | N52: Hazine (İmalat) | Q52: 0.05
A53: 8 | B53: 2.DERECE ENGELLİ | C53: 2600 | D53: =Ucret_Turleri_2023_2[[#This Row],[Aylık]]/30 -> 86.66666667 | E53: =Ucret_Turleri_2023_2[[#This Row],[Günlük]]/7.5 -> 11.55555556 | M53: 8 | N53: Damga Vergisi Oranı | Q53: 0.00759
A54: 9 | B54: 3.DERECE ENGELLİ | C54: 1100 | D54: =Ucret_Turleri_2023_2[[#This Row],[Aylık]]/30 -> 36.66666667 | E54: =Ucret_Turleri_2023_2[[#This Row],[Günlük]]/7.5 -> 4.888888889
A55: 10 | B55: Stajyer Ücreti | C55: 3420.7 | D55: =Ucret_Turleri_2023_2[[#This Row],[Aylık]]/30 -> 114.0233333 | E55: =Ucret_Turleri_2023_2[[#This Row],[Günlük]]/7.5 -> 15.20311111 | M55: indx | N55: SGDP Oranı | O55: İşveren Payı | P55: Çalışan Payı | Q55: Toplam
A56: 11 | B56: Çocuk Yardımı SGK İstisnası | C56: 268.29 | D56: =Ucret_Turleri_2023_2[[#This Row],[Aylık]]/30 -> 8.943 | E56: =Ucret_Turleri_2023_2[[#This Row],[Günlük]]/7.5 -> 1.1924 | M56: 1 | N56: Emekli Çalışan | O56: 0.245 | P56: 0.075 | Q56: 0.32
A57: 12 | B57: Aile Yardımı SGK İstisnası | C57: 1341.45 | D57: =Ucret_Turleri_2023_2[[#This Row],[Aylık]]/30 -> 44.715 | E57: =Ucret_Turleri_2023_2[[#This Row],[Günlük]]/7.5 -> 5.962
A58: 13 | B58: Nakit Yemek Parası SGK İstisnası | C58: 105.75 | D58: =Ucret_Turleri_2023_2[[#This Row],[Aylık]]/30 -> 3.525 | E58: =Ucret_Turleri_2023_2[[#This Row],[Günlük]]/7.5 -> 0.47
A59: 14 | B59: Yemek Kartı SGK İstisnası | C59: 105.75 | D59: =Ucret_Turleri_2023_2[[#This Row],[Aylık]]/30 -> 3.525 | E59: =Ucret_Turleri_2023_2[[#This Row],[Günlük]]/7.5 -> 0.47
A60: 15 | B60: Çocuk Yardımı GV İstisnası – 0-6 yaş | C60: 254.9 | D60: =Ucret_Turleri_2023_2[[#This Row],[Aylık]]/30 -> 8.496666667 | E60: =Ucret_Turleri_2023_2[[#This Row],[Günlük]]/7.5 -> 1.132888889
A61: 16 | B61: Çocuk Yardımı GV İstisnası – 6 yaş üzeri | C61: 127.45 | D61: =Ucret_Turleri_2023_2[[#This Row],[Aylık]]/30 -> 4.248333333 | E61: =Ucret_Turleri_2023_2[[#This Row],[Günlük]]/7.5 -> 0.5664444444
A62: 17 | B62: Yemek Kartı GV İstisnası | C62: 110 | D62: =Ucret_Turleri_2023_2[[#This Row],[Aylık]]/30 -> 3.666666667 | E62: =Ucret_Turleri_2023_2[[#This Row],[Günlük]]/7.5 -> 0.4888888889
A63: 18 | B63: Nakit Yemek Parası DV İstisnası | C63: 110 | D63: =Ucret_Turleri_2023_2[[#This Row],[Aylık]]/30 -> 3.666666667 | E63: =Ucret_Turleri_2023_2[[#This Row],[Günlük]]/7.5 -> 0.4888888889
A64: 19 | B64: Nakit Yemek Parası GV İstisnası | C64: 110 | D64: =Ucret_Turleri_2023_2[[#This Row],[Aylık]]/30 -> 3.666666667 | E64: =Ucret_Turleri_2023_2[[#This Row],[Günlük]]/7.5 -> 0.4888888889
A65: 20 | B65: Yol/Ulaşım Kartı GV İstisnası | C65: 56 | D65: =Ucret_Turleri_2023_2[[#This Row],[Aylık]]/30 -> 1.866666667 | E65: =Ucret_Turleri_2023_2[[#This Row],[Günlük]]/7.5 -> 0.2488888889
A66: 21 | B66: Emzirme Ödeneği | C66: 520 | D66: =Ucret_Turleri_2023_2[[#This Row],[Aylık]]/30 -> 17.33333333 | E66: =Ucret_Turleri_2023_2[[#This Row],[Günlük]]/7.5 -> 2.311111111
A67: 22 | B67: İşsizlik Ödeneği – Alt Limit | C67: 5325.07 | D67: =Ucret_Turleri_2023_2[[#This Row],[Aylık]]/30 -> 177.5023333 | E67: =Ucret_Turleri_2023_2[[#This Row],[Günlük]]/7.5 -> 23.66697778
A68: 23 | B68: İşsizlik Ödeneği – Üst Limit | C68: 10650.15 | D68: =Ucret_Turleri_2023_2[[#This Row],[Aylık]]/30 -> 355.005 | E68: =Ucret_Turleri_2023_2[[#This Row],[Günlük]]/7.5 -> 47.334
A69: 24 | B69: İş Göremezlik Ödeneği Ayakta Tedavi – Alt Limit | C69: 8943 | D69: =Ucret_Turleri_2023_2[[#This Row],[Aylık]]/30 -> 298.1 | E69: =Ucret_Turleri_2023_2[[#This Row],[Günlük]]/7.5 -> 39.74666667
A70: 25 | B70: İş Göremezlik Ödeneği Ayakta Tedavi – Üst Limit | C70: 67072.5 | D70: =Ucret_Turleri_2023_2[[#This Row],[Aylık]]/30 -> 2235.75 | E70: =Ucret_Turleri_2023_2[[#This Row],[Günlük]]/7.5 -> 298.1
A71: 26 | B71: İş Göremezlik Ödeneği Yatarak Tedavi – Alt Limit | C71: 6707.4 | D71: =Ucret_Turleri_2023_2[[#This Row],[Aylık]]/30 -> 223.58 | E71: =Ucret_Turleri_2023_2[[#This Row],[Günlük]]/7.5 -> 29.81066667
A72: 27 | B72: İş Göremezlik Ödeneği Yatarak Tedavi – Üst Limit | C72: 50304.3 | D72: =Ucret_Turleri_2023_2[[#This Row],[Aylık]]/30 -> 1676.81 | E72: =Ucret_Turleri_2023_2[[#This Row],[Günlük]]/7.5 -> 223.5746667
A73: 28 | B73: Yarım Çalışma Ödeneği | C73: 13312.8 | D73: =Ucret_Turleri_2023_2[[#This Row],[Aylık]]/30 -> 443.76 | E73: =Ucret_Turleri_2023_2[[#This Row],[Günlük]]/7.5 -> 59.168

Sheet readme
A1: Yıllara göre parametrelerinizi ayarlayabilirsiniz. Yeni bir yıl eklemek için: 1- Herhangi bir yıldan kopya bir sheet oluşturun. 2- Yeni oluşturulan sheet'in adını değiştirin. örn: 2026(2) ---> 2027 gibi 3-Parametre tablolarının fiziksel tablo eşleşmelerini belirlemek için, yeni oluşturulan sayfadaki tablo isimlerini standart adlandırma yapısına göre güncelleyin: örn: Ucret_Turleri_2026_160 ------------------------------------------------------> Ucret_Turleri_2027_1 Vergi_Dilimleri_2026_157 ----------------------------------------------------> Vergi_Dilimleri_2027_1 Isveren_prim_oranlari_normal_2026_158 ------------------------------> Isveren_prim_oranlari_normal_2027_1 Isveren_prim_oranlari_emekli_2026_159 -------------------------------> Isveren_prim_oranlari_emekli_2027_1 Ucret_Turleri_2026_261 ------------------------------------------------------> Ucret_Turleri_2027_2 Vergi_Dilimleri_2026_262 ----------------------------------------------------> Vergi_Dilimleri_2027_2 Isveren_prim_oranlari_normal_2026_158 ------------------------------> Isveren_prim_oranlari_normal_2027_1 Isveren_prim_oranlari_emekli_2026_159 -------------------------------> Isveren_prim_oranlari_emekli_2027_1 Önemli: Sheet adının değiştirilmesi tek başına yeterli değildir. Sistem, hesaplamalarda fiziksel tablo adlarını kullandığından, sheet içerisindeki parametre tablolarının isimleri de doğru yıl ve dönem bilgisine göre güncellenmelidir. 2. dönem tabloların adını değiştirmeyi unutmayın. Parametre değerlerini girmeyi unutmayın. sm_b: bordro ve tazminat hesaplama sayfası, sadece ücret ve değişkenleri belirtiniz. Hesaplama amaçlıdır. params: parametre görüntüleme sayfası, sadece yıl ve dönem seçiniz. Bilgi amaçlıdır. 2026-2025-2024 ... : bu sayfalara parametre ekleyip ya da güncelleyebilirsiniz. Kısıtlı ve kontrollü veri giriş sayfalarıdır. sm_b ve params sayfalarını besler. *Entegre işlemler, toplu maliyet hesaplamaları, ek ücretler/primler veya başka işlemler için iletişime geçiniz..
H5: Sayfalarda yalnızca soldaki renkle belirtilen kolonlara veri girişi ya da seçim yapınız. Diğer kolonlar otomatik olarak hesaplanacaktır.
